Workbook

Sheet Parameters
A1: Bulk Stock Quote Downloader
A2: http://investexcel,net | J2: Samir Khan
J3: simulationconsultant@gmail,com
A4: Parameters | H4: FALSE
A5: Start Date | B5: 2005-02-01 | H5: TRUE
A6: End Date | B6: 2015-02-01
A7: Frequency | B7: m
B8: c:\temp\
J10: Failed for These Tickers | L10: Success for These Tickers
A11: Enter Tickers Below | C11: Enter a list of stock tickers and | L11: mcd
A12: mcd | C12: click the button to automatically | L12: x
A13: x | C13: retrieve historical stock quotes | L13: mt
A14: mt | C14: from Yahoo Finance | L14: msft
A15: msft | L15: aapl
A16: aapl | C16: Data for each ticker is downloaded | L16: k
A17: k | C17: into separate sheets, each titled | L17: ge
A18: ge | C18: with the ticker symbol | L18: bac
A19: bac | L19: pfe
A20: pfe | C20: Collate Data stacks Close, Open, High, Low, Adjusted Close | L20: xom
A21: xom | C21: and Volume into the same sheets (with the date) for all tickers, | L21: vfinx
A22: vfinx
C23: The VBA for this spreadsheet is viewable and editable
C24: Please link to http://investexcel,net if you like the spreadsheet
C25: The latest version can be found at http://investexcel,net/multiple-stock-quote-downloader-for-excel/
C26: Post questions or comments at http://investexcel,net/multiple-stock-quote-downloader-for-excel/
C27: Contact me for custom spreadsheets

Sheet mcd
A1: Stock Quotes for mcd
A2: Date | B2: Open | C2: High | D2: Low | E2: Close | F2: Volume | G2: Adj Close
A3: 2005-02-01 | B3: 32.05 | C3: 33.25 | D3: 31.4 | E3: 33.08 | F3: 4769000 | G3: 24.47
A4: 2005-03-01 | B4: 33.02 | C4: 34.56 | D4: 30.96 | E4: 31.14 | F4: 5126400 | G4: 23.03
A5: 2005-04-01 | B5: 31.2 | C5: 31.91 | D5: 29.11 | E5: 29.31 | F5: 5962200 | G5: 21.68
A6: 2005-05-02 | B6: 29.12 | C6: 31.5 | D6: 29.12 | E6: 30.94 | F6: 5112800 | G6: 22.88
A7: 2005-06-01 | B7: 30.84 | C7: 31.21 | D7: 27.74 | E7: 27.75 | F7: 6621300 | G7: 20.52
A8: 2005-07-01 | B8: 27.81 | C8: 31.25 | D8: 27.36 | E8: 31.17 | F8: 6562600 | G8: 23.05
A9: 2005-08-01 | B9: 30.25 | C9: 34.7 | D9: 30.25 | E9: 32.45 | F9: 7946400 | G9: 24
A10: 2005-09-01 | B10: 32.3 | C10: 35.03 | D10: 31.31 | E10: 33.49 | F10: 9639400 | G10: 24.77
A11: 2005-10-03 | B11: 33.4 | C11: 34.02 | D11: 31.48 | E11: 31.6 | F11: 8643100 | G11: 23.37
A12: 2005-11-01 | B12: 32.73 | C12: 34.76 | D12: 31.61 | E12: 33.85 | F12: 7941700 | G12: 25.55
A13: 2005-12-01 | B13: 34.23 | C13: 35.69 | D13: 33.58 | E13: 33.72 | F13: 5501200 | G13: 25.45
A14: 2006-01-03 | B14: 34.29 | C14: 36.31 | D14: 33.2 | E14: 35.01 | F14: 8978700 | G14: 26.43
A15: 2006-02-01 | B15: 35.01 | C15: 36.75 | D15: 34.89 | E15: 34.91 | F15: 5644200 | G15: 26.35
A16: 2006-03-01 | B16: 35 | C16: 35.25 | D16: 34.11 | E16: 34.36 | F16: 5046400 | G16: 25.93
A17: 2006-04-03 | B17: 34.45 | C17: 35.57 | D17: 33.71 | E17: 34.57 | F17: 5836900 | G17: 26.09
A18: 2006-05-01 | B18: 34.64 | C18: 35.99 | D18: 32.62 | E18: 33.17 | F18: 5752100 | G18: 25.04
A19: 2006-06-01 | B19: 32.97 | C19: 34.6 | D19: 31.73 | E19: 33.6 | F19: 6346000 | G19: 25.36
A20: 2006-07-03 | B20: 33.7 | C20: 35.5 | D20: 32.75 | E20: 35.39 | F20: 5700800 | G20: 26.71
A21: 2006-08-01 | B21: 35.2 | C21: 36.25 | D21: 34.22 | E21: 35.9 | F21: 4335900 | G21: 27.1
A22: 2006-09-01 | B22: 36.25 | C22: 40.06 | D22: 36.01 | E22: 39.12 | F22: 9723900 | G22: 29.53
A23: 2006-10-02 | B23: 39.12 | C23: 42.48 | D23: 38.95 | E23: 41.92 | F23: 19860700 | G23: 31.64
A24: 2006-11-01 | B24: 42.15 | C24: 42.26 | D24: 40.79 | E24: 41.97 | F24: 8096900 | G24: 32.45
A25: 2006-12-01 | B25: 42.18 | C25: 44.68 | D25: 41.7 | E25: 44.33 | F25: 5298400 | G25: 34.28
A26: 2007-01-03 | B26: 43.65 | C26: 45.06 | D26: 42.54 | E26: 44.35 | F26: 7409400 | G26: 34.29
A27: 2007-02-01 | B27: 44.26 | C27: 46.21 | D27: 43.38 | E27: 43.69 | F27: 6317500 | G27: 33.78
A28: 2007-03-01 | B28: 43.49 | C28: 45.49 | D28: 42.31 | E28: 45.05 | F28: 6589100 | G28: 34.83
A29: 2007-04-02 | B29: 44.28 | C29: 49.7 | D29: 44.26 | E29: 48.28 | F29: 7672100 | G29: 37.33
A30: 2007-05-01 | B30: 48.21 | C30: 52.58 | D30: 48.21 | E30: 50.55 | F30: 9004000 | G30: 39.09
A31: 2007-06-01 | B31: 50.56 | C31: 52.88 | D31: 50.02 | E31: 50.76 | F31: 7507600 | G31: 39.25
A32: 2007-07-02 | B32: 51.19 | C32: 53.22 | D32: 47.86 | E32: 47.87 | F32: 7665400 | G32: 37.01
A33: 2007-08-01 | B33: 47.68 | C33: 51.88 | D33: 46.64 | E33: 49.25 | F33: 8208500 | G33: 38.08
A34: 2007-09-04 | B34: 49.13 | C34: 55.73 | D34: 48.81 | E34: 54.47 | F34: 10088100 | G34: 42.12
A35: 2007-10-01 | B35: 54.75 | C35: 59.85 | D35: 54.67 | E35: 59.75 | F35: 7688800 | G35: 46.2
A36: 2007-11-01 | B36: 59.35 | C36: 59.92 | D36: 56.24 | E36: 58.47 | F36: 10596900 | G36: 46.4
A37: 2007-12-03 | B37: 58.45 | C37: 63.69 | D37: 58.1 | E37: 58.91 | F37: 7504100 | G37: 46.75
A38: 2008-01-02 | B38: 59.48 | C38: 59.48 | D38: 49.36 | E38: 53.58 | F38: 16249200 | G38: 42.52
A39: 2008-02-01 | B39: 53.67 | C39: 57.07 | D39: 52.85 | E39: 54.11 | F39: 9028900 | G39: 43.23
A40: 2008-03-03 | B40: 53.98 | C40: 56.51 | D40: 52 | E40: 55.77 | F40: 9147700 | G40: 44.56
A41: 2008-04-01 | B41: 56.04 | C41: 60.6 | D41: 55.14 | E41: 59.58 | F41: 7775100 | G41: 47.6
A42: 2008-05-01 | B42: 59.54 | C42: 61.76 | D42: 57.31 | E42: 59.32 | F42: 6469100 | G42: 47.4
A43: 2008-06-02 | B43: 59.12 | C43: 60.41 | D43: 55.17 | E43: 56.22 | F43: 8682400 | G43: 45.21
A44: 2008-07-01 | B44: 55.87 | C44: 61.21 | D44: 55.7 | E44: 59.79 | F44: 9406200 | G44: 48.08
A45: 2008-08-01 | B45: 59.83 | C45: 67 | D45: 59.44 | E45: 62 | F45: 9203600 | G45: 50.16
A46: 2008-09-02 | B46: 62.39 | C46: 65.47 | D46: 59.56 | E46: 61.7 | F46: 11841800 | G46: 49.92
A47: 2008-10-01 | B47: 61.18 | C47: 64.02 | D47: 45.79 | E47: 57.93 | F47: 15302400 | G47: 46.87
A48: 2008-11-03 | B48: 58.41 | C48: 58.98 | D48: 51.15 | E48: 58.75 | F48: 11912500 | G48: 47.95
A49: 2008-12-01 | B49: 58.07 | C49: 63.99 | D49: 55.44 | E49: 62.19 | F49: 10811400 | G49: 50.76
A50: 2009-01-02 | B50: 62.38 | C50: 64.46 | D50: 56.41 | E50: 58.02 | F50: 10844000 | G50: 47.36
A51: 2009-02-02 | B51: 57.62 | C51: 59.77 | D51: 51.5 | E51: 52.25 | F51: 11286200 | G51: 43.05
A52: 2009-03-02 | B52: 51.8 | C52: 56.09 | D52: 50.44 | E52: 54.57 | F52: 13122100 | G52: 44.96
A53: 2009-04-01 | B53: 54.3 | C53: 57.27 | D53: 53.03 | E53: 53.29 | F53: 9188900 | G53: 43.9
A54: 2009-05-01 | B54: 53.21 | C54: 59.03 | D54: 51.76 | E54: 58.99 | F54: 10752800 | G54: 48.6
A55: 2009-06-01 | B55: 59.18 | C55: 61.01 | D55: 56.04 | E55: 57.49 | F55: 8943100 | G55: 47.75
A56: 2009-07-01 | B56: 57.65 | C56: 59.59 | D56: 54.92 | E56: 55.06 | F56: 10736400 | G56: 45.74
A57: 2009-08-03 | B57: 55.11 | C57: 57.22 | D57: 54.43 | E57: 56.24 | F57: 9139900 | G57: 47.13
A58: 2009-09-01 | B58: 56.05 | C58: 57.67 | D58: 53.88 | E58: 57.07 | F58: 10629800 | G58: 47.82
A59: 2009-10-01 | B59: 56.99 | C59: 60.6 | D59: 56.03 | E59: 58.61 | F59: 9572300 | G59: 49.11
A60: 2009-11-02 | B60: 58.84 | C60: 64.75 | D60: 58.6 | E60: 63.25 | F60: 8536800 | G60: 53.46
A61: 2009-12-01 | B61: 63.64 | C61: 64.05 | D61: 60.04 | E61: 62.44 | F61: 7169900 | G61: 52.77
A62: 2010-01-04 | B62: 62.63 | C62: 64.78 | D62: 61.06 | E62: 62.43 | F62: 8734500 | G62: 52.76
A63: 2010-02-01 | B63: 62.83 | C63: 65.75 | D63: 62.54 | E63: 63.85 | F63: 8364800 | G63: 54.42
A64: 2010-03-01 | B64: 63.98 | C64: 67.49 | D64: 63.25 | E64: 66.72 | F64: 6922900 | G64: 56.87
A65: 2010-04-01 | B65: 67.06 | C65: 71.71 | D65: 67.06 | E65: 70.59 | F65: 6806500 | G65: 60.17
A66: 2010-05-03 | B66: 70.88 | C66: 71.84 | D66: 65.55 | E66: 66.87 | F66: 9631500 | G66: 57.48
A67: 2010-06-01 | B67: 66.23 | C67: 70.58 | D67: 65.8 | E67: 65.87 | F67: 7112800 | G67: 56.62
A68: 2010-07-01 | B68: 66.72 | C68: 71.54 | D68: 65.31 | E68: 69.73 | F68: 6636700 | G68: 59.94
A69: 2010-08-02 | B69: 70.5 | C69: 74.07 | D69: 69.84 | E69: 73.06 | F69: 6149900 | G69: 63.27
A70: 2010-09-01 | B70: 73.92 | C70: 76.26 | D70: 73.66 | E70: 74.51 | F70: 6979500 | G70: 64.52
A71: 2010-10-01 | B71: 75.04 | C71: 79.9 | D71: 74.4 | E71: 77.77 | F71: 5488300 | G71: 67.35
A72: 2010-11-01 | B72: 78.06 | C72: 79.85 | D72: 77.12 | E72: 78.3 | F72: 5886500 | G72: 68.34
A73: 2010-12-01 | B73: 79.14 | C73: 80.94 | D73: 75.94 | E73: 76.76 | F73: 5306400 | G73: 66.99
A74: 2011-01-03 | B74: 77.1 | C74: 77.59 | D74: 72.14 | E74: 73.67 | F74: 12017300 | G74: 64.3
A75: 2011-02-01 | B75: 74.22 | C75: 76.45 | D75: 73.08 | E75: 75.68 | F75: 7746400 | G75: 66.59
A76: 2011-03-01 | B76: 75.71 | C76: 77.25 | D76: 72.89 | E76: 76.09 | F76: 6427100 | G76: 66.95
A77: 2011-04-01 | B77: 76.3 | C77: 78.59 | D77: 75.66 | E77: 78.31 | F77: 5124100 | G77: 68.9
A78: 2011-05-02 | B78: 78.4 | C78: 83.08 | D78: 78.2 | E78: 81.54 | F78: 6057000 | G78: 72.28
A79: 2011-06-01 | B79: 81.47 | C79: 84.91 | D79: 80 | E79: 84.32 | F79: 6067100 | G79: 74.74
A80: 2011-07-01 | B80: 84.16 | C80: 89.57 | D80: 84.15 | E80: 86.48 | F80: 6136200 | G80: 76.66
A81: 2011-08-01 | B81: 87.49 | C81: 91.22 | D81: 82.01 | E81: 90.41 | F81: 9123300 | G81: 80.69
A82: 2011-09-01 | B82: 90.27 | C82: 91.09 | D82: 83.65 | E82: 87.82 | F82: 8310800 | G82: 78.37
A83: 2011-10-03 | B83: 87.43 | C83: 93.84 | D83: 83.74 | E83: 92.85 | F83: 6792900 | G83: 82.86
A84: 2011-11-01 | B84: 92.31 | C84: 95.54 | D84: 91.22 | E84: 95.52 | F84: 5597400 | G84: 85.89
A85: 2011-12-01 | B85: 95.44 | C85: 101 | D85: 94.82 | E85: 100.33 | F85: 5402700 | G85: 90.21
A86: 2012-01-03 | B86: 101.33 | C86: 102.22 | D86: 97.7 | E86: 99.05 | F86: 6346300 | G86: 89.06
A87: 2012-02-01 | B87: 99.46 | C87: 101.29 | D87: 98.26 | E87: 99.28 | F87: 4719700 | G87: 89.89
A88: 2012-03-01 | B88: 99.28 | C88: 100.44 | D88: 95.13 | E88: 98.1 | F88: 6402200 | G88: 88.83
A89: 2012-04-02 | B89: 97.82 | C89: 99.5 | D89: 94.13 | E89: 97.45 | F89: 6867900 | G89: 88.24
A90: 2012-05-01 | B90: 97.23 | C90: 98.01 | D90: 89.26 | E90: 89.34 | F90: 6326700 | G90: 81.53
A91: 2012-06-01 | B91: 87.47 | C91: 90.76 | D91: 85.92 | E91: 88.53 | F91: 7631100 | G91: 80.79
A92: 2012-07-02 | B92: 88.41 | C92: 93.32 | D92: 87.62 | E92: 89.36 | F92: 6193700 | G92: 81.55
A93: 2012-08-01 | B93: 89.49 | C93: 90.43 | D93: 86.15 | E93: 89.49 | F93: 5342200 | G93: 82.31
A94: 2012-09-04 | B94: 89.51 | C94: 94 | D94: 88.71 | E94: 91.75 | F94: 5695800 | G94: 84.39
A95: 2012-10-01 | B95: 92.11 | C95: 94.16 | D95: 86.37 | E95: 86.8 | F95: 6778800 | G95: 79.83
A96: 2012-11-01 | B96: 87 | C96: 88.13 | D96: 83.31 | E96: 87.04 | F96: 6701500 | G96: 80.77
A97: 2012-12-03 | B97: 87.42 | C97: 90.85 | D97: 86.27 | E97: 88.21 | F97: 6014000 | G97: 81.86
A98: 2013-01-02 | B98: 89.4 | C98: 95.29 | D98: 89.25 | E98: 95.29 | F98: 5529200 | G98: 88.43
A99: 2013-02-01 | B99: 95.58 | C99: 96.78 | D99: 93.19 | E99: 95.9 | F99: 5369200 | G99: 89.71
A100: 2013-03-01 | B100: 95.68 | C100: 99.78 | D100: 94.87 | E100: 99.69 | F100: 4834100 | G100: 93.26
A101: 2013-04-01 | B101: 99.41 | C101: 103.7 | D101: 98.38 | E101: 102.14 | F101: 4839700 | G101: 95.55
A102: 2013-05-01 | B102: 101.98 | C102: 103.34 | D102: 96.56 | E102: 96.57 | F102: 6246900 | G102: 91.05
A103: 2013-06-03 | B103: 96.77 | C103: 100.18 | D103: 95.16 | E103: 99 | F103: 4875000 | G103: 93.34
A104: 2013-07-01 | B104: 99.35 | C104: 101.81 | D104: 96.3 | E104: 98.08 | F104: 4945800 | G104: 92.47
A105: 2013-08-01 | B105: 98.62 | C105: 99.44 | D105: 94.01 | E105: 94.36 | F105: 5020800 | G105: 89.68
A106: 2013-09-03 | B106: 95.1 | C106: 98.99 | D106: 94.12 | E106: 96.21 | F106: 4418100 | G106: 91.44
A107: 2013-10-01 | B107: 96.18 | C107: 96.7 | D107: 93.14 | E107: 96.52 | F107: 4755600 | G107: 91.74
A108: 2013-11-01 | B108: 96.52 | C108: 99.27 | D108: 96.32 | E108: 97.37 | F108: 6519100 | G108: 93.31
A109: 2013-12-02 | B109: 97.29 | C109: 97.29 | D109: 94.04 | E109: 97.03 | F109: 4435300 | G109: 92.99
A110: 2014-01-02 | B110: 96.81 | C110: 97.08 | D110: 92.87 | E110: 94.17 | F110: 5792400 | G110: 90.25
A111: 2014-02-03 | B111: 94.54 | C111: 97 | D111: 92.22 | E111: 95.15 | F111: 5232800 | G111: 91.96
A112: 2014-03-03 | B112: 94.24 | C112: 99.07 | D112: 94 | E112: 98.03 | F112: 5940200 | G112: 94.75
A113: 2014-04-01 | B113: 98.1 | C113: 101.78 | D113: 96.52 | E113: 101.38 | F113: 5683700 | G113: 97.98
A114: 2014-05-01 | B114: 100.68 | C114: 103.78 | D114: 100.33 | E114: 101.43 | F114: 4321600 | G114: 98.82
A115: 2014-06-02 | B115: 101.39 | C115: 102.62 | D115: 99.41 | E115: 100.74 | F115: 4348900 | G115: 98.15
A116: 2014-07-01 | B116: 100.43 | C116: 101.36 | D116: 94.56 | E116: 94.56 | F116: 5623700 | G116: 92.13
A117: 2014-08-01 | B117: 94.3 | C117: 95.37 | D117: 92.92 | E117: 93.72 | F117: 5167300 | G117: 92.1
A118: 2014-09-02 | B118: 93.24 | C118: 97.3 | D118: 90.53 | E118: 94.81 | F118: 7421000 | G118: 93.17
A119: 2014-10-01 | B119: 94.37 | C119: 95.29 | D119: 89.34 | E119: 93.73 | F119: 6242000 | G119: 92.11
A120: 2014-11-03 | B120: 93.78 | C120: 97.5 | D120: 93.02 | E120: 96.81 | F120: 4900000 | G120: 95.98
A121: 2014-12-01 | B121: 96.15 | C121: 97.5 | D121: 87.62 | E121: 93.7 | F121: 7991700 | G121: 92.89
A122: 2015-01-02 | B122: 94.13 | C122: 95 | D122: 88.77 | E122: 92.44 | F122: 8258000 | G122: 91.64

Sheet x
A1: Stock Quotes for x
A2: Date | B2: Open | C2: High | D2: Low | E2: Close | F2: Volume | G2: Adj Close
A3: 2005-02-01 | B3: 52 | C3: 63.9 | D3: 51.05 | E3: 62.36 | F3: 4261700 | G3: 57.13
A4: 2005-03-01 | B4: 62.4 | C4: 62.89 | D4: 49.04 | E4: 50.85 | F4: 5446600 | G4: 46.58
A5: 2005-04-01 | B5: 51.2 | C5: 52.18 | D5: 41.01 | E5: 42.76 | F5: 6075900 | G5: 39.17
A6: 2005-05-02 | B6: 42.6 | C6: 45.33 | D6: 37.1 | E6: 39.77 | F6: 5133100 | G6: 36.53
A7: 2005-06-01 | B7: 39.77 | C7: 42.39 | D7: 34.05 | E7: 34.37 | F7: 5399000 | G7: 31.57
A8: 2005-07-01 | B8: 34.55 | C8: 44.52 | D8: 34.09 | E8: 42.65 | F8: 5296600 | G8: 39.17
A9: 2005-08-01 | B9: 42.8 | C9: 45.7 | D9: 39.4 | E9: 41.92 | F9: 3667100 | G9: 38.59
A10: 2005-09-01 | B10: 42.51 | C10: 45.95 | D10: 41.74 | E10: 42.35 | F10: 3287500 | G10: 38.99
A11: 2005-10-03 | B11: 42.35 | C11: 42.52 | D11: 33.59 | E11: 36.53 | F11: 3805900 | G11: 33.63
A12: 2005-11-01 | B12: 36.6 | C12: 48.1 | D12: 36.55 | E12: 47.6 | F12: 4304400 | G12: 43.93
A13: 2005-12-01 | B13: 47.83 | C13: 51.63 | D13: 44.67 | E13: 48.07 | F13: 4155400 | G13: 44.37
A14: 2006-01-03 | B14: 48.55 | C14: 62 | D14: 48.05 | E14: 59.75 | F14: 4579900 | G14: 55.15
A15: 2006-02-01 | B15: 60 | C15: 62.5 | D15: 53.58 | E15: 54.5 | F15: 4528600 | G15: 50.39
A16: 2006-03-01 | B16: 55.3 | C16: 64.47 | D16: 53.25 | E16: 60.68 | F16: 3637200 | G16: 56.1
A17: 2006-04-03 | B17: 61.95 | C17: 69.88 | D17: 61.2 | E17: 68.5 | F17: 4156800 | G17: 63.33
A18: 2006-05-01 | B18: 69.6 | C18: 77.77 | D18: 58.68 | E18: 66.38 | F18: 5691100 | G18: 61.51
A19: 2006-06-01 | B19: 65.65 | C19: 70.64 | D19: 56.15 | E19: 70.12 | F19: 5898000 | G19: 64.97
A20: 2006-07-03 | B20: 69.4 | C20: 70.66 | D20: 56.2 | E20: 63.07 | F20: 5566100 | G20: 58.44
A21: 2006-08-01 | B21: 63.07 | C21: 63.3 | D21: 56.12 | E21: 58.17 | F21: 4374800 | G21: 54.04
A22: 2006-09-01 | B22: 58.73 | C22: 62.53 | D22: 53.63 | E22: 57.68 | F22: 4992300 | G22: 53.59
A23: 2006-10-02 | B23: 57.93 | C23: 70.38 | D23: 54.18 | E23: 67.6 | F23: 5287400 | G23: 62.8
A24: 2006-11-01 | B24: 67.7 | C24: 76.16 | D24: 64.35 | E24: 74.79 | F24: 4422800 | G24: 69.69
A25: 2006-12-01 | B25: 74.17 | C25: 79.01 | D25: 71.22 | E25: 73.14 | F25: 3638200 | G25: 68.15
A26: 2007-01-03 | B26: 72.55 | C26: 84.18 | D26: 68.83 | E26: 83.49 | F26: 4007900 | G26: 77.8
A27: 2007-02-01 | B27: 84.37 | C27: 94.95 | D27: 82.55 | E27: 88.68 | F27: 4116400 | G27: 82.83
A28: 2007-03-01 | B28: 86.25 | C28: 101.6 | D28: 83.97 | E28: 99.17 | F28: 4532100 | G28: 92.63
A29: 2007-04-02 | B29: 99.3 | C29: 108.2 | D29: 99.07 | E29: 101.54 | F29: 3090800 | G29: 94.84
A30: 2007-05-01 | B30: 101.76 | C30: 113.84 | D30: 99.27 | E30: 113.16 | F30: 3204400 | G30: 105.89
A31: 2007-06-01 | B31: 114.1 | C31: 127.26 | D31: 105.08 | E31: 108.75 | F31: 4001500 | G31: 101.76
A32: 2007-07-02 | B32: 110 | C32: 116.37 | D32: 96.99 | E32: 98.29 | F32: 3152200 | G32: 91.97
A33: 2007-08-01 | B33: 97.81 | C33: 98.64 | D33: 74.41 | E33: 94.48 | F33: 4580400 | G33: 88.61
A34: 2007-09-04 | B34: 93.34 | C34: 108.47 | D34: 88.96 | E34: 105.94 | F34: 3616400 | G34: 99.36
A35: 2007-10-01 | B35: 106.5 | C35: 114.68 | D35: 102.09 | E35: 107.9 | F35: 3478400 | G35: 101.2
A36: 2007-11-01 | B36: 106.37 | C36: 107.12 | D36: 85.05 | E36: 97.7 | F36: 4380700 | G36: 91.82
A37: 2007-12-03 | B37: 98.46 | C37: 121.12 | D37: 93.24 | E37: 120.91 | F37: 3264300 | G37: 113.63
A38: 2008-01-02 | B38: 120.59 | C38: 121.93 | D38: 91.11 | E38: 101.96 | F38: 6049300 | G38: 95.82
A39: 2008-02-01 | B39: 104.26 | C39: 116.39 | D39: 92.47 | E39: 108.45 | F39: 5112800 | G39: 102.18
A40: 2008-03-03 | B40: 108.54 | C40: 128.3 | D40: 103.22 | E40: 126.87 | F40: 5040200 | G40: 119.54
A41: 2008-04-01 | B41: 125.37 | C41: 158.23 | D41: 122 | E41: 153.95 | F41: 5274000 | G41: 145.05
A42: 2008-05-01 | B42: 153.49 | C42: 185.55 | D42: 147.5 | E42: 172.71 | F42: 5580800 | G42: 162.97
A43: 2008-06-02 | B43: 172 | C43: 196 | D43: 163.9 | E43: 184.78 | F43: 5358300 | G43: 174.35
A44: 2008-07-01 | B44: 182.01 | C44: 182.79 | D44: 133.69 | E44: 160.36 | F44: 9708100 | G44: 151.31
A45: 2008-08-01 | B45: 160 | C45: 161 | D45: 126.2 | E45: 133.07 | F45: 6572700 | G45: 125.84
A46: 2008-09-02 | B46: 127.8 | C46: 128 | D46: 68.62 | E46: 77.61 | F46: 11252600 | G46: 73.39
A47: 2008-10-01 | B47: 77.11 | C47: 77.92 | D47: 28.43 | E47: 36.88 | F47: 16305400 | G47: 34.88
A48: 2008-11-03 | B48: 37.07 | C48: 42.58 | D48: 20.71 | E48: 30.4 | F48: 11075800 | G48: 29.02
A49: 2008-12-01 | B49: 28.7 | C49: 44.13 | D49: 25.39 | E49: 37.2 | F49: 10005500 | G49: 35.51
A50: 2009-01-02 | B50: 37.72 | C50: 41.47 | D50: 28.36 | E50: 30.03 | F50: 11089000 | G50: 28.66
A51: 2009-02-02 | B51: 29.34 | C51: 36.7 | D51: 19.03 | E51: 19.67 | F51: 14698500 | G51: 18.94
A52: 2009-03-02 | B52: 19.2 | C52: 25.74 | D52: 16.66 | E52: 21.13 | F52: 21479800 | G52: 20.35
A53: 2009-04-01 | B53: 20.5 | C53: 30.38 | D53: 20.17 | E53: 26.55 | F53: 20047200 | G53: 25.57
A54: 2009-05-01 | B54: 26.64 | C54: 34.08 | D54: 25.96 | E54: 34.08 | F54: 18085700 | G54: 32.87
A55: 2009-06-01 | B55: 35.58 | C55: 43.15 | D55: 33.12 | E55: 35.74 | F55: 17928900 | G55: 34.47
A56: 2009-07-01 | B56: 36.36 | C56: 41.73 | D56: 29.35 | E56: 39.75 | F56: 14660400 | G56: 38.34
A57: 2009-08-03 | B57: 41.17 | C57: 47.6 | D57: 40.88 | E57: 43.78 | F57: 13993000 | G57: 42.27
A58: 2009-09-01 | B58: 43.39 | C58: 51.65 | D58: 41.1 | E58: 44.37 | F58: 12191700 | G58: 42.84
A59: 2009-10-01 | B59: 44.04 | C59: 45.87 | D59: 33.97 | E59: 34.49 | F59: 13993700 | G59: 33.3
A60: 2009-11-02 | B60: 35.07 | C60: 44.96 | D60: 33.25 | E60: 44.66 | F60: 11125000 | G60: 43.18
A61: 2009-12-01 | B61: 45.61 | C61: 58.19 | D61: 43.31 | E61: 55.12 | F61: 8739100 | G61: 53.29
A62: 2010-01-04 | B62: 56.42 | C62: 66.45 | D62: 43.75 | E62: 44.43 | F62: 22390600 | G62: 42.96
A63: 2010-02-01 | B63: 45.17 | C63: 54.13 | D63: 42.32 | E63: 52.94 | F63: 20221400 | G63: 51.24
A64: 2010-03-01 | B64: 53.58 | C64: 65.52 | D64: 52.9 | E64: 63.52 | F64: 16703400 | G64: 61.48
A65: 2010-04-01 | B65: 64.74 | C65: 70.95 | D65: 54.3 | E65: 54.66 | F65: 17507700 | G65: 52.91
A66: 2010-05-03 | B66: 55.06 | C66: 57.96 | D66: 43.61 | E66: 47.21 | F66: 22531900 | G66: 45.74
A67: 2010-06-01 | B67: 46.05 | C67: 46.65 | D67: 38.39 | E67: 38.55 | F67: 14442300 | G67: 37.35
A68: 2010-07-01 | B68: 38.55 | C68: 49.7 | D68: 36.93 | E68: 44.33 | F68: 14337400 | G68: 42.95
A69: 2010-08-02 | B69: 45.5 | C69: 51.39 | D69: 41.5 | E69: 42.49 | F69: 12646100 | G69: 41.21
A70: 2010-09-01 | B70: 44.03 | C70: 49.14 | D70: 41.8 | E70: 43.84 | F70: 13744400 | G70: 42.52
A71: 2010-10-01 | B71: 44.72 | C71: 46.65 | D71: 39.78 | E71: 42.72 | F71: 12962100 | G71: 41.43
A72: 2010-11-01 | B72: 43.1 | C72: 49.15 | D72: 42.86 | E72: 48.61 | F72: 10898600 | G72: 47.19
A73: 2010-12-01 | B73: 49.46 | C73: 59.5 | D73: 49.35 | E73: 58.42 | F73: 9062600 | G73: 56.72
A74: 2011-01-03 | B74: 59.29 | C74: 61.18 | D74: 51.33 | E74: 57.67 | F74: 12404000 | G74: 55.99
A75: 2011-02-01 | B75: 58.27 | C75: 64.03 | D75: 54.67 | E75: 57.49 | F75: 10973600 | G75: 55.86
A76: 2011-03-01 | B76: 57.69 | C76: 57.85 | D76: 52.11 | E76: 53.94 | F76: 10901800 | G76: 52.41
A77: 2011-04-01 | B77: 54.29 | C77: 55.75 | D77: 46.89 | E77: 47.71 | F77: 11094300 | G77: 46.36
A78: 2011-05-02 | B78: 47.91 | C78: 47.97 | D78: 43.86 | E78: 46.11 | F78: 7776500 | G78: 44.85
A79: 2011-06-01 | B79: 45.82 | C79: 46.68 | D79: 40.95 | E79: 46.04 | F79: 8247500 | G79: 44.79
A80: 2011-07-01 | B80: 45.99 | C80: 47.33 | D80: 39.05 | E80: 39.99 | F80: 8439900 | G80: 38.9
A81: 2011-08-01 | B81: 40.96 | C81: 41.04 | D81: 25.44 | E81: 30.11 | F81: 12075700 | G81: 29.33
A82: 2011-09-01 | B82: 30 | C82: 30.19 | D82: 21.73 | E82: 22.01 | F82: 12031100 | G82: 21.44
A83: 2011-10-03 | B83: 22.05 | C83: 28.09 | D83: 18.85 | E83: 25.36 | F83: 15391000 | G83: 24.71
A84: 2011-11-01 | B84: 24.05 | C84: 28.49 | D84: 22.22 | E84: 27.3 | F84: 15116500 | G84: 26.64
A85: 2011-12-01 | B85: 26.97 | C85: 29.23 | D85: 23.67 | E85: 26.46 | F85: 10571700 | G85: 25.82
A86: 2012-01-03 | B86: 27.42 | C86: 31.23 | D86: 26.64 | E86: 30.19 | F86: 13052500 | G86: 29.46
A87: 2012-02-01 | B87: 30.78 | C87: 32.52 | D87: 26.9 | E87: 27.22 | F87: 10606400 | G87: 26.61
A88: 2012-03-01 | B88: 27.51 | C88: 32.05 | D88: 24.78 | E88: 29.37 | F88: 11681000 | G88: 28.71
A89: 2012-04-02 | B89: 29.18 | C89: 30.66 | D89: 26.39 | E89: 28.33 | F89: 10849800 | G89: 27.69
A90: 2012-05-01 | B90: 28.27 | C90: 29.25 | D90: 19.95 | E90: 20.3 | F90: 11165300 | G90: 19.88
A91: 2012-06-01 | B91: 19.66 | C91: 21.56 | D91: 17.67 | E91: 20.6 | F91: 12045000 | G91: 20.17
A92: 2012-07-02 | B92: 20.53 | C92: 22.12 | D92: 17.8 | E92: 20.65 | F92: 8867100 | G92: 20.22
A93: 2012-08-01 | B93: 20.8 | C93: 23.84 | D93: 19.06 | E93: 19.45 | F93: 8259800 | G93: 19.09
A94: 2012-09-04 | B94: 19.46 | C94: 23.31 | D94: 18.29 | E94: 19.07 | F94: 12025000 | G94: 18.72
A95: 2012-10-01 | B95: 19.35 | C95: 23.33 | D95: 18.74 | E95: 20.39 | F95: 10865500 | G95: 20.01
A96: 2012-11-01 | B96: 20.63 | C96: 22.47 | D96: 19.56 | E96: 21.56 | F96: 7864300 | G96: 21.21
A97: 2012-12-03 | B97: 21.84 | C97: 24.78 | D97: 21.27 | E97: 23.85 | F97: 8159300 | G97: 23.46
A98: 2013-01-02 | B98: 25.18 | C98: 26.29 | D98: 22.17 | E98: 22.35 | F98: 8328100 | G98: 21.99
A99: 2013-02-01 | B99: 22.7 | C99: 24 | D99: 20.14 | E99: 20.84 | F99: 7553200 | G99: 20.55
A100: 2013-03-01 | B100: 20.6 | C100: 21.36 | D100: 19.19 | E100: 19.5 | F100: 7581300 | G100: 19.23
A101: 2013-04-01 | B101: 19.5 | C101: 19.56 | D101: 15.8 | E101: 17.8 | F101: 10823300 | G101: 17.55
A102: 2013-05-01 | B102: 17.62 | C102: 19.7 | D102: 16.9 | E102: 17.69 | F102: 8517900 | G102: 17.49
A103: 2013-06-03 | B103: 17.93 | C103: 18.46 | D103: 16.12 | E103: 17.53 | F103: 7132900 | G103: 17.33
A104: 2013-07-01 | B104: 17.67 | C104: 19.4 | D104: 17.25 | E104: 17.35 | F104: 7778000 | G104: 17.15
A105: 2013-08-01 | B105: 17.55 | C105: 19.5 | D105: 16.86 | E105: 17.9 | F105: 6021700 | G105: 17.74
A106: 2013-09-03 | B106: 18.31 | C106: 21.68 | D106: 18.02 | E106: 20.59 | F106: 7555300 | G106: 20.41
A107: 2013-10-01 | B107: 20.57 | C107: 25.71 | D107: 20.44 | E107: 24.89 | F107: 7756300 | G107: 24.67
A108: 2013-11-01 | B108: 24.95 | C108: 28.41 | D108: 24.89 | E108: 26.81 | F108: 7935800 | G108: 26.63
A109: 2013-12-02 | B109: 26.71 | C109: 30.47 | D109: 25.79 | E109: 29.5 | F109: 6323800 | G109: 29.3
A110: 2014-01-02 | B110: 29.97 | C110: 31.15 | D110: 24.46 | E110: 26.11 | F110: 8511400 | G110: 25.93
A111: 2014-02-03 | B111: 26.15 | C111: 27.31 | D111: 23.32 | E111: 24.22 | F111: 7789400 | G111: 24.1
A112: 2014-03-03 | B112: 23.9 | C112: 28.14 | D112: 23.74 | E112: 27.61 | F112: 6158200 | G112: 27.47
A113: 2014-04-01 | B113: 27.77 | C113: 28.8 | D113: 25.35 | E113: 26.02 | F113: 5622400 | G113: 25.89
A114: 2014-05-01 | B114: 26.01 | C114: 26.52 | D114: 22.93 | E114: 23.04 | F114: 5349000 | G114: 22.93
A115: 2014-06-02 | B115: 23.12 | C115: 26.35 | D115: 22.47 | E115: 26.04 | F115: 5213600 | G115: 25.91
A116: 2014-07-01 | B116: 26.32 | C116: 33.85 | D116: 25.67 | E116: 33.49 | F116: 10259900 | G116: 33.32
A117: 2014-08-01 | B117: 33.5 | C117: 39.58 | D117: 33.17 | E117: 38.65 | F117: 7271400 | G117: 38.51
A118: 2014-09-02 | B118: 38.62 | C118: 46.55 | D118: 37.84 | E118: 39.17 | F118: 8430300 | G118: 39.03
A119: 2014-10-01 | B119: 38.94 | C119: 42.25 | D119: 30.57 | E119: 40.04 | F119: 10570600 | G119: 39.9
A120: 2014-11-03 | B120: 39.8 | C120: 39.83 | D120: 32.76 | E120: 33.35 | F120: 7075200 | G120: 33.28
A121: 2014-12-01 | B121: 32.54 | C121: 32.9 | D121: 26 | E121: 26.74 | F121: 6934600 | G121: 26.68
A122: 2015-01-02 | B122: 27.19 | C122: 27.49 | D122: 20.13 | E122: 24.44 | F122: 12180700 | G122: 24.39

Sheet mt
A1: Stock Quotes for mt
A2: Date | B2: Open | C2: High | D2: Low | E2: Close | F2: Volume | G2: Adj Close
A3: 2005-02-01 | B3: 36.5 | C3: 43 | D3: 36.06 | E3: 41.8 | F3: 522600 | G3: 33.54
A4: 2005-03-01 | B4: 41.2 | C4: 43.86 | D4: 29.7 | E4: 32.35 | F4: 847000 | G4: 25.96
A5: 2005-04-01 | B5: 32.6 | C5: 34 | D5: 22.79 | E5: 23.95 | F5: 1318500 | G5: 19.22
A6: 2005-05-02 | B6: 23.95 | C6: 27.09 | D6: 22.92 | E6: 25 | F6: 1345100 | G6: 20.06
A7: 2005-06-01 | B7: 25 | C7: 26.39 | D7: 22.11 | E7: 23.74 | F7: 694400 | G7: 19.14
A8: 2005-07-01 | B8: 23.6 | C8: 29.75 | D8: 23.55 | E8: 29.12 | F8: 729400 | G8: 23.47
A9: 2005-08-01 | B9: 29.02 | C9: 30.2 | D9: 27.19 | E9: 28.15 | F9: 785800 | G9: 22.69
A10: 2005-09-01 | B10: 28.75 | C10: 30.78 | D10: 28.13 | E10: 28.8 | F10: 905900 | G10: 23.29
A11: 2005-10-03 | B11: 29.4 | C11: 29.54 | D11: 22.95 | E11: 25.3 | F11: 1227200 | G11: 20.46
A12: 2005-11-01 | B12: 25.3 | C12: 28.12 | D12: 24 | E12: 27.59 | F12: 1244200 | G12: 22.31
A13: 2005-12-01 | B13: 27.8 | C13: 28.73 | D13: 25.46 | E13: 26.33 | F13: 869800 | G13: 21.37
A14: 2006-01-03 | B14: 27.25 | C14: 36.55 | D14: 26.38 | E14: 36.2 | F14: 1970400 | G14: 29.38
A15: 2006-02-01 | B15: 36 | C15: 36.4 | D15: 31.75 | E15: 33.12 | F15: 1637800 | G15: 26.88
A16: 2006-03-01 | B16: 33.85 | C16: 39.75 | D16: 32.4 | E16: 37.75 | F16: 1472900 | G16: 30.75
A17: 2006-04-03 | B17: 38.4 | C17: 40.14 | D17: 36 | E17: 37.49 | F17: 1003900 | G17: 30.54
A18: 2006-05-01 | B18: 37.75 | C18: 42.81 | D18: 28.95 | E18: 32.98 | F18: 2933700 | G18: 26.87
A19: 2006-06-01 | B19: 32.9 | C19: 34.74 | D19: 28.65 | E19: 30.51 | F19: 3376700 | G19: 24.95
A20: 2006-07-03 | B20: 30.5 | C20: 34.21 | D20: 27.79 | E20: 34.21 | F20: 4802000 | G20: 27.97
A21: 2006-08-01 | B21: 34.56 | C21: 34.86 | D21: 30.55 | E21: 34.25 | F21: 2205600 | G21: 28
A22: 2006-09-01 | B22: 34.31 | C22: 35.09 | D22: 31.7 | E22: 34.74 | F22: 2102700 | G22: 28.51
A23: 2006-10-02 | B23: 34.66 | C23: 43.34 | D23: 33.9 | E23: 42.75 | F23: 3079400 | G23: 35.08
A24: 2006-11-01 | B24: 43.4 | C24: 43.67 | D24: 40.03 | E24: 41.21 | F24: 2437200 | G24: 33.92
A25: 2006-12-01 | B25: 41.2 | C25: 43.6 | D25: 40.12 | E25: 42.18 | F25: 1745500 | G25: 34.72
A26: 2007-01-03 | B26: 41.95 | C26: 47.57 | D26: 39.59 | E26: 47.57 | F26: 1928100 | G26: 39.16
A27: 2007-02-01 | B27: 47.96 | C27: 54.05 | D27: 46.45 | E27: 50.86 | F27: 2305000 | G27: 42.14
A28: 2007-03-01 | B28: 49.91 | C28: 54.35 | D28: 48.89 | E28: 52.89 | F28: 2795300 | G28: 43.82
A29: 2007-04-02 | B29: 53.39 | C29: 55.49 | D29: 52.42 | E29: 53.42 | F29: 2136900 | G29: 44.26
A30: 2007-05-01 | B30: 53.45 | C30: 60.12 | D30: 52.41 | E30: 59.99 | F30: 2777500 | G30: 49.98
A31: 2007-06-01 | B31: 60.9 | C31: 66.9 | D31: 60.13 | E31: 62.4 | F31: 2616300 | G31: 51.99
A32: 2007-07-02 | B32: 63.77 | C32: 67.89 | D32: 59.77 | E32: 61.02 | F32: 1934300 | G32: 50.84
A33: 2007-08-01 | B33: 64.29 | C33: 66.77 | D33: 51.18 | E33: 66.2 | F33: 3067900 | G33: 55.44
A34: 2007-09-04 | B34: 65.62 | C34: 79.24 | D34: 62.06 | E34: 78.36 | F34: 2148600 | G34: 65.62
A35: 2007-10-01 | B35: 78.79 | C35: 83.88 | D35: 74.33 | E35: 79.95 | F35: 2569500 | G35: 66.95
A36: 2007-11-01 | B36: 77.09 | C36: 79.52 | D36: 67.68 | E36: 73.82 | F36: 3282100 | G36: 62.1
A37: 2007-12-03 | B37: 73.09 | C37: 78.02 | D37: 68.12 | E37: 77.35 | F37: 2093500 | G37: 65.07
A38: 2008-01-02 | B38: 78.36 | C38: 78.48 | D38: 55.53 | E38: 66.39 | F38: 3858900 | G38: 55.85
A39: 2008-02-01 | B39: 68.65 | C39: 80.21 | D39: 64.77 | E39: 76.02 | F39: 3795200 | G39: 63.95
A40: 2008-03-03 | B40: 76.58 | C40: 82.26 | D40: 71.83 | E40: 81.8 | F40: 4445700 | G40: 69.15
A41: 2008-04-01 | B41: 80.53 | C41: 92.27 | D41: 80.14 | E41: 89.09 | F41: 3321300 | G41: 75.31
A42: 2008-05-01 | B42: 89.08 | C42: 103.14 | D42: 86.2 | E42: 99.33 | F42: 3666800 | G42: 83.97
A43: 2008-06-02 | B43: 97.35 | C43: 104.77 | D43: 92.44 | E43: 99.07 | F43: 3539700 | G43: 84.07
A44: 2008-07-01 | B44: 94.77 | C44: 95.34 | D44: 74.97 | E44: 87.42 | F44: 6265500 | G44: 74.18
A45: 2008-08-01 | B45: 86.89 | C45: 86.93 | D45: 73.21 | E45: 78.62 | F45: 4112800 | G45: 66.71
A46: 2008-09-02 | B46: 73.01 | C46: 73.52 | D46: 45.1 | E46: 49.38 | F46: 6178300 | G46: 42.1
A47: 2008-10-01 | B47: 48.77 | C47: 49.15 | D47: 19.14 | E47: 26.25 | F47: 8489900 | G47: 22.38
A48: 2008-11-03 | B48: 26.39 | C48: 33.13 | D48: 15.44 | E48: 23.68 | F48: 8109900 | G48: 20.19
A49: 2008-12-01 | B49: 21.91 | C49: 26.97 | D49: 19.45 | E49: 24.59 | F49: 4438400 | G49: 21.37
A50: 2009-01-02 | B50: 24.8 | C50: 30 | D50: 20.3 | E50: 22.57 | F50: 5439000 | G50: 19.61
A51: 2009-02-02 | B51: 22.05 | C51: 29.28 | D51: 18.55 | E51: 19.33 | F51: 6808700 | G51: 16.94
A52: 2009-03-02 | B52: 18.6 | C52: 22.39 | D52: 16.28 | E52: 20.04 | F52: 9135500 | G52: 17.56
A53: 2009-04-01 | B53: 19.94 | C53: 29.5 | D53: 19.83 | E53: 23.58 | F53: 9683200 | G53: 20.66
A54: 2009-05-01 | B54: 23.68 | C54: 33.74 | D54: 23.36 | E54: 33.18 | F54: 10109100 | G54: 29.26
A55: 2009-06-01 | B55: 35.32 | C55: 37.26 | D55: 30.45 | E55: 33.08 | F55: 7272600 | G55: 29.17
A56: 2009-07-01 | B56: 33.96 | C56: 38.05 | D56: 28.2 | E56: 36.04 | F56: 6411300 | G56: 31.78
A57: 2009-08-03 | B57: 37.65 | C57: 39 | D57: 33.22 | E57: 35.63 | F57: 5129200 | G57: 31.59
A58: 2009-09-01 | B58: 35.08 | C58: 42.32 | D58: 33.83 | E58: 37.14 | F58: 5147100 | G58: 32.92
A59: 2009-10-01 | B59: 36.61 | C59: 41 | D59: 33.32 | E59: 34.02 | F59: 5981700 | G59: 30.16
A60: 2009-11-02 | B60: 33.78 | C60: 39.89 | D60: 32.77 | E60: 39.27 | F60: 4948800 | G60: 34.99
A61: 2009-12-01 | B61: 39.99 | C61: 47.04 | D61: 38.99 | E61: 45.75 | F61: 4017100 | G61: 40.76
A62: 2010-01-04 | B62: 47.43 | C62: 49.41 | D62: 38.3 | E62: 38.68 | F62: 5504700 | G62: 34.46
A63: 2010-02-01 | B63: 39.94 | C63: 41.58 | D63: 35.89 | E63: 38.22 | F63: 6062700 | G63: 34.21
A64: 2010-03-01 | B64: 38.17 | C64: 44.96 | D64: 37.84 | E64: 43.91 | F64: 5391200 | G64: 39.31
A65: 2010-04-01 | B65: 45.14 | C65: 47.25 | D65: 38.68 | E65: 38.83 | F65: 5034900 | G65: 34.76
A66: 2010-05-03 | B66: 39.91 | C66: 39.93 | D66: 27.46 | E66: 30.32 | F66: 8825900 | G66: 27.32
A67: 2010-06-01 | B67: 29.3 | C67: 32.4 | D67: 26.28 | E67: 26.76 | F67: 7529300 | G67: 24.11
A68: 2010-07-01 | B68: 27.71 | C68: 33.07 | D68: 26.66 | E68: 30.7 | F68: 6790000 | G68: 27.66
A69: 2010-08-02 | B69: 32.01 | C69: 33.87 | D69: 27.65 | E69: 28.99 | F69: 4168300 | G69: 26.28
A70: 2010-09-01 | B70: 30.15 | C70: 34.05 | D70: 29.91 | E70: 32.98 | F70: 4909100 | G70: 29.9
A71: 2010-10-01 | B71: 33.69 | C71: 35.62 | D71: 31.92 | E71: 32.38 | F71: 4930000 | G71: 29.35
A72: 2010-11-01 | B72: 32.47 | C72: 36.84 | D72: 30.96 | E72: 31.68 | F72: 5097500 | G72: 28.88
A73: 2010-12-01 | B73: 33 | C73: 38.8 | D73: 32.79 | E73: 38.13 | F73: 4761100 | G73: 34.76
A74: 2011-01-03 | B74: 38.63 | C74: 38.88 | D74: 34.17 | E74: 36.48 | F74: 6000400 | G74: 33.25
A75: 2011-02-01 | B75: 36.84 | C75: 38.5 | D75: 35 | E75: 36.67 | F75: 5503600 | G75: 33.6
A76: 2011-03-01 | B76: 37.15 | C76: 37.47 | D76: 32.42 | E76: 36.15 | F76: 4044500 | G76: 33.12
A77: 2011-04-01 | B77: 35.89 | C77: 37.69 | D77: 33.53 | E77: 37.07 | F77: 3085800 | G77: 33.96
A78: 2011-05-02 | B78: 37.19 | C78: 37.21 | D78: 31.6 | E78: 33.45 | F78: 4228900 | G78: 30.82
A79: 2011-06-01 | B79: 33.2 | C79: 34.93 | D79: 31.12 | E79: 34.76 | F79: 4029100 | G79: 32.02
A80: 2011-07-01 | B80: 35.02 | C80: 35.31 | D80: 30.82 | E80: 31.15 | F80: 5730700 | G80: 28.7
A81: 2011-08-01 | B81: 31.59 | C81: 31.61 | D81: 19.07 | E81: 21.97 | F81: 8337300 | G81: 20.43
A82: 2011-09-01 | B82: 21.58 | C82: 21.95 | D82: 14.77 | E82: 15.91 | F82: 9744900 | G82: 14.79
A83: 2011-10-03 | B83: 15.84 | C83: 22.88 | D83: 15 | E83: 20.73 | F83: 8931100 | G83: 19.28
A84: 2011-11-01 | B84: 19.3 | C84: 20.95 | D84: 15.16 | E84: 18.89 | F84: 9011800 | G84: 17.75
A85: 2011-12-01 | B85: 19.07 | C85: 20.03 | D85: 16.47 | E85: 18.19 | F85: 6483300 | G85: 17.09
A86: 2012-01-03 | B86: 19.53 | C86: 22.28 | D86: 18.49 | E86: 20.52 | F86: 6872200 | G86: 19.28
A87: 2012-02-01 | B87: 21.07 | C87: 23.62 | D87: 20.51 | E87: 21.1 | F87: 7176000 | G87: 20.01
A88: 2012-03-01 | B88: 20.94 | C88: 21.61 | D88: 18.58 | E88: 19.13 | F88: 6027600 | G88: 18.14
A89: 2012-04-02 | B89: 18.62 | C89: 19.34 | D89: 16 | E89: 17.33 | F89: 8230600 | G89: 16.43
A90: 2012-05-01 | B90: 17.27 | C90: 17.68 | D90: 13.62 | E90: 13.89 | F90: 7727100 | G90: 13.34
A91: 2012-06-01 | B91: 13.47 | C91: 15.9 | D91: 13.28 | E91: 15.27 | F91: 6905700 | G91: 14.67
A92: 2012-07-02 | B92: 15.41 | C92: 16.28 | D92: 13.91 | E92: 15.9 | F92: 6226500 | G92: 15.27
A93: 2012-08-01 | B93: 16.1 | C93: 16.3 | D93: 14 | E93: 14.7 | F93: 6442600 | G93: 14.29
A94: 2012-09-04 | B94: 14.84 | C94: 17.66 | D94: 14.22 | E94: 14.44 | F94: 7128600 | G94: 14.03
A95: 2012-10-01 | B95: 14.45 | C95: 16.6 | D95: 14.32 | E95: 14.77 | F95: 7505600 | G95: 14.35
A96: 2012-11-01 | B96: 14.95 | C96: 15.85 | D96: 14.47 | E96: 15.2 | F96: 4768100 | G96: 14.96
A97: 2012-12-03 | B97: 15.46 | C97: 17.57 | D97: 15.26 | E97: 17.47 | F97: 5460500 | G97: 17.2
A98: 2013-01-02 | B98: 17.88 | C98: 17.99 | D98: 16.63 | E98: 17.16 | F98: 14839400 | G98: 16.89
A99: 2013-02-01 | B99: 17.47 | C99: 17.56 | D99: 14.66 | E99: 14.98 | F99: 8618400 | G99: 14.75
A100: 2013-03-01 | B100: 14.55 | C100: 15.2 | D100: 12.88 | E100: 13.03 | F100: 7614900 | G100: 12.83
A101: 2013-04-01 | B101: 13.04 | C101: 13.04 | D101: 11.15 | E101: 12.49 | F101: 8134800 | G101: 12.29
A102: 2013-05-01 | B102: 12.45 | C102: 13.49 | D102: 12.19 | E102: 12.66 | F102: 6913400 | G102: 12.66
A103: 2013-06-03 | B103: 12.86 | C103: 12.98 | D103: 10.83 | E103: 11.2 | F103: 6501600 | G103: 11.2
A104: 2013-07-01 | B104: 11.36 | C104: 13.3 | D104: 10.9 | E104: 12.97 | F104: 5230600 | G104: 12.97
A105: 2013-08-01 | B105: 12.62 | C105: 14.2 | D105: 12.16 | E105: 12.76 | F105: 6410200 | G105: 12.76
A106: 2013-09-03 | B106: 13.39 | C106: 14.87 | D106: 13.22 | E106: 13.67 | F106: 5017300 | G106: 13.67
A107: 2013-10-01 | B107: 13.7 | C107: 16.5 | D107: 13.67 | E107: 15.76 | F107: 5244300 | G107: 15.76
A108: 2013-11-01 | B108: 15.7 | C108: 17.41 | D108: 15.6 | E108: 17.17 | F108: 5035400 | G108: 17.17
A109: 2013-12-02 | B109: 17.49 | C109: 17.92 | D109: 16.08 | E109: 17.84 | F109: 4304600 | G109: 17.84
A110: 2014-01-02 | B110: 17.61 | C110: 17.84 | D110: 15.94 | E110: 16.48 | F110: 6749700 | G110: 16.48
A111: 2014-02-03 | B111: 16.54 | C111: 17.47 | D111: 15.49 | E111: 15.66 | F111: 6650800 | G111: 15.66
A112: 2014-03-03 | B112: 15.1 | C112: 16.28 | D112: 14.77 | E112: 16.15 | F112: 5346600 | G112: 16.15
A113: 2014-04-01 | B113: 16.37 | C113: 16.8 | D113: 15.82 | E113: 16.25 | F113: 4778600 | G113: 16.25
A114: 2014-05-01 | B114: 16.21 | C114: 16.6 | D114: 15.1 | E114: 15.15 | F114: 5238900 | G114: 15.15
A115: 2014-06-02 | B115: 15.14 | C115: 15.51 | D115: 14.73 | E115: 14.93 | F115: 4295500 | G115: 14.93
A116: 2014-07-01 | B116: 14.93 | C116: 15.69 | D116: 14.43 | E116: 15.21 | F116: 5223800 | G116: 15.21
A117: 2014-08-01 | B117: 14.46 | C117: 14.8 | D117: 13.66 | E117: 14.56 | F117: 4657500 | G117: 14.56
A118: 2014-09-02 | B118: 14.42 | C118: 15.19 | D118: 13.6 | E118: 13.69 | F118: 6128400 | G118: 13.69
A119: 2014-10-01 | B119: 13.5 | C119: 13.53 | D119: 11.88 | E119: 13.16 | F119: 7999100 | G119: 13.16
A120: 2014-11-03 | B120: 13.02 | C120: 13.09 | D120: 11.89 | E120: 12.25 | F120: 6033900 | G120: 12.25
A121: 2014-12-01 | B121: 12.17 | C121: 12.35 | D121: 10.55 | E121: 11.03 | F121: 5054500 | G121: 11.03
A122: 2015-01-02 | B122: 10.95 | C122: 11.03 | D122: 9.21 | E122: 9.64 | F122: 7606100 | G122: 9.64

Sheet msft
A1: Stock Quotes for msft
A2: Date | B2: Open | C2: High | D2: Low | E2: Close | F2: Volume | G2: Adj Close
A3: 2005-02-01 | B3: 26.25 | C3: 26.5 | D3: 25.13 | E3: 25.16 | F3: 75992300 | G3: 20.25
A4: 2005-03-01 | B4: 25.19 | C4: 25.79 | D4: 23.82 | E4: 24.17 | F4: 72899700 | G4: 19.45
A5: 2005-04-01 | B5: 24.24 | C5: 25.45 | D5: 23.94 | E5: 25.3 | F5: 77090200 | G5: 20.36
A6: 2005-05-02 | B6: 25.23 | C6: 26.09 | D6: 24.64 | E6: 25.8 | F6: 62699700 | G6: 20.83
A7: 2005-06-01 | B7: 25.73 | C7: 26 | D7: 24.82 | E7: 24.84 | F7: 62956700 | G7: 20.06
A8: 2005-07-01 | B8: 24.85 | C8: 26.48 | D8: 24.5 | E8: 25.61 | F8: 69046600 | G8: 20.68
A9: 2005-08-01 | B9: 25.81 | C9: 27.94 | D9: 25.76 | E9: 27.38 | F9: 65529900 | G9: 22.17
A10: 2005-09-01 | B10: 27.38 | C10: 27.39 | D10: 25.12 | E10: 25.73 | F10: 66976400 | G10: 20.84
A11: 2005-10-03 | B11: 25.71 | C11: 25.8 | D11: 24.25 | E11: 25.7 | F11: 72132400 | G11: 20.81
A12: 2005-11-01 | B12: 25.61 | C12: 28.25 | D12: 25.61 | E12: 27.68 | F12: 71469100 | G12: 22.48
A13: 2005-12-01 | B13: 27.73 | C13: 28.1 | D13: 26.1 | E13: 26.15 | F13: 62892300 | G13: 21.24
A14: 2006-01-03 | B14: 26.25 | C14: 28.38 | D14: 26.1 | E14: 28.15 | F14: 74173200 | G14: 22.86
A15: 2006-02-01 | B15: 27.96 | C15: 28.07 | D15: 26.34 | E15: 26.87 | F15: 58565000 | G15: 21.9
A16: 2006-03-01 | B16: 26.98 | C16: 28.22 | D16: 26.62 | E16: 27.21 | F16: 65223100 | G16: 22.18
A17: 2006-04-03 | B17: 27.67 | C17: 27.94 | D17: 24 | E17: 24.15 | F17: 107219900 | G17: 19.68
A18: 2006-05-01 | B18: 24.32 | C18: 25 | D18: 22.45 | E18: 22.65 | F18: 110427000 | G18: 18.53
A19: 2006-06-01 | B19: 22.74 | C19: 23.65 | D19: 21.46 | E19: 23.3 | F19: 92940200 | G19: 19.06
A20: 2006-07-03 | B20: 23.53 | C20: 24.6 | D20: 22.23 | E20: 24.06 | F20: 68627600 | G20: 19.69
A21: 2006-08-01 | B21: 24.02 | C21: 26.25 | D21: 23.85 | E21: 25.7 | F21: 50459500 | G21: 21.1
A22: 2006-09-01 | B22: 25.89 | C22: 27.52 | D22: 25.39 | E22: 27.35 | F22: 56588300 | G22: 22.46
A23: 2006-10-02 | B23: 27.32 | C23: 28.85 | D23: 27.15 | E23: 28.71 | F23: 61492200 | G23: 23.58
A24: 2006-11-01 | B24: 28.78 | C24: 30 | D24: 28.58 | E24: 29.36 | F24: 61544700 | G24: 24.19
A25: 2006-12-01 | B25: 29.23 | C25: 30.26 | D25: 28.8 | E25: 29.86 | F25: 58945000 | G25: 24.6
A26: 2007-01-03 | B26: 29.91 | C26: 31.48 | D26: 29.4 | E26: 30.86 | F26: 69924300 | G26: 25.43
A27: 2007-02-01 | B27: 30.84 | C27: 30.94 | D27: 27.79 | E27: 28.17 | F27: 72483300 | G27: 23.29
A28: 2007-03-01 | B28: 27.82 | C28: 28.55 | D28: 26.6 | E28: 27.87 | F28: 59843900 | G28: 23.04
A29: 2007-04-02 | B29: 27.89 | C29: 30.74 | D29: 27.56 | E29: 29.94 | F29: 51337600 | G29: 24.76
A30: 2007-05-01 | B30: 29.94 | C30: 31.16 | D30: 29.9 | E30: 30.69 | F30: 64202000 | G30: 25.46
A31: 2007-06-01 | B31: 30.79 | C31: 30.9 | D31: 29.04 | E31: 29.47 | F31: 59647900 | G31: 24.45
A32: 2007-07-02 | B32: 29.67 | C32: 31.84 | D32: 28.95 | E32: 28.99 | F32: 64862000 | G32: 24.05
A33: 2007-08-01 | B33: 28.95 | C33: 30.1 | D33: 27.51 | E33: 28.73 | F33: 55264800 | G33: 23.92
A34: 2007-09-04 | B34: 28.5 | C34: 29.85 | D34: 28.27 | E34: 29.46 | F34: 61223000 | G34: 24.52
A35: 2007-10-01 | B35: 29.46 | C35: 37 | D35: 29.29 | E35: 36.81 | F35: 85117900 | G35: 30.64
A36: 2007-11-01 | B36: 36.53 | C36: 37.5 | D36: 32.68 | E36: 33.6 | F36: 90565400 | G36: 28.06
A37: 2007-12-03 | B37: 33.5 | C37: 36.72 | D37: 32.63 | E37: 35.6 | F37: 55002300 | G37: 29.73
A38: 2008-01-02 | B38: 35.79 | C38: 35.96 | D38: 31.04 | E38: 32.6 | F38: 97806800 | G38: 27.23
A39: 2008-02-01 | B39: 31.06 | C39: 33.25 | D39: 27.02 | E39: 27.2 | F39: 122099600 | G39: 22.81
A40: 2008-03-03 | B40: 27.24 | C40: 29.59 | D40: 26.87 | E40: 28.38 | F40: 74958500 | G40: 23.79
A41: 2008-04-01 | B41: 28.83 | C41: 32.1 | D41: 27.93 | E41: 28.52 | F41: 69066000 | G41: 23.91
A42: 2008-05-01 | B42: 28.5 | C42: 30.53 | D42: 27.95 | E42: 28.32 | F42: 69931800 | G42: 23.83
A43: 2008-06-02 | B43: 28.24 | C43: 29.57 | D43: 27.11 | E43: 27.51 | F43: 77060400 | G43: 23.15
A44: 2008-07-01 | B44: 27.27 | C44: 27.91 | D44: 24.87 | E44: 25.72 | F44: 77180100 | G44: 21.64
A45: 2008-08-01 | B45: 25.92 | C45: 28.5 | D45: 25.07 | E45: 27.29 | F45: 59889700 | G45: 23.06
A46: 2008-09-02 | B46: 27.67 | C46: 27.76 | D46: 23.5 | E46: 26.69 | F46: 96891900 | G46: 22.55
A47: 2008-10-01 | B47: 26.38 | C47: 27.47 | D47: 20.65 | E47: 22.33 | F47: 136418800 | G47: 18.87
A48: 2008-11-03 | B48: 22.48 | C48: 23.66 | D48: 17.5 | E48: 20.22 | F48: 95976900 | G48: 17.2
A49: 2008-12-01 | B49: 19.88 | C49: 21.25 | D49: 18.47 | E49: 19.44 | F49: 72425500 | G49: 16.54
A50: 2009-01-02 | B50: 19.53 | C50: 21 | D50: 16.75 | E50: 17.1 | F50: 81320700 | G50: 14.55
A51: 2009-02-02 | B51: 17.03 | C51: 19.93 | D51: 16.1 | E51: 16.15 | F51: 81560000 | G51: 13.83
A52: 2009-03-02 | B52: 15.96 | C52: 18.88 | D52: 14.87 | E52: 18.37 | F52: 78098900 | G52: 15.73
A53: 2009-04-01 | B53: 18.23 | C53: 21.2 | D53: 18.18 | E53: 20.26 | F53: 78563800 | G53: 17.35
A54: 2009-05-01 | B54: 20.19 | C54: 20.94 | D54: 19.01 | E54: 20.89 | F54: 57362800 | G54: 18
A55: 2009-06-01 | B55: 21 | C55: 24.34 | D55: 20.86 | E55: 23.77 | F55: 67163500 | G55: 20.49
A56: 2009-07-01 | B56: 24.05 | C56: 25.72 | D56: 22 | E56: 23.52 | F56: 71441700 | G56: 20.27
A57: 2009-08-03 | B57: 23.82 | C57: 25.49 | D57: 23.03 | E57: 24.65 | F57: 49659200 | G57: 21.36
A58: 2009-09-01 | B58: 24.35 | C58: 26.25 | D58: 23.76 | E58: 25.72 | F58: 52500600 | G58: 22.29
A59: 2009-10-01 | B59: 25.41 | C59: 29.35 | D59: 24.43 | E59: 27.73 | F59: 72581900 | G59: 24.03
A60: 2009-11-02 | B60: 27.7 | C60: 30.14 | D60: 27.41 | E60: 29.41 | F60: 53121400 | G60: 25.6
A61: 2009-12-01 | B61: 29.52 | C61: 31.5 | D61: 29.25 | E61: 30.48 | F61: 43297000 | G61: 26.53
A62: 2010-01-04 | B62: 30.62 | C62: 31.24 | D62: 27.66 | E62: 28.18 | F62: 81765200 | G62: 24.53
A63: 2010-02-01 | B63: 28.39 | C63: 29.03 | D63: 27.57 | E63: 28.67 | F63: 58684900 | G63: 25.08
A64: 2010-03-01 | B64: 28.77 | C64: 30.57 | D64: 28.24 | E64: 29.29 | F64: 51043300 | G64: 25.62
A65: 2010-04-01 | B65: 29.35 | C65: 31.58 | D65: 28.62 | E65: 30.54 | F65: 65821100 | G65: 26.71
A66: 2010-05-03 | B66: 30.67 | C66: 31.06 | D66: 24.56 | E66: 25.8 | F66: 89381300 | G66: 22.67
A67: 2010-06-01 | B67: 25.53 | C67: 26.93 | D67: 22.95 | E67: 23.01 | F67: 79675500 | G67: 20.22
A68: 2010-07-01 | B68: 23.09 | C68: 26.41 | D68: 22.73 | E68: 25.81 | F68: 71053500 | G68: 22.68
A69: 2010-08-02 | B69: 25.99 | C69: 26.38 | D69: 23.32 | E69: 23.47 | F69: 61156600 | G69: 20.73
A70: 2010-09-01 | B70: 23.67 | C70: 25.53 | D70: 23.54 | E70: 24.49 | F70: 63542900 | G70: 21.63
A71: 2010-10-01 | B71: 24.77 | C71: 27.2 | D71: 23.78 | E71: 26.67 | F71: 66458300 | G71: 23.56
A72: 2010-11-01 | B72: 26.88 | C72: 28.87 | D72: 24.93 | E72: 25.26 | F72: 68402700 | G72: 22.45
A73: 2010-12-01 | B73: 25.57 | C73: 28.4 | D73: 25.56 | E73: 27.91 | F73: 48111900 | G73: 24.8
A74: 2011-01-03 | B74: 28.05 | C74: 29.46 | D74: 27.42 | E74: 27.73 | F74: 71314300 | G74: 24.64
A75: 2011-02-01 | B75: 27.8 | C75: 28.34 | D75: 26.43 | E75: 26.58 | F75: 61355100 | G75: 23.76
A76: 2011-03-01 | B76: 26.6 | C76: 26.78 | D76: 24.68 | E76: 25.39 | F76: 59744300 | G76: 22.7
A77: 2011-04-01 | B77: 25.53 | C77: 26.87 | D77: 24.72 | E77: 25.92 | F77: 81658100 | G77: 23.17
A78: 2011-05-02 | B78: 25.94 | C78: 26.25 | D78: 24.03 | E78: 25.01 | F78: 67821800 | G78: 22.5
A79: 2011-06-01 | B79: 24.99 | C79: 26 | D79: 23.65 | E79: 26 | F79: 61376900 | G79: 23.39
A80: 2011-07-01 | B80: 25.93 | C80: 28.15 | D80: 25.84 | E80: 27.4 | F80: 68186100 | G80: 24.65
A81: 2011-08-01 | B81: 27.51 | C81: 27.69 | D81: 23.79 | E81: 26.6 | F81: 77332100 | G81: 24.09
A82: 2011-09-01 | B82: 26.46 | C82: 27.5 | D82: 24.6 | E82: 24.89 | F82: 63522800 | G82: 22.54
A83: 2011-10-03 | B83: 24.72 | C83: 27.5 | D83: 24.26 | E83: 26.63 | F83: 60235300 | G83: 24.11
A84: 2011-11-01 | B84: 26.19 | C84: 27.2 | D84: 24.3 | E84: 25.58 | F84: 53693200 | G84: 23.34
A85: 2011-12-01 | B85: 25.56 | C85: 26.19 | D85: 25.16 | E85: 25.96 | F85: 49264800 | G85: 23.68
A86: 2012-01-03 | B86: 26.55 | C86: 29.95 | D86: 26.39 | E86: 29.53 | F86: 70271500 | G86: 26.94
A87: 2012-02-01 | B87: 29.79 | C87: 32 | D87: 29.71 | E87: 31.74 | F87: 52182700 | G87: 29.15
A88: 2012-03-01 | B88: 31.93 | C88: 32.95 | D88: 31.49 | E88: 32.26 | F88: 44277900 | G88: 29.62
A89: 2012-04-02 | B89: 32.22 | C89: 32.89 | D89: 30.23 | E89: 32.02 | F89: 48821800 | G89: 29.4
A90: 2012-05-01 | B90: 32.05 | C90: 32.34 | D90: 28.64 | E90: 29.19 | F90: 47886600 | G90: 26.98
A91: 2012-06-01 | B91: 28.76 | C91: 31.14 | D91: 28.32 | E91: 30.59 | F91: 48969400 | G91: 28.27
A92: 2012-07-02 | B92: 30.62 | C92: 31.05 | D92: 28.54 | E92: 29.47 | F92: 42105900 | G92: 27.24
A93: 2012-08-01 | B93: 29.59 | C93: 30.96 | D93: 28.97 | E93: 30.82 | F93: 30797300 | G93: 28.68
A94: 2012-09-04 | B94: 30.45 | C94: 31.61 | D94: 29.74 | E94: 29.76 | F94: 49859800 | G94: 27.69
A95: 2012-10-01 | B95: 29.81 | C95: 30.25 | D95: 27.76 | E95: 28.54 | F95: 55946000 | G95: 26.55
A96: 2012-11-01 | B96: 28.84 | C96: 30.2 | D96: 26.34 | E96: 26.62 | F96: 66390700 | G96: 24.97
A97: 2012-12-03 | B97: 26.78 | C97: 27.73 | D97: 26.26 | E97: 26.71 | F97: 49503000 | G97: 25.06
A98: 2013-01-02 | B98: 27.25 | C98: 28.23 | D98: 26.28 | E98: 27.45 | F98: 56932500 | G98: 25.75
A99: 2013-02-01 | B99: 27.67 | C99: 28.2 | D99: 27.1 | E99: 27.8 | F99: 42969800 | G99: 26.29
A100: 2013-03-01 | B100: 27.72 | C100: 28.66 | D100: 27.52 | E100: 28.61 | F100: 45019900 | G100: 27.06
A101: 2013-04-01 | B101: 28.64 | C101: 33.11 | D101: 28.11 | E101: 33.1 | F101: 70041900 | G101: 31.31
A102: 2013-05-01 | B102: 32.93 | C102: 35.28 | D102: 32.32 | E102: 34.9 | F102: 51273800 | G102: 33.24
A103: 2013-06-03 | B103: 34.92 | C103: 35.78 | D103: 32.57 | E103: 34.54 | F103: 50535000 | G103: 32.9
A104: 2013-07-01 | B104: 34.75 | C104: 36.43 | D104: 31.02 | E104: 31.84 | F104: 52501300 | G104: 30.33
A105: 2013-08-01 | B105: 32.06 | C105: 35.2 | D105: 30.84 | E105: 33.4 | F105: 49729700 | G105: 32.04
A106: 2013-09-03 | B106: 31.75 | C106: 33.75 | D106: 30.95 | E106: 33.28 | F106: 64140000 | G106: 31.92
A107: 2013-10-01 | B107: 33.35 | C107: 36.29 | D107: 32.8 | E107: 35.41 | F107: 43783200 | G107: 33.97
A108: 2013-11-01 | B108: 35.67 | C108: 38.29 | D108: 35.39 | E108: 38.13 | F108: 41126100 | G108: 36.85
A109: 2013-12-02 | B109: 38.09 | C109: 38.98 | D109: 35.53 | E109: 37.41 | F109: 40196200 | G109: 36.16
A110: 2014-01-02 | B110: 37.35 | C110: 37.89 | D110: 34.63 | E110: 37.84 | F110: 48732700 | G110: 36.57
A111: 2014-02-03 | B111: 37.74 | C111: 38.46 | D111: 35.69 | E111: 38.31 | F111: 39290500 | G111: 37.3
A112: 2014-03-03 | B112: 37.92 | C112: 41.5 | D112: 37.49 | E112: 40.99 | F112: 39300500 | G112: 39.91
A113: 2014-04-01 | B113: 41.15 | C113: 41.66 | D113: 38.9 | E113: 40.4 | F113: 37217700 | G113: 39.34
A114: 2014-05-01 | B114: 40.24 | C114: 40.97 | D114: 38.51 | E114: 40.94 | F114: 28996600 | G114: 40.15
A115: 2014-06-02 | B115: 40.95 | C115: 42.29 | D115: 39.86 | E115: 41.7 | F115: 27932600 | G115: 40.89
A116: 2014-07-01 | B116: 41.86 | C116: 45.71 | D116: 41.05 | E116: 43.16 | F116: 34688800 | G116: 42.32
A117: 2014-08-01 | B117: 43.21 | C117: 45.47 | D117: 42.21 | E117: 45.43 | F117: 25501300 | G117: 44.83
A118: 2014-09-02 | B118: 45.43 | C118: 47.57 | D118: 44.53 | E118: 46.36 | F118: 42564700 | G118: 45.74
A119: 2014-10-01 | B119: 46.27 | C119: 46.97 | D119: 42.1 | E119: 46.95 | F119: 38655800 | G119: 46.33
A120: 2014-11-03 | B120: 46.89 | C120: 50.05 | D120: 46.73 | E120: 47.81 | F120: 28659100 | G120: 47.47
A121: 2014-12-01 | B121: 47.88 | C121: 49.06 | D121: 44.9 | E121: 46.45 | F121: 29467800 | G121: 46.12
A122: 2015-01-02 | B122: 46.66 | C122: 47.91 | D122: 40.35 | E122: 40.4 | F122: 49848000 | G122: 40.11

Sheet aapl
A1: Stock Quotes for aapl
A2: Date | B2: Open | C2: High | D2: Low | E2: Close | F2: Volume | G2: Adj Close
A3: 2005-02-01 | B3: 77.05 | C3: 90.88 | D3: 43.96 | E3: 44.86 | F3: 290796800 | G3: 6.04
A4: 2005-03-01 | B4: 44.99 | C4: 45.11 | D4: 38.83 | E4: 41.67 | F4: 174000600 | G4: 5.62
A5: 2005-04-01 | B5: 42.09 | C5: 44.45 | D5: 34 | E5: 36.06 | F5: 238656500 | G5: 4.86
A6: 2005-05-02 | B6: 36.21 | C6: 40.94 | D6: 33.11 | E6: 39.76 | F6: 157886900 | G6: 5.36
A7: 2005-06-01 | B7: 39.89 | C7: 40.76 | D7: 35.52 | E7: 36.81 | F7: 133472500 | G7: 4.96
A8: 2005-07-01 | B8: 36.83 | C8: 44.38 | D8: 36.29 | E8: 42.65 | F8: 133204000 | G8: 5.75
A9: 2005-08-01 | B9: 42.57 | C9: 48.33 | D9: 42.02 | E9: 46.89 | F9: 106562600 | G9: 6.32
A10: 2005-09-01 | B10: 47 | C10: 54.56 | D10: 46.09 | E10: 53.61 | F10: 153326200 | G10: 7.22
A11: 2005-10-03 | B11: 54.16 | C11: 57.98 | D11: 47.87 | E11: 57.59 | F11: 233146300 | G11: 7.76
A12: 2005-11-01 | B12: 57.24 | C12: 71.07 | D12: 56.87 | E12: 67.82 | F12: 167286900 | G12: 9.14
A13: 2005-12-01 | B13: 68.95 | C13: 75.46 | D13: 68.81 | E13: 71.89 | F13: 162957400 | G13: 9.69
A14: 2006-01-03 | B14: 72.38 | C14: 86.4 | D14: 70.87 | E14: 75.51 | F14: 284898900 | G14: 10.18
A15: 2006-02-01 | B15: 74.95 | C15: 76.46 | D15: 62.9 | E15: 68.49 | F15: 263522000 | G15: 9.23
A16: 2006-03-01 | B16: 68.84 | C16: 69.99 | D16: 57.67 | E16: 62.72 | F16: 260956400 | G16: 8.45
A17: 2006-04-03 | B17: 63.67 | C17: 72.05 | D17: 61.05 | E17: 70.39 | F17: 274727800 | G17: 9.49
A18: 2006-05-01 | B18: 70.77 | C18: 73.8 | D18: 58.69 | E18: 59.77 | F18: 191929000 | G18: 8.05
A19: 2006-06-01 | B19: 59.85 | C19: 63.1 | D19: 55.41 | E19: 57.27 | F19: 212230900 | G19: 7.72
A20: 2006-07-03 | B20: 57.52 | C20: 68.63 | D20: 50.16 | E20: 67.96 | F20: 229657200 | G20: 9.16
A21: 2006-08-01 | B21: 67.22 | C21: 70 | D21: 62.58 | E21: 67.85 | F21: 200677600 | G21: 9.14
A22: 2006-09-01 | B22: 68.48 | C22: 77.78 | D22: 67.82 | E22: 76.98 | F22: 226592100 | G22: 10.37
A23: 2006-10-02 | B23: 75.1 | C23: 82.6 | D23: 72.6 | E23: 81.08 | F23: 169198000 | G23: 10.93
A24: 2006-11-01 | B24: 81.1 | C24: 93.16 | D24: 77.79 | E24: 91.66 | F24: 175063900 | G24: 12.35
A25: 2006-12-01 | B25: 91.8 | C25: 92.33 | D25: 76.77 | E25: 84.84 | F25: 224590200 | G25: 11.43
A26: 2007-01-03 | B26: 86.29 | C26: 97.8 | D26: 81.9 | E26: 85.73 | F26: 350823100 | G26: 11.55
A27: 2007-02-01 | B27: 86.23 | C27: 90.81 | D27: 82.86 | E27: 84.61 | F27: 192655600 | G27: 11.4
A28: 2007-03-01 | B28: 84.03 | C28: 96.83 | D28: 83.75 | E28: 92.91 | F28: 187718200 | G28: 12.52
A29: 2007-04-02 | B29: 94.14 | C29: 102.5 | D29: 89.6 | E29: 99.8 | F29: 175953100 | G29: 13.45
A30: 2007-05-01 | B30: 99.59 | C30: 122.17 | D30: 98.55 | E30: 121.19 | F30: 212069700 | G30: 16.33
A31: 2007-06-01 | B31: 121.1 | C31: 127.61 | D31: 115.4 | E31: 122.04 | F31: 290683100 | G31: 16.45
A32: 2007-07-02 | B32: 121.05 | C32: 148.92 | D32: 119.3 | E32: 131.76 | F32: 306916200 | G32: 17.75
A33: 2007-08-01 | B33: 133.64 | C33: 139.65 | D33: 111.62 | E33: 138.48 | F33: 274322600 | G33: 18.66
A34: 2007-09-04 | B34: 139.94 | C34: 155 | D34: 130 | E34: 153.47 | F34: 283504200 | G34: 20.68
A35: 2007-10-01 | B35: 154.63 | C35: 190.12 | D35: 152.93 | E35: 189.95 | F35: 262077200 | G35: 25.6
A36: 2007-11-01 | B36: 188.6 | C36: 192.68 | D36: 150.63 | E36: 182.22 | F36: 326042700 | G36: 24.55
A37: 2007-12-03 | B37: 181.86 | C37: 202.96 | D37: 176.99 | E37: 198.08 | F37: 222400100 | G37: 26.69
A38: 2008-01-02 | B38: 199.27 | C38: 200.26 | D38: 126.14 | E38: 135.36 | F38: 434756700 | G38: 18.24
A39: 2008-02-01 | B39: 136.24 | C39: 136.59 | D39: 115.44 | E39: 125.02 | F39: 326517900 | G39: 16.85
A40: 2008-03-03 | B40: 124.44 | C40: 145.74 | D40: 118 | E40: 143.5 | F40: 296191700 | G40: 19.34
A41: 2008-04-01 | B41: 146.3 | C41: 180 | D41: 143.61 | E41: 173.95 | F41: 271892100 | G41: 23.44
A42: 2008-05-01 | B42: 174.96 | C42: 192.24 | D42: 172 | E42: 188.75 | F42: 228552300 | G42: 25.43
A43: 2008-06-02 | B43: 188.6 | C43: 189.95 | D43: 164.15 | E43: 167.44 | F43: 239999900 | G43: 22.56
A44: 2008-07-01 | B44: 164.23 | C44: 180.91 | D44: 146.53 | E44: 158.95 | F44: 231673400 | G44: 21.42
A45: 2008-08-01 | B45: 159.9 | C45: 180.45 | D45: 152.91 | E45: 169.53 | F45: 162917200 | G45: 22.84
A46: 2008-09-02 | B46: 172.4 | C46: 173.5 | D46: 100.59 | E46: 113.66 | F46: 305883800 | G46: 15.32
A47: 2008-10-01 | B47: 111.92 | C47: 116.4 | D47: 85 | E47: 107.59 | F47: 468331100 | G47: 14.5
A48: 2008-11-03 | B48: 105.93 | C48: 111.79 | D48: 79.14 | E48: 92.67 | F48: 314700400 | G48: 12.49
A49: 2008-12-01 | B49: 91.3 | C49: 103.6 | D49: 84.55 | E49: 85.35 | F49: 236606600 | G49: 11.5
A50: 2009-01-02 | B50: 85.88 | C50: 97.17 | D50: 78.2 | E50: 90.13 | F50: 234465200 | G50: 12.15
A51: 2009-02-02 | B51: 89.1 | C51: 103 | D51: 86.51 | E51: 89.31 | F51: 191764500 | G51: 12.03
A52: 2009-03-02 | B52: 88.12 | C52: 109.98 | D52: 82.33 | E52: 105.12 | F52: 181757700 | G52: 14.17
A53: 2009-04-01 | B53: 104.09 | C53: 127.2 | D53: 103.89 | E53: 125.83 | F53: 146668700 | G53: 16.96
A54: 2009-05-01 | B54: 125.8 | C54: 135.9 | D54: 119.38 | E54: 135.81 | F54: 123920900 | G54: 18.3
A55: 2009-06-01 | B55: 136.47 | C55: 146.4 | D55: 132.88 | E55: 142.43 | F55: 148974900 | G55: 19.19
A56: 2009-07-01 | B56: 143.5 | C56: 165 | D56: 134.42 | E56: 163.39 | F56: 129144000 | G56: 22.02
A57: 2009-08-03 | B57: 165.21 | C57: 172.49 | D57: 159.42 | E57: 168.21 | F57: 100910200 | G57: 22.67
A58: 2009-09-01 | B58: 167.99 | C58: 188.9 | D58: 164.11 | E58: 185.35 | F58: 125344100 | G58: 24.98
A59: 2009-10-01 | B59: 185.35 | C59: 208.71 | D59: 180.7 | E59: 188.5 | F59: 155382900 | G59: 25.4
A60: 2009-11-02 | B60: 189.8 | C60: 208 | D60: 185.57 | E60: 199.91 | F60: 110995500 | G60: 26.94
A61: 2009-12-01 | B61: 202.24 | C61: 213.95 | D61: 188.68 | E61: 210.73 | F61: 133481400 | G61: 28.4
A62: 2010-01-04 | B62: 213.43 | C62: 215.59 | D62: 190.25 | E62: 192.06 | F62: 215986100 | G62: 25.88
A63: 2010-02-01 | B63: 192.37 | C63: 205.17 | D63: 190.85 | E63: 204.62 | F63: 148467600 | G63: 27.57
A64: 2010-03-01 | B64: 205.75 | C64: 237.48 | D64: 205.45 | E64: 235 | F64: 136791600 | G64: 31.67
A65: 2010-04-01 | B65: 237.41 | C65: 272.46 | D65: 232.75 | E65: 261.09 | F65: 153685600 | G65: 35.18
A66: 2010-05-03 | B66: 263.84 | C66: 267.88 | D66: 199.25 | E66: 256.88 | F66: 236228300 | G66: 34.61
A67: 2010-06-01 | B67: 259.69 | C67: 279.01 | D67: 242.2 | E67: 251.53 | F67: 197621600 | G67: 33.89
A68: 2010-07-01 | B68: 254.3 | C68: 265.99 | D68: 239.6 | E68: 257.25 | F68: 191879900 | G68: 34.66
A69: 2010-08-02 | B69: 260.44 | C69: 264.28 | D69: 235.56 | E69: 243.1 | F69: 113748900 | G69: 32.76
A70: 2010-09-01 | B70: 247.47 | C70: 294.73 | D70: 246.28 | E70: 283.75 | F70: 149087000 | G70: 38.24
A71: 2010-10-01 | B71: 286.15 | C71: 319 | D71: 277.77 | E71: 300.98 | F71: 150774800 | G71: 40.56
A72: 2010-11-01 | B72: 302.22 | C72: 321.3 | D72: 297.76 | E72: 311.15 | F72: 119166000 | G72: 41.93
A73: 2010-12-01 | B73: 315.27 | C73: 326.66 | D73: 314.89 | E73: 322.56 | F73: 81440200 | G73: 43.47
A74: 2011-01-03 | B74: 325.64 | C74: 348.6 | D74: 324.84 | E74: 339.32 | F74: 140234700 | G74: 45.72
A75: 2011-02-01 | B75: 341.3 | C75: 364.9 | D75: 337.72 | E75: 353.21 | F75: 127618700 | G75: 47.6
A76: 2011-03-01 | B76: 355.47 | C76: 361.67 | D76: 326.26 | E76: 348.51 | F76: 125874700 | G76: 46.96
A77: 2011-04-01 | B77: 351.11 | C77: 355.13 | D77: 320.16 | E77: 350.13 | F77: 128252100 | G77: 47.18
A78: 2011-05-02 | B78: 349.74 | C78: 351.83 | D78: 329.42 | E78: 347.83 | F78: 87259700 | G78: 46.87
A79: 2011-06-01 | B79: 348.87 | C79: 352.13 | D79: 310.5 | E79: 335.67 | F79: 108940900 | G79: 45.23
A80: 2011-07-01 | B80: 335.95 | C80: 404.5 | D80: 334.2 | E80: 390.48 | F80: 141081600 | G80: 52.62
A81: 2011-08-01 | B81: 397.78 | C81: 399.5 | D81: 353.02 | E81: 384.83 | F81: 181143300 | G81: 51.86
A82: 2011-09-01 | B82: 385.82 | C82: 422.86 | D82: 366.48 | E82: 381.32 | F82: 149108200 | G82: 51.38
A83: 2011-10-03 | B83: 380.37 | C83: 426.7 | D83: 354.24 | E83: 404.78 | F83: 161034800 | G83: 54.54
A84: 2011-11-01 | B84: 397.41 | C84: 408 | D84: 363.32 | E84: 382.2 | F84: 111543300 | G84: 51.5
A85: 2011-12-01 | B85: 382.54 | C85: 409.09 | D85: 377.68 | E85: 405 | F85: 77216600 | G85: 54.57
A86: 2012-01-03 | B86: 409.4 | C86: 458.24 | D86: 409 | E86: 456.48 | F86: 90644200 | G86: 61.51
A87: 2012-02-01 | B87: 458.41 | C87: 547.61 | D87: 453.98 | E87: 542.44 | F87: 154007000 | G87: 73.09
A88: 2012-03-01 | B88: 548.17 | C88: 621.45 | D88: 516.22 | E88: 599.55 | F88: 185402000 | G88: 80.79
A89: 2012-04-02 | B89: 601.83 | C89: 644 | D89: 555 | E89: 583.98 | F89: 201314100 | G89: 78.69
A90: 2012-05-01 | B90: 584.9 | C90: 596.76 | D90: 522.18 | E90: 577.73 | F90: 131795600 | G90: 77.85
A91: 2012-06-01 | B91: 569.16 | C91: 590 | D91: 548.5 | E91: 584 | F91: 98539600 | G91: 78.69
A92: 2012-07-02 | B92: 584.73 | C92: 619.87 | D92: 570 | E92: 610.76 | F92: 111571100 | G92: 82.3
A93: 2012-08-01 | B93: 615.91 | C93: 680.87 | D93: 600.25 | E93: 665.24 | F93: 93636100 | G93: 90.03
A94: 2012-09-04 | B94: 665.76 | C94: 705.07 | D94: 656 | E94: 667.1 | F94: 128080400 | G94: 90.28
A95: 2012-10-01 | B95: 671.16 | C95: 676.75 | D95: 587.7 | E95: 595.32 | F95: 150628900 | G95: 80.56
A96: 2012-11-01 | B96: 598.22 | C96: 603 | D96: 505.75 | E96: 585.28 | F96: 158585300 | G96: 79.57
A97: 2012-12-03 | B97: 593.65 | C97: 594.59 | D97: 501.23 | E97: 532.17 | F97: 159903000 | G97: 72.35
A98: 2013-01-02 | B98: 553.82 | C98: 555 | D98: 435 | E98: 455.49 | F98: 160032800 | G98: 61.92
A99: 2013-02-01 | B99: 459.11 | C99: 484.94 | D99: 437.66 | E99: 441.4 | F99: 127191400 | G99: 60.36
A100: 2013-03-01 | B100: 438 | C100: 469.95 | D100: 419 | E100: 442.66 | F100: 120246400 | G100: 60.53
A101: 2013-04-01 | B101: 441.9 | C101: 445.25 | D101: 385.1 | E101: 442.78 | F101: 132443500 | G101: 60.55
A102: 2013-05-01 | B102: 444.46 | C102: 465.75 | D102: 418.9 | E102: 449.73 | F102: 111725300 | G102: 61.9
A103: 2013-06-03 | B103: 450.73 | C103: 454.43 | D103: 388.87 | E103: 396.53 | F103: 94963100 | G103: 54.58
A104: 2013-07-01 | B104: 402.69 | C104: 457.34 | D104: 401.22 | E104: 452.53 | F104: 77966700 | G104: 62.29
A105: 2013-08-01 | B105: 455.75 | C105: 513.74 | D105: 453.26 | E105: 487.22 | F105: 94666300 | G105: 67.51
A106: 2013-09-03 | B106: 493.1 | C106: 507.92 | D106: 447.22 | E106: 476.75 | F106: 111138700 | G106: 66.06
A107: 2013-10-01 | B107: 478.45 | C107: 539.25 | D107: 478.28 | E107: 522.7 | F107: 88189400 | G107: 72.42
A108: 2013-11-01 | B108: 524.02 | C108: 558.33 | D108: 512.38 | E108: 556.07 | F108: 69291000 | G108: 77.5
A109: 2013-12-02 | B109: 558 | C109: 575.14 | D109: 538.8 | E109: 561.02 | F109: 86672400 | G109: 78.19
A110: 2014-01-02 | B110: 555.68 | C110: 560.2 | D110: 493.55 | E110: 500.6 | F110: 109889900 | G110: 69.76
A111: 2014-02-03 | B111: 502.61 | C111: 551.19 | D111: 499.3 | E111: 526.24 | F111: 82267500 | G111: 73.78
A112: 2014-03-03 | B112: 523.42 | C112: 549 | D112: 522.81 | E112: 536.74 | F112: 61552000 | G112: 75.25
A113: 2014-04-01 | B113: 537.76 | C113: 599.43 | D113: 511.33 | E113: 590.09 | F113: 82044000 | G113: 82.73
A114: 2014-05-01 | B114: 592 | C114: 644.17 | D114: 580.33 | E114: 633 | F114: 74996300 | G114: 89.24
A115: 2014-06-02 | B115: 633.96 | C115: 651.26 | D115: 89.65 | E115: 92.93 | F115: 59839500 | G115: 91.71
A116: 2014-07-01 | B116: 93.52 | C116: 99.44 | D116: 92.57 | E116: 95.6 | F116: 49637900 | G116: 94.34
A117: 2014-08-01 | B117: 94.9 | C117: 102.9 | D117: 93.28 | E117: 102.5 | F117: 46746200 | G117: 101.66
A118: 2014-09-02 | B118: 103.06 | C118: 103.74 | D118: 96.14 | E118: 100.75 | F118: 75388300 | G118: 99.92
A119: 2014-10-01 | B119: 100.59 | C119: 108.04 | D119: 95.18 | E119: 108 | F119: 61078100 | G119: 107.11
A120: 2014-11-03 | B120: 108.22 | C120: 119.75 | D120: 107.72 | E120: 118.93 | F120: 44485400 | G120: 118.46
A121: 2014-12-01 | B121: 118.81 | C121: 119.25 | D121: 106.26 | E121: 110.38 | F121: 50669200 | G121: 109.95
A122: 2015-01-02 | B122: 111.39 | C122: 120 | D122: 104.63 | E122: 117.16 | F122: 69450400 | G122: 116.7

Sheet k
A1: Stock Quotes for k
A2: Date | B2: Open | C2: High | D2: Low | E2: Close | F2: Volume | G2: Adj Close
A3: 2005-02-01 | B3: 44.3 | C3: 45.33 | D3: 43.16 | E3: 44 | F3: 1357200 | G3: 33.11
A4: 2005-03-01 | B4: 43.79 | C4: 44.77 | D4: 42.41 | E4: 43.27 | F4: 1503200 | G4: 32.56
A5: 2005-04-01 | B5: 43.24 | C5: 44.95 | D5: 42.35 | E5: 44.95 | F5: 1365000 | G5: 33.83
A6: 2005-05-02 | B6: 44.6 | C6: 45.98 | D6: 44.43 | E6: 45.49 | F6: 1012300 | G6: 34.42
A7: 2005-06-01 | B7: 45.22 | C7: 46.89 | D7: 44.2 | E7: 44.44 | F7: 1089300 | G7: 33.63
A8: 2005-07-01 | B8: 44.58 | C8: 45.94 | D8: 43.5 | E8: 45.31 | F8: 845000 | G8: 34.29
A9: 2005-08-01 | B9: 45.25 | C9: 46.37 | D9: 44.49 | E9: 45.33 | F9: 936600 | G9: 34.51
A10: 2005-09-01 | B10: 45.08 | C10: 46.99 | D10: 43.42 | E10: 46.13 | F10: 1818100 | G10: 35.12
A11: 2005-10-03 | B11: 46.07 | C11: 46.7 | D11: 43.5 | E11: 44.17 | F11: 1679400 | G11: 33.63
A12: 2005-11-01 | B12: 44.17 | C12: 45.3 | D12: 43.76 | E12: 44.07 | F12: 1617000 | G12: 33.76
A13: 2005-12-01 | B13: 44.27 | C13: 44.88 | D13: 43.22 | E13: 43.22 | F13: 1233600 | G13: 33.11
A14: 2006-01-03 | B14: 43.95 | C14: 44.84 | D14: 42.64 | E14: 42.9 | F14: 1515200 | G14: 32.87
A15: 2006-02-01 | B15: 43.15 | C15: 45.24 | D15: 42.41 | E15: 44.31 | F15: 1728600 | G15: 34.16
A16: 2006-03-01 | B16: 44.24 | C16: 45.78 | D16: 43.79 | E16: 44.04 | F16: 1277100 | G16: 33.95
A17: 2006-04-03 | B17: 44.04 | C17: 46.64 | D17: 43.06 | E17: 46.31 | F17: 1536300 | G17: 35.7
A18: 2006-05-01 | B18: 46.16 | C18: 47.47 | D18: 45.72 | E18: 47.1 | F18: 1692600 | G18: 36.52
A19: 2006-06-01 | B19: 47.09 | C19: 48.5 | D19: 46.25 | E19: 48.43 | F19: 1510400 | G19: 37.55
A20: 2006-07-03 | B20: 48.08 | C20: 49.39 | D20: 47.31 | E20: 48.17 | F20: 1731700 | G20: 37.35
A21: 2006-08-01 | B21: 47.99 | C21: 50.87 | D21: 47.59 | E21: 50.7 | F21: 1027100 | G21: 39.54
A22: 2006-09-01 | B22: 50.53 | C22: 50.66 | D22: 49.2 | E22: 49.52 | F22: 1217300 | G22: 38.62
A23: 2006-10-02 | B23: 49.33 | C23: 50.7 | D23: 47.71 | E23: 50.31 | F23: 1358800 | G23: 39.24
A24: 2006-11-01 | B24: 50.24 | C24: 50.6 | D24: 49.13 | E24: 49.78 | F24: 1275200 | G24: 39.05
A25: 2006-12-01 | B25: 49.64 | C25: 50.95 | D25: 49.33 | E25: 50.06 | F25: 1226500 | G25: 39.27
A26: 2007-01-03 | B26: 50.29 | C26: 51 | D26: 48.95 | E26: 49.27 | F26: 1487700 | G26: 38.65
A27: 2007-02-01 | B27: 49.27 | C27: 50.42 | D27: 48.68 | E27: 49.84 | F27: 2206700 | G27: 39.33
A28: 2007-03-01 | B28: 49.58 | C28: 52.02 | D28: 48.91 | E28: 51.43 | F28: 1691900 | G28: 40.58
A29: 2007-04-02 | B29: 51.37 | C29: 54 | D29: 51.18 | E29: 52.91 | F29: 1270400 | G29: 41.75
A30: 2007-05-01 | B30: 53.12 | C30: 54.39 | D30: 52.39 | E30: 53.98 | F30: 1428300 | G30: 42.83
A31: 2007-06-01 | B31: 54.05 | C31: 54.42 | D31: 51.05 | E31: 51.79 | F31: 2257200 | G31: 41.09
A32: 2007-07-02 | B32: 51.83 | C32: 52.85 | D32: 51.04 | E32: 51.81 | F32: 2171400 | G32: 41.1
A33: 2007-08-01 | B33: 51.02 | C33: 55.98 | D33: 51.02 | E33: 54.93 | F33: 2357000 | G33: 43.83
A34: 2007-09-04 | B34: 55 | C34: 56.89 | D34: 54.02 | E34: 56 | F34: 1848900 | G34: 44.69
A35: 2007-10-01 | B35: 55.89 | C35: 56.31 | D35: 51.6 | E35: 52.79 | F35: 1907000 | G35: 42.12
A36: 2007-11-01 | B36: 52.5 | C36: 54.45 | D36: 51.49 | E36: 54.04 | F36: 1948600 | G36: 43.37
A37: 2007-12-03 | B37: 54.35 | C37: 55.19 | D37: 52.35 | E37: 52.43 | F37: 1274800 | G37: 42.08
A38: 2008-01-02 | B38: 52.3 | C38: 53 | D38: 46.25 | E38: 47.8 | F38: 3028500 | G38: 38.36
A39: 2008-02-01 | B39: 48.18 | C39: 52.72 | D39: 47.95 | E39: 50.72 | F39: 2786800 | G39: 40.95
A40: 2008-03-03 | B40: 50.75 | C40: 52.73 | D40: 48.9 | E40: 52.56 | F40: 2483200 | G40: 42.44
A41: 2008-04-01 | B41: 52.78 | C41: 54.15 | D41: 50.94 | E41: 51.17 | F41: 2241800 | G41: 41.31
A42: 2008-05-01 | B42: 50.7 | C42: 52.87 | D42: 50.16 | E42: 51.81 | F42: 1856100 | G42: 42.09
A43: 2008-06-02 | B43: 51.76 | C43: 52.23 | D43: 47.81 | E43: 48.02 | F43: 2795700 | G43: 39.01
A44: 2008-07-01 | B44: 47.62 | C44: 54.25 | D44: 47.62 | E44: 53.06 | F44: 2614100 | G44: 43.1
A45: 2008-08-01 | B45: 53.15 | C45: 55.84 | D45: 51.95 | E45: 54.44 | F45: 2074100 | G45: 44.5
A46: 2008-09-02 | B46: 54.83 | C46: 58.51 | D46: 54 | E46: 56.1 | F46: 2382400 | G46: 45.86
A47: 2008-10-01 | B47: 55.76 | C47: 57.66 | D47: 45.25 | E47: 50.42 | F47: 4138300 | G47: 41.22
A48: 2008-11-03 | B48: 50.63 | C48: 53.39 | D48: 40.51 | E48: 43.43 | F48: 3058300 | G48: 35.5
A49: 2008-12-01 | B49: 42.77 | C49: 44.08 | D49: 40.32 | E49: 43.85 | F49: 2686400 | G49: 36.13
A50: 2009-01-02 | B50: 43.98 | C50: 45.94 | D50: 41.96 | E50: 43.69 | F50: 2509700 | G50: 36
A51: 2009-02-02 | B51: 43.03 | C51: 45.1 | D51: 38 | E51: 38.92 | F51: 3258700 | G51: 32.35
A52: 2009-03-02 | B52: 38.33 | C52: 38.77 | D52: 35.64 | E52: 36.63 | F52: 3386400 | G52: 30.45
A53: 2009-04-01 | B53: 36.29 | C53: 43.91 | D53: 36.29 | E53: 42.11 | F53: 2916100 | G53: 35
A54: 2009-05-01 | B54: 42.18 | C54: 44.91 | D54: 42.18 | E54: 43.25 | F54: 2280700 | G54: 36.24
A55: 2009-06-01 | B55: 43.63 | C55: 46.91 | D55: 43.17 | E55: 46.57 | F55: 2331200 | G55: 39.02
A56: 2009-07-01 | B56: 46.91 | C56: 49.22 | D56: 46.47 | E56: 47.5 | F56: 2490400 | G56: 39.8
A57: 2009-08-03 | B57: 47.8 | C57: 47.8 | D57: 45.58 | E57: 47.09 | F57: 2142500 | G57: 39.77
A58: 2009-09-01 | B58: 46.91 | C58: 49.9 | D58: 46.42 | E58: 49.23 | F58: 1885800 | G58: 41.58
A59: 2009-10-01 | B59: 49.1 | C59: 52.58 | D59: 48.15 | E59: 51.54 | F59: 2074800 | G59: 43.53
A60: 2009-11-02 | B60: 51.53 | C60: 54.05 | D60: 50.82 | E60: 52.58 | F60: 1927200 | G60: 44.72
A61: 2009-12-01 | B61: 52.7 | C61: 54.1 | D61: 51.55 | E61: 53.2 | F61: 1650600 | G61: 45.25
A62: 2010-01-04 | B62: 53.31 | C62: 55.45 | D62: 52.55 | E62: 54.42 | F62: 2444500 | G62: 46.29
A63: 2010-02-01 | B63: 54.79 | C63: 55.41 | D63: 51.7 | E63: 52.15 | F63: 2824900 | G63: 44.68
A64: 2010-03-01 | B64: 52.31 | C64: 54.8 | D64: 52.05 | E64: 53.43 | F64: 2282200 | G64: 45.77
A65: 2010-04-01 | B65: 53.53 | C65: 55.45 | D65: 52.03 | E65: 54.94 | F65: 2877800 | G65: 47.07
A66: 2010-05-03 | B66: 55.13 | C66: 56 | D66: 52.4 | E66: 53.43 | F66: 3083100 | G66: 46.1
A67: 2010-06-01 | B67: 53.12 | C67: 55.21 | D67: 50.21 | E67: 50.3 | F67: 3189300 | G67: 43.4
A68: 2010-07-01 | B68: 50.21 | C68: 52.58 | D68: 47.28 | E68: 50.05 | F68: 3425500 | G68: 43.18
A69: 2010-08-02 | B69: 50.47 | C69: 51.84 | D69: 48.97 | E69: 49.68 | F69: 3500300 | G69: 43.21
A70: 2010-09-01 | B70: 50.2 | C70: 51.52 | D70: 49.49 | E70: 50.51 | F70: 2002400 | G70: 43.93
A71: 2010-10-01 | B71: 50.54 | C71: 51.1 | D71: 48.72 | E71: 50.26 | F71: 2982100 | G71: 43.72
A72: 2010-11-01 | B72: 50.37 | C72: 50.8 | D72: 48.51 | E72: 49.23 | F72: 3770900 | G72: 43.17
A73: 2010-12-01 | B73: 49.52 | C73: 51.62 | D73: 48.85 | E73: 51.08 | F73: 2356600 | G73: 44.8
A74: 2011-01-03 | B74: 51.23 | C74: 52.2 | D74: 50.03 | E74: 50.3 | F74: 2413700 | G74: 44.11
A75: 2011-02-01 | B75: 50.32 | C75: 54.79 | D75: 49.99 | E75: 53.56 | F75: 3263000 | G75: 47.33
A76: 2011-03-01 | B76: 53.52 | C76: 55.41 | D76: 52.72 | E76: 53.98 | F76: 2085400 | G76: 47.7
A77: 2011-04-01 | B77: 53.98 | C77: 57.42 | D77: 53.8 | E77: 57.27 | F77: 1521100 | G77: 50.61
A78: 2011-05-02 | B78: 57.19 | C78: 57.7 | D78: 55.86 | E78: 56.99 | F78: 2111700 | G78: 50.73
A79: 2011-06-01 | B79: 56.75 | C79: 56.82 | D79: 53.45 | E79: 55.32 | F79: 2123400 | G79: 49.24
A80: 2011-07-01 | B80: 55.07 | C80: 56.39 | D80: 54.35 | E80: 55.78 | F80: 1923000 | G80: 49.65
A81: 2011-08-01 | B81: 56.16 | C81: 56.16 | D81: 50.38 | E81: 54.32 | F81: 2899300 | G81: 48.74
A82: 2011-09-01 | B82: 54.28 | C82: 54.94 | D82: 51.63 | E82: 53.19 | F82: 2068800 | G82: 47.72
A83: 2011-10-03 | B83: 52.73 | C83: 55.3 | D83: 51.94 | E83: 54.21 | F83: 1926400 | G83: 48.64
A84: 2011-11-01 | B84: 53.6 | C84: 54.25 | D84: 48.1 | E84: 49.16 | F84: 3224600 | G84: 44.5
A85: 2011-12-01 | B85: 49.03 | C85: 50.92 | D85: 48.47 | E85: 50.57 | F85: 1730700 | G85: 45.78
A86: 2012-01-03 | B86: 50.97 | C86: 51.85 | D86: 49.07 | E86: 49.52 | F86: 2135800 | G86: 44.83
A87: 2012-02-01 | B87: 49.6 | C87: 53.45 | D87: 49.27 | E87: 52.35 | F87: 3043600 | G87: 47.78
A88: 2012-03-01 | B88: 52.45 | C88: 53.86 | D88: 51.64 | E88: 53.63 | F88: 1543100 | G88: 48.94
A89: 2012-04-02 | B89: 53.44 | C89: 54.2 | D89: 50.05 | E89: 50.57 | F89: 2344800 | G89: 46.15
A90: 2012-05-01 | B90: 50.57 | C90: 51.16 | D90: 48.78 | E90: 48.78 | F90: 2026700 | G90: 44.9
A91: 2012-06-01 | B91: 48.5 | C91: 49.76 | D91: 47.88 | E91: 49.33 | F91: 1628800 | G91: 45.41
A92: 2012-07-02 | B92: 49.16 | C92: 49.89 | D92: 46.33 | E92: 47.7 | F92: 2180700 | G92: 43.91
A93: 2012-08-01 | B93: 47.77 | C93: 51.91 | D93: 47.51 | E93: 50.65 | F93: 2076600 | G93: 47.02
A94: 2012-09-04 | B94: 50.81 | C94: 52.15 | D94: 49.92 | E94: 51.66 | F94: 1938900 | G94: 47.96
A95: 2012-10-01 | B95: 51.49 | C95: 53.06 | D95: 51.27 | E95: 52.32 | F95: 1568600 | G95: 48.57
A96: 2012-11-01 | B96: 52.72 | C96: 55.88 | D96: 52.16 | E96: 55.46 | F96: 2560000 | G96: 51.9
A97: 2012-12-03 | B97: 55.57 | C97: 57.21 | D97: 54.53 | E97: 55.85 | F97: 1572700 | G97: 52.26
A98: 2013-01-02 | B98: 56.33 | C98: 58.9 | D98: 56.04 | E98: 58.5 | F98: 1366400 | G98: 54.74
A99: 2013-02-01 | B99: 58.85 | C99: 60.79 | D99: 58 | E99: 60.5 | F99: 2107200 | G99: 57.03
A100: 2013-03-01 | B100: 60.31 | C100: 64.75 | D100: 60.05 | E100: 64.43 | F100: 1557100 | G100: 60.74
A101: 2013-04-01 | B101: 64.09 | C101: 66.84 | D101: 63.19 | E101: 65.04 | F101: 1628900 | G101: 61.31
A102: 2013-05-01 | B102: 64.82 | C102: 66.48 | D102: 62.05 | E102: 62.05 | F102: 2085200 | G102: 58.9
A103: 2013-06-03 | B103: 61.97 | C103: 65.12 | D103: 61.03 | E103: 64.23 | F103: 2027900 | G103: 60.97
A104: 2013-07-01 | B104: 64.03 | C104: 67.98 | D104: 64.03 | E104: 66.24 | F104: 1385300 | G104: 62.88
A105: 2013-08-01 | B105: 65.94 | C105: 66.24 | D105: 60.28 | E105: 60.71 | F105: 1905600 | G105: 58.06
A106: 2013-09-03 | B106: 61.24 | C106: 61.43 | D106: 58.59 | E106: 58.73 | F106: 1908100 | G106: 56.17
A107: 2013-10-01 | B107: 58.52 | C107: 64.4 | D107: 58.01 | E107: 63.25 | F107: 1811300 | G107: 60.49
A108: 2013-11-01 | B108: 63.16 | C108: 64.92 | D108: 60.59 | E108: 60.64 | F108: 2298500 | G108: 58.43
A109: 2013-12-02 | B109: 60.64 | C109: 62.31 | D109: 59.58 | E109: 61.07 | F109: 1656600 | G109: 58.85
A110: 2014-01-02 | B110: 60.98 | C110: 61.36 | D110: 57.51 | E110: 57.98 | F110: 1902500 | G110: 55.87
A111: 2014-02-03 | B111: 58.01 | C111: 61.26 | D111: 55.69 | E111: 60.69 | F111: 2683600 | G111: 58.48
A112: 2014-03-03 | B112: 60.34 | C112: 62.75 | D112: 60.1 | E112: 62.71 | F112: 1759200 | G112: 60.89
A113: 2014-04-01 | B113: 62.47 | C113: 67.49 | D113: 62.31 | E113: 66.83 | F113: 2846000 | G113: 64.89
A114: 2014-05-01 | B114: 66.94 | C114: 69 | D114: 64.8 | E114: 68.98 | F114: 2094500 | G114: 67.43
A115: 2014-06-02 | B115: 69 | C115: 69.5 | D115: 64.47 | E115: 65.7 | F115: 1792200 | G115: 64.23
A116: 2014-07-01 | B116: 65.48 | C116: 66.73 | D116: 59.78 | E116: 59.83 | F116: 2185300 | G116: 58.49
A117: 2014-08-01 | B117: 59.66 | C117: 65.38 | D117: 59.65 | E117: 64.97 | F117: 1884600 | G117: 63.99
A118: 2014-09-02 | B118: 64.93 | C118: 65.38 | D118: 60.54 | E118: 61.6 | F118: 1814800 | G118: 60.67
A119: 2014-10-01 | B119: 60.5 | C119: 64.82 | D119: 58.83 | E119: 63.96 | F119: 2053600 | G119: 63
A120: 2014-11-03 | B120: 63.64 | C120: 66.64 | D120: 63.1 | E120: 66.25 | F120: 1792700 | G120: 65.75
A121: 2014-12-01 | B121: 65.85 | C121: 67.44 | D121: 63.67 | E121: 65.44 | F121: 1710000 | G121: 64.94
A122: 2015-01-02 | B122: 65.63 | C122: 69.89 | D122: 64.14 | E122: 65.58 | F122: 2147600 | G122: 65.08

Sheet ge
A1: Stock Quotes for ge
A2: Date | B2: Open | C2: High | D2: Low | E2: Close | F2: Volume | G2: Adj Close
A3: 2005-02-01 | B3: 36 | C3: 36.61 | D3: 35.05 | E3: 35.2 | F3: 17348000 | G3: 24.65
A4: 2005-03-01 | B4: 35.27 | C4: 36.48 | D4: 35.06 | E4: 36.06 | F4: 18737000 | G4: 25.26
A5: 2005-04-01 | B5: 36.18 | C5: 36.6 | D5: 35.02 | E5: 36.2 | F5: 21540700 | G5: 25.35
A6: 2005-05-02 | B6: 36.08 | C6: 37.34 | D6: 35.56 | E6: 36.48 | F6: 17054700 | G6: 25.55
A7: 2005-06-01 | B7: 36.48 | C7: 37.13 | D7: 34.15 | E7: 34.65 | F7: 24312400 | G7: 24.42
A8: 2005-07-01 | B8: 34.85 | C8: 35.78 | D8: 33.93 | E8: 34.5 | F8: 22692600 | G8: 24.31
A9: 2005-08-01 | B9: 34.57 | C9: 34.62 | D9: 32.85 | E9: 33.61 | F9: 19156900 | G9: 23.69
A10: 2005-09-01 | B10: 33.43 | C10: 34.58 | D10: 33 | E10: 33.67 | F10: 22843400 | G10: 23.88
A11: 2005-10-03 | B11: 33.6 | C11: 34.5 | D11: 32.67 | E11: 33.91 | F11: 23636600 | G11: 24.05
A12: 2005-11-01 | B12: 33.97 | C12: 36.34 | D12: 33.51 | E12: 35.72 | F12: 22225800 | G12: 25.34
A13: 2005-12-01 | B13: 35.85 | C13: 36.26 | D13: 34.95 | E13: 35.05 | F13: 22568500 | G13: 25.04
A14: 2006-01-03 | B14: 35.1 | C14: 35.63 | D14: 32.63 | E14: 32.75 | F14: 34947000 | G14: 23.4
A15: 2006-02-01 | B15: 32.66 | C15: 33.75 | D15: 32.21 | E15: 32.87 | F15: 26951100 | G15: 23.66
A16: 2006-03-01 | B16: 32.97 | C16: 35 | D16: 32.58 | E16: 34.78 | F16: 26519300 | G16: 25.03
A17: 2006-04-03 | B17: 34.79 | C17: 34.99 | D17: 33.07 | E17: 34.59 | F17: 26428700 | G17: 24.9
A18: 2006-05-01 | B18: 34.64 | C18: 35.24 | D18: 33.7 | E18: 34.26 | F18: 24209600 | G18: 24.66
A19: 2006-06-01 | B19: 34.3 | C19: 34.92 | D19: 32.78 | E19: 32.96 | F19: 27849600 | G19: 23.9
A20: 2006-07-03 | B20: 33.1 | C20: 33.62 | D20: 32.06 | E20: 32.69 | F20: 24910500 | G20: 23.71
A21: 2006-08-01 | B21: 32.65 | C21: 34.44 | D21: 32.2 | E21: 34.06 | F21: 18494400 | G21: 24.7
A22: 2006-09-01 | B22: 34.18 | C22: 35.65 | D22: 33.76 | E22: 35.3 | F22: 24034200 | G22: 25.78
A23: 2006-10-02 | B23: 35.4 | C23: 36.48 | D23: 34.92 | E23: 35.11 | F23: 26500400 | G23: 25.64
A24: 2006-11-01 | B24: 35.2 | C24: 36.28 | D24: 34.62 | E24: 35.28 | F24: 23114100 | G24: 25.77
A25: 2006-12-01 | B25: 35.38 | C25: 38.49 | D25: 34.96 | E25: 37.21 | F25: 33604700 | G25: 27.38
A26: 2007-01-03 | B26: 37.41 | C26: 38.28 | D26: 35.76 | E26: 36.05 | F26: 34343100 | G26: 26.52
A27: 2007-02-01 | B27: 36.18 | C27: 36.5 | D27: 34.5 | E27: 34.91 | F27: 34598700 | G27: 25.89
A28: 2007-03-01 | B28: 34.61 | C28: 36 | D28: 33.9 | E28: 35.36 | F28: 37497700 | G28: 26.22
A29: 2007-04-02 | B29: 35.36 | C29: 37.24 | D29: 34.55 | E29: 36.86 | F29: 41666000 | G29: 27.33
A30: 2007-05-01 | B30: 36.82 | C30: 37.81 | D30: 36.45 | E30: 37.58 | F30: 31562900 | G30: 27.87
A31: 2007-06-01 | B31: 37.68 | C31: 39.77 | D31: 36.65 | E31: 38.28 | F31: 43860200 | G31: 28.59
A32: 2007-07-02 | B32: 38.42 | C32: 40.98 | D32: 37.73 | E32: 38.76 | F32: 43667100 | G32: 28.95
A33: 2007-08-01 | B33: 38.6 | C33: 40.46 | D33: 36.2 | E33: 38.87 | F33: 46947200 | G33: 29.03
A34: 2007-09-04 | B34: 38.84 | C34: 42.07 | D34: 38.45 | E34: 41.4 | F34: 37426500 | G34: 31.13
A35: 2007-10-01 | B35: 41.28 | C35: 42.15 | D35: 39.4 | E35: 41.16 | F35: 32919400 | G35: 30.95
A36: 2007-11-01 | B36: 40.89 | C36: 40.98 | D36: 36.52 | E36: 38.29 | F36: 45186900 | G36: 28.79
A37: 2007-12-03 | B37: 38.2 | C37: 38.2 | D37: 36.07 | E37: 37.07 | F37: 42936400 | G37: 28.11
A38: 2008-01-02 | B38: 37.1 | C38: 37.45 | D38: 32.92 | E38: 35.36 | F38: 55123800 | G38: 26.82
A39: 2008-02-01 | B39: 35.59 | C39: 36.3 | D39: 33.09 | E39: 33.14 | F39: 45001500 | G39: 25.36
A40: 2008-03-03 | B40: 33.34 | C40: 37.74 | D40: 31.65 | E40: 37.01 | F40: 59927700 | G40: 28.32
A41: 2008-04-01 | B41: 37.36 | C41: 38.52 | D41: 31.55 | E41: 32.7 | F41: 64485500 | G41: 25.02
A42: 2008-05-01 | B42: 32.8 | C42: 33.62 | D42: 30.21 | E42: 30.72 | F42: 52851400 | G42: 23.51
A43: 2008-06-02 | B43: 30.75 | C43: 31.14 | D43: 26.15 | E43: 26.69 | F43: 75218200 | G43: 20.65
A44: 2008-07-01 | B44: 26.42 | C44: 29.89 | D44: 25.6 | E44: 28.29 | F44: 69943000 | G44: 21.89
A45: 2008-08-01 | B45: 28.43 | C45: 30.39 | D45: 27.76 | E45: 28.1 | F45: 43604700 | G45: 21.74
A46: 2008-09-02 | B46: 28.54 | C46: 29.28 | D46: 22.16 | E46: 25.5 | F46: 105769100 | G46: 20
A47: 2008-10-01 | B47: 24 | C47: 25.75 | D47: 17.27 | E47: 19.51 | F47: 164650600 | G47: 15.3
A48: 2008-11-03 | B48: 19.78 | C48: 21.04 | D48: 12.58 | E48: 17.17 | F48: 134841700 | G48: 13.46
A49: 2008-12-01 | B49: 16.36 | C49: 19.3 | D49: 15.35 | E49: 16.2 | F49: 98683700 | G49: 12.95
A50: 2009-01-02 | B50: 16.51 | C50: 17.24 | D50: 11.87 | E50: 12.13 | F50: 117847200 | G50: 9.7
A51: 2009-02-02 | B51: 12.03 | C51: 12.9 | D51: 8.4 | E51: 8.51 | F51: 194928800 | G51: 7
A52: 2009-03-02 | B52: 8.29 | C52: 11.35 | D52: 5.87 | E52: 10.11 | F52: 277438100 | G52: 8.32
A53: 2009-04-01 | B53: 9.91 | C53: 12.81 | D53: 9.8 | E53: 12.65 | F53: 133547800 | G53: 10.41
A54: 2009-05-01 | B54: 12.74 | C54: 14.55 | D54: 12.22 | E54: 13.48 | F54: 104569000 | G54: 11.09
A55: 2009-06-01 | B55: 13.82 | C55: 13.99 | D55: 11.25 | E55: 11.72 | F55: 87259400 | G55: 9.72
A56: 2009-07-01 | B56: 11.76 | C56: 13.45 | D56: 10.5 | E56: 13.4 | F56: 100768400 | G56: 11.12
A57: 2009-08-03 | B57: 13.65 | C57: 14.88 | D57: 13.16 | E57: 13.9 | F57: 86516200 | G57: 11.53
A58: 2009-09-01 | B58: 13.74 | C58: 17.52 | D58: 13.03 | E58: 16.42 | F58: 132466400 | G58: 13.7
A59: 2009-10-01 | B59: 16.31 | C59: 16.87 | D59: 14.15 | E59: 14.26 | F59: 103007100 | G59: 11.9
A60: 2009-11-02 | B60: 14.3 | C60: 16.25 | D60: 14.15 | E60: 16.02 | F60: 80429200 | G60: 13.37
A61: 2009-12-01 | B61: 16.27 | C61: 16.49 | D61: 15.13 | E61: 15.13 | F61: 62454500 | G61: 12.71
A62: 2010-01-04 | B62: 15.22 | C62: 16.92 | D62: 15.15 | E62: 16.08 | F62: 88647000 | G62: 13.5
A63: 2010-02-01 | B63: 16.2 | C63: 17.03 | D63: 15.25 | E63: 16.06 | F63: 77313200 | G63: 13.57
A64: 2010-03-01 | B64: 16.1 | C64: 18.94 | D64: 15.83 | E64: 18.2 | F64: 93007300 | G64: 15.38
A65: 2010-04-01 | B65: 18.27 | C65: 19.7 | D65: 18.18 | E65: 18.86 | F65: 82505100 | G65: 15.94
A66: 2010-05-03 | B66: 18.97 | C66: 19.34 | D66: 15.15 | E66: 16.35 | F66: 106550400 | G66: 13.82
A67: 2010-06-01 | B67: 16.24 | C67: 16.51 | D67: 14.27 | E67: 14.42 | F67: 83717300 | G67: 12.26
A68: 2010-07-01 | B68: 14.33 | C68: 16.57 | D68: 13.75 | E68: 16.12 | F68: 75597900 | G68: 13.71
A69: 2010-08-02 | B69: 16.32 | C69: 16.54 | D69: 14.25 | E69: 14.48 | F69: 60617900 | G69: 12.31
A70: 2010-09-01 | B70: 14.73 | C70: 16.7 | D70: 14.6 | E70: 16.25 | F70: 60450700 | G70: 13.92
A71: 2010-10-01 | B71: 16.4 | C71: 17.49 | D71: 15.88 | E71: 16.02 | F71: 64676100 | G71: 13.73
A72: 2010-11-01 | B72: 16.09 | C72: 16.86 | D72: 15.63 | E72: 15.83 | F72: 55387200 | G72: 13.56
A73: 2010-12-01 | B73: 16.03 | C73: 18.49 | D73: 16.03 | E73: 18.29 | F73: 57131500 | G73: 15.79
A74: 2011-01-03 | B74: 18.49 | C74: 20.74 | D74: 18.12 | E74: 20.14 | F74: 76413100 | G74: 17.39
A75: 2011-02-01 | B75: 20.38 | C75: 21.65 | D75: 20.08 | E75: 20.92 | F75: 52895600 | G75: 18.19
A76: 2011-03-01 | B76: 21.12 | C76: 21.17 | D76: 18.6 | E76: 20.05 | F76: 63914200 | G76: 17.43
A77: 2011-04-01 | B77: 20.14 | C77: 20.85 | D77: 19.51 | E77: 20.45 | F77: 56259100 | G77: 17.78
A78: 2011-05-02 | B78: 20.7 | C78: 20.71 | D78: 18.97 | E78: 19.64 | F78: 45910500 | G78: 17.08
A79: 2011-06-01 | B79: 19.47 | C79: 19.6 | D79: 17.97 | E79: 18.86 | F79: 53951800 | G79: 16.53
A80: 2011-07-01 | B80: 18.86 | C80: 19.53 | D80: 17.78 | E80: 17.91 | F80: 56825300 | G80: 15.7
A81: 2011-08-01 | B81: 18.39 | C81: 18.42 | D81: 14.82 | E81: 16.31 | F81: 93424200 | G81: 14.3
A82: 2011-09-01 | B82: 16.31 | C82: 16.45 | D82: 14.72 | E82: 15.22 | F82: 88186000 | G82: 13.47
A83: 2011-10-03 | B83: 15.1 | C83: 17.5 | D83: 14.02 | E83: 16.71 | F83: 70815300 | G83: 14.79
A84: 2011-11-01 | B84: 16.13 | C84: 16.69 | D84: 14.68 | E84: 15.91 | F84: 64405900 | G84: 14.08
A85: 2011-12-01 | B85: 15.89 | C85: 18.28 | D85: 15.73 | E85: 17.91 | F85: 73366100 | G85: 16
A86: 2012-01-03 | B86: 18.23 | C86: 19.27 | D86: 18.23 | E86: 18.71 | F86: 51444600 | G86: 16.72
A87: 2012-02-01 | B87: 18.94 | C87: 19.5 | D87: 18.7 | E87: 19.05 | F87: 49933200 | G87: 17.17
A88: 2012-03-01 | B88: 19.15 | C88: 21 | D88: 18.32 | E88: 20.07 | F88: 50233700 | G88: 18.09
A89: 2012-04-02 | B89: 20.03 | C89: 20.11 | D89: 18.7 | E89: 19.58 | F89: 43774500 | G89: 17.65
A90: 2012-05-01 | B90: 19.58 | C90: 19.95 | D90: 18.32 | E90: 19.09 | F90: 46065700 | G90: 17.21
A91: 2012-06-01 | B91: 18.82 | C91: 20.84 | D91: 18.02 | E91: 20.84 | F91: 62921700 | G91: 19
A92: 2012-07-02 | B92: 20.74 | C92: 21 | D92: 19.36 | E92: 20.75 | F92: 51637000 | G92: 18.92
A93: 2012-08-01 | B93: 20.86 | C93: 21.19 | D93: 20.2 | E93: 20.71 | F93: 31618300 | G93: 18.88
A94: 2012-09-04 | B94: 20.63 | C94: 22.96 | D94: 20.48 | E94: 22.71 | F94: 57152600 | G94: 20.86
A95: 2012-10-01 | B95: 22.73 | C95: 23.18 | D95: 20.97 | E95: 21.06 | F95: 45216000 | G95: 19.35
A96: 2012-11-01 | B96: 21.03 | C96: 21.78 | D96: 19.87 | E96: 21.13 | F96: 41367900 | G96: 19.41
A97: 2012-12-03 | B97: 21.18 | C97: 21.95 | D97: 20.26 | E97: 20.99 | F97: 48120000 | G97: 19.46
A98: 2013-01-02 | B98: 21.51 | C98: 22.58 | D98: 20.68 | E98: 22.28 | F98: 45481800 | G98: 20.66
A99: 2013-02-01 | B99: 22.43 | C99: 23.75 | D99: 22.27 | E99: 23.22 | F99: 42399400 | G99: 21.7
A100: 2013-03-01 | B100: 23.02 | C100: 23.9 | D100: 22.85 | E100: 23.12 | F100: 35856200 | G100: 21.61
A101: 2013-04-01 | B101: 23.03 | C101: 23.72 | D101: 21.11 | E101: 22.29 | F101: 45473700 | G101: 20.83
A102: 2013-05-01 | B102: 22.1 | C102: 24.13 | D102: 22.1 | E102: 23.32 | F102: 40605700 | G102: 21.8
A103: 2013-06-03 | B103: 23.37 | C103: 24.45 | D103: 22.76 | E103: 23.19 | F103: 46064200 | G103: 21.85
A104: 2013-07-01 | B104: 23.21 | C104: 24.95 | D104: 22.76 | E104: 24.37 | F104: 37830200 | G104: 22.96
A105: 2013-08-01 | B105: 24.6 | C105: 24.87 | D105: 23.04 | E105: 23.14 | F105: 31680000 | G105: 21.8
A106: 2013-09-03 | B106: 23.31 | C106: 24.91 | D106: 22.92 | E106: 23.89 | F106: 38743100 | G106: 22.68
A107: 2013-10-01 | B107: 23.94 | C107: 26.48 | D107: 23.5 | E107: 26.14 | F107: 40825700 | G107: 24.82
A108: 2013-11-01 | B108: 26.05 | C108: 27.5 | D108: 26.03 | E108: 26.66 | F108: 36825500 | G108: 25.31
A109: 2013-12-02 | B109: 26.65 | C109: 28.09 | D109: 26.2 | E109: 28.03 | F109: 36802800 | G109: 26.83
A110: 2014-01-02 | B110: 27.86 | C110: 27.94 | D110: 24.9 | E110: 25.13 | F110: 45898300 | G110: 24.05
A111: 2014-02-03 | B111: 25.13 | C111: 26.04 | D111: 24.32 | E111: 25.47 | F111: 37064800 | G111: 24.59
A112: 2014-03-03 | B112: 25.21 | C112: 26.35 | D112: 24.92 | E112: 25.89 | F112: 34011600 | G112: 25
A113: 2014-04-01 | B113: 25.83 | C113: 26.9 | D113: 25.43 | E113: 26.89 | F113: 32731000 | G113: 25.96
A114: 2014-05-01 | B114: 26.73 | C114: 26.96 | D114: 26.15 | E114: 26.79 | F114: 21905100 | G114: 25.86
A115: 2014-06-02 | B115: 26.71 | C115: 27.53 | D115: 26.2 | E115: 26.28 | F115: 28162300 | G115: 25.58
A116: 2014-07-01 | B116: 26.27 | C116: 27.15 | D116: 25.15 | E116: 25.15 | F116: 34881200 | G116: 24.48
A117: 2014-08-01 | B117: 25.07 | C117: 26.45 | D117: 24.75 | E117: 25.98 | F117: 27001000 | G117: 25.29
A118: 2014-09-02 | B118: 25.89 | C118: 26.4 | D118: 25.3 | E118: 25.62 | F118: 28269200 | G118: 25.15
A119: 2014-10-01 | B119: 25.43 | C119: 25.93 | D119: 23.69 | E119: 25.81 | F119: 37177400 | G119: 25.34
A120: 2014-11-03 | B120: 25.49 | C120: 27.1 | D120: 25.48 | E120: 26.49 | F120: 28829100 | G120: 26
A121: 2014-12-01 | B121: 26.16 | C121: 26.47 | D121: 24.06 | E121: 25.27 | F121: 40687800 | G121: 25.04
A122: 2015-01-02 | B122: 25.34 | C122: 25.46 | D122: 23.41 | E122: 23.89 | F122: 47700900 | G122: 23.67

Sheet bac
A1: Stock Quotes for bac
A2: Date | B2: Open | C2: High | D2: Low | E2: Close | F2: Volume | G2: Adj Close
A3: 2005-02-01 | B3: 46.36 | C3: 47.09 | D3: 45.16 | E3: 46.65 | F3: 8207600 | G3: 36.61
A4: 2005-03-01 | B4: 46.65 | C4: 47.2 | D4: 43.4 | E4: 44.1 | F4: 11196800 | G4: 34.94
A5: 2005-04-01 | B5: 44.42 | C5: 45.8 | D5: 43.47 | E5: 45.04 | F5: 10425100 | G5: 35.68
A6: 2005-05-02 | B6: 44.83 | C6: 46.8 | D6: 44.73 | E6: 46.32 | F6: 8079000 | G6: 36.7
A7: 2005-06-01 | B7: 45.97 | C7: 47.44 | D7: 45.56 | E7: 45.61 | F7: 11658000 | G7: 36.49
A8: 2005-07-01 | B8: 45.61 | C8: 46.05 | D8: 43.6 | E8: 43.6 | F8: 17281800 | G8: 34.88
A9: 2005-08-01 | B9: 43.77 | C9: 44.15 | D9: 42.45 | E9: 43.03 | F9: 12050800 | G9: 34.83
A10: 2005-09-01 | B10: 43.04 | C10: 43.69 | D10: 41.13 | E10: 42.1 | F10: 14192100 | G10: 34.08
A11: 2005-10-03 | B11: 42.47 | C11: 44.09 | D11: 41.38 | E11: 43.74 | F11: 13816800 | G11: 35.4
A12: 2005-11-01 | B12: 43.75 | C12: 47.15 | D12: 43.27 | E12: 45.89 | F12: 13289400 | G12: 37.55
A13: 2005-12-01 | B13: 46 | C13: 47.25 | D13: 45.42 | E13: 46.15 | F13: 12269500 | G13: 37.76
A14: 2006-01-03 | B14: 46.92 | C14: 47.24 | D14: 43.49 | E14: 44.23 | F14: 16493600 | G14: 36.19
A15: 2006-02-01 | B15: 44.1 | C15: 46.05 | D15: 42.92 | E15: 45.85 | F15: 15059300 | G15: 37.51
A16: 2006-03-01 | B16: 45.35 | C16: 47.14 | D16: 44.9 | E16: 45.54 | F16: 13109100 | G16: 37.67
A17: 2006-04-03 | B17: 45.85 | C17: 49.98 | D17: 45.26 | E17: 49.92 | F17: 15244900 | G17: 41.29
A18: 2006-05-01 | B18: 49.84 | C18: 50.5 | D18: 47.9 | E18: 48.4 | F18: 15484800 | G18: 40.45
A19: 2006-06-01 | B19: 48.4 | C19: 49.48 | D19: 45.86 | E19: 48.1 | F19: 14722500 | G19: 40.2
A20: 2006-07-03 | B20: 48.19 | C20: 51.9 | D20: 47.59 | E20: 51.53 | F20: 12619600 | G20: 43.07
A21: 2006-08-01 | B21: 51.34 | C21: 52.75 | D21: 50.7 | E21: 51.47 | F21: 11261600 | G21: 43.48
A22: 2006-09-01 | B22: 51.83 | C22: 54 | D22: 50.8 | E22: 53.57 | F22: 12104100 | G22: 45.26
A23: 2006-10-02 | B23: 53.53 | C23: 54.87 | D23: 52.75 | E23: 53.87 | F23: 11467900 | G23: 45.51
A24: 2006-11-01 | B24: 54.15 | C24: 55.08 | D24: 53.22 | E24: 53.85 | F24: 10896400 | G24: 45.97
A25: 2006-12-01 | B25: 53.83 | C25: 54.05 | D25: 51.32 | E25: 53.39 | F25: 14650800 | G25: 45.57
A26: 2007-01-03 | B26: 53.4 | C26: 54.18 | D26: 51.35 | E26: 52.58 | F26: 16332600 | G26: 44.88
A27: 2007-02-01 | B27: 52.76 | C27: 54.21 | D27: 49 | E27: 50.83 | F27: 15662400 | G27: 43.87
A28: 2007-03-01 | B28: 50.25 | C28: 52.15 | D28: 48.36 | E28: 51.02 | F28: 18043300 | G28: 44.04
A29: 2007-04-02 | B29: 51.2 | C29: 52.2 | D29: 50.06 | E29: 50.9 | F29: 17063900 | G29: 43.93
A30: 2007-05-01 | B30: 51 | C30: 51.9 | D30: 50.47 | E30: 50.71 | F30: 15285100 | G30: 44.25
A31: 2007-06-01 | B31: 50.75 | C31: 50.99 | D31: 48.55 | E31: 48.89 | F31: 19772200 | G31: 42.67
A32: 2007-07-02 | B32: 49.15 | C32: 50.2 | D32: 46.9 | E32: 47.42 | F32: 26609100 | G32: 41.38
A33: 2007-08-01 | B33: 47.3 | C33: 52.78 | D33: 46.52 | E33: 50.68 | F33: 37144900 | G33: 44.23
A34: 2007-09-04 | B34: 50.62 | C34: 51.93 | D34: 48.6 | E34: 50.27 | F34: 23451200 | G34: 44.43
A35: 2007-10-01 | B35: 50.04 | C35: 52.96 | D35: 46.45 | E35: 48.28 | F35: 24583000 | G35: 42.67
A36: 2007-11-01 | B36: 46.75 | C36: 47 | D36: 41.73 | E36: 46.13 | F36: 38852900 | G36: 40.77
A37: 2007-12-03 | B37: 46.25 | C37: 47 | D37: 40.61 | E37: 41.26 | F37: 30753300 | G37: 36.99
A38: 2008-01-02 | B38: 41.53 | C38: 44.5 | D38: 33.12 | E38: 44.15 | F38: 61008100 | G38: 39.58
A39: 2008-02-01 | B39: 44.12 | C39: 45.08 | D39: 39.54 | E39: 39.74 | F39: 41331500 | G39: 35.63
A40: 2008-03-03 | B40: 39.74 | C40: 43.46 | D40: 34.25 | E40: 37.91 | F40: 54601100 | G40: 34.56
A41: 2008-04-01 | B41: 39.26 | C41: 41.5 | D41: 35.27 | E41: 37.54 | F41: 38286900 | G41: 34.22
A42: 2008-05-01 | B42: 37.66 | C42: 40.65 | D42: 33.25 | E42: 34.01 | F42: 39410300 | G42: 31
A43: 2008-06-02 | B43: 33.84 | C43: 33.94 | D43: 22.44 | E43: 23.87 | F43: 71292700 | G43: 22.19
A44: 2008-07-01 | B44: 23.31 | C44: 34.5 | D44: 18.44 | E44: 32.9 | F44: 123206000 | G44: 30.58
A45: 2008-08-01 | B45: 33.2 | C45: 34.2 | D45: 27.72 | E45: 31.14 | F45: 61768600 | G45: 28.94
A46: 2008-09-02 | B46: 32.73 | C46: 39.5 | D46: 25 | E46: 35 | F46: 114674400 | G46: 33.18
A47: 2008-10-01 | B47: 34.57 | C47: 38.5 | D47: 18.99 | E47: 24.17 | F47: 131320600 | G47: 22.92
A48: 2008-11-03 | B48: 23.97 | C48: 24.62 | D48: 10.01 | E48: 16.25 | F48: 131135800 | G48: 15.41
A49: 2008-12-01 | B49: 15.59 | C49: 18 | D49: 12.66 | E49: 14.08 | F49: 108571200 | G49: 13.65
A50: 2009-01-02 | B50: 13.92 | C50: 14.81 | D50: 5.05 | E50: 6.58 | F50: 255026700 | G50: 6.38
A51: 2009-02-02 | B51: 6.2 | C51: 7.05 | D51: 2.53 | E51: 3.95 | F51: 509904300 | G51: 3.83
A52: 2009-03-02 | B52: 3.61 | C52: 8.57 | D52: 3 | E52: 6.82 | F52: 483203000 | G52: 6.63
A53: 2009-04-01 | B53: 6.45 | C53: 11.58 | D53: 6.44 | E53: 8.93 | F53: 540229900 | G53: 8.68
A54: 2009-05-01 | B54: 8.79 | C54: 15.07 | D54: 8.55 | E54: 11.27 | F54: 577690800 | G54: 10.96
A55: 2009-06-01 | B55: 11.41 | C55: 13.93 | D55: 11.1 | E55: 13.2 | F55: 364632000 | G55: 12.85
A56: 2009-07-01 | B56: 13.27 | C56: 14.79 | D56: 11.27 | E56: 14.79 | F56: 323192000 | G56: 14.39
A57: 2009-08-03 | B57: 15.24 | C57: 18.25 | D57: 14.82 | E57: 17.59 | F57: 298184800 | G57: 17.12
A58: 2009-09-01 | B58: 17.7 | C58: 18.08 | D58: 16.02 | E58: 16.92 | F58: 187141400 | G58: 16.48
A59: 2009-10-01 | B59: 16.96 | C59: 19.1 | D59: 14.5 | E59: 14.58 | F59: 223308800 | G59: 14.2
A60: 2009-11-02 | B60: 14.85 | C60: 16.62 | D60: 14.12 | E60: 15.85 | F60: 163920700 | G60: 15.43
A61: 2009-12-01 | B61: 16.04 | C61: 16.74 | D61: 14.83 | E61: 15.06 | F61: 237233200 | G61: 14.67
A62: 2010-01-04 | B62: 15.24 | C62: 17.19 | D62: 14.68 | E62: 15.18 | F62: 250902600 | G62: 14.79
A63: 2010-02-01 | B63: 15.26 | C63: 16.84 | D63: 14.25 | E63: 16.66 | F63: 233006800 | G63: 16.23
A64: 2010-03-01 | B64: 16.74 | C64: 18.35 | D64: 16.03 | E64: 17.85 | F64: 170242500 | G64: 17.4
A65: 2010-04-01 | B65: 18.02 | C65: 19.86 | D65: 17.41 | E65: 17.83 | F65: 218911700 | G65: 17.38
A66: 2010-05-03 | B66: 17.88 | C66: 18.15 | D66: 14.8 | E66: 15.74 | F66: 236922100 | G66: 15.35
A67: 2010-06-01 | B67: 15.58 | C67: 16.1 | D67: 14.3 | E67: 14.37 | F67: 141844500 | G67: 14.02
A68: 2010-07-01 | B68: 14.32 | C68: 15.72 | D68: 13.3 | E68: 14.04 | F68: 175718000 | G68: 13.7
A69: 2010-08-02 | B69: 14.38 | C69: 14.47 | D69: 12.18 | E69: 12.46 | F69: 144688000 | G69: 12.16
A70: 2010-09-01 | B70: 12.64 | C70: 14.06 | D70: 12.6 | E70: 13.1 | F70: 148410000 | G70: 12.79
A71: 2010-10-01 | B71: 13.22 | C71: 13.66 | D71: 11.03 | E71: 11.45 | F71: 279162700 | G71: 11.18
A72: 2010-11-01 | B72: 11.5 | C72: 12.74 | D72: 10.91 | E72: 10.95 | F72: 199889600 | G72: 10.69
A73: 2010-12-01 | B73: 11.17 | C73: 13.49 | D73: 10.97 | E73: 13.34 | F73: 185220100 | G73: 13.04
A74: 2011-01-03 | B74: 13.85 | C74: 15.31 | D74: 13.4 | E74: 13.73 | F74: 238471100 | G74: 13.42
A75: 2011-02-01 | B75: 13.9 | C75: 14.95 | D75: 13.79 | E75: 14.29 | F75: 154156200 | G75: 13.97
A76: 2011-03-01 | B76: 14.32 | C76: 14.7 | D76: 13.16 | E76: 13.33 | F76: 146247600 | G76: 13.04
A77: 2011-04-01 | B77: 13.45 | C77: 13.88 | D77: 12.15 | E77: 12.28 | F77: 130723500 | G77: 12.01
A78: 2011-05-02 | B78: 12.36 | C78: 12.71 | D78: 11.29 | E78: 11.75 | F78: 126607100 | G78: 11.49
A79: 2011-06-01 | B79: 11.71 | C79: 11.74 | D79: 10.4 | E79: 10.96 | F79: 181135700 | G79: 10.73
A80: 2011-07-01 | B80: 10.98 | C80: 11.14 | D80: 9.4 | E80: 9.71 | F80: 174631500 | G80: 9.5
A81: 2011-08-01 | B81: 10.04 | C81: 10.05 | D81: 6.01 | E81: 8.17 | F81: 394741000 | G81: 8.01
A82: 2011-09-01 | B82: 8.18 | C82: 8.18 | D82: 6 | E82: 6.12 | F82: 267167500 | G82: 6
A83: 2011-10-03 | B83: 6.08 | C83: 7.43 | D83: 5.13 | E83: 6.83 | F83: 294758000 | G83: 6.69
A84: 2011-11-01 | B84: 6.38 | C84: 6.98 | D84: 5.03 | E84: 5.44 | F84: 290781200 | G84: 5.34
A85: 2011-12-01 | B85: 5.37 | C85: 5.95 | D85: 4.92 | E85: 5.56 | F85: 245117000 | G85: 5.46
A86: 2012-01-03 | B86: 5.75 | C86: 7.5 | D86: 5.62 | E86: 7.13 | F86: 314075000 | G86: 7
A87: 2012-02-01 | B87: 7.25 | C87: 8.35 | D87: 7.21 | E87: 7.97 | F87: 311534500 | G87: 7.84
A88: 2012-03-01 | B88: 8.09 | C88: 10.1 | D88: 7.66 | E88: 9.57 | F88: 321398600 | G88: 9.41
A89: 2012-04-02 | B89: 9.54 | C89: 9.78 | D89: 7.95 | E89: 8.11 | F89: 223249900 | G89: 7.97
A90: 2012-05-01 | B90: 8.11 | C90: 8.4 | D90: 6.72 | E90: 7.35 | F90: 201195000 | G90: 7.24
A91: 2012-06-01 | B91: 7.12 | C91: 8.22 | D91: 6.85 | E91: 8.18 | F91: 205706700 | G91: 8.05
A92: 2012-07-02 | B92: 8.2 | C92: 8.21 | D92: 6.9 | E92: 7.34 | F92: 138117600 | G92: 7.23
A93: 2012-08-01 | B93: 7.35 | C93: 8.4 | D93: 7.1 | E93: 7.99 | F93: 104471100 | G93: 7.87
A94: 2012-09-04 | B94: 8 | C94: 9.79 | D94: 7.93 | E94: 8.83 | F94: 173058400 | G94: 8.7
A95: 2012-10-01 | B95: 8.87 | C95: 9.65 | D95: 8.85 | E95: 9.32 | F95: 146514000 | G95: 9.19
A96: 2012-11-01 | B96: 9.34 | C96: 9.97 | D96: 8.92 | E96: 9.86 | F96: 155942600 | G96: 9.72
A97: 2012-12-03 | B97: 9.93 | C97: 11.69 | D97: 9.77 | E97: 11.61 | F97: 183824500 | G97: 11.46
A98: 2013-01-02 | B98: 12.05 | C98: 12.2 | D98: 11.02 | E98: 11.32 | F98: 163806000 | G98: 11.17
A99: 2013-02-01 | B99: 11.41 | C99: 12.42 | D99: 10.98 | E99: 11.23 | F99: 179200800 | G99: 11.09
A100: 2013-03-01 | B100: 11.13 | C100: 12.94 | D100: 11.02 | E100: 12.18 | F100: 164543000 | G100: 12.03
A101: 2013-04-01 | B101: 12.15 | C101: 12.54 | D101: 11.23 | E101: 12.31 | F101: 136690600 | G101: 12.16
A102: 2013-05-01 | B102: 12.2 | C102: 13.99 | D102: 12.05 | E102: 13.66 | F102: 140423700 | G102: 13.49
A103: 2013-06-03 | B103: 13.69 | C103: 13.73 | D103: 12.13 | E103: 12.86 | F103: 134057000 | G103: 12.71
A104: 2013-07-01 | B104: 12.95 | C104: 15.03 | D104: 12.73 | E104: 14.6 | F104: 117692600 | G104: 14.43
A105: 2013-08-01 | B105: 14.85 | C105: 14.97 | D105: 13.98 | E105: 14.12 | F105: 91225700 | G105: 13.96
A106: 2013-09-03 | B106: 14.3 | C106: 14.83 | D106: 13.6 | E106: 13.8 | F106: 90972500 | G106: 13.65
A107: 2013-10-01 | B107: 13.85 | C107: 14.72 | D107: 13.68 | E107: 13.97 | F107: 93637500 | G107: 13.82
A108: 2013-11-01 | B108: 14 | C108: 15.98 | D108: 13.8 | E108: 15.82 | F108: 105192300 | G108: 15.65
A109: 2013-12-02 | B109: 15.84 | C109: 15.97 | D109: 15.06 | E109: 15.57 | F109: 81838900 | G109: 15.41
A110: 2014-01-02 | B110: 15.69 | C110: 17.42 | D110: 15.68 | E110: 16.75 | F110: 129563200 | G110: 16.58
A111: 2014-02-03 | B111: 16.77 | C111: 16.92 | D111: 16.13 | E111: 16.53 | F111: 114815100 | G111: 16.36
A112: 2014-03-03 | B112: 16.3 | C112: 18.03 | D112: 16.19 | E112: 17.2 | F112: 114257300 | G112: 17.03
A113: 2014-04-01 | B113: 17.28 | C113: 17.4 | D113: 14.86 | E113: 15.14 | F113: 110828000 | G113: 14.99
A114: 2014-05-01 | B114: 15.14 | C114: 15.31 | D114: 14.37 | E114: 15.14 | F114: 71820600 | G114: 14.99
A115: 2014-06-02 | B115: 15.16 | C115: 15.94 | D115: 15.05 | E115: 15.37 | F115: 62119000 | G115: 15.23
A116: 2014-07-01 | B116: 15.38 | C116: 16.23 | D116: 15.13 | E116: 15.25 | F116: 71392900 | G116: 15.11
A117: 2014-08-01 | B117: 15.18 | C117: 16.46 | D117: 14.84 | E117: 16.09 | F117: 71206700 | G117: 15.94
A118: 2014-09-02 | B118: 16.14 | C118: 17.2 | D118: 15.9 | E118: 17.05 | F118: 89160300 | G118: 16.95
A119: 2014-10-01 | B119: 17.07 | C119: 17.41 | D119: 15.43 | E119: 17.16 | F119: 99593100 | G119: 17.06
A120: 2014-11-03 | B120: 17.18 | C120: 17.46 | D120: 16.83 | E120: 17.04 | F120: 51044600 | G120: 16.94
A121: 2014-12-01 | B121: 16.92 | C121: 18.21 | D121: 16.59 | E121: 17.89 | F121: 80419800 | G121: 17.83
A122: 2015-01-02 | B122: 17.99 | C122: 18.03 | D122: 14.97 | E122: 15.15 | F122: 115560500 | G122: 15.1

Sheet pfe
A1: Stock Quotes for pfe
A2: Date | B2: Open | C2: High | D2: Low | E2: Close | F2: Volume | G2: Adj Close
A3: 2005-02-01 | B3: 24.13 | C3: 27.2 | D3: 23.8 | E3: 26.29 | F3: 38961400 | G3: 17.31
A4: 2005-03-01 | B4: 26.53 | C4: 27.34 | D4: 25.4 | E4: 26.27 | F4: 22862800 | G4: 17.29
A5: 2005-04-01 | B5: 26.37 | C5: 28.23 | D5: 25.76 | E5: 27.17 | F5: 31573200 | G5: 17.88
A6: 2005-05-02 | B6: 27.25 | C6: 28.94 | D6: 27.2 | E6: 27.9 | F6: 21454300 | G6: 18.49
A7: 2005-06-01 | B7: 27.93 | C7: 29.21 | D7: 27.31 | E7: 27.58 | F7: 25812400 | G7: 18.28
A8: 2005-07-01 | B8: 26.85 | C8: 27.82 | D8: 26.2 | E8: 26.5 | F8: 27527800 | G8: 17.56
A9: 2005-08-01 | B9: 26.98 | C9: 26.98 | D9: 24.76 | E9: 25.48 | F9: 21961200 | G9: 17.01
A10: 2005-09-01 | B10: 25.46 | C10: 26.65 | D10: 24.67 | E10: 24.97 | F10: 24809700 | G10: 16.67
A11: 2005-10-03 | B11: 25.18 | C11: 25.57 | D11: 20.71 | E11: 21.74 | F11: 41521900 | G11: 14.51
A12: 2005-11-01 | B12: 21.75 | C12: 22.61 | D12: 21.17 | E12: 21.2 | F12: 33480600 | G12: 14.27
A13: 2005-12-01 | B13: 21.27 | C13: 25.2 | D13: 20.27 | E13: 23.32 | F13: 45867100 | G13: 15.7
A14: 2006-01-03 | B14: 23.65 | C14: 26.34 | D14: 23.6 | E14: 25.68 | F14: 37167900 | G14: 17.29
A15: 2006-02-01 | B15: 25.75 | C15: 26.84 | D15: 24.95 | E15: 26.19 | F15: 32161900 | G15: 17.8
A16: 2006-03-01 | B16: 26.1 | C16: 26.6 | D16: 24.83 | E16: 24.92 | F16: 24134200 | G16: 16.94
A17: 2006-04-03 | B17: 25.09 | C17: 25.44 | D17: 24.18 | E17: 25.33 | F17: 24767100 | G17: 17.22
A18: 2006-05-01 | B18: 25.5 | C18: 25.72 | D18: 23.52 | E18: 23.66 | F18: 26783500 | G18: 16.24
A19: 2006-06-01 | B19: 23.83 | C19: 24.41 | D19: 22.51 | E19: 23.47 | F19: 29493200 | G19: 16.11
A20: 2006-07-03 | B20: 23.54 | C20: 26.66 | D20: 22.16 | E20: 25.99 | F20: 32149400 | G20: 17.84
A21: 2006-08-01 | B21: 26.04 | C21: 27.88 | D21: 25.32 | E21: 27.56 | F21: 28259100 | G21: 19.09
A22: 2006-09-01 | B22: 27.79 | C22: 28.58 | D22: 27.32 | E22: 28.36 | F22: 25293500 | G22: 19.64
A23: 2006-10-02 | B23: 28.2 | C23: 28.6 | D23: 26.38 | E23: 26.65 | F23: 37722000 | G23: 18.46
A24: 2006-11-01 | B24: 26.7 | C24: 27.88 | D24: 25 | E24: 27.49 | F24: 42224200 | G24: 19.21
A25: 2006-12-01 | B25: 27.61 | C25: 27.86 | D25: 23.5 | E25: 25.9 | F25: 56246900 | G25: 18.1
A26: 2007-01-03 | B26: 26.15 | C26: 27.41 | D26: 25.78 | E26: 26.24 | F26: 37766700 | G26: 18.33
A27: 2007-02-01 | B27: 26.39 | C27: 27 | D27: 24.94 | E27: 24.96 | F27: 34694000 | G27: 17.63
A28: 2007-03-01 | B28: 24.85 | C28: 25.96 | D28: 24.55 | E28: 25.26 | F28: 36864000 | G28: 17.84
A29: 2007-04-02 | B29: 25.23 | C29: 27.24 | D29: 25.23 | E29: 26.46 | F29: 38969700 | G29: 18.69
A30: 2007-05-01 | B30: 26.36 | C30: 27.63 | D30: 26.28 | E30: 27.49 | F30: 35842900 | G30: 19.63
A31: 2007-06-01 | B31: 27.53 | C31: 27.73 | D31: 25.31 | E31: 25.57 | F31: 43969900 | G31: 18.26
A32: 2007-07-02 | B32: 25.7 | C32: 26.15 | D32: 23.5 | E32: 23.51 | F32: 47445800 | G32: 16.78
A33: 2007-08-01 | B33: 23.51 | C33: 25 | D33: 23.13 | E33: 24.84 | F33: 46080300 | G33: 17.95
A34: 2007-09-04 | B34: 24.78 | C34: 25.17 | D34: 23.85 | E34: 24.43 | F34: 39031100 | G34: 17.65
A35: 2007-10-01 | B35: 24.45 | C35: 25.71 | D35: 23.36 | E35: 24.61 | F35: 37296900 | G35: 17.78
A36: 2007-11-01 | B36: 24.58 | C36: 24.6 | D36: 22.24 | E36: 23.76 | F36: 45543900 | G36: 17.38
A37: 2007-12-03 | B37: 23.62 | C37: 24.5 | D37: 22.69 | E37: 22.73 | F37: 37556800 | G37: 16.62
A38: 2008-01-02 | B38: 22.76 | C38: 24.24 | D38: 21.56 | E38: 23.36 | F38: 54002400 | G38: 17.09
A39: 2008-02-01 | B39: 23.4 | C39: 23.79 | D39: 22.03 | E39: 22.28 | F39: 41346200 | G39: 16.53
A40: 2008-03-03 | B40: 22.42 | C40: 22.44 | D40: 20.19 | E40: 20.93 | F40: 43695400 | G40: 15.52
A41: 2008-04-01 | B41: 21.05 | C41: 21.6 | D41: 19.79 | E41: 20.11 | F41: 45646900 | G41: 14.92
A42: 2008-05-01 | B42: 20.17 | C42: 20.65 | D42: 19.16 | E42: 19.36 | F42: 47916300 | G42: 14.59
A43: 2008-06-02 | B43: 19.43 | C43: 19.46 | D43: 17.12 | E43: 17.47 | F43: 62092800 | G43: 13.16
A44: 2008-07-01 | B44: 17.43 | C44: 19.25 | D44: 17.26 | E44: 18.67 | F44: 48802400 | G44: 14.07
A45: 2008-08-01 | B45: 18.81 | C45: 20.13 | D45: 18.53 | E45: 19.11 | F45: 38395300 | G45: 14.64
A46: 2008-09-02 | B46: 19.3 | C46: 19.59 | D46: 17.16 | E46: 18.44 | F46: 58766800 | G46: 14.12
A47: 2008-10-01 | B47: 18.26 | C47: 19.39 | D47: 14.31 | E47: 17.71 | F47: 82144100 | G47: 13.57
A48: 2008-11-03 | B48: 17.85 | C48: 18.45 | D48: 14.26 | E48: 16.43 | F48: 54908500 | G48: 12.81
A49: 2008-12-01 | B49: 16.18 | C49: 17.97 | D49: 15.2 | E49: 17.71 | F49: 46406500 | G49: 13.81
A50: 2009-01-02 | B50: 17.88 | C50: 18.48 | D50: 14.5 | E50: 14.58 | F50: 69039400 | G50: 11.37
A51: 2009-02-02 | B51: 14.63 | C51: 15.38 | D51: 12.28 | E51: 12.31 | F51: 70298300 | G51: 9.8
A52: 2009-03-02 | B52: 12.08 | C52: 14.99 | D52: 11.62 | E52: 13.62 | F52: 77053100 | G52: 10.85
A53: 2009-04-01 | B53: 13.59 | C53: 14.27 | D53: 12.75 | E53: 13.36 | F53: 63945100 | G53: 10.64
A54: 2009-05-01 | B54: 13.39 | C54: 15.6 | D54: 13.25 | E54: 15.19 | F54: 60089800 | G54: 12.23
A55: 2009-06-01 | B55: 15.36 | C55: 15.45 | D55: 13.94 | E55: 15 | F55: 56001500 | G55: 12.08
A56: 2009-07-01 | B56: 14.97 | C56: 16.66 | D56: 14.11 | E56: 15.93 | F56: 54600100 | G56: 12.83
A57: 2009-08-03 | B57: 16.12 | C57: 16.98 | D57: 15.54 | E57: 16.7 | F57: 41817100 | G57: 13.58
A58: 2009-09-01 | B58: 16.54 | C58: 16.94 | D58: 15.95 | E58: 16.55 | F58: 46738300 | G58: 13.46
A59: 2009-10-01 | B59: 16.5 | C59: 18.43 | D59: 16.07 | E59: 17.03 | F59: 70879700 | G59: 13.85
A60: 2009-11-02 | B60: 17.05 | C60: 18.9 | D60: 16.72 | E60: 18.17 | F60: 50452700 | G60: 14.92
A61: 2009-12-01 | B61: 18.54 | C61: 18.99 | D61: 17.63 | E61: 18.19 | F61: 43792000 | G61: 14.94
A62: 2010-01-04 | B62: 18.27 | C62: 20.36 | D62: 18.24 | E62: 18.66 | F62: 56357400 | G62: 15.32
A63: 2010-02-01 | B63: 18.79 | C63: 19.33 | D63: 17.43 | E63: 17.55 | F63: 66955500 | G63: 14.55
A64: 2010-03-01 | B64: 17.61 | C64: 17.88 | D64: 16.8 | E64: 17.15 | F64: 64463500 | G64: 14.22
A65: 2010-04-01 | B65: 17.21 | C65: 17.33 | D65: 16.33 | E65: 16.72 | F65: 71789500 | G65: 13.86
A66: 2010-05-03 | B66: 16.8 | C66: 17.39 | D66: 14.75 | E66: 15.23 | F66: 87303400 | G66: 12.76
A67: 2010-06-01 | B67: 15.16 | C67: 15.6 | D67: 14.17 | E67: 14.26 | F67: 60257300 | G67: 11.95
A68: 2010-07-01 | B68: 14.29 | C68: 15.44 | D68: 14 | E68: 15 | F68: 51233300 | G68: 12.57
A69: 2010-08-02 | B69: 15.16 | C69: 16.6 | D69: 15.1 | E69: 15.91 | F69: 57078000 | G69: 13.48
A70: 2010-09-01 | B70: 16.13 | C70: 17.5 | D70: 16.07 | E70: 17.17 | F70: 44877200 | G70: 14.54
A71: 2010-10-01 | B71: 17.25 | C71: 17.9 | D71: 16.86 | E71: 17.42 | F71: 46214700 | G71: 14.76
A72: 2010-11-01 | B72: 17.63 | C72: 17.84 | D72: 16.25 | E72: 16.3 | F72: 43786400 | G72: 13.95
A73: 2010-12-01 | B73: 16.49 | C73: 17.7 | D73: 16.42 | E73: 17.51 | F73: 39904500 | G73: 14.98
A74: 2011-01-03 | B74: 17.7 | C74: 18.76 | D74: 17.62 | E74: 18.22 | F74: 57805000 | G74: 15.59
A75: 2011-02-01 | B75: 18.49 | C75: 19.39 | D75: 18.46 | E75: 19.24 | F75: 50955700 | G75: 16.64
A76: 2011-03-01 | B76: 19.35 | C76: 20.57 | D76: 18.97 | E76: 20.31 | F76: 54771000 | G76: 17.56
A77: 2011-04-01 | B77: 20.35 | C77: 21.06 | D77: 19.1 | E77: 20.97 | F77: 48380100 | G77: 18.13
A78: 2011-05-02 | B78: 21.14 | C78: 21.45 | D78: 20.07 | E78: 21.45 | F78: 47818900 | G78: 18.73
A79: 2011-06-01 | B79: 21.34 | C79: 21.45 | D79: 20.03 | E79: 20.6 | F79: 46040800 | G79: 17.99
A80: 2011-07-01 | B80: 20.5 | C80: 20.95 | D80: 19.05 | E80: 19.25 | F80: 46151000 | G80: 16.81
A81: 2011-08-01 | B81: 19.44 | C81: 19.46 | D81: 16.63 | E81: 18.98 | F81: 67274100 | G81: 16.76
A82: 2011-09-01 | B82: 18.91 | C82: 19.15 | D82: 17.3 | E82: 17.68 | F82: 49899900 | G82: 15.61
A83: 2011-10-03 | B83: 17.69 | C83: 19.95 | D83: 17.05 | E83: 19.26 | F83: 44775100 | G83: 17
A84: 2011-11-01 | B84: 19.15 | C84: 20.15 | D84: 18.15 | E84: 20.07 | F84: 53813800 | G84: 17.9
A85: 2011-12-01 | B85: 20.03 | C85: 21.9 | D85: 19.73 | E85: 21.64 | F85: 44507100 | G85: 19.3
A86: 2012-01-03 | B86: 21.86 | C86: 22.17 | D86: 21.22 | E86: 21.4 | F86: 50192000 | G86: 19.08
A87: 2012-02-01 | B87: 21.25 | C87: 21.53 | D87: 20.75 | E87: 21.13 | F87: 35337000 | G87: 19.04
A88: 2012-03-01 | B88: 21.07 | C88: 22.8 | D88: 21.05 | E88: 22.65 | F88: 36590700 | G88: 20.41
A89: 2012-04-02 | B89: 22.54 | C89: 23.3 | D89: 21.77 | E89: 22.9 | F89: 45957300 | G89: 20.63
A90: 2012-05-01 | B90: 22.63 | C90: 22.99 | D90: 21.85 | E90: 21.87 | F90: 40211900 | G90: 19.9
A91: 2012-06-01 | B91: 21.76 | C91: 23 | D91: 21.4 | E91: 23 | F91: 28814700 | G91: 20.93
A92: 2012-07-02 | B92: 22.85 | C92: 24.49 | D92: 22 | E92: 24.04 | F92: 43919700 | G92: 21.88
A93: 2012-08-01 | B93: 23.92 | C93: 24.37 | D93: 23.59 | E93: 23.86 | F93: 26691300 | G93: 21.91
A94: 2012-09-04 | B94: 23.79 | C94: 25.15 | D94: 23.63 | E94: 24.85 | F94: 29945400 | G94: 22.82
A95: 2012-10-01 | B95: 24.8 | C95: 26.09 | D95: 24.8 | E95: 24.87 | F95: 27708400 | G95: 22.84
A96: 2012-11-01 | B96: 24.82 | C96: 25.08 | D96: 23.55 | E96: 25.02 | F96: 34383500 | G96: 23.18
A97: 2012-12-03 | B97: 25.04 | C97: 25.79 | D97: 24.63 | E97: 25.08 | F97: 31546100 | G97: 23.24
A98: 2013-01-02 | B98: 25.53 | C98: 27.84 | D98: 25.33 | E98: 27.28 | F98: 38862300 | G98: 25.5
A99: 2013-02-01 | B99: 27.58 | C99: 27.8 | D99: 26.79 | E99: 27.37 | F99: 30559900 | G99: 25.58
A100: 2013-03-01 | B100: 27.18 | C100: 28.9 | D100: 27.15 | E100: 28.86 | F100: 30681800 | G100: 26.98
A101: 2013-04-01 | B101: 28.75 | C101: 31.15 | D101: 28.64 | E101: 29.07 | F101: 38511200 | G101: 27.17
A102: 2013-05-01 | B102: 28.83 | C102: 30.04 | D102: 27.23 | E102: 27.23 | F102: 45158200 | G102: 25.66
A103: 2013-06-03 | B103: 27.3 | C103: 29.81 | D103: 27.12 | E103: 28.01 | F103: 116729700 | G103: 26.4
A104: 2013-07-01 | B104: 27.97 | C104: 30.43 | D104: 27.33 | E104: 29.23 | F104: 36234400 | G104: 27.77
A105: 2013-08-01 | B105: 29.43 | C105: 29.45 | D105: 27.76 | E105: 28.21 | F105: 24663800 | G105: 26.81
A106: 2013-09-03 | B106: 28.38 | C106: 29.27 | D106: 27.86 | E106: 28.73 | F106: 26732400 | G106: 27.3
A107: 2013-10-01 | B107: 28.58 | C107: 31.35 | D107: 28.02 | E107: 30.69 | F107: 28383700 | G107: 29.16
A108: 2013-11-01 | B108: 30.7 | C108: 32.5 | D108: 30.69 | E108: 31.73 | F108: 23704600 | G108: 30.38
A109: 2013-12-02 | B109: 31.61 | C109: 31.93 | D109: 29.95 | E109: 30.63 | F109: 25872000 | G109: 29.33
A110: 2014-01-02 | B110: 30.47 | C110: 31.42 | D110: 29.66 | E110: 30.4 | F110: 28032400 | G110: 29.11
A111: 2014-02-03 | B111: 31.03 | C111: 32.41 | D111: 30.57 | E111: 32.11 | F111: 29503900 | G111: 31
A112: 2014-03-03 | B112: 31.52 | C112: 32.96 | D112: 30.83 | E112: 32.12 | F112: 28084400 | G112: 31.01
A113: 2014-04-01 | B113: 31.93 | C113: 32.69 | D113: 29.58 | E113: 31.28 | F113: 33733800 | G113: 30.2
A114: 2014-05-01 | B114: 31.08 | C114: 31.58 | D114: 28.77 | E114: 29.63 | F114: 33961400 | G114: 28.86
A115: 2014-06-02 | B115: 29.59 | C115: 29.92 | D115: 29.15 | E115: 29.68 | F115: 24022400 | G115: 28.91
A116: 2014-07-01 | B116: 29.61 | C116: 31.31 | D116: 28.7 | E116: 28.7 | F116: 25878900 | G116: 28.2
A117: 2014-08-01 | B117: 28.7 | C117: 29.67 | D117: 27.87 | E117: 29.39 | F117: 22757200 | G117: 28.88
A118: 2014-09-02 | B118: 29.21 | C118: 30.84 | D118: 29.01 | E118: 29.57 | F118: 23797300 | G118: 29.06
A119: 2014-10-01 | B119: 29.37 | C119: 30.2 | D119: 27.51 | E119: 29.95 | F119: 30533700 | G119: 29.43
A120: 2014-11-03 | B120: 29.9 | C120: 31.64 | D120: 29.76 | E120: 31.15 | F120: 22471300 | G120: 30.88
A121: 2014-12-01 | B121: 30.88 | C121: 33.12 | D121: 30.58 | E121: 31.15 | F121: 24917000 | G121: 30.88
A122: 2015-01-02 | B122: 31.27 | C122: 33.5 | D122: 31.01 | E122: 31.25 | F122: 32068700 | G122: 30.98

Sheet xom
A1: Stock Quotes for xom
A2: Date | B2: Open | C2: High | D2: Low | E2: Close | F2: Volume | G2: Adj Close
A3: 2005-02-01 | B3: 51.98 | C3: 64.04 | D3: 51.93 | E3: 63.31 | F3: 21245800 | G3: 50.26
A4: 2005-03-01 | B4: 62.97 | C4: 64.37 | D4: 57.38 | E4: 59.6 | F4: 25986600 | G4: 47.32
A5: 2005-04-01 | B5: 60.1 | C5: 61.74 | D5: 55.4 | E5: 57.03 | F5: 21283700 | G5: 45.28
A6: 2005-05-02 | B6: 57 | C6: 58.65 | D6: 52.78 | E6: 56.2 | F6: 20132700 | G6: 44.85
A7: 2005-06-01 | B7: 56.45 | C7: 61.13 | D7: 56.33 | E7: 57.47 | F7: 17256700 | G7: 45.86
A8: 2005-07-01 | B8: 57.75 | C8: 60.73 | D8: 57.6 | E8: 58.75 | F8: 17362000 | G8: 46.88
A9: 2005-08-01 | B9: 59.23 | C9: 61.34 | D9: 57.76 | E9: 59.9 | F9: 18555800 | G9: 48.03
A10: 2005-09-01 | B10: 60.1 | C10: 65.96 | D10: 60.1 | E10: 63.54 | F10: 21276100 | G10: 50.95
A11: 2005-10-03 | B11: 63.55 | C11: 63.89 | D11: 54.5 | E11: 56.14 | F11: 25924300 | G11: 45.02
A12: 2005-11-01 | B12: 56.09 | C12: 60.26 | D12: 55.84 | E12: 58.03 | F12: 19671400 | G12: 46.77
A13: 2005-12-01 | B13: 58.37 | C13: 60.38 | D13: 55.6 | E13: 56.17 | F13: 16582000 | G13: 45.27
A14: 2006-01-03 | B14: 56.42 | C14: 63.96 | D14: 56.42 | E14: 62.75 | F14: 21662600 | G14: 50.57
A15: 2006-02-01 | B15: 62.77 | C15: 63.08 | D15: 58.6 | E15: 59.37 | F15: 20284700 | G15: 48.1
A16: 2006-03-01 | B16: 59.59 | C16: 61.92 | D16: 58.44 | E16: 60.86 | F16: 19242900 | G16: 49.31
A17: 2006-04-03 | B17: 61.36 | C17: 65 | D17: 60.43 | E17: 63.08 | F17: 19051100 | G17: 51.11
A18: 2006-05-01 | B18: 63.4 | C18: 64.77 | D18: 59.15 | E18: 60.91 | F18: 20876700 | G18: 49.6
A19: 2006-06-01 | B19: 60.4 | C19: 62.65 | D19: 56.64 | E19: 61.35 | F19: 24370100 | G19: 49.96
A20: 2006-07-03 | B20: 61.8 | C20: 67.94 | D20: 61.63 | E20: 67.74 | F20: 22007100 | G20: 55.16
A21: 2006-08-01 | B21: 67.24 | C21: 71.22 | D21: 67.01 | E21: 67.67 | F21: 22894000 | G21: 55.36
A22: 2006-09-01 | B22: 67.85 | C22: 68.65 | D22: 63.87 | E22: 67.1 | F22: 24726500 | G22: 54.9
A23: 2006-10-02 | B23: 67.29 | C23: 72.33 | D23: 64.84 | E23: 71.42 | F23: 21755300 | G23: 58.43
A24: 2006-11-01 | B24: 71.58 | C24: 77.37 | D24: 70.27 | E24: 76.81 | F24: 20701700 | G24: 63.11
A25: 2006-12-01 | B25: 76.78 | C25: 79 | D25: 74.82 | E25: 76.63 | F25: 19954400 | G25: 62.96
A26: 2007-01-03 | B26: 76.26 | C26: 76.27 | D26: 70.64 | E26: 74.1 | F26: 26449000 | G26: 60.88
A27: 2007-02-01 | B27: 74.58 | C27: 76.1 | D27: 71.18 | E27: 71.68 | F27: 24060100 | G27: 59.15
A28: 2007-03-01 | B28: 70.9 | C28: 76.35 | D28: 69.02 | E28: 75.45 | F28: 28874700 | G28: 62.26
A29: 2007-04-02 | B29: 75.35 | C29: 80.88 | D29: 75.28 | E29: 79.38 | F29: 23657200 | G29: 65.5
A30: 2007-05-01 | B30: 79.5 | C30: 84.32 | D30: 79.05 | E30: 83.17 | F30: 21117100 | G30: 68.92
A31: 2007-06-01 | B31: 83.56 | C31: 86.58 | D31: 80.85 | E31: 83.88 | F31: 25316000 | G31: 69.51
A32: 2007-07-02 | B32: 84.5 | C32: 93.62 | D32: 84.12 | E32: 85.13 | F32: 28263400 | G32: 70.55
A33: 2007-08-01 | B33: 84.99 | C33: 87.9 | D33: 78.76 | E33: 85.73 | F33: 30846000 | G33: 71.33
A34: 2007-09-04 | B34: 85.31 | C34: 93.66 | D34: 83.88 | E34: 92.56 | F34: 24540500 | G34: 77.01
A35: 2007-10-01 | B35: 92.45 | C35: 95.27 | D35: 89.67 | E35: 91.99 | F35: 23720000 | G35: 76.54
A36: 2007-11-01 | B36: 89.83 | C36: 90.95 | D36: 83.37 | E36: 89.16 | F36: 27441300 | G36: 74.47
A37: 2007-12-03 | B37: 88.97 | C37: 95.1 | D37: 87.71 | E37: 93.69 | F37: 20010700 | G37: 78.26
A38: 2008-01-02 | B38: 94.15 | C38: 94.74 | D38: 77.55 | E38: 85.7 | F38: 30841000 | G38: 71.58
A39: 2008-02-01 | B39: 87.7 | C39: 90.17 | D39: 80.36 | E39: 87.01 | F39: 25879700 | G39: 72.99
A40: 2008-03-03 | B40: 86.83 | C40: 88.5 | D40: 81.97 | E40: 84.58 | F40: 32253000 | G40: 70.95
A41: 2008-04-01 | B41: 84.8 | C41: 94.93 | D41: 84.26 | E41: 93.07 | F41: 23311500 | G41: 78.07
A42: 2008-05-01 | B42: 90.1 | C42: 96.12 | D42: 87.6 | E42: 88.76 | F42: 28713400 | G42: 74.79
A43: 2008-06-02 | B43: 88.09 | C43: 90.5 | D43: 84.77 | E43: 88.13 | F43: 28218100 | G43: 74.26
A44: 2008-07-01 | B44: 87.87 | C44: 89.63 | D44: 79.1 | E44: 80.43 | F44: 33014400 | G44: 67.77
A45: 2008-08-01 | B45: 80.55 | C45: 81.5 | D45: 76.14 | E45: 80.01 | F45: 26908400 | G45: 67.76
A46: 2008-09-02 | B46: 78.04 | C46: 82 | D46: 71.51 | E46: 77.66 | F46: 38705200 | G46: 65.77
A47: 2008-10-01 | B47: 77.19 | C47: 81.75 | D47: 56.51 | E47: 74.12 | F47: 62482300 | G47: 62.77
A48: 2008-11-03 | B48: 73.45 | C48: 81.03 | D48: 67.54 | E48: 80.15 | F48: 54003200 | G48: 68.27
A49: 2008-12-01 | B49: 77.89 | C49: 83.64 | D49: 72.68 | E49: 79.83 | F49: 46656300 | G49: 68
A50: 2009-01-02 | B50: 80.06 | C50: 82.73 | D50: 74.01 | E50: 76.48 | F50: 44804300 | G50: 65.14
A51: 2009-02-02 | B51: 76.06 | C51: 80.5 | D51: 67.9 | E51: 67.9 | F51: 44023900 | G51: 58.13
A52: 2009-03-02 | B52: 67 | C52: 71.49 | D52: 61.86 | E52: 68.1 | F52: 44299400 | G52: 58.3
A53: 2009-04-01 | B53: 67.04 | C53: 71.15 | D53: 64.5 | E53: 66.67 | F53: 31807000 | G53: 57.08
A54: 2009-05-01 | B54: 67.13 | C54: 71.39 | D54: 65.6 | E54: 69.35 | F54: 28182500 | G54: 59.72
A55: 2009-06-01 | B55: 70.46 | C55: 74.83 | D55: 68.08 | E55: 69.91 | F55: 28378500 | G55: 60.21
A56: 2009-07-01 | B56: 70.67 | C56: 72.79 | D56: 64.46 | E56: 70.39 | F56: 26744900 | G56: 60.62
A57: 2009-08-03 | B57: 70.96 | C57: 71.89 | D57: 66.09 | E57: 69.15 | F57: 22000100 | G57: 59.92
A58: 2009-09-01 | B58: 68.93 | C58: 71.08 | D58: 67.83 | E58: 68.61 | F58: 21252200 | G58: 59.45
A59: 2009-10-01 | B59: 68.39 | C59: 75 | D59: 66.11 | E59: 71.67 | F59: 24248100 | G59: 62.1
A60: 2009-11-02 | B60: 72.05 | C60: 76.54 | D60: 71.04 | E60: 75.07 | F60: 18893700 | G60: 65.42
A61: 2009-12-01 | B61: 76 | C61: 76.3 | D61: 67.64 | E61: 68.19 | F61: 30354400 | G61: 59.43
A62: 2010-01-04 | B62: 68.72 | C62: 70.6 | D62: 64.02 | E62: 64.43 | F62: 33544900 | G62: 56.15
A63: 2010-02-01 | B63: 65.77 | C63: 67.23 | D63: 63.56 | E63: 65 | F63: 29209100 | G63: 57.02
A64: 2010-03-01 | B64: 65.36 | C64: 67.89 | D64: 65.08 | E64: 66.98 | F64: 26307800 | G64: 58.75
A65: 2010-04-01 | B65: 67.27 | C65: 70 | D65: 66.85 | E65: 67.77 | F65: 27383200 | G65: 59.45
A66: 2010-05-03 | B66: 68.11 | C66: 68.22 | D66: 58.46 | E66: 60.46 | F66: 40034400 | G66: 53.39
A67: 2010-06-01 | B67: 60.38 | C67: 64.5 | D67: 56.92 | E67: 57.07 | F67: 38748500 | G67: 50.4
A68: 2010-07-01 | B68: 56.98 | C68: 61.88 | D68: 55.94 | E68: 59.68 | F68: 30611600 | G68: 52.71
A69: 2010-08-02 | B69: 60.64 | C69: 62.99 | D69: 58.05 | E69: 59.11 | F69: 22846100 | G69: 52.58
A70: 2010-09-01 | B70: 60.04 | C70: 62.44 | D70: 59.72 | E70: 61.79 | F70: 21372500 | G70: 54.96
A71: 2010-10-01 | B71: 62.32 | C71: 66.81 | D71: 61.8 | E71: 66.49 | F71: 21413900 | G71: 59.14
A72: 2010-11-01 | B72: 66.72 | C72: 71.9 | D72: 66.63 | E72: 69.56 | F72: 24468700 | G72: 62.26
A73: 2010-12-01 | B73: 70.38 | C73: 73.69 | D73: 70.38 | E73: 73.12 | F73: 19295900 | G73: 65.45
A74: 2011-01-03 | B74: 73.72 | C74: 80.82 | D74: 73.64 | E74: 80.68 | F74: 24194700 | G74: 72.21
A75: 2011-02-01 | B75: 81.14 | C75: 88.23 | D75: 81.04 | E75: 85.53 | F75: 24636800 | G75: 76.96
A76: 2011-03-01 | B76: 86.41 | C76: 86.5 | D76: 78.8 | E76: 84.13 | F76: 19767400 | G76: 75.7
A77: 2011-04-01 | B77: 84.72 | C77: 88 | D77: 82.38 | E77: 87.98 | F77: 16353700 | G77: 79.16
A78: 2011-05-02 | B78: 88.1 | C78: 88.13 | D78: 79.42 | E78: 83.47 | F78: 20355400 | G78: 75.53
A79: 2011-06-01 | B79: 83.55 | C79: 83.65 | D79: 76.72 | E79: 81.38 | F79: 21103900 | G79: 73.64
A80: 2011-07-01 | B80: 81.19 | C80: 85.41 | D80: 79.76 | E80: 79.79 | F80: 20103800 | G80: 72.2
A81: 2011-08-01 | B81: 80.82 | C81: 81.18 | D81: 67.03 | E81: 74.02 | F81: 34928400 | G81: 67.42
A82: 2011-09-01 | B82: 74.15 | C82: 74.98 | D82: 67.93 | E82: 72.63 | F82: 27687600 | G82: 66.16
A83: 2011-10-03 | B83: 72.05 | C83: 82.2 | D83: 69.21 | E83: 78.09 | F83: 25943600 | G83: 71.13
A84: 2011-11-01 | B84: 75.82 | C84: 80.53 | D84: 73.9 | E84: 80.44 | F84: 22774900 | G84: 73.71
A85: 2011-12-01 | B85: 80.2 | C85: 85.63 | D85: 78.66 | E85: 84.76 | F85: 18567500 | G85: 77.66
A86: 2012-01-03 | B86: 85.97 | C86: 87.94 | D86: 83.46 | E86: 83.74 | F86: 18038500 | G86: 76.73
A87: 2012-02-01 | B87: 84.23 | C87: 87.83 | D87: 83.19 | E87: 86.5 | F87: 15949600 | G87: 79.69
A88: 2012-03-01 | B88: 86.47 | C88: 87.25 | D88: 84.05 | E88: 86.73 | F88: 15994500 | G88: 79.9
A89: 2012-04-02 | B89: 86.6 | C89: 87.67 | D89: 81.88 | E89: 86.34 | F89: 15598400 | G89: 79.54
A90: 2012-05-01 | B90: 86.46 | C90: 87.52 | D90: 78.41 | E90: 78.63 | F90: 17847200 | G90: 72.94
A91: 2012-06-01 | B91: 77.87 | C91: 85.7 | D91: 77.13 | E91: 85.57 | F91: 24899800 | G91: 79.38
A92: 2012-07-02 | B92: 85.44 | C92: 87.85 | D92: 82.83 | E92: 86.85 | F92: 15548900 | G92: 80.57
A93: 2012-08-01 | B93: 87.02 | C93: 88.91 | D93: 85.5 | E93: 87.3 | F93: 11399500 | G93: 81.51
A94: 2012-09-04 | B94: 87.33 | C94: 92.57 | D94: 86.52 | E94: 91.45 | F94: 14037000 | G94: 85.38
A95: 2012-10-01 | B95: 91.79 | C95: 93.67 | D95: 89.68 | E95: 91.17 | F95: 12188600 | G95: 85.12
A96: 2012-11-01 | B96: 90.25 | C96: 92.05 | D96: 85.06 | E96: 88.14 | F96: 14342700 | G96: 82.81
A97: 2012-12-03 | B97: 88.55 | C97: 90.37 | D97: 84.7 | E97: 86.55 | F97: 15112600 | G97: 81.32
A98: 2013-01-02 | B98: 87.79 | C98: 91.93 | D98: 87.24 | E98: 89.97 | F98: 13213700 | G98: 84.53
A99: 2013-02-01 | B99: 90.44 | C99: 90.5 | D99: 87.61 | E99: 89.55 | F99: 13249100 | G99: 84.67
A100: 2013-03-01 | B100: 89.07 | C100: 90.98 | D100: 87.9 | E100: 90.11 | F100: 14126500 | G100: 85.2
A101: 2013-04-01 | B101: 90.13 | C101: 90.99 | D101: 85.02 | E101: 88.99 | F101: 14132700 | G101: 84.14
A102: 2013-05-01 | B102: 88.52 | C102: 93.5 | D102: 87.48 | E102: 90.47 | F102: 13364200 | G102: 86.13
A103: 2013-06-03 | B103: 90.53 | C103: 92.27 | D103: 88.02 | E103: 90.35 | F103: 15737500 | G103: 86.02
A104: 2013-07-01 | B104: 90.39 | C104: 95.49 | D104: 89.96 | E104: 93.75 | F104: 11462900 | G104: 89.26
A105: 2013-08-01 | B105: 92.69 | C105: 93.1 | D105: 86.39 | E105: 87.16 | F105: 12914100 | G105: 83.56
A106: 2013-09-03 | B106: 87.7 | C106: 89.87 | D106: 85.61 | E106: 86.04 | F106: 12800900 | G106: 82.48
A107: 2013-10-01 | B107: 85.99 | C107: 90.96 | D107: 84.79 | E107: 89.62 | F107: 13341600 | G107: 85.91
A108: 2013-11-01 | B108: 89.74 | C108: 96 | D108: 88.27 | E108: 93.48 | F108: 12856000 | G108: 90.22
A109: 2013-12-02 | B109: 93.27 | C109: 101.74 | D109: 92.92 | E109: 101.2 | F109: 13228500 | G109: 97.67
A110: 2014-01-02 | B110: 100.6 | C110: 101.22 | D110: 91.7 | E110: 92.16 | F110: 13058500 | G110: 88.95
A111: 2014-02-03 | B111: 91.92 | C111: 97.25 | D111: 89.25 | E111: 96.27 | F111: 13996500 | G111: 93.57
A112: 2014-03-03 | B112: 95.76 | C112: 98.85 | D112: 93.01 | E112: 97.68 | F112: 12765400 | G112: 94.94
A113: 2014-04-01 | B113: 97.65 | C113: 102.57 | D113: 96.24 | E113: 102.41 | F113: 11660300 | G113: 99.54
A114: 2014-05-01 | B114: 101.96 | C114: 103.45 | D114: 100.32 | E114: 100.53 | F114: 9113600 | G114: 98.38
A115: 2014-06-02 | B115: 100.53 | C115: 104.61 | D115: 99.59 | E115: 100.68 | F115: 10404500 | G115: 98.53
A116: 2014-07-01 | B116: 101.15 | C116: 104.76 | D116: 98.93 | E116: 98.94 | F116: 9439300 | G116: 96.82
A117: 2014-08-01 | B117: 98.62 | C117: 100.43 | D117: 97.63 | E117: 99.46 | F117: 9349000 | G117: 98.01
A118: 2014-09-02 | B118: 99.43 | C118: 99.59 | D118: 93.62 | E118: 94.05 | F118: 11782000 | G118: 92.68
A119: 2014-10-01 | B119: 94.11 | C119: 96.89 | D119: 86.91 | E119: 96.71 | F119: 15634100 | G119: 95.3
A120: 2014-11-03 | B120: 96.56 | C120: 97.2 | D120: 90.11 | E120: 90.54 | F120: 12509200 | G120: 89.86
A121: 2014-12-01 | B121: 90.36 | C121: 95.33 | D121: 86.19 | E121: 92.45 | F121: 18730200 | G121: 91.76
A122: 2015-01-02 | B122: 92.25 | C122: 93.05 | D122: 86.03 | E122: 87.42 | F122: 17474900 | G122: 86.77

Sheet vfinx
A1: Stock Quotes for vfinx
A2: Date | B2: Open | C2: High | D2: Low | E2: Close | F2: Volume | G2: Adj Close
A3: 2005-02-01 | B3: 109.65 | C3: 111.9 | D3: 109.33 | E3: 111.18 | F3: 0 | G3: 91.29
A4: 2005-03-01 | B4: 111.81 | C4: 113.23 | D4: 107.37 | E4: 108.79 | F4: 0 | G4: 89.68
A5: 2005-04-01 | B5: 108.08 | C5: 109.8 | D5: 104.87 | E5: 106.71 | F5: 0 | G5: 87.97
A6: 2005-05-02 | B6: 107.19 | C6: 110.77 | D6: 106.56 | E6: 110.09 | F6: 0 | G6: 90.75
A7: 2005-06-01 | B7: 111.12 | C7: 112.55 | D7: 109.72 | E7: 109.81 | F7: 0 | G7: 90.87
A8: 2005-07-01 | B8: 110.11 | C8: 114.76 | D8: 110.11 | E8: 113.88 | F8: 0 | G8: 94.23
A9: 2005-08-01 | B9: 113.99 | C9: 114.91 | D9: 111.36 | E9: 112.84 | F9: 0 | G9: 93.37
A10: 2005-09-01 | B10: 112.95 | C10: 114.81 | D10: 111.93 | E10: 113.2 | F10: 0 | G10: 94.11
A11: 2005-10-03 | B11: 113 | C11: 113 | D11: 108.48 | E11: 111.3 | F11: 0 | G11: 92.54
A12: 2005-11-01 | B12: 110.9 | C12: 117.15 | D12: 110.9 | E12: 115.49 | F12: 0 | G12: 96.02
A13: 2005-12-01 | B13: 116.9 | C13: 117.7 | D13: 114.92 | E13: 114.92 | F13: 0 | G13: 96.04
A14: 2006-01-03 | B14: 116.82 | C14: 119.23 | D14: 116.23 | E14: 117.96 | F14: 0 | G14: 98.58
A15: 2006-02-01 | B15: 118.19 | C15: 119.51 | D15: 115.68 | E15: 118.26 | F15: 0 | G15: 98.83
A16: 2006-03-01 | B16: 119.27 | C16: 120.67 | D16: 117.56 | E16: 119.24 | F16: 0 | G16: 100.06
A17: 2006-04-03 | B17: 119.52 | C17: 120.86 | D17: 118.44 | E17: 120.83 | F17: 0 | G17: 101.39
A18: 2006-05-01 | B18: 120.33 | C18: 122.25 | D18: 116 | E18: 117.33 | F18: 0 | G18: 98.45
A19: 2006-06-01 | B19: 118.78 | C19: 119.01 | D19: 113.12 | E19: 116.99 | F19: 0 | G19: 98.58
A20: 2006-07-03 | B20: 117.93 | C20: 117.93 | D20: 113.77 | E20: 117.7 | F20: 0 | G20: 99.18
A21: 2006-08-01 | B21: 117.17 | C21: 120.52 | D21: 116.81 | E21: 120.48 | F21: 0 | G21: 101.52
A22: 2006-09-01 | B22: 121.15 | C22: 123.35 | D22: 119.6 | E22: 123.04 | F22: 0 | G22: 104.12
A23: 2006-10-02 | B23: 122.62 | C23: 128.04 | D23: 122.62 | E23: 127.04 | F23: 0 | G23: 107.51
A24: 2006-11-01 | B24: 126.12 | C24: 129.85 | D24: 125.84 | E24: 129.43 | F24: 0 | G24: 109.53
A25: 2006-12-01 | B25: 129.08 | C25: 131.96 | D25: 129.08 | E25: 130.59 | F25: 0 | G25: 111.06
A26: 2007-01-03 | B26: 130.45 | C26: 132.69 | D26: 129.82 | E26: 132.54 | F26: 0 | G26: 112.72
A27: 2007-02-01 | B27: 133.28 | C27: 134.7 | D27: 129.19 | E27: 129.93 | F27: 0 | G27: 110.5
A28: 2007-03-01 | B28: 129.6 | C28: 132.66 | D28: 126.92 | E28: 130.83 | F28: 0 | G28: 111.73
A29: 2007-04-02 | B29: 131.17 | C29: 137.8 | D29: 131.17 | E29: 136.61 | F29: 0 | G29: 116.67
A30: 2007-05-01 | B30: 136.97 | C30: 141.36 | D30: 136.97 | E30: 141.36 | F30: 0 | G30: 120.72
A31: 2007-06-01 | B31: 141.89 | C31: 142.15 | D31: 137.43 | E31: 138.43 | F31: 0 | G31: 118.7
A32: 2007-07-02 | B32: 139.91 | C32: 143.15 | D32: 134.15 | E32: 134.15 | F32: 0 | G32: 115.03
A33: 2007-08-01 | B33: 135.13 | C33: 138.15 | D33: 129.87 | E33: 136.16 | F33: 0 | G33: 116.76
A34: 2007-09-04 | B34: 137.58 | C34: 141.39 | D34: 134.19 | E34: 140.61 | F34: 0 | G34: 121.11
A35: 2007-10-01 | B35: 142.48 | C35: 144.22 | D35: 138.31 | E35: 142.83 | F35: 0 | G35: 123.02
A36: 2007-11-01 | B36: 139.1 | C36: 140.2 | D36: 129.97 | E36: 136.85 | F36: 0 | G36: 117.87
A37: 2007-12-03 | B37: 136.05 | C37: 140.16 | D37: 133.72 | E37: 135.15 | F37: 0 | G37: 117.05
A38: 2008-01-02 | B38: 133.22 | C38: 133.22 | D38: 120.71 | E38: 127.02 | F38: 0 | G38: 110.01
A39: 2008-02-01 | B39: 128.58 | C39: 128.58 | D39: 122.28 | E39: 122.89 | F39: 0 | G39: 106.44
A40: 2008-03-03 | B40: 122.95 | C40: 125.11 | D40: 117.69 | E40: 121.75 | F40: 0 | G40: 105.96
A41: 2008-04-01 | B41: 126.12 | C41: 128.78 | D41: 122.35 | E41: 127.67 | F41: 0 | G41: 111.11
A42: 2008-05-01 | B42: 129.88 | C42: 131.67 | D42: 127.02 | E42: 129.31 | F42: 0 | G42: 112.54
A43: 2008-06-02 | B43: 127.96 | C43: 129.73 | D43: 117.68 | E43: 117.83 | F43: 0 | G43: 103.03
A44: 2008-07-01 | B44: 118.31 | C44: 118.38 | D44: 111.94 | E44: 116.85 | F44: 0 | G44: 102.17
A45: 2008-08-01 | B45: 116.2 | C45: 120.46 | D45: 115.16 | E45: 118.54 | F45: 0 | G45: 103.65
A46: 2008-09-02 | B46: 118.05 | C46: 118.05 | D46: 101.85 | E46: 107.37 | F46: 0 | G46: 94.43
A47: 2008-10-01 | B47: 106.9 | C47: 106.9 | D47: 78.25 | E47: 89.34 | F47: 0 | G47: 78.57
A48: 2008-11-03 | B48: 89.12 | C48: 92.75 | D48: 69.57 | E48: 82.93 | F48: 0 | G48: 72.94
A49: 2008-12-01 | B49: 75.54 | C49: 84.62 | D49: 75.54 | E49: 83.09 | F49: 0 | G49: 73.72
A50: 2009-01-02 | B50: 85.75 | C50: 86.02 | D50: 74.17 | E50: 76.1 | F50: 0 | G50: 67.52
A51: 2009-02-02 | B51: 76.05 | C51: 80.25 | D51: 67.99 | E51: 67.99 | F51: 0 | G51: 60.32
A52: 2009-03-02 | B52: 64.83 | C52: 76.64 | D52: 62.65 | E52: 73.44 | F52: 0 | G52: 65.62
A53: 2009-04-01 | B53: 74.67 | C53: 80.53 | D53: 74.67 | E53: 80.46 | F53: 0 | G53: 71.89
A54: 2009-05-01 | B54: 80.9 | C54: 85.7 | D54: 80.9 | E54: 84.98 | F54: 0 | G54: 75.93
A55: 2009-06-01 | B55: 87.17 | C55: 87.58 | D55: 82.46 | E55: 84.72 | F55: 0 | G55: 76.09
A56: 2009-07-01 | B56: 85.1 | C56: 91.14 | D56: 81.08 | E56: 91.14 | F56: 0 | G56: 81.86
A57: 2009-08-03 | B57: 92.54 | C57: 95.36 | D57: 90.55 | E57: 94.42 | F57: 0 | G57: 84.81
A58: 2009-09-01 | B58: 92.33 | C58: 99.24 | D58: 92.05 | E58: 97.45 | F58: 0 | G58: 87.97
A59: 2009-10-01 | B59: 94.94 | C59: 101.28 | D59: 94.52 | E59: 95.63 | F59: 0 | G59: 86.32
A60: 2009-11-02 | B60: 96.25 | C60: 102.71 | D60: 96.25 | E60: 101.35 | F60: 0 | G60: 91.49
A61: 2009-12-01 | B61: 102.58 | C61: 104.34 | D61: 101.05 | E61: 102.67 | F61: 0 | G61: 93.27
A62: 2010-01-04 | B62: 104.32 | C62: 105.97 | D62: 98.97 | E62: 98.97 | F62: 0 | G62: 89.91
A63: 2010-02-01 | B63: 100.38 | C63: 102.41 | D63: 97.45 | E63: 102.03 | F63: 0 | G63: 92.69
A64: 2010-03-01 | B64: 103.06 | C64: 108.58 | D64: 103.06 | E64: 107.73 | F64: 0 | G64: 98.26
A65: 2010-04-01 | B65: 108.54 | C65: 112.22 | D65: 108.54 | E65: 109.43 | F65: 0 | G65: 99.81
A66: 2010-05-03 | B66: 110.86 | C66: 110.86 | D66: 98.65 | E66: 100.68 | F66: 0 | G66: 91.83
A67: 2010-06-01 | B67: 98.95 | C67: 103.38 | D67: 94.91 | E67: 94.91 | F67: 0 | G67: 87.01
A68: 2010-07-01 | B68: 94.61 | C68: 102.76 | D68: 94.17 | E68: 101.55 | F68: 0 | G68: 93.1
A69: 2010-08-02 | B69: 103.79 | C69: 104.01 | D69: 96.71 | E69: 96.95 | F69: 0 | G69: 88.88
A70: 2010-09-01 | B70: 99.82 | C70: 105.71 | D70: 99.82 | E70: 105.06 | F70: 0 | G70: 96.8
A71: 2010-10-01 | B71: 105.52 | C71: 109.24 | D71: 104.68 | E71: 109.04 | F71: 0 | G71: 100.47
A72: 2010-11-01 | B72: 109.14 | C72: 113.01 | D72: 108.74 | E72: 109.04 | F72: 0 | G72: 100.47
A73: 2010-12-01 | B73: 111.41 | C73: 116.4 | D73: 111.41 | E73: 115.82 | F73: 0 | G73: 107.17
A74: 2011-01-03 | B74: 117.13 | C74: 119.79 | D74: 116.98 | E74: 118.55 | F74: 0 | G74: 109.7
A75: 2011-02-01 | B75: 120.53 | C75: 123.99 | D75: 120.22 | E75: 122.6 | F75: 0 | G75: 113.45
A76: 2011-03-01 | B76: 120.67 | C76: 122.97 | D76: 116.21 | E76: 122.12 | F76: 0 | G76: 113.48
A77: 2011-04-01 | B77: 122.73 | C77: 125.72 | D77: 120.3 | E77: 125.72 | F77: 0 | G77: 116.83
A78: 2011-05-02 | B78: 125.5 | C78: 125.5 | D78: 121.55 | E78: 124.28 | F78: 0 | G78: 115.49
A79: 2011-06-01 | B79: 121.47 | C79: 121.65 | D79: 116.8 | E79: 121.65 | F79: 0 | G79: 113.55
A80: 2011-07-01 | B80: 123.41 | C80: 124.72 | D80: 119.16 | E80: 119.16 | F80: 0 | G80: 111.23
A81: 2011-08-01 | B81: 118.66 | C81: 118.66 | D81: 103.28 | E81: 112.67 | F81: 0 | G81: 105.17
A82: 2011-09-01 | B82: 111.34 | C82: 112.52 | D82: 103.97 | E82: 104.18 | F82: 0 | G82: 97.75
A83: 2011-10-03 | B83: 101.22 | C83: 118.48 | D83: 101.22 | E83: 115.55 | F83: 0 | G83: 108.42
A84: 2011-11-01 | B84: 112.33 | C84: 117.75 | D84: 107.06 | E84: 115.28 | F84: 0 | G84: 108.16
A85: 2011-12-01 | B85: 115.07 | C85: 116.63 | D85: 111.53 | E85: 115.8 | F85: 0 | G85: 109.27
A86: 2012-01-03 | B86: 117.59 | C86: 122.21 | D86: 117.59 | E86: 120.97 | F86: 0 | G86: 114.15
A87: 2012-02-01 | B87: 122.07 | C87: 126.76 | D87: 122.07 | E87: 126.18 | F87: 0 | G87: 119.06
A88: 2012-03-01 | B88: 126.97 | C88: 130.48 | D88: 124.14 | E88: 129.78 | F88: 0 | G88: 122.97
A89: 2012-04-02 | B89: 130.76 | C89: 130.76 | D89: 125.27 | E89: 128.95 | F89: 0 | G89: 122.19
A90: 2012-05-01 | B90: 129.68 | C90: 129.68 | D90: 119.7 | E90: 121.19 | F90: 0 | G90: 114.83
A91: 2012-06-01 | B91: 118.21 | C91: 125.7 | D91: 118.21 | E91: 125.55 | F91: 0 | G91: 119.56
A92: 2012-07-02 | B92: 125.86 | C92: 127.88 | D92: 123.11 | E92: 127.27 | F92: 0 | G92: 121.19
A93: 2012-08-01 | B93: 126.92 | C93: 131.11 | D93: 125.98 | E93: 130.12 | F93: 0 | G93: 123.91
A94: 2012-09-04 | B94: 129.97 | C94: 135.72 | D94: 129.87 | E94: 132.83 | F94: 0 | G94: 127.1
A95: 2012-10-01 | B95: 133.18 | C95: 134.83 | D95: 130.03 | E95: 130.36 | F95: 0 | G95: 124.74
A96: 2012-11-01 | B96: 131.79 | C96: 131.88 | D96: 125.16 | E96: 131.09 | F96: 0 | G96: 125.44
A97: 2012-12-03 | B97: 130.48 | C97: 134.1 | D97: 129.19 | E97: 131.37 | F97: 0 | G97: 126.56
A98: 2013-01-02 | B98: 134.74 | C98: 139.02 | D98: 134.3 | E98: 138.17 | F98: 0 | G98: 133.11
A99: 2013-02-01 | B99: 139.56 | C99: 141.41 | D99: 137.49 | E99: 140.02 | F99: 0 | G99: 134.89
A100: 2013-03-01 | B100: 140.35 | C100: 144.65 | D100: 140.35 | E100: 144.61 | F100: 0 | G100: 139.93
A101: 2013-04-01 | B101: 143.97 | C101: 147.37 | D101: 142.18 | E101: 147.37 | F101: 0 | G101: 142.6
A102: 2013-05-01 | B102: 146.01 | C102: 154.26 | D102: 146.01 | E102: 150.8 | F102: 0 | G102: 145.92
A103: 2013-06-03 | B103: 151.71 | C103: 152.89 | D103: 144.94 | E103: 148.06 | F103: 0 | G103: 143.95
A104: 2013-07-01 | B104: 148.87 | C104: 156.43 | D104: 148.82 | E104: 155.57 | F104: 0 | G104: 151.25
A105: 2013-08-01 | B105: 157.53 | C105: 157.79 | D105: 150.75 | E105: 151.04 | F105: 0 | G105: 146.85
A106: 2013-09-03 | B106: 151.68 | C106: 159.74 | D106: 151.68 | E106: 155.02 | F106: 0 | G106: 151.43
A107: 2013-10-01 | B107: 156.27 | C107: 163.52 | D107: 152.7 | E107: 162.13 | F107: 0 | G107: 158.37
A108: 2013-11-01 | B108: 162.59 | C108: 167.17 | D108: 161.4 | E108: 167.04 | F108: 0 | G108: 163.17
A109: 2013-12-02 | B109: 166.59 | C109: 170.36 | D109: 164.36 | E109: 170.36 | F109: 0 | G109: 167.27
A110: 2014-01-02 | B110: 168.88 | C110: 170.46 | D110: 163.67 | E110: 164.45 | F110: 0 | G110: 161.47
A111: 2014-02-03 | B111: 160.69 | C111: 171.95 | D111: 160.69 | E111: 171.95 | F111: 0 | G111: 168.84
A112: 2014-03-03 | B112: 170.69 | C112: 173.75 | D112: 170.42 | E112: 172.63 | F112: 0 | G112: 170.22
A113: 2014-04-01 | B113: 173.86 | C113: 174.38 | D113: 167.54 | E113: 173.88 | F113: 0 | G113: 171.46
A114: 2014-05-01 | B114: 173.87 | C114: 177.94 | D114: 172.41 | E114: 177.94 | F114: 0 | G114: 175.46
A115: 2014-06-02 | B115: 178.09 | C115: 181.46 | D115: 178.03 | E115: 180.83 | F115: 0 | G115: 179.06
A116: 2014-07-01 | B116: 182.07 | C116: 183.56 | D116: 178.32 | E116: 178.32 | F116: 0 | G116: 176.58
A117: 2014-08-01 | B117: 177.81 | C117: 185.43 | D117: 176.48 | E117: 185.43 | F117: 0 | G117: 183.62
A118: 2014-09-02 | B118: 185.33 | C118: 186.35 | D118: 181.35 | E118: 181.99 | F118: 0 | G118: 181.01
A119: 2014-10-01 | B119: 179.59 | C119: 186.4 | D119: 171.98 | E119: 186.4 | F119: 0 | G119: 185.4
A120: 2014-11-03 | B120: 186.38 | C120: 191.88 | D120: 185.85 | E120: 191.4 | F120: 0 | G120: 190.37
A121: 2014-12-01 | B121: 190.1 | C121: 192.79 | D121: 182.79 | E121: 189.89 | F121: 0 | G121: 189.89
A122: 2015-01-02 | B122: 189.85 | C122: 190.43 | D122: 183.9 | E122: 184.17 | F122: 0 | G122: 184.17

Sheet Open
A1: Date | B1: mcd | C1: x | D1: mt | E1: msft | F1: aapl | G1: k | H1: ge | I1: bac | J1: pfe | K1: xom | L1: vfinx
A2: 2005-02-01 | B2: 32.05 | C2: =VLOOKUP(A2,x!A$2:G$122,2,0) -> 52 | D2: =VLOOKUP(A2,mt!A$2:G$122,2,0) -> 36.5 | E2: =VLOOKUP(A2,msft!A$2:G$122,2,0) -> 26.25 | F2: =VLOOKUP(A2,aapl!A$2:G$122,2,0) -> 77.05 | G2: =VLOOKUP(A2,k!A$2:G$122,2,0) -> 44.3 | H2: =VLOOKUP(A2,ge!A$2:G$122,2,0) -> 36 | I2: =VLOOKUP(A2,bac!A$2:G$122,2,0) -> 46.36 | J2: =VLOOKUP(A2,pfe!A$2:G$122,2,0) -> 24.13 | K2: =VLOOKUP(A2,xom!A$2:G$122,2,0) -> 51.98 | L2: =VLOOKUP(A2,vfinx!A$2:G$122,2,0) -> 109.65
A3: 2005-03-01 | B3: 33.02 | C3: =VLOOKUP(A3,x!A$2:G$122,2,0) -> 62.4 | D3: =VLOOKUP(A3,mt!A$2:G$122,2,0) -> 41.2 | E3: =VLOOKUP(A3,msft!A$2:G$122,2,0) -> 25.19 | F3: =VLOOKUP(A3,aapl!A$2:G$122,2,0) -> 44.99 | G3: =VLOOKUP(A3,k!A$2:G$122,2,0) -> 43.79 | H3: =VLOOKUP(A3,ge!A$2:G$122,2,0) -> 35.27 | I3: =VLOOKUP(A3,bac!A$2:G$122,2,0) -> 46.65 | J3: =VLOOKUP(A3,pfe!A$2:G$122,2,0) -> 26.53 | K3: =VLOOKUP(A3,xom!A$2:G$122,2,0) -> 62.97 | L3: =VLOOKUP(A3,vfinx!A$2:G$122,2,0) -> 111.81
A4: 2005-04-01 | B4: 31.2 | C4: =VLOOKUP(A4,x!A$2:G$122,2,0) -> 51.2 | D4: =VLOOKUP(A4,mt!A$2:G$122,2,0) -> 32.6 | E4: =VLOOKUP(A4,msft!A$2:G$122,2,0) -> 24.24 | F4: =VLOOKUP(A4,aapl!A$2:G$122,2,0) -> 42.09 | G4: =VLOOKUP(A4,k!A$2:G$122,2,0) -> 43.24 | H4: =VLOOKUP(A4,ge!A$2:G$122,2,0) -> 36.18 | I4: =VLOOKUP(A4,bac!A$2:G$122,2,0) -> 44.42 | J4: =VLOOKUP(A4,pfe!A$2:G$122,2,0) -> 26.37 | K4: =VLOOKUP(A4,xom!A$2:G$122,2,0) -> 60.1 | L4: =VLOOKUP(A4,vfinx!A$2:G$122,2,0) -> 108.08
A5: 2005-05-02 | B5: 29.12 | C5: =VLOOKUP(A5,x!A$2:G$122,2,0) -> 42.6 | D5: =VLOOKUP(A5,mt!A$2:G$122,2,0) -> 23.95 | E5: =VLOOKUP(A5,msft!A$2:G$122,2,0) -> 25.23 | F5: =VLOOKUP(A5,aapl!A$2:G$122,2,0) -> 36.21 | G5: =VLOOKUP(A5,k!A$2:G$122,2,0) -> 44.6 | H5: =VLOOKUP(A5,ge!A$2:G$122,2,0) -> 36.08 | I5: =VLOOKUP(A5,bac!A$2:G$122,2,0) -> 44.83 | J5: =VLOOKUP(A5,pfe!A$2:G$122,2,0) -> 27.25 | K5: =VLOOKUP(A5,xom!A$2:G$122,2,0) -> 57 | L5: =VLOOKUP(A5,vfinx!A$2:G$122,2,0) -> 107.19
A6: 2005-06-01 | B6: 30.84 | C6: =VLOOKUP(A6,x!A$2:G$122,2,0) -> 39.77 | D6: =VLOOKUP(A6,mt!A$2:G$122,2,0) -> 25 | E6: =VLOOKUP(A6,msft!A$2:G$122,2,0) -> 25.73 | F6: =VLOOKUP(A6,aapl!A$2:G$122,2,0) -> 39.89 | G6: =VLOOKUP(A6,k!A$2:G$122,2,0) -> 45.22 | H6: =VLOOKUP(A6,ge!A$2:G$122,2,0) -> 36.48 | I6: =VLOOKUP(A6,bac!A$2:G$122,2,0) -> 45.97 | J6: =VLOOKUP(A6,pfe!A$2:G$122,2,0) -> 27.93 | K6: =VLOOKUP(A6,xom!A$2:G$122,2,0) -> 56.45 | L6: =VLOOKUP(A6,vfinx!A$2:G$122,2,0) -> 111.12
A7: 2005-07-01 | B7: 27.81 | C7: =VLOOKUP(A7,x!A$2:G$122,2,0) -> 34.55 | D7: =VLOOKUP(A7,mt!A$2:G$122,2,0) -> 23.6 | E7: =VLOOKUP(A7,msft!A$2:G$122,2,0) -> 24.85 | F7: =VLOOKUP(A7,aapl!A$2:G$122,2,0) -> 36.83 | G7: =VLOOKUP(A7,k!A$2:G$122,2,0) -> 44.58 | H7: =VLOOKUP(A7,ge!A$2:G$122,2,0) -> 34.85 | I7: =VLOOKUP(A7,bac!A$2:G$122,2,0) -> 45.61 | J7: =VLOOKUP(A7,pfe!A$2:G$122,2,0) -> 26.85 | K7: =VLOOKUP(A7,xom!A$2:G$122,2,0) -> 57.75 | L7: =VLOOKUP(A7,vfinx!A$2:G$122,2,0) -> 110.11
A8: 2005-08-01 | B8: 30.25 | C8: =VLOOKUP(A8,x!A$2:G$122,2,0) -> 42.8 | D8: =VLOOKUP(A8,mt!A$2:G$122,2,0) -> 29.02 | E8: =VLOOKUP(A8,msft!A$2:G$122,2,0) -> 25.81 | F8: =VLOOKUP(A8,aapl!A$2:G$122,2,0) -> 42.57 | G8: =VLOOKUP(A8,k!A$2:G$122,2,0) -> 45.25 | H8: =VLOOKUP(A8,ge!A$2:G$122,2,0) -> 34.57 | I8: =VLOOKUP(A8,bac!A$2:G$122,2,0) -> 43.77 | J8: =VLOOKUP(A8,pfe!A$2:G$122,2,0) -> 26.98 | K8: =VLOOKUP(A8,xom!A$2:G$122,2,0) -> 59.23 | L8: =VLOOKUP(A8,vfinx!A$2:G$122,2,0) -> 113.99
A9: 2005-09-01 | B9: 32.3 | C9: =VLOOKUP(A9,x!A$2:G$122,2,0) -> 42.51 | D9: =VLOOKUP(A9,mt!A$2:G$122,2,0) -> 28.75 | E9: =VLOOKUP(A9,msft!A$2:G$122,2,0) -> 27.38 | F9: =VLOOKUP(A9,aapl!A$2:G$122,2,0) -> 47 | G9: =VLOOKUP(A9,k!A$2:G$122,2,0) -> 45.08 | H9: =VLOOKUP(A9,ge!A$2:G$122,2,0) -> 33.43 | I9: =VLOOKUP(A9,bac!A$2:G$122,2,0) -> 43.04 | J9: =VLOOKUP(A9,pfe!A$2:G$122,2,0) -> 25.46 | K9: =VLOOKUP(A9,xom!A$2:G$122,2,0) -> 60.1 | L9: =VLOOKUP(A9,vfinx!A$2:G$122,2,0) -> 112.95
A10: 2005-10-03 | B10: 33.4 | C10: =VLOOKUP(A10,x!A$2:G$122,2,0) -> 42.35 | D10: =VLOOKUP(A10,mt!A$2:G$122,2,0) -> 29.4 | E10: =VLOOKUP(A10,msft!A$2:G$122,2,0) -> 25.71 | F10: =VLOOKUP(A10,aapl!A$2:G$122,2,0) -> 54.16 | G10: =VLOOKUP(A10,k!A$2:G$122,2,0) -> 46.07 | H10: =VLOOKUP(A10,ge!A$2:G$122,2,0) -> 33.6 | I10: =VLOOKUP(A10,bac!A$2:G$122,2,0) -> 42.47 | J10: =VLOOKUP(A10,pfe!A$2:G$122,2,0) -> 25.18 | K10: =VLOOKUP(A10,xom!A$2:G$122,2,0) -> 63.55 | L10: =VLOOKUP(A10,vfinx!A$2:G$122,2,0) -> 113
A11: 2005-11-01 | B11: 32.73 | C11: =VLOOKUP(A11,x!A$2:G$122,2,0) -> 36.6 | D11: =VLOOKUP(A11,mt!A$2:G$122,2,0) -> 25.3 | E11: =VLOOKUP(A11,msft!A$2:G$122,2,0) -> 25.61 | F11: =VLOOKUP(A11,aapl!A$2:G$122,2,0) -> 57.24 | G11: =VLOOKUP(A11,k!A$2:G$122,2,0) -> 44.17 | H11: =VLOOKUP(A11,ge!A$2:G$122,2,0) -> 33.97 | I11: =VLOOKUP(A11,bac!A$2:G$122,2,0) -> 43.75 | J11: =VLOOKUP(A11,pfe!A$2:G$122,2,0) -> 21.75 | K11: =VLOOKUP(A11,xom!A$2:G$122,2,0) -> 56.09 | L11: =VLOOKUP(A11,vfinx!A$2:G$122,2,0) -> 110.9
A12: 2005-12-01 | B12: 34.23 | C12: =VLOOKUP(A12,x!A$2:G$122,2,0) -> 47.83 | D12: =VLOOKUP(A12,mt!A$2:G$122,2,0) -> 27.8 | E12: =VLOOKUP(A12,msft!A$2:G$122,2,0) -> 27.73 | F12: =VLOOKUP(A12,aapl!A$2:G$122,2,0) -> 68.95 | G12: =VLOOKUP(A12,k!A$2:G$122,2,0) -> 44.27 | H12: =VLOOKUP(A12,ge!A$2:G$122,2,0) -> 35.85 | I12: =VLOOKUP(A12,bac!A$2:G$122,2,0) -> 46 | J12: =VLOOKUP(A12,pfe!A$2:G$122,2,0) -> 21.27 | K12: =VLOOKUP(A12,xom!A$2:G$122,2,0) -> 58.37 | L12: =VLOOKUP(A12,vfinx!A$2:G$122,2,0) -> 116.9
A13: 2006-01-03 | B13: 34.29 | C13: =VLOOKUP(A13,x!A$2:G$122,2,0) -> 48.55 | D13: =VLOOKUP(A13,mt!A$2:G$122,2,0) -> 27.25 | E13: =VLOOKUP(A13,msft!A$2:G$122,2,0) -> 26.25 | F13: =VLOOKUP(A13,aapl!A$2:G$122,2,0) -> 72.38 | G13: =VLOOKUP(A13,k!A$2:G$122,2,0) -> 43.95 | H13: =VLOOKUP(A13,ge!A$2:G$122,2,0) -> 35.1 | I13: =VLOOKUP(A13,bac!A$2:G$122,2,0) -> 46.92 | J13: =VLOOKUP(A13,pfe!A$2:G$122,2,0) -> 23.65 | K13: =VLOOKUP(A13,xom!A$2:G$122,2,0) -> 56.42 | L13: =VLOOKUP(A13,vfinx!A$2:G$122,2,0) -> 116.82
A14: 2006-02-01 | B14: 35.01 | C14: =VLOOKUP(A14,x!A$2:G$122,2,0) -> 60 | D14: =VLOOKUP(A14,mt!A$2:G$122,2,0) -> 36 | E14: =VLOOKUP(A14,msft!A$2:G$122,2,0) -> 27.96 | F14: =VLOOKUP(A14,aapl!A$2:G$122,2,0) -> 74.95 | G14: =VLOOKUP(A14,k!A$2:G$122,2,0) -> 43.15 | H14: =VLOOKUP(A14,ge!A$2:G$122,2,0) -> 32.66 | I14: =VLOOKUP(A14,bac!A$2:G$122,2,0) -> 44.1 | J14: =VLOOKUP(A14,pfe!A$2:G$122,2,0) -> 25.75 | K14: =VLOOKUP(A14,xom!A$2:G$122,2,0) -> 62.77 | L14: =VLOOKUP(A14,vfinx!A$2:G$122,2,0) -> 118.19
A15: 2006-03-01 | B15: 35 | C15: =VLOOKUP(A15,x!A$2:G$122,2,0) -> 55.3 | D15: =VLOOKUP(A15,mt!A$2:G$122,2,0) -> 33.85 | E15: =VLOOKUP(A15,msft!A$2:G$122,2,0) -> 26.98 | F15: =VLOOKUP(A15,aapl!A$2:G$122,2,0) -> 68.84 | G15: =VLOOKUP(A15,k!A$2:G$122,2,0) -> 44.24 | H15: =VLOOKUP(A15,ge!A$2:G$122,2,0) -> 32.97 | I15: =VLOOKUP(A15,bac!A$2:G$122,2,0) -> 45.35 | J15: =VLOOKUP(A15,pfe!A$2:G$122,2,0) -> 26.1 | K15: =VLOOKUP(A15,xom!A$2:G$122,2,0) -> 59.59 | L15: =VLOOKUP(A15,vfinx!A$2:G$122,2,0) -> 119.27
A16: 2006-04-03 | B16: 34.45 | C16: =VLOOKUP(A16,x!A$2:G$122,2,0) -> 61.95 | D16: =VLOOKUP(A16,mt!A$2:G$122,2,0) -> 38.4 | E16: =VLOOKUP(A16,msft!A$2:G$122,2,0) -> 27.67 | F16: =VLOOKUP(A16,aapl!A$2:G$122,2,0) -> 63.67 | G16: =VLOOKUP(A16,k!A$2:G$122,2,0) -> 44.04 | H16: =VLOOKUP(A16,ge!A$2:G$122,2,0) -> 34.79 | I16: =VLOOKUP(A16,bac!A$2:G$122,2,0) -> 45.85 | J16: =VLOOKUP(A16,pfe!A$2:G$122,2,0) -> 25.09 | K16: =VLOOKUP(A16,xom!A$2:G$122,2,0) -> 61.36 | L16: =VLOOKUP(A16,vfinx!A$2:G$122,2,0) -> 119.52
A17: 2006-05-01 | B17: 34.64 | C17: =VLOOKUP(A17,x!A$2:G$122,2,0) -> 69.6 | D17: =VLOOKUP(A17,mt!A$2:G$122,2,0) -> 37.75 | E17: =VLOOKUP(A17,msft!A$2:G$122,2,0) -> 24.32 | F17: =VLOOKUP(A17,aapl!A$2:G$122,2,0) -> 70.77 | G17: =VLOOKUP(A17,k!A$2:G$122,2,0) -> 46.16 | H17: =VLOOKUP(A17,ge!A$2:G$122,2,0) -> 34.64 | I17: =VLOOKUP(A17,bac!A$2:G$122,2,0) -> 49.84 | J17: =VLOOKUP(A17,pfe!A$2:G$122,2,0) -> 25.5 | K17: =VLOOKUP(A17,xom!A$2:G$122,2,0) -> 63.4 | L17: =VLOOKUP(A17,vfinx!A$2:G$122,2,0) -> 120.33
A18: 2006-06-01 | B18: 32.97 | C18: =VLOOKUP(A18,x!A$2:G$122,2,0) -> 65.65 | D18: =VLOOKUP(A18,mt!A$2:G$122,2,0) -> 32.9 | E18: =VLOOKUP(A18,msft!A$2:G$122,2,0) -> 22.74 | F18: =VLOOKUP(A18,aapl!A$2:G$122,2,0) -> 59.85 | G18: =VLOOKUP(A18,k!A$2:G$122,2,0) -> 47.09 | H18: =VLOOKUP(A18,ge!A$2:G$122,2,0) -> 34.3 | I18: =VLOOKUP(A18,bac!A$2:G$122,2,0) -> 48.4 | J18: =VLOOKUP(A18,pfe!A$2:G$122,2,0) -> 23.83 | K18: =VLOOKUP(A18,xom!A$2:G$122,2,0) -> 60.4 | L18: =VLOOKUP(A18,vfinx!A$2:G$122,2,0) -> 118.78
A19: 2006-07-03 | B19: 33.7 | C19: =VLOOKUP(A19,x!A$2:G$122,2,0) -> 69.4 | D19: =VLOOKUP(A19,mt!A$2:G$122,2,0) -> 30.5 | E19: =VLOOKUP(A19,msft!A$2:G$122,2,0) -> 23.53 | F19: =VLOOKUP(A19,aapl!A$2:G$122,2,0) -> 57.52 | G19: =VLOOKUP(A19,k!A$2:G$122,2,0) -> 48.08 | H19: =VLOOKUP(A19,ge!A$2:G$122,2,0) -> 33.1 | I19: =VLOOKUP(A19,bac!A$2:G$122,2,0) -> 48.19 | J19: =VLOOKUP(A19,pfe!A$2:G$122,2,0) -> 23.54 | K19: =VLOOKUP(A19,xom!A$2:G$122,2,0) -> 61.8 | L19: =VLOOKUP(A19,vfinx!A$2:G$122,2,0) -> 117.93
A20: 2006-08-01 | B20: 35.2 | C20: =VLOOKUP(A20,x!A$2:G$122,2,0) -> 63.07 | D20: =VLOOKUP(A20,mt!A$2:G$122,2,0) -> 34.56 | E20: =VLOOKUP(A20,msft!A$2:G$122,2,0) -> 24.02 | F20: =VLOOKUP(A20,aapl!A$2:G$122,2,0) -> 67.22 | G20: =VLOOKUP(A20,k!A$2:G$122,2,0) -> 47.99 | H20: =VLOOKUP(A20,ge!A$2:G$122,2,0) -> 32.65 | I20: =VLOOKUP(A20,bac!A$2:G$122,2,0) -> 51.34 | J20: =VLOOKUP(A20,pfe!A$2:G$122,2,0) -> 26.04 | K20: =VLOOKUP(A20,xom!A$2:G$122,2,0) -> 67.24 | L20: =VLOOKUP(A20,vfinx!A$2:G$122,2,0) -> 117.17
A21: 2006-09-01 | B21: 36.25 | C21: =VLOOKUP(A21,x!A$2:G$122,2,0) -> 58.73 | D21: =VLOOKUP(A21,mt!A$2:G$122,2,0) -> 34.31 | E21: =VLOOKUP(A21,msft!A$2:G$122,2,0) -> 25.89 | F21: =VLOOKUP(A21,aapl!A$2:G$122,2,0) -> 68.48 | G21: =VLOOKUP(A21,k!A$2:G$122,2,0) -> 50.53 | H21: =VLOOKUP(A21,ge!A$2:G$122,2,0) -> 34.18 | I21: =VLOOKUP(A21,bac!A$2:G$122,2,0) -> 51.83 | J21: =VLOOKUP(A21,pfe!A$2:G$122,2,0) -> 27.79 | K21: =VLOOKUP(A21,xom!A$2:G$122,2,0) -> 67.85 | L21: =VLOOKUP(A21,vfinx!A$2:G$122,2,0) -> 121.15
A22: 2006-10-02 | B22: 39.12 | C22: =VLOOKUP(A22,x!A$2:G$122,2,0) -> 57.93 | D22: =VLOOKUP(A22,mt!A$2:G$122,2,0) -> 34.66 | E22: =VLOOKUP(A22,msft!A$2:G$122,2,0) -> 27.32 | F22: =VLOOKUP(A22,aapl!A$2:G$122,2,0) -> 75.1 | G22: =VLOOKUP(A22,k!A$2:G$122,2,0) -> 49.33 | H22: =VLOOKUP(A22,ge!A$2:G$122,2,0) -> 35.4 | I22: =VLOOKUP(A22,bac!A$2:G$122,2,0) -> 53.53 | J22: =VLOOKUP(A22,pfe!A$2:G$122,2,0) -> 28.2 | K22: =VLOOKUP(A22,xom!A$2:G$122,2,0) -> 67.29 | L22: =VLOOKUP(A22,vfinx!A$2:G$122,2,0) -> 122.62
A23: 2006-11-01 | B23: 42.15 | C23: =VLOOKUP(A23,x!A$2:G$122,2,0) -> 67.7 | D23: =VLOOKUP(A23,mt!A$2:G$122,2,0) -> 43.4 | E23: =VLOOKUP(A23,msft!A$2:G$122,2,0) -> 28.78 | F23: =VLOOKUP(A23,aapl!A$2:G$122,2,0) -> 81.1 | G23: =VLOOKUP(A23,k!A$2:G$122,2,0) -> 50.24 | H23: =VLOOKUP(A23,ge!A$2:G$122,2,0) -> 35.2 | I23: =VLOOKUP(A23,bac!A$2:G$122,2,0) -> 54.15 | J23: =VLOOKUP(A23,pfe!A$2:G$122,2,0) -> 26.7 | K23: =VLOOKUP(A23,xom!A$2:G$122,2,0) -> 71.58 | L23: =VLOOKUP(A23,vfinx!A$2:G$122,2,0) -> 126.12
A24: 2006-12-01 | B24: 42.18 | C24: =VLOOKUP(A24,x!A$2:G$122,2,0) -> 74.17 | D24: =VLOOKUP(A24,mt!A$2:G$122,2,0) -> 41.2 | E24: =VLOOKUP(A24,msft!A$2:G$122,2,0) -> 29.23 | F24: =VLOOKUP(A24,aapl!A$2:G$122,2,0) -> 91.8 | G24: =VLOOKUP(A24,k!A$2:G$122,2,0) -> 49.64 | H24: =VLOOKUP(A24,ge!A$2:G$122,2,0) -> 35.38 | I24: =VLOOKUP(A24,bac!A$2:G$122,2,0) -> 53.83 | J24: =VLOOKUP(A24,pfe!A$2:G$122,2,0) -> 27.61 | K24: =VLOOKUP(A24,xom!A$2:G$122,2,0) -> 76.78 | L24: =VLOOKUP(A24,vfinx!A$2:G$122,2,0) -> 129.08
A25: 2007-01-03 | B25: 43.65 | C25: =VLOOKUP(A25,x!A$2:G$122,2,0) -> 72.55 | D25: =VLOOKUP(A25,mt!A$2:G$122,2,0) -> 41.95 | E25: =VLOOKUP(A25,msft!A$2:G$122,2,0) -> 29.91 | F25: =VLOOKUP(A25,aapl!A$2:G$122,2,0) -> 86.29 | G25: =VLOOKUP(A25,k!A$2:G$122,2,0) -> 50.29 | H25: =VLOOKUP(A25,ge!A$2:G$122,2,0) -> 37.41 | I25: =VLOOKUP(A25,bac!A$2:G$122,2,0) -> 53.4 | J25: =VLOOKUP(A25,pfe!A$2:G$122,2,0) -> 26.15 | K25: =VLOOKUP(A25,xom!A$2:G$122,2,0) -> 76.26 | L25: =VLOOKUP(A25,vfinx!A$2:G$122,2,0) -> 130.45
A26: 2007-02-01 | B26: 44.26 | C26: =VLOOKUP(A26,x!A$2:G$122,2,0) -> 84.37 | D26: =VLOOKUP(A26,mt!A$2:G$122,2,0) -> 47.96 | E26: =VLOOKUP(A26,msft!A$2:G$122,2,0) -> 30.84 | F26: =VLOOKUP(A26,aapl!A$2:G$122,2,0) -> 86.23 | G26: =VLOOKUP(A26,k!A$2:G$122,2,0) -> 49.27 | H26: =VLOOKUP(A26,ge!A$2:G$122,2,0) -> 36.18 | I26: =VLOOKUP(A26,bac!A$2:G$122,2,0) -> 52.76 | J26: =VLOOKUP(A26,pfe!A$2:G$122,2,0) -> 26.39 | K26: =VLOOKUP(A26,xom!A$2:G$122,2,0) -> 74.58 | L26: =VLOOKUP(A26,vfinx!A$2:G$122,2,0) -> 133.28
A27: 2007-03-01 | B27: 43.49 | C27: =VLOOKUP(A27,x!A$2:G$122,2,0) -> 86.25 | D27: =VLOOKUP(A27,mt!A$2:G$122,2,0) -> 49.91 | E27: =VLOOKUP(A27,msft!A$2:G$122,2,0) -> 27.82 | F27: =VLOOKUP(A27,aapl!A$2:G$122,2,0) -> 84.03 | G27: =VLOOKUP(A27,k!A$2:G$122,2,0) -> 49.58 | H27: =VLOOKUP(A27,ge!A$2:G$122,2,0) -> 34.61 | I27: =VLOOKUP(A27,bac!A$2:G$122,2,0) -> 50.25 | J27: =VLOOKUP(A27,pfe!A$2:G$122,2,0) -> 24.85 | K27: =VLOOKUP(A27,xom!A$2:G$122,2,0) -> 70.9 | L27: =VLOOKUP(A27,vfinx!A$2:G$122,2,0) -> 129.6
A28: 2007-04-02 | B28: 44.28 | C28: =VLOOKUP(A28,x!A$2:G$122,2,0) -> 99.3 | D28: =VLOOKUP(A28,mt!A$2:G$122,2,0) -> 53.39 | E28: =VLOOKUP(A28,msft!A$2:G$122,2,0) -> 27.89 | F28: =VLOOKUP(A28,aapl!A$2:G$122,2,0) -> 94.14 | G28: =VLOOKUP(A28,k!A$2:G$122,2,0) -> 51.37 | H28: =VLOOKUP(A28,ge!A$2:G$122,2,0) -> 35.36 | I28: =VLOOKUP(A28,bac!A$2:G$122,2,0) -> 51.2 | J28: =VLOOKUP(A28,pfe!A$2:G$122,2,0) -> 25.23 | K28: =VLOOKUP(A28,xom!A$2:G$122,2,0) -> 75.35 | L28: =VLOOKUP(A28,vfinx!A$2:G$122,2,0) -> 131.17
A29: 2007-05-01 | B29: 48.21 | C29: =VLOOKUP(A29,x!A$2:G$122,2,0) -> 101.76 | D29: =VLOOKUP(A29,mt!A$2:G$122,2,0) -> 53.45 | E29: =VLOOKUP(A29,msft!A$2:G$122,2,0) -> 29.94 | F29: =VLOOKUP(A29,aapl!A$2:G$122,2,0) -> 99.59 | G29: =VLOOKUP(A29,k!A$2:G$122,2,0) -> 53.12 | H29: =VLOOKUP(A29,ge!A$2:G$122,2,0) -> 36.82 | I29: =VLOOKUP(A29,bac!A$2:G$122,2,0) -> 51 | J29: =VLOOKUP(A29,pfe!A$2:G$122,2,0) -> 26.36 | K29: =VLOOKUP(A29,xom!A$2:G$122,2,0) -> 79.5 | L29: =VLOOKUP(A29,vfinx!A$2:G$122,2,0) -> 136.97
A30: 2007-06-01 | B30: 50.56 | C30: =VLOOKUP(A30,x!A$2:G$122,2,0) -> 114.1 | D30: =VLOOKUP(A30,mt!A$2:G$122,2,0) -> 60.9 | E30: =VLOOKUP(A30,msft!A$2:G$122,2,0) -> 30.79 | F30: =VLOOKUP(A30,aapl!A$2:G$122,2,0) -> 121.1 | G30: =VLOOKUP(A30,k!A$2:G$122,2,0) -> 54.05 | H30: =VLOOKUP(A30,ge!A$2:G$122,2,0) -> 37.68 | I30: =VLOOKUP(A30,bac!A$2:G$122,2,0) -> 50.75 | J30: =VLOOKUP(A30,pfe!A$2:G$122,2,0) -> 27.53 | K30: =VLOOKUP(A30,xom!A$2:G$122,2,0) -> 83.56 | L30: =VLOOKUP(A30,vfinx!A$2:G$122,2,0) -> 141.89
A31: 2007-07-02 | B31: 51.19 | C31: =VLOOKUP(A31,x!A$2:G$122,2,0) -> 110 | D31: =VLOOKUP(A31,mt!A$2:G$122,2,0) -> 63.77 | E31: =VLOOKUP(A31,msft!A$2:G$122,2,0) -> 29.67 | F31: =VLOOKUP(A31,aapl!A$2:G$122,2,0) -> 121.05 | G31: =VLOOKUP(A31,k!A$2:G$122,2,0) -> 51.83 | H31: =VLOOKUP(A31,ge!A$2:G$122,2,0) -> 38.42 | I31: =VLOOKUP(A31,bac!A$2:G$122,2,0) -> 49.15 | J31: =VLOOKUP(A31,pfe!A$2:G$122,2,0) -> 25.7 | K31: =VLOOKUP(A31,xom!A$2:G$122,2,0) -> 84.5 | L31: =VLOOKUP(A31,vfinx!A$2:G$122,2,0) -> 139.91
A32: 2007-08-01 | B32: 47.68 | C32: =VLOOKUP(A32,x!A$2:G$122,2,0) -> 97.81 | D32: =VLOOKUP(A32,mt!A$2:G$122,2,0) -> 64.29 | E32: =VLOOKUP(A32,msft!A$2:G$122,2,0) -> 28.95 | F32: =VLOOKUP(A32,aapl!A$2:G$122,2,0) -> 133.64 | G32: =VLOOKUP(A32,k!A$2:G$122,2,0) -> 51.02 | H32: =VLOOKUP(A32,ge!A$2:G$122,2,0) -> 38.6 | I32: =VLOOKUP(A32,bac!A$2:G$122,2,0) -> 47.3 | J32: =VLOOKUP(A32,pfe!A$2:G$122,2,0) -> 23.51 | K32: =VLOOKUP(A32,xom!A$2:G$122,2,0) -> 84.99 | L32: =VLOOKUP(A32,vfinx!A$2:G$122,2,0) -> 135.13
A33: 2007-09-04 | B33: 49.13 | C33: =VLOOKUP(A33,x!A$2:G$122,2,0) -> 93.34 | D33: =VLOOKUP(A33,mt!A$2:G$122,2,0) -> 65.62 | E33: =VLOOKUP(A33,msft!A$2:G$122,2,0) -> 28.5 | F33: =VLOOKUP(A33,aapl!A$2:G$122,2,0) -> 139.94 | G33: =VLOOKUP(A33,k!A$2:G$122,2,0) -> 55 | H33: =VLOOKUP(A33,ge!A$2:G$122,2,0) -> 38.84 | I33: =VLOOKUP(A33,bac!A$2:G$122,2,0) -> 50.62 | J33: =VLOOKUP(A33,pfe!A$2:G$122,2,0) -> 24.78 | K33: =VLOOKUP(A33,xom!A$2:G$122,2,0) -> 85.31 | L33: =VLOOKUP(A33,vfinx!A$2:G$122,2,0) -> 137.58
A34: 2007-10-01 | B34: 54.75 | C34: =VLOOKUP(A34,x!A$2:G$122,2,0) -> 106.5 | D34: =VLOOKUP(A34,mt!A$2:G$122,2,0) -> 78.79 | E34: =VLOOKUP(A34,msft!A$2:G$122,2,0) -> 29.46 | F34: =VLOOKUP(A34,aapl!A$2:G$122,2,0) -> 154.63 | G34: =VLOOKUP(A34,k!A$2:G$122,2,0) -> 55.89 | H34: =VLOOKUP(A34,ge!A$2:G$122,2,0) -> 41.28 | I34: =VLOOKUP(A34,bac!A$2:G$122,2,0) -> 50.04 | J34: =VLOOKUP(A34,pfe!A$2:G$122,2,0) -> 24.45 | K34: =VLOOKUP(A34,xom!A$2:G$122,2,0) -> 92.45 | L34: =VLOOKUP(A34,vfinx!A$2:G$122,2,0) -> 142.48
A35: 2007-11-01 | B35: 59.35 | C35: =VLOOKUP(A35,x!A$2:G$122,2,0) -> 106.37 | D35: =VLOOKUP(A35,mt!A$2:G$122,2,0) -> 77.09 | E35: =VLOOKUP(A35,msft!A$2:G$122,2,0) -> 36.53 | F35: =VLOOKUP(A35,aapl!A$2:G$122,2,0) -> 188.6 | G35: =VLOOKUP(A35,k!A$2:G$122,2,0) -> 52.5 | H35: =VLOOKUP(A35,ge!A$2:G$122,2,0) -> 40.89 | I35: =VLOOKUP(A35,bac!A$2:G$122,2,0) -> 46.75 | J35: =VLOOKUP(A35,pfe!A$2:G$122,2,0) -> 24.58 | K35: =VLOOKUP(A35,xom!A$2:G$122,2,0) -> 89.83 | L35: =VLOOKUP(A35,vfinx!A$2:G$122,2,0) -> 139.1
A36: 2007-12-03 | B36: 58.45 | C36: =VLOOKUP(A36,x!A$2:G$122,2,0) -> 98.46 | D36: =VLOOKUP(A36,mt!A$2:G$122,2,0) -> 73.09 | E36: =VLOOKUP(A36,msft!A$2:G$122,2,0) -> 33.5 | F36: =VLOOKUP(A36,aapl!A$2:G$122,2,0) -> 181.86 | G36: =VLOOKUP(A36,k!A$2:G$122,2,0) -> 54.35 | H36: =VLOOKUP(A36,ge!A$2:G$122,2,0) -> 38.2 | I36: =VLOOKUP(A36,bac!A$2:G$122,2,0) -> 46.25 | J36: =VLOOKUP(A36,pfe!A$2:G$122,2,0) -> 23.62 | K36: =VLOOKUP(A36,xom!A$2:G$122,2,0) -> 88.97 | L36: =VLOOKUP(A36,vfinx!A$2:G$122,2,0) -> 136.05
A37: 2008-01-02 | B37: 59.48 | C37: =VLOOKUP(A37,x!A$2:G$122,2,0) -> 120.59 | D37: =VLOOKUP(A37,mt!A$2:G$122,2,0) -> 78.36 | E37: =VLOOKUP(A37,msft!A$2:G$122,2,0) -> 35.79 | F37: =VLOOKUP(A37,aapl!A$2:G$122,2,0) -> 199.27 | G37: =VLOOKUP(A37,k!A$2:G$122,2,0) -> 52.3 | H37: =VLOOKUP(A37,ge!A$2:G$122,2,0) -> 37.1 | I37: =VLOOKUP(A37,bac!A$2:G$122,2,0) -> 41.53 | J37: =VLOOKUP(A37,pfe!A$2:G$122,2,0) -> 22.76 | K37: =VLOOKUP(A37,xom!A$2:G$122,2,0) -> 94.15 | L37: =VLOOKUP(A37,vfinx!A$2:G$122,2,0) -> 133.22
A38: 2008-02-01 | B38: 53.67 | C38: =VLOOKUP(A38,x!A$2:G$122,2,0) -> 104.26 | D38: =VLOOKUP(A38,mt!A$2:G$122,2,0) -> 68.65 | E38: =VLOOKUP(A38,msft!A$2:G$122,2,0) -> 31.06 | F38: =VLOOKUP(A38,aapl!A$2:G$122,2,0) -> 136.24 | G38: =VLOOKUP(A38,k!A$2:G$122,2,0) -> 48.18 | H38: =VLOOKUP(A38,ge!A$2:G$122,2,0) -> 35.59 | I38: =VLOOKUP(A38,bac!A$2:G$122,2,0) -> 44.12 | J38: =VLOOKUP(A38,pfe!A$2:G$122,2,0) -> 23.4 | K38: =VLOOKUP(A38,xom!A$2:G$122,2,0) -> 87.7 | L38: =VLOOKUP(A38,vfinx!A$2:G$122,2,0) -> 128.58
A39: 2008-03-03 | B39: 53.98 | C39: =VLOOKUP(A39,x!A$2:G$122,2,0) -> 108.54 | D39: =VLOOKUP(A39,mt!A$2:G$122,2,0) -> 76.58 | E39: =VLOOKUP(A39,msft!A$2:G$122,2,0) -> 27.24 | F39: =VLOOKUP(A39,aapl!A$2:G$122,2,0) -> 124.44 | G39: =VLOOKUP(A39,k!A$2:G$122,2,0) -> 50.75 | H39: =VLOOKUP(A39,ge!A$2:G$122,2,0) -> 33.34 | I39: =VLOOKUP(A39,bac!A$2:G$122,2,0) -> 39.74 | J39: =VLOOKUP(A39,pfe!A$2:G$122,2,0) -> 22.42 | K39: =VLOOKUP(A39,xom!A$2:G$122,2,0) -> 86.83 | L39: =VLOOKUP(A39,vfinx!A$2:G$122,2,0) -> 122.95
A40: 2008-04-01 | B40: 56.04 | C40: =VLOOKUP(A40,x!A$2:G$122,2,0) -> 125.37 | D40: =VLOOKUP(A40,mt!A$2:G$122,2,0) -> 80.53 | E40: =VLOOKUP(A40,msft!A$2:G$122,2,0) -> 28.83 | F40: =VLOOKUP(A40,aapl!A$2:G$122,2,0) -> 146.3 | G40: =VLOOKUP(A40,k!A$2:G$122,2,0) -> 52.78 | H40: =VLOOKUP(A40,ge!A$2:G$122,2,0) -> 37.36 | I40: =VLOOKUP(A40,bac!A$2:G$122,2,0) -> 39.26 | J40: =VLOOKUP(A40,pfe!A$2:G$122,2,0) -> 21.05 | K40: =VLOOKUP(A40,xom!A$2:G$122,2,0) -> 84.8 | L40: =VLOOKUP(A40,vfinx!A$2:G$122,2,0) -> 126.12
A41: 2008-05-01 | B41: 59.54 | C41: =VLOOKUP(A41,x!A$2:G$122,2,0) -> 153.49 | D41: =VLOOKUP(A41,mt!A$2:G$122,2,0) -> 89.08 | E41: =VLOOKUP(A41,msft!A$2:G$122,2,0) -> 28.5 | F41: =VLOOKUP(A41,aapl!A$2:G$122,2,0) -> 174.96 | G41: =VLOOKUP(A41,k!A$2:G$122,2,0) -> 50.7 | H41: =VLOOKUP(A41,ge!A$2:G$122,2,0) -> 32.8 | I41: =VLOOKUP(A41,bac!A$2:G$122,2,0) -> 37.66 | J41: =VLOOKUP(A41,pfe!A$2:G$122,2,0) -> 20.17 | K41: =VLOOKUP(A41,xom!A$2:G$122,2,0) -> 90.1 | L41: =VLOOKUP(A41,vfinx!A$2:G$122,2,0) -> 129.88
A42: 2008-06-02 | B42: 59.12 | C42: =VLOOKUP(A42,x!A$2:G$122,2,0) -> 172 | D42: =VLOOKUP(A42,mt!A$2:G$122,2,0) -> 97.35 | E42: =VLOOKUP(A42,msft!A$2:G$122,2,0) -> 28.24 | F42: =VLOOKUP(A42,aapl!A$2:G$122,2,0) -> 188.6 | G42: =VLOOKUP(A42,k!A$2:G$122,2,0) -> 51.76 | H42: =VLOOKUP(A42,ge!A$2:G$122,2,0) -> 30.75 | I42: =VLOOKUP(A42,bac!A$2:G$122,2,0) -> 33.84 | J42: =VLOOKUP(A42,pfe!A$2:G$122,2,0) -> 19.43 | K42: =VLOOKUP(A42,xom!A$2:G$122,2,0) -> 88.09 | L42: =VLOOKUP(A42,vfinx!A$2:G$122,2,0) -> 127.96
A43: 2008-07-01 | B43: 55.87 | C43: =VLOOKUP(A43,x!A$2:G$122,2,0) -> 182.01 | D43: =VLOOKUP(A43,mt!A$2:G$122,2,0) -> 94.77 | E43: =VLOOKUP(A43,msft!A$2:G$122,2,0) -> 27.27 | F43: =VLOOKUP(A43,aapl!A$2:G$122,2,0) -> 164.23 | G43: =VLOOKUP(A43,k!A$2:G$122,2,0) -> 47.62 | H43: =VLOOKUP(A43,ge!A$2:G$122,2,0) -> 26.42 | I43: =VLOOKUP(A43,bac!A$2:G$122,2,0) -> 23.31 | J43: =VLOOKUP(A43,pfe!A$2:G$122,2,0) -> 17.43 | K43: =VLOOKUP(A43,xom!A$2:G$122,2,0) -> 87.87 | L43: =VLOOKUP(A43,vfinx!A$2:G$122,2,0) -> 118.31
A44: 2008-08-01 | B44: 59.83 | C44: =VLOOKUP(A44,x!A$2:G$122,2,0) -> 160 | D44: =VLOOKUP(A44,mt!A$2:G$122,2,0) -> 86.89 | E44: =VLOOKUP(A44,msft!A$2:G$122,2,0) -> 25.92 | F44: =VLOOKUP(A44,aapl!A$2:G$122,2,0) -> 159.9 | G44: =VLOOKUP(A44,k!A$2:G$122,2,0) -> 53.15 | H44: =VLOOKUP(A44,ge!A$2:G$122,2,0) -> 28.43 | I44: =VLOOKUP(A44,bac!A$2:G$122,2,0) -> 33.2 | J44: =VLOOKUP(A44,pfe!A$2:G$122,2,0) -> 18.81 | K44: =VLOOKUP(A44,xom!A$2:G$122,2,0) -> 80.55 | L44: =VLOOKUP(A44,vfinx!A$2:G$122,2,0) -> 116.2
A45: 2008-09-02 | B45: 62.39 | C45: =VLOOKUP(A45,x!A$2:G$122,2,0) -> 127.8 | D45: =VLOOKUP(A45,mt!A$2:G$122,2,0) -> 73.01 | E45: =VLOOKUP(A45,msft!A$2:G$122,2,0) -> 27.67 | F45: =VLOOKUP(A45,aapl!A$2:G$122,2,0) -> 172.4 | G45: =VLOOKUP(A45,k!A$2:G$122,2,0) -> 54.83 | H45: =VLOOKUP(A45,ge!A$2:G$122,2,0) -> 28.54 | I45: =VLOOKUP(A45,bac!A$2:G$122,2,0) -> 32.73 | J45: =VLOOKUP(A45,pfe!A$2:G$122,2,0) -> 19.3 | K45: =VLOOKUP(A45,xom!A$2:G$122,2,0) -> 78.04 | L45: =VLOOKUP(A45,vfinx!A$2:G$122,2,0) -> 118.05
A46: 2008-10-01 | B46: 61.18 | C46: =VLOOKUP(A46,x!A$2:G$122,2,0) -> 77.11 | D46: =VLOOKUP(A46,mt!A$2:G$122,2,0) -> 48.77 | E46: =VLOOKUP(A46,msft!A$2:G$122,2,0) -> 26.38 | F46: =VLOOKUP(A46,aapl!A$2:G$122,2,0) -> 111.92 | G46: =VLOOKUP(A46,k!A$2:G$122,2,0) -> 55.76 | H46: =VLOOKUP(A46,ge!A$2:G$122,2,0) -> 24 | I46: =VLOOKUP(A46,bac!A$2:G$122,2,0) -> 34.57 | J46: =VLOOKUP(A46,pfe!A$2:G$122,2,0) -> 18.26 | K46: =VLOOKUP(A46,xom!A$2:G$122,2,0) -> 77.19 | L46: =VLOOKUP(A46,vfinx!A$2:G$122,2,0) -> 106.9
A47: 2008-11-03 | B47: 58.41 | C47: =VLOOKUP(A47,x!A$2:G$122,2,0) -> 37.07 | D47: =VLOOKUP(A47,mt!A$2:G$122,2,0) -> 26.39 | E47: =VLOOKUP(A47,msft!A$2:G$122,2,0) -> 22.48 | F47: =VLOOKUP(A47,aapl!A$2:G$122,2,0) -> 105.93 | G47: =VLOOKUP(A47,k!A$2:G$122,2,0) -> 50.63 | H47: =VLOOKUP(A47,ge!A$2:G$122,2,0) -> 19.78 | I47: =VLOOKUP(A47,bac!A$2:G$122,2,0) -> 23.97 | J47: =VLOOKUP(A47,pfe!A$2:G$122,2,0) -> 17.85 | K47: =VLOOKUP(A47,xom!A$2:G$122,2,0) -> 73.45 | L47: =VLOOKUP(A47,vfinx!A$2:G$122,2,0) -> 89.12
A48: 2008-12-01 | B48: 58.07 | C48: =VLOOKUP(A48,x!A$2:G$122,2,0) -> 28.7 | D48: =VLOOKUP(A48,mt!A$2:G$122,2,0) -> 21.91 | E48: =VLOOKUP(A48,msft!A$2:G$122,2,0) -> 19.88 | F48: =VLOOKUP(A48,aapl!A$2:G$122,2,0) -> 91.3 | G48: =VLOOKUP(A48,k!A$2:G$122,2,0) -> 42.77 | H48: =VLOOKUP(A48,ge!A$2:G$122,2,0) -> 16.36 | I48: =VLOOKUP(A48,bac!A$2:G$122,2,0) -> 15.59 | J48: =VLOOKUP(A48,pfe!A$2:G$122,2,0) -> 16.18 | K48: =VLOOKUP(A48,xom!A$2:G$122,2,0) -> 77.89 | L48: =VLOOKUP(A48,vfinx!A$2:G$122,2,0) -> 75.54
A49: 2009-01-02 | B49: 62.38 | C49: =VLOOKUP(A49,x!A$2:G$122,2,0) -> 37.72 | D49: =VLOOKUP(A49,mt!A$2:G$122,2,0) -> 24.8 | E49: =VLOOKUP(A49,msft!A$2:G$122,2,0) -> 19.53 | F49: =VLOOKUP(A49,aapl!A$2:G$122,2,0) -> 85.88 | G49: =VLOOKUP(A49,k!A$2:G$122,2,0) -> 43.98 | H49: =VLOOKUP(A49,ge!A$2:G$122,2,0) -> 16.51 | I49: =VLOOKUP(A49,bac!A$2:G$122,2,0) -> 13.92 | J49: =VLOOKUP(A49,pfe!A$2:G$122,2,0) -> 17.88 | K49: =VLOOKUP(A49,xom!A$2:G$122,2,0) -> 80.06 | L49: =VLOOKUP(A49,vfinx!A$2:G$122,2,0) -> 85.75
A50: 2009-02-02 | B50: 57.62 | C50: =VLOOKUP(A50,x!A$2:G$122,2,0) -> 29.34 | D50: =VLOOKUP(A50,mt!A$2:G$122,2,0) -> 22.05 | E50: =VLOOKUP(A50,msft!A$2:G$122,2,0) -> 17.03 | F50: =VLOOKUP(A50,aapl!A$2:G$122,2,0) -> 89.1 | G50: =VLOOKUP(A50,k!A$2:G$122,2,0) -> 43.03 | H50: =VLOOKUP(A50,ge!A$2:G$122,2,0) -> 12.03 | I50: =VLOOKUP(A50,bac!A$2:G$122,2,0) -> 6.2 | J50: =VLOOKUP(A50,pfe!A$2:G$122,2,0) -> 14.63 | K50: =VLOOKUP(A50,xom!A$2:G$122,2,0) -> 76.06 | L50: =VLOOKUP(A50,vfinx!A$2:G$122,2,0) -> 76.05
A51: 2009-03-02 | B51: 51.8 | C51: =VLOOKUP(A51,x!A$2:G$122,2,0) -> 19.2 | D51: =VLOOKUP(A51,mt!A$2:G$122,2,0) -> 18.6 | E51: =VLOOKUP(A51,msft!A$2:G$122,2,0) -> 15.96 | F51: =VLOOKUP(A51,aapl!A$2:G$122,2,0) -> 88.12 | G51: =VLOOKUP(A51,k!A$2:G$122,2,0) -> 38.33 | H51: =VLOOKUP(A51,ge!A$2:G$122,2,0) -> 8.29 | I51: =VLOOKUP(A51,bac!A$2:G$122,2,0) -> 3.61 | J51: =VLOOKUP(A51,pfe!A$2:G$122,2,0) -> 12.08 | K51: =VLOOKUP(A51,xom!A$2:G$122,2,0) -> 67 | L51: =VLOOKUP(A51,vfinx!A$2:G$122,2,0) -> 64.83
A52: 2009-04-01 | B52: 54.3 | C52: =VLOOKUP(A52,x!A$2:G$122,2,0) -> 20.5 | D52: =VLOOKUP(A52,mt!A$2:G$122,2,0) -> 19.94 | E52: =VLOOKUP(A52,msft!A$2:G$122,2,0) -> 18.23 | F52: =VLOOKUP(A52,aapl!A$2:G$122,2,0) -> 104.09 | G52: =VLOOKUP(A52,k!A$2:G$122,2,0) -> 36.29 | H52: =VLOOKUP(A52,ge!A$2:G$122,2,0) -> 9.91 | I52: =VLOOKUP(A52,bac!A$2:G$122,2,0) -> 6.45 | J52: =VLOOKUP(A52,pfe!A$2:G$122,2,0) -> 13.59 | K52: =VLOOKUP(A52,xom!A$2:G$122,2,0) -> 67.04 | L52: =VLOOKUP(A52,vfinx!A$2:G$122,2,0) -> 74.67
A53: 2009-05-01 | B53: 53.21 | C53: =VLOOKUP(A53,x!A$2:G$122,2,0) -> 26.64 | D53: =VLOOKUP(A53,mt!A$2:G$122,2,0) -> 23.68 | E53: =VLOOKUP(A53,msft!A$2:G$122,2,0) -> 20.19 | F53: =VLOOKUP(A53,aapl!A$2:G$122,2,0) -> 125.8 | G53: =VLOOKUP(A53,k!A$2:G$122,2,0) -> 42.18 | H53: =VLOOKUP(A53,ge!A$2:G$122,2,0) -> 12.74 | I53: =VLOOKUP(A53,bac!A$2:G$122,2,0) -> 8.79 | J53: =VLOOKUP(A53,pfe!A$2:G$122,2,0) -> 13.39 | K53: =VLOOKUP(A53,xom!A$2:G$122,2,0) -> 67.13 | L53: =VLOOKUP(A53,vfinx!A$2:G$122,2,0) -> 80.9
A54: 2009-06-01 | B54: 59.18 | C54: =VLOOKUP(A54,x!A$2:G$122,2,0) -> 35.58 | D54: =VLOOKUP(A54,mt!A$2:G$122,2,0) -> 35.32 | E54: =VLOOKUP(A54,msft!A$2:G$122,2,0) -> 21 | F54: =VLOOKUP(A54,aapl!A$2:G$122,2,0) -> 136.47 | G54: =VLOOKUP(A54,k!A$2:G$122,2,0) -> 43.63 | H54: =VLOOKUP(A54,ge!A$2:G$122,2,0) -> 13.82 | I54: =VLOOKUP(A54,bac!A$2:G$122,2,0) -> 11.41 | J54: =VLOOKUP(A54,pfe!A$2:G$122,2,0) -> 15.36 | K54: =VLOOKUP(A54,xom!A$2:G$122,2,0) -> 70.46 | L54: =VLOOKUP(A54,vfinx!A$2:G$122,2,0) -> 87.17
A55: 2009-07-01 | B55: 57.65 | C55: =VLOOKUP(A55,x!A$2:G$122,2,0) -> 36.36 | D55: =VLOOKUP(A55,mt!A$2:G$122,2,0) -> 33.96 | E55: =VLOOKUP(A55,msft!A$2:G$122,2,0) -> 24.05 | F55: =VLOOKUP(A55,aapl!A$2:G$122,2,0) -> 143.5 | G55: =VLOOKUP(A55,k!A$2:G$122,2,0) -> 46.91 | H55: =VLOOKUP(A55,ge!A$2:G$122,2,0) -> 11.76 | I55: =VLOOKUP(A55,bac!A$2:G$122,2,0) -> 13.27 | J55: =VLOOKUP(A55,pfe!A$2:G$122,2,0) -> 14.97 | K55: =VLOOKUP(A55,xom!A$2:G$122,2,0) -> 70.67 | L55: =VLOOKUP(A55,vfinx!A$2:G$122,2,0) -> 85.1
A56: 2009-08-03 | B56: 55.11 | C56: =VLOOKUP(A56,x!A$2:G$122,2,0) -> 41.17 | D56: =VLOOKUP(A56,mt!A$2:G$122,2,0) -> 37.65 | E56: =VLOOKUP(A56,msft!A$2:G$122,2,0) -> 23.82 | F56: =VLOOKUP(A56,aapl!A$2:G$122,2,0) -> 165.21 | G56: =VLOOKUP(A56,k!A$2:G$122,2,0) -> 47.8 | H56: =VLOOKUP(A56,ge!A$2:G$122,2,0) -> 13.65 | I56: =VLOOKUP(A56,bac!A$2:G$122,2,0) -> 15.24 | J56: =VLOOKUP(A56,pfe!A$2:G$122,2,0) -> 16.12 | K56: =VLOOKUP(A56,xom!A$2:G$122,2,0) -> 70.96 | L56: =VLOOKUP(A56,vfinx!A$2:G$122,2,0) -> 92.54
A57: 2009-09-01 | B57: 56.05 | C57: =VLOOKUP(A57,x!A$2:G$122,2,0) -> 43.39 | D57: =VLOOKUP(A57,mt!A$2:G$122,2,0) -> 35.08 | E57: =VLOOKUP(A57,msft!A$2:G$122,2,0) -> 24.35 | F57: =VLOOKUP(A57,aapl!A$2:G$122,2,0) -> 167.99 | G57: =VLOOKUP(A57,k!A$2:G$122,2,0) -> 46.91 | H57: =VLOOKUP(A57,ge!A$2:G$122,2,0) -> 13.74 | I57: =VLOOKUP(A57,bac!A$2:G$122,2,0) -> 17.7 | J57: =VLOOKUP(A57,pfe!A$2:G$122,2,0) -> 16.54 | K57: =VLOOKUP(A57,xom!A$2:G$122,2,0) -> 68.93 | L57: =VLOOKUP(A57,vfinx!A$2:G$122,2,0) -> 92.33
A58: 2009-10-01 | B58: 56.99 | C58: =VLOOKUP(A58,x!A$2:G$122,2,0) -> 44.04 | D58: =VLOOKUP(A58,mt!A$2:G$122,2,0) -> 36.61 | E58: =VLOOKUP(A58,msft!A$2:G$122,2,0) -> 25.41 | F58: =VLOOKUP(A58,aapl!A$2:G$122,2,0) -> 185.35 | G58: =VLOOKUP(A58,k!A$2:G$122,2,0) -> 49.1 | H58: =VLOOKUP(A58,ge!A$2:G$122,2,0) -> 16.31 | I58: =VLOOKUP(A58,bac!A$2:G$122,2,0) -> 16.96 | J58: =VLOOKUP(A58,pfe!A$2:G$122,2,0) -> 16.5 | K58: =VLOOKUP(A58,xom!A$2:G$122,2,0) -> 68.39 | L58: =VLOOKUP(A58,vfinx!A$2:G$122,2,0) -> 94.94
A59: 2009-11-02 | B59: 58.84 | C59: =VLOOKUP(A59,x!A$2:G$122,2,0) -> 35.07 | D59: =VLOOKUP(A59,mt!A$2:G$122,2,0) -> 33.78 | E59: =VLOOKUP(A59,msft!A$2:G$122,2,0) -> 27.7 | F59: =VLOOKUP(A59,aapl!A$2:G$122,2,0) -> 189.8 | G59: =VLOOKUP(A59,k!A$2:G$122,2,0) -> 51.53 | H59: =VLOOKUP(A59,ge!A$2:G$122,2,0) -> 14.3 | I59: =VLOOKUP(A59,bac!A$2:G$122,2,0) -> 14.85 | J59: =VLOOKUP(A59,pfe!A$2:G$122,2,0) -> 17.05 | K59: =VLOOKUP(A59,xom!A$2:G$122,2,0) -> 72.05 | L59: =VLOOKUP(A59,vfinx!A$2:G$122,2,0) -> 96.25
A60: 2009-12-01 | B60: 63.64 | C60: =VLOOKUP(A60,x!A$2:G$122,2,0) -> 45.61 | D60: =VLOOKUP(A60,mt!A$2:G$122,2,0) -> 39.99 | E60: =VLOOKUP(A60,msft!A$2:G$122,2,0) -> 29.52 | F60: =VLOOKUP(A60,aapl!A$2:G$122,2,0) -> 202.24 | G60: =VLOOKUP(A60,k!A$2:G$122,2,0) -> 52.7 | H60: =VLOOKUP(A60,ge!A$2:G$122,2,0) -> 16.27 | I60: =VLOOKUP(A60,bac!A$2:G$122,2,0) -> 16.04 | J60: =VLOOKUP(A60,pfe!A$2:G$122,2,0) -> 18.54 | K60: =VLOOKUP(A60,xom!A$2:G$122,2,0) -> 76 | L60: =VLOOKUP(A60,vfinx!A$2:G$122,2,0) -> 102.58
A61: 2010-01-04 | B61: 62.63 | C61: =VLOOKUP(A61,x!A$2:G$122,2,0) -> 56.42 | D61: =VLOOKUP(A61,mt!A$2:G$122,2,0) -> 47.43 | E61: =VLOOKUP(A61,msft!A$2:G$122,2,0) -> 30.62 | F61: =VLOOKUP(A61,aapl!A$2:G$122,2,0) -> 213.43 | G61: =VLOOKUP(A61,k!A$2:G$122,2,0) -> 53.31 | H61: =VLOOKUP(A61,ge!A$2:G$122,2,0) -> 15.22 | I61: =VLOOKUP(A61,bac!A$2:G$122,2,0) -> 15.24 | J61: =VLOOKUP(A61,pfe!A$2:G$122,2,0) -> 18.27 | K61: =VLOOKUP(A61,xom!A$2:G$122,2,0) -> 68.72 | L61: =VLOOKUP(A61,vfinx!A$2:G$122,2,0) -> 104.32
A62: 2010-02-01 | B62: 62.83 | C62: =VLOOKUP(A62,x!A$2:G$122,2,0) -> 45.17 | D62: =VLOOKUP(A62,mt!A$2:G$122,2,0) -> 39.94 | E62: =VLOOKUP(A62,msft!A$2:G$122,2,0) -> 28.39 | F62: =VLOOKUP(A62,aapl!A$2:G$122,2,0) -> 192.37 | G62: =VLOOKUP(A62,k!A$2:G$122,2,0) -> 54.79 | H62: =VLOOKUP(A62,ge!A$2:G$122,2,0) -> 16.2 | I62: =VLOOKUP(A62,bac!A$2:G$122,2,0) -> 15.26 | J62: =VLOOKUP(A62,pfe!A$2:G$122,2,0) -> 18.79 | K62: =VLOOKUP(A62,xom!A$2:G$122,2,0) -> 65.77 | L62: =VLOOKUP(A62,vfinx!A$2:G$122,2,0) -> 100.38
A63: 2010-03-01 | B63: 63.98 | C63: =VLOOKUP(A63,x!A$2:G$122,2,0) -> 53.58 | D63: =VLOOKUP(A63,mt!A$2:G$122,2,0) -> 38.17 | E63: =VLOOKUP(A63,msft!A$2:G$122,2,0) -> 28.77 | F63: =VLOOKUP(A63,aapl!A$2:G$122,2,0) -> 205.75 | G63: =VLOOKUP(A63,k!A$2:G$122,2,0) -> 52.31 | H63: =VLOOKUP(A63,ge!A$2:G$122,2,0) -> 16.1 | I63: =VLOOKUP(A63,bac!A$2:G$122,2,0) -> 16.74 | J63: =VLOOKUP(A63,pfe!A$2:G$122,2,0) -> 17.61 | K63: =VLOOKUP(A63,xom!A$2:G$122,2,0) -> 65.36 | L63: =VLOOKUP(A63,vfinx!A$2:G$122,2,0) -> 103.06
A64: 2010-04-01 | B64: 67.06 | C64: =VLOOKUP(A64,x!A$2:G$122,2,0) -> 64.74 | D64: =VLOOKUP(A64,mt!A$2:G$122,2,0) -> 45.14 | E64: =VLOOKUP(A64,msft!A$2:G$122,2,0) -> 29.35 | F64: =VLOOKUP(A64,aapl!A$2:G$122,2,0) -> 237.41 | G64: =VLOOKUP(A64,k!A$2:G$122,2,0) -> 53.53 | H64: =VLOOKUP(A64,ge!A$2:G$122,2,0) -> 18.27 | I64: =VLOOKUP(A64,bac!A$2:G$122,2,0) -> 18.02 | J64: =VLOOKUP(A64,pfe!A$2:G$122,2,0) -> 17.21 | K64: =VLOOKUP(A64,xom!A$2:G$122,2,0) -> 67.27 | L64: =VLOOKUP(A64,vfinx!A$2:G$122,2,0) -> 108.54
A65: 2010-05-03 | B65: 70.88 | C65: =VLOOKUP(A65,x!A$2:G$122,2,0) -> 55.06 | D65: =VLOOKUP(A65,mt!A$2:G$122,2,0) -> 39.91 | E65: =VLOOKUP(A65,msft!A$2:G$122,2,0) -> 30.67 | F65: =VLOOKUP(A65,aapl!A$2:G$122,2,0) -> 263.84 | G65: =VLOOKUP(A65,k!A$2:G$122,2,0) -> 55.13 | H65: =VLOOKUP(A65,ge!A$2:G$122,2,0) -> 18.97 | I65: =VLOOKUP(A65,bac!A$2:G$122,2,0) -> 17.88 | J65: =VLOOKUP(A65,pfe!A$2:G$122,2,0) -> 16.8 | K65: =VLOOKUP(A65,xom!A$2:G$122,2,0) -> 68.11 | L65: =VLOOKUP(A65,vfinx!A$2:G$122,2,0) -> 110.86
A66: 2010-06-01 | B66: 66.23 | C66: =VLOOKUP(A66,x!A$2:G$122,2,0) -> 46.05 | D66: =VLOOKUP(A66,mt!A$2:G$122,2,0) -> 29.3 | E66: =VLOOKUP(A66,msft!A$2:G$122,2,0) -> 25.53 | F66: =VLOOKUP(A66,aapl!A$2:G$122,2,0) -> 259.69 | G66: =VLOOKUP(A66,k!A$2:G$122,2,0) -> 53.12 | H66: =VLOOKUP(A66,ge!A$2:G$122,2,0) -> 16.24 | I66: =VLOOKUP(A66,bac!A$2:G$122,2,0) -> 15.58 | J66: =VLOOKUP(A66,pfe!A$2:G$122,2,0) -> 15.16 | K66: =VLOOKUP(A66,xom!A$2:G$122,2,0) -> 60.38 | L66: =VLOOKUP(A66,vfinx!A$2:G$122,2,0) -> 98.95
A67: 2010-07-01 | B67: 66.72 | C67: =VLOOKUP(A67,x!A$2:G$122,2,0) -> 38.55 | D67: =VLOOKUP(A67,mt!A$2:G$122,2,0) -> 27.71 | E67: =VLOOKUP(A67,msft!A$2:G$122,2,0) -> 23.09 | F67: =VLOOKUP(A67,aapl!A$2:G$122,2,0) -> 254.3 | G67: =VLOOKUP(A67,k!A$2:G$122,2,0) -> 50.21 | H67: =VLOOKUP(A67,ge!A$2:G$122,2,0) -> 14.33 | I67: =VLOOKUP(A67,bac!A$2:G$122,2,0) -> 14.32 | J67: =VLOOKUP(A67,pfe!A$2:G$122,2,0) -> 14.29 | K67: =VLOOKUP(A67,xom!A$2:G$122,2,0) -> 56.98 | L67: =VLOOKUP(A67,vfinx!A$2:G$122,2,0) -> 94.61
A68: 2010-08-02 | B68: 70.5 | C68: =VLOOKUP(A68,x!A$2:G$122,2,0) -> 45.5 | D68: =VLOOKUP(A68,mt!A$2:G$122,2,0) -> 32.01 | E68: =VLOOKUP(A68,msft!A$2:G$122,2,0) -> 25.99 | F68: =VLOOKUP(A68,aapl!A$2:G$122,2,0) -> 260.44 | G68: =VLOOKUP(A68,k!A$2:G$122,2,0) -> 50.47 | H68: =VLOOKUP(A68,ge!A$2:G$122,2,0) -> 16.32 | I68: =VLOOKUP(A68,bac!A$2:G$122,2,0) -> 14.38 | J68: =VLOOKUP(A68,pfe!A$2:G$122,2,0) -> 15.16 | K68: =VLOOKUP(A68,xom!A$2:G$122,2,0) -> 60.64 | L68: =VLOOKUP(A68,vfinx!A$2:G$122,2,0) -> 103.79
A69: 2010-09-01 | B69: 73.92 | C69: =VLOOKUP(A69,x!A$2:G$122,2,0) -> 44.03 | D69: =VLOOKUP(A69,mt!A$2:G$122,2,0) -> 30.15 | E69: =VLOOKUP(A69,msft!A$2:G$122,2,0) -> 23.67 | F69: =VLOOKUP(A69,aapl!A$2:G$122,2,0) -> 247.47 | G69: =VLOOKUP(A69,k!A$2:G$122,2,0) -> 50.2 | H69: =VLOOKUP(A69,ge!A$2:G$122,2,0) -> 14.73 | I69: =VLOOKUP(A69,bac!A$2:G$122,2,0) -> 12.64 | J69: =VLOOKUP(A69,pfe!A$2:G$122,2,0) -> 16.13 | K69: =VLOOKUP(A69,xom!A$2:G$122,2,0) -> 60.04 | L69: =VLOOKUP(A69,vfinx!A$2:G$122,2,0) -> 99.82
A70: 2010-10-01 | B70: 75.04 | C70: =VLOOKUP(A70,x!A$2:G$122,2,0) -> 44.72 | D70: =VLOOKUP(A70,mt!A$2:G$122,2,0) -> 33.69 | E70: =VLOOKUP(A70,msft!A$2:G$122,2,0) -> 24.77 | F70: =VLOOKUP(A70,aapl!A$2:G$122,2,0) -> 286.15 | G70: =VLOOKUP(A70,k!A$2:G$122,2,0) -> 50.54 | H70: =VLOOKUP(A70,ge!A$2:G$122,2,0) -> 16.4 | I70: =VLOOKUP(A70,bac!A$2:G$122,2,0) -> 13.22 | J70: =VLOOKUP(A70,pfe!A$2:G$122,2,0) -> 17.25 | K70: =VLOOKUP(A70,xom!A$2:G$122,2,0) -> 62.32 | L70: =VLOOKUP(A70,vfinx!A$2:G$122,2,0) -> 105.52
A71: 2010-11-01 | B71: 78.06 | C71: =VLOOKUP(A71,x!A$2:G$122,2,0) -> 43.1 | D71: =VLOOKUP(A71,mt!A$2:G$122,2,0) -> 32.47 | E71: =VLOOKUP(A71,msft!A$2:G$122,2,0) -> 26.88 | F71: =VLOOKUP(A71,aapl!A$2:G$122,2,0) -> 302.22 | G71: =VLOOKUP(A71,k!A$2:G$122,2,0) -> 50.37 | H71: =VLOOKUP(A71,ge!A$2:G$122,2,0) -> 16.09 | I71: =VLOOKUP(A71,bac!A$2:G$122,2,0) -> 11.5 | J71: =VLOOKUP(A71,pfe!A$2:G$122,2,0) -> 17.63 | K71: =VLOOKUP(A71,xom!A$2:G$122,2,0) -> 66.72 | L71: =VLOOKUP(A71,vfinx!A$2:G$122,2,0) -> 109.14
A72: 2010-12-01 | B72: 79.14 | C72: =VLOOKUP(A72,x!A$2:G$122,2,0) -> 49.46 | D72: =VLOOKUP(A72,mt!A$2:G$122,2,0) -> 33 | E72: =VLOOKUP(A72,msft!A$2:G$122,2,0) -> 25.57 | F72: =VLOOKUP(A72,aapl!A$2:G$122,2,0) -> 315.27 | G72: =VLOOKUP(A72,k!A$2:G$122,2,0) -> 49.52 | H72: =VLOOKUP(A72,ge!A$2:G$122,2,0) -> 16.03 | I72: =VLOOKUP(A72,bac!A$2:G$122,2,0) -> 11.17 | J72: =VLOOKUP(A72,pfe!A$2:G$122,2,0) -> 16.49 | K72: =VLOOKUP(A72,xom!A$2:G$122,2,0) -> 70.38 | L72: =VLOOKUP(A72,vfinx!A$2:G$122,2,0) -> 111.41
A73: 2011-01-03 | B73: 77.1 | C73: =VLOOKUP(A73,x!A$2:G$122,2,0) -> 59.29 | D73: =VLOOKUP(A73,mt!A$2:G$122,2,0) -> 38.63 | E73: =VLOOKUP(A73,msft!A$2:G$122,2,0) -> 28.05 | F73: =VLOOKUP(A73,aapl!A$2:G$122,2,0) -> 325.64 | G73: =VLOOKUP(A73,k!A$2:G$122,2,0) -> 51.23 | H73: =VLOOKUP(A73,ge!A$2:G$122,2,0) -> 18.49 | I73: =VLOOKUP(A73,bac!A$2:G$122,2,0) -> 13.85 | J73: =VLOOKUP(A73,pfe!A$2:G$122,2,0) -> 17.7 | K73: =VLOOKUP(A73,xom!A$2:G$122,2,0) -> 73.72 | L73: =VLOOKUP(A73,vfinx!A$2:G$122,2,0) -> 117.13
A74: 2011-02-01 | B74: 74.22 | C74: =VLOOKUP(A74,x!A$2:G$122,2,0) -> 58.27 | D74: =VLOOKUP(A74,mt!A$2:G$122,2,0) -> 36.84 | E74: =VLOOKUP(A74,msft!A$2:G$122,2,0) -> 27.8 | F74: =VLOOKUP(A74,aapl!A$2:G$122,2,0) -> 341.3 | G74: =VLOOKUP(A74,k!A$2:G$122,2,0) -> 50.32 | H74: =VLOOKUP(A74,ge!A$2:G$122,2,0) -> 20.38 | I74: =VLOOKUP(A74,bac!A$2:G$122,2,0) -> 13.9 | J74: =VLOOKUP(A74,pfe!A$2:G$122,2,0) -> 18.49 | K74: =VLOOKUP(A74,xom!A$2:G$122,2,0) -> 81.14 | L74: =VLOOKUP(A74,vfinx!A$2:G$122,2,0) -> 120.53
A75: 2011-03-01 | B75: 75.71 | C75: =VLOOKUP(A75,x!A$2:G$122,2,0) -> 57.69 | D75: =VLOOKUP(A75,mt!A$2:G$122,2,0) -> 37.15 | E75: =VLOOKUP(A75,msft!A$2:G$122,2,0) -> 26.6 | F75: =VLOOKUP(A75,aapl!A$2:G$122,2,0) -> 355.47 | G75: =VLOOKUP(A75,k!A$2:G$122,2,0) -> 53.52 | H75: =VLOOKUP(A75,ge!A$2:G$122,2,0) -> 21.12 | I75: =VLOOKUP(A75,bac!A$2:G$122,2,0) -> 14.32 | J75: =VLOOKUP(A75,pfe!A$2:G$122,2,0) -> 19.35 | K75: =VLOOKUP(A75,xom!A$2:G$122,2,0) -> 86.41 | L75: =VLOOKUP(A75,vfinx!A$2:G$122,2,0) -> 120.67
A76: 2011-04-01 | B76: 76.3 | C76: =VLOOKUP(A76,x!A$2:G$122,2,0) -> 54.29 | D76: =VLOOKUP(A76,mt!A$2:G$122,2,0) -> 35.89 | E76: =VLOOKUP(A76,msft!A$2:G$122,2,0) -> 25.53 | F76: =VLOOKUP(A76,aapl!A$2:G$122,2,0) -> 351.11 | G76: =VLOOKUP(A76,k!A$2:G$122,2,0) -> 53.98 | H76: =VLOOKUP(A76,ge!A$2:G$122,2,0) -> 20.14 | I76: =VLOOKUP(A76,bac!A$2:G$122,2,0) -> 13.45 | J76: =VLOOKUP(A76,pfe!A$2:G$122,2,0) -> 20.35 | K76: =VLOOKUP(A76,xom!A$2:G$122,2,0) -> 84.72 | L76: =VLOOKUP(A76,vfinx!A$2:G$122,2,0) -> 122.73
A77: 2011-05-02 | B77: 78.4 | C77: =VLOOKUP(A77,x!A$2:G$122,2,0) -> 47.91 | D77: =VLOOKUP(A77,mt!A$2:G$122,2,0) -> 37.19 | E77: =VLOOKUP(A77,msft!A$2:G$122,2,0) -> 25.94 | F77: =VLOOKUP(A77,aapl!A$2:G$122,2,0) -> 349.74 | G77: =VLOOKUP(A77,k!A$2:G$122,2,0) -> 57.19 | H77: =VLOOKUP(A77,ge!A$2:G$122,2,0) -> 20.7 | I77: =VLOOKUP(A77,bac!A$2:G$122,2,0) -> 12.36 | J77: =VLOOKUP(A77,pfe!A$2:G$122,2,0) -> 21.14 | K77: =VLOOKUP(A77,xom!A$2:G$122,2,0) -> 88.1 | L77: =VLOOKUP(A77,vfinx!A$2:G$122,2,0) -> 125.5
A78: 2011-06-01 | B78: 81.47 | C78: =VLOOKUP(A78,x!A$2:G$122,2,0) -> 45.82 | D78: =VLOOKUP(A78,mt!A$2:G$122,2,0) -> 33.2 | E78: =VLOOKUP(A78,msft!A$2:G$122,2,0) -> 24.99 | F78: =VLOOKUP(A78,aapl!A$2:G$122,2,0) -> 348.87 | G78: =VLOOKUP(A78,k!A$2:G$122,2,0) -> 56.75 | H78: =VLOOKUP(A78,ge!A$2:G$122,2,0) -> 19.47 | I78: =VLOOKUP(A78,bac!A$2:G$122,2,0) -> 11.71 | J78: =VLOOKUP(A78,pfe!A$2:G$122,2,0) -> 21.34 | K78: =VLOOKUP(A78,xom!A$2:G$122,2,0) -> 83.55 | L78: =VLOOKUP(A78,vfinx!A$2:G$122,2,0) -> 121.47
A79: 2011-07-01 | B79: 84.16 | C79: =VLOOKUP(A79,x!A$2:G$122,2,0) -> 45.99 | D79: =VLOOKUP(A79,mt!A$2:G$122,2,0) -> 35.02 | E79: =VLOOKUP(A79,msft!A$2:G$122,2,0) -> 25.93 | F79: =VLOOKUP(A79,aapl!A$2:G$122,2,0) -> 335.95 | G79: =VLOOKUP(A79,k!A$2:G$122,2,0) -> 55.07 | H79: =VLOOKUP(A79,ge!A$2:G$122,2,0) -> 18.86 | I79: =VLOOKUP(A79,bac!A$2:G$122,2,0) -> 10.98 | J79: =VLOOKUP(A79,pfe!A$2:G$122,2,0) -> 20.5 | K79: =VLOOKUP(A79,xom!A$2:G$122,2,0) -> 81.19 | L79: =VLOOKUP(A79,vfinx!A$2:G$122,2,0) -> 123.41
A80: 2011-08-01 | B80: 87.49 | C80: =VLOOKUP(A80,x!A$2:G$122,2,0) -> 40.96 | D80: =VLOOKUP(A80,mt!A$2:G$122,2,0) -> 31.59 | E80: =VLOOKUP(A80,msft!A$2:G$122,2,0) -> 27.51 | F80: =VLOOKUP(A80,aapl!A$2:G$122,2,0) -> 397.78 | G80: =VLOOKUP(A80,k!A$2:G$122,2,0) -> 56.16 | H80: =VLOOKUP(A80,ge!A$2:G$122,2,0) -> 18.39 | I80: =VLOOKUP(A80,bac!A$2:G$122,2,0) -> 10.04 | J80: =VLOOKUP(A80,pfe!A$2:G$122,2,0) -> 19.44 | K80: =VLOOKUP(A80,xom!A$2:G$122,2,0) -> 80.82 | L80: =VLOOKUP(A80,vfinx!A$2:G$122,2,0) -> 118.66
A81: 2011-09-01 | B81: 90.27 | C81: =VLOOKUP(A81,x!A$2:G$122,2,0) -> 30 | D81: =VLOOKUP(A81,mt!A$2:G$122,2,0) -> 21.58 | E81: =VLOOKUP(A81,msft!A$2:G$122,2,0) -> 26.46 | F81: =VLOOKUP(A81,aapl!A$2:G$122,2,0) -> 385.82 | G81: =VLOOKUP(A81,k!A$2:G$122,2,0) -> 54.28 | H81: =VLOOKUP(A81,ge!A$2:G$122,2,0) -> 16.31 | I81: =VLOOKUP(A81,bac!A$2:G$122,2,0) -> 8.18 | J81: =VLOOKUP(A81,pfe!A$2:G$122,2,0) -> 18.91 | K81: =VLOOKUP(A81,xom!A$2:G$122,2,0) -> 74.15 | L81: =VLOOKUP(A81,vfinx!A$2:G$122,2,0) -> 111.34
A82: 2011-10-03 | B82: 87.43 | C82: =VLOOKUP(A82,x!A$2:G$122,2,0) -> 22.05 | D82: =VLOOKUP(A82,mt!A$2:G$122,2,0) -> 15.84 | E82: =VLOOKUP(A82,msft!A$2:G$122,2,0) -> 24.72 | F82: =VLOOKUP(A82,aapl!A$2:G$122,2,0) -> 380.37 | G82: =VLOOKUP(A82,k!A$2:G$122,2,0) -> 52.73 | H82: =VLOOKUP(A82,ge!A$2:G$122,2,0) -> 15.1 | I82: =VLOOKUP(A82,bac!A$2:G$122,2,0) -> 6.08 | J82: =VLOOKUP(A82,pfe!A$2:G$122,2,0) -> 17.69 | K82: =VLOOKUP(A82,xom!A$2:G$122,2,0) -> 72.05 | L82: =VLOOKUP(A82,vfinx!A$2:G$122,2,0) -> 101.22
A83: 2011-11-01 | B83: 92.31 | C83: =VLOOKUP(A83,x!A$2:G$122,2,0) -> 24.05 | D83: =VLOOKUP(A83,mt!A$2:G$122,2,0) -> 19.3 | E83: =VLOOKUP(A83,msft!A$2:G$122,2,0) -> 26.19 | F83: =VLOOKUP(A83,aapl!A$2:G$122,2,0) -> 397.41 | G83: =VLOOKUP(A83,k!A$2:G$122,2,0) -> 53.6 | H83: =VLOOKUP(A83,ge!A$2:G$122,2,0) -> 16.13 | I83: =VLOOKUP(A83,bac!A$2:G$122,2,0) -> 6.38 | J83: =VLOOKUP(A83,pfe!A$2:G$122,2,0) -> 19.15 | K83: =VLOOKUP(A83,xom!A$2:G$122,2,0) -> 75.82 | L83: =VLOOKUP(A83,vfinx!A$2:G$122,2,0) -> 112.33
A84: 2011-12-01 | B84: 95.44 | C84: =VLOOKUP(A84,x!A$2:G$122,2,0) -> 26.97 | D84: =VLOOKUP(A84,mt!A$2:G$122,2,0) -> 19.07 | E84: =VLOOKUP(A84,msft!A$2:G$122,2,0) -> 25.56 | F84: =VLOOKUP(A84,aapl!A$2:G$122,2,0) -> 382.54 | G84: =VLOOKUP(A84,k!A$2:G$122,2,0) -> 49.03 | H84: =VLOOKUP(A84,ge!A$2:G$122,2,0) -> 15.89 | I84: =VLOOKUP(A84,bac!A$2:G$122,2,0) -> 5.37 | J84: =VLOOKUP(A84,pfe!A$2:G$122,2,0) -> 20.03 | K84: =VLOOKUP(A84,xom!A$2:G$122,2,0) -> 80.2 | L84: =VLOOKUP(A84,vfinx!A$2:G$122,2,0) -> 115.07
A85: 2012-01-03 | B85: 101.33 | C85: =VLOOKUP(A85,x!A$2:G$122,2,0) -> 27.42 | D85: =VLOOKUP(A85,mt!A$2:G$122,2,0) -> 19.53 | E85: =VLOOKUP(A85,msft!A$2:G$122,2,0) -> 26.55 | F85: =VLOOKUP(A85,aapl!A$2:G$122,2,0) -> 409.4 | G85: =VLOOKUP(A85,k!A$2:G$122,2,0) -> 50.97 | H85: =VLOOKUP(A85,ge!A$2:G$122,2,0) -> 18.23 | I85: =VLOOKUP(A85,bac!A$2:G$122,2,0) -> 5.75 | J85: =VLOOKUP(A85,pfe!A$2:G$122,2,0) -> 21.86 | K85: =VLOOKUP(A85,xom!A$2:G$122,2,0) -> 85.97 | L85: =VLOOKUP(A85,vfinx!A$2:G$122,2,0) -> 117.59
A86: 2012-02-01 | B86: 99.46 | C86: =VLOOKUP(A86,x!A$2:G$122,2,0) -> 30.78 | D86: =VLOOKUP(A86,mt!A$2:G$122,2,0) -> 21.07 | E86: =VLOOKUP(A86,msft!A$2:G$122,2,0) -> 29.79 | F86: =VLOOKUP(A86,aapl!A$2:G$122,2,0) -> 458.41 | G86: =VLOOKUP(A86,k!A$2:G$122,2,0) -> 49.6 | H86: =VLOOKUP(A86,ge!A$2:G$122,2,0) -> 18.94 | I86: =VLOOKUP(A86,bac!A$2:G$122,2,0) -> 7.25 | J86: =VLOOKUP(A86,pfe!A$2:G$122,2,0) -> 21.25 | K86: =VLOOKUP(A86,xom!A$2:G$122,2,0) -> 84.23 | L86: =VLOOKUP(A86,vfinx!A$2:G$122,2,0) -> 122.07
A87: 2012-03-01 | B87: 99.28 | C87: =VLOOKUP(A87,x!A$2:G$122,2,0) -> 27.51 | D87: =VLOOKUP(A87,mt!A$2:G$122,2,0) -> 20.94 | E87: =VLOOKUP(A87,msft!A$2:G$122,2,0) -> 31.93 | F87: =VLOOKUP(A87,aapl!A$2:G$122,2,0) -> 548.17 | G87: =VLOOKUP(A87,k!A$2:G$122,2,0) -> 52.45 | H87: =VLOOKUP(A87,ge!A$2:G$122,2,0) -> 19.15 | I87: =VLOOKUP(A87,bac!A$2:G$122,2,0) -> 8.09 | J87: =VLOOKUP(A87,pfe!A$2:G$122,2,0) -> 21.07 | K87: =VLOOKUP(A87,xom!A$2:G$122,2,0) -> 86.47 | L87: =VLOOKUP(A87,vfinx!A$2:G$122,2,0) -> 126.97
A88: 2012-04-02 | B88: 97.82 | C88: =VLOOKUP(A88,x!A$2:G$122,2,0) -> 29.18 | D88: =VLOOKUP(A88,mt!A$2:G$122,2,0) -> 18.62 | E88: =VLOOKUP(A88,msft!A$2:G$122,2,0) -> 32.22 | F88: =VLOOKUP(A88,aapl!A$2:G$122,2,0) -> 601.83 | G88: =VLOOKUP(A88,k!A$2:G$122,2,0) -> 53.44 | H88: =VLOOKUP(A88,ge!A$2:G$122,2,0) -> 20.03 | I88: =VLOOKUP(A88,bac!A$2:G$122,2,0) -> 9.54 | J88: =VLOOKUP(A88,pfe!A$2:G$122,2,0) -> 22.54 | K88: =VLOOKUP(A88,xom!A$2:G$122,2,0) -> 86.6 | L88: =VLOOKUP(A88,vfinx!A$2:G$122,2,0) -> 130.76
A89: 2012-05-01 | B89: 97.23 | C89: =VLOOKUP(A89,x!A$2:G$122,2,0) -> 28.27 | D89: =VLOOKUP(A89,mt!A$2:G$122,2,0) -> 17.27 | E89: =VLOOKUP(A89,msft!A$2:G$122,2,0) -> 32.05 | F89: =VLOOKUP(A89,aapl!A$2:G$122,2,0) -> 584.9 | G89: =VLOOKUP(A89,k!A$2:G$122,2,0) -> 50.57 | H89: =VLOOKUP(A89,ge!A$2:G$122,2,0) -> 19.58 | I89: =VLOOKUP(A89,bac!A$2:G$122,2,0) -> 8.11 | J89: =VLOOKUP(A89,pfe!A$2:G$122,2,0) -> 22.63 | K89: =VLOOKUP(A89,xom!A$2:G$122,2,0) -> 86.46 | L89: =VLOOKUP(A89,vfinx!A$2:G$122,2,0) -> 129.68
A90: 2012-06-01 | B90: 87.47 | C90: =VLOOKUP(A90,x!A$2:G$122,2,0) -> 19.66 | D90: =VLOOKUP(A90,mt!A$2:G$122,2,0) -> 13.47 | E90: =VLOOKUP(A90,msft!A$2:G$122,2,0) -> 28.76 | F90: =VLOOKUP(A90,aapl!A$2:G$122,2,0) -> 569.16 | G90: =VLOOKUP(A90,k!A$2:G$122,2,0) -> 48.5 | H90: =VLOOKUP(A90,ge!A$2:G$122,2,0) -> 18.82 | I90: =VLOOKUP(A90,bac!A$2:G$122,2,0) -> 7.12 | J90: =VLOOKUP(A90,pfe!A$2:G$122,2,0) -> 21.76 | K90: =VLOOKUP(A90,xom!A$2:G$122,2,0) -> 77.87 | L90: =VLOOKUP(A90,vfinx!A$2:G$122,2,0) -> 118.21
A91: 2012-07-02 | B91: 88.41 | C91: =VLOOKUP(A91,x!A$2:G$122,2,0) -> 20.53 | D91: =VLOOKUP(A91,mt!A$2:G$122,2,0) -> 15.41 | E91: =VLOOKUP(A91,msft!A$2:G$122,2,0) -> 30.62 | F91: =VLOOKUP(A91,aapl!A$2:G$122,2,0) -> 584.73 | G91: =VLOOKUP(A91,k!A$2:G$122,2,0) -> 49.16 | H91: =VLOOKUP(A91,ge!A$2:G$122,2,0) -> 20.74 | I91: =VLOOKUP(A91,bac!A$2:G$122,2,0) -> 8.2 | J91: =VLOOKUP(A91,pfe!A$2:G$122,2,0) -> 22.85 | K91: =VLOOKUP(A91,xom!A$2:G$122,2,0) -> 85.44 | L91: =VLOOKUP(A91,vfinx!A$2:G$122,2,0) -> 125.86
A92: 2012-08-01 | B92: 89.49 | C92: =VLOOKUP(A92,x!A$2:G$122,2,0) -> 20.8 | D92: =VLOOKUP(A92,mt!A$2:G$122,2,0) -> 16.1 | E92: =VLOOKUP(A92,msft!A$2:G$122,2,0) -> 29.59 | F92: =VLOOKUP(A92,aapl!A$2:G$122,2,0) -> 615.91 | G92: =VLOOKUP(A92,k!A$2:G$122,2,0) -> 47.77 | H92: =VLOOKUP(A92,ge!A$2:G$122,2,0) -> 20.86 | I92: =VLOOKUP(A92,bac!A$2:G$122,2,0) -> 7.35 | J92: =VLOOKUP(A92,pfe!A$2:G$122,2,0) -> 23.92 | K92: =VLOOKUP(A92,xom!A$2:G$122,2,0) -> 87.02 | L92: =VLOOKUP(A92,vfinx!A$2:G$122,2,0) -> 126.92
A93: 2012-09-04 | B93: 89.51 | C93: =VLOOKUP(A93,x!A$2:G$122,2,0) -> 19.46 | D93: =VLOOKUP(A93,mt!A$2:G$122,2,0) -> 14.84 | E93: =VLOOKUP(A93,msft!A$2:G$122,2,0) -> 30.45 | F93: =VLOOKUP(A93,aapl!A$2:G$122,2,0) -> 665.76 | G93: =VLOOKUP(A93,k!A$2:G$122,2,0) -> 50.81 | H93: =VLOOKUP(A93,ge!A$2:G$122,2,0) -> 20.63 | I93: =VLOOKUP(A93,bac!A$2:G$122,2,0) -> 8 | J93: =VLOOKUP(A93,pfe!A$2:G$122,2,0) -> 23.79 | K93: =VLOOKUP(A93,xom!A$2:G$122,2,0) -> 87.33 | L93: =VLOOKUP(A93,vfinx!A$2:G$122,2,0) -> 129.97
A94: 2012-10-01 | B94: 92.11 | C94: =VLOOKUP(A94,x!A$2:G$122,2,0) -> 19.35 | D94: =VLOOKUP(A94,mt!A$2:G$122,2,0) -> 14.45 | E94: =VLOOKUP(A94,msft!A$2:G$122,2,0) -> 29.81 | F94: =VLOOKUP(A94,aapl!A$2:G$122,2,0) -> 671.16 | G94: =VLOOKUP(A94,k!A$2:G$122,2,0) -> 51.49 | H94: =VLOOKUP(A94,ge!A$2:G$122,2,0) -> 22.73 | I94: =VLOOKUP(A94,bac!A$2:G$122,2,0) -> 8.87 | J94: =VLOOKUP(A94,pfe!A$2:G$122,2,0) -> 24.8 | K94: =VLOOKUP(A94,xom!A$2:G$122,2,0) -> 91.79 | L94: =VLOOKUP(A94,vfinx!A$2:G$122,2,0) -> 133.18
A95: 2012-11-01 | B95: 87 | C95: =VLOOKUP(A95,x!A$2:G$122,2,0) -> 20.63 | D95: =VLOOKUP(A95,mt!A$2:G$122,2,0) -> 14.95 | E95: =VLOOKUP(A95,msft!A$2:G$122,2,0) -> 28.84 | F95: =VLOOKUP(A95,aapl!A$2:G$122,2,0) -> 598.22 | G95: =VLOOKUP(A95,k!A$2:G$122,2,0) -> 52.72 | H95: =VLOOKUP(A95,ge!A$2:G$122,2,0) -> 21.03 | I95: =VLOOKUP(A95,bac!A$2:G$122,2,0) -> 9.34 | J95: =VLOOKUP(A95,pfe!A$2:G$122,2,0) -> 24.82 | K95: =VLOOKUP(A95,xom!A$2:G$122,2,0) -> 90.25 | L95: =VLOOKUP(A95,vfinx!A$2:G$122,2,0) -> 131.79
A96: 2012-12-03 | B96: 87.42 | C96: =VLOOKUP(A96,x!A$2:G$122,2,0) -> 21.84 | D96: =VLOOKUP(A96,mt!A$2:G$122,2,0) -> 15.46 | E96: =VLOOKUP(A96,msft!A$2:G$122,2,0) -> 26.78 | F96: =VLOOKUP(A96,aapl!A$2:G$122,2,0) -> 593.65 | G96: =VLOOKUP(A96,k!A$2:G$122,2,0) -> 55.57 | H96: =VLOOKUP(A96,ge!A$2:G$122,2,0) -> 21.18 | I96: =VLOOKUP(A96,bac!A$2:G$122,2,0) -> 9.93 | J96: =VLOOKUP(A96,pfe!A$2:G$122,2,0) -> 25.04 | K96: =VLOOKUP(A96,xom!A$2:G$122,2,0) -> 88.55 | L96: =VLOOKUP(A96,vfinx!A$2:G$122,2,0) -> 130.48
A97: 2013-01-02 | B97: 89.4 | C97: =VLOOKUP(A97,x!A$2:G$122,2,0) -> 25.18 | D97: =VLOOKUP(A97,mt!A$2:G$122,2,0) -> 17.88 | E97: =VLOOKUP(A97,msft!A$2:G$122,2,0) -> 27.25 | F97: =VLOOKUP(A97,aapl!A$2:G$122,2,0) -> 553.82 | G97: =VLOOKUP(A97,k!A$2:G$122,2,0) -> 56.33 | H97: =VLOOKUP(A97,ge!A$2:G$122,2,0) -> 21.51 | I97: =VLOOKUP(A97,bac!A$2:G$122,2,0) -> 12.05 | J97: =VLOOKUP(A97,pfe!A$2:G$122,2,0) -> 25.53 | K97: =VLOOKUP(A97,xom!A$2:G$122,2,0) -> 87.79 | L97: =VLOOKUP(A97,vfinx!A$2:G$122,2,0) -> 134.74
A98: 2013-02-01 | B98: 95.58 | C98: =VLOOKUP(A98,x!A$2:G$122,2,0) -> 22.7 | D98: =VLOOKUP(A98,mt!A$2:G$122,2,0) -> 17.47 | E98: =VLOOKUP(A98,msft!A$2:G$122,2,0) -> 27.67 | F98: =VLOOKUP(A98,aapl!A$2:G$122,2,0) -> 459.11 | G98: =VLOOKUP(A98,k!A$2:G$122,2,0) -> 58.85 | H98: =VLOOKUP(A98,ge!A$2:G$122,2,0) -> 22.43 | I98: =VLOOKUP(A98,bac!A$2:G$122,2,0) -> 11.41 | J98: =VLOOKUP(A98,pfe!A$2:G$122,2,0) -> 27.58 | K98: =VLOOKUP(A98,xom!A$2:G$122,2,0) -> 90.44 | L98: =VLOOKUP(A98,vfinx!A$2:G$122,2,0) -> 139.56
A99: 2013-03-01 | B99: 95.68 | C99: =VLOOKUP(A99,x!A$2:G$122,2,0) -> 20.6 | D99: =VLOOKUP(A99,mt!A$2:G$122,2,0) -> 14.55 | E99: =VLOOKUP(A99,msft!A$2:G$122,2,0) -> 27.72 | F99: =VLOOKUP(A99,aapl!A$2:G$122,2,0) -> 438 | G99: =VLOOKUP(A99,k!A$2:G$122,2,0) -> 60.31 | H99: =VLOOKUP(A99,ge!A$2:G$122,2,0) -> 23.02 | I99: =VLOOKUP(A99,bac!A$2:G$122,2,0) -> 11.13 | J99: =VLOOKUP(A99,pfe!A$2:G$122,2,0) -> 27.18 | K99: =VLOOKUP(A99,xom!A$2:G$122,2,0) -> 89.07 | L99: =VLOOKUP(A99,vfinx!A$2:G$122,2,0) -> 140.35
A100: 2013-04-01 | B100: 99.41 | C100: =VLOOKUP(A100,x!A$2:G$122,2,0) -> 19.5 | D100: =VLOOKUP(A100,mt!A$2:G$122,2,0) -> 13.04 | E100: =VLOOKUP(A100,msft!A$2:G$122,2,0) -> 28.64 | F100: =VLOOKUP(A100,aapl!A$2:G$122,2,0) -> 441.9 | G100: =VLOOKUP(A100,k!A$2:G$122,2,0) -> 64.09 | H100: =VLOOKUP(A100,ge!A$2:G$122,2,0) -> 23.03 | I100: =VLOOKUP(A100,bac!A$2:G$122,2,0) -> 12.15 | J100: =VLOOKUP(A100,pfe!A$2:G$122,2,0) -> 28.75 | K100: =VLOOKUP(A100,xom!A$2:G$122,2,0) -> 90.13 | L100: =VLOOKUP(A100,vfinx!A$2:G$122,2,0) -> 143.97
A101: 2013-05-01 | B101: 101.98 | C101: =VLOOKUP(A101,x!A$2:G$122,2,0) -> 17.62 | D101: =VLOOKUP(A101,mt!A$2:G$122,2,0) -> 12.45 | E101: =VLOOKUP(A101,msft!A$2:G$122,2,0) -> 32.93 | F101: =VLOOKUP(A101,aapl!A$2:G$122,2,0) -> 444.46 | G101: =VLOOKUP(A101,k!A$2:G$122,2,0) -> 64.82 | H101: =VLOOKUP(A101,ge!A$2:G$122,2,0) -> 22.1 | I101: =VLOOKUP(A101,bac!A$2:G$122,2,0) -> 12.2 | J101: =VLOOKUP(A101,pfe!A$2:G$122,2,0) -> 28.83 | K101: =VLOOKUP(A101,xom!A$2:G$122,2,0) -> 88.52 | L101: =VLOOKUP(A101,vfinx!A$2:G$122,2,0) -> 146.01
A102: 2013-06-03 | B102: 96.77 | C102: =VLOOKUP(A102,x!A$2:G$122,2,0) -> 17.93 | D102: =VLOOKUP(A102,mt!A$2:G$122,2,0) -> 12.86 | E102: =VLOOKUP(A102,msft!A$2:G$122,2,0) -> 34.92 | F102: =VLOOKUP(A102,aapl!A$2:G$122,2,0) -> 450.73 | G102: =VLOOKUP(A102,k!A$2:G$122,2,0) -> 61.97 | H102: =VLOOKUP(A102,ge!A$2:G$122,2,0) -> 23.37 | I102: =VLOOKUP(A102,bac!A$2:G$122,2,0) -> 13.69 | J102: =VLOOKUP(A102,pfe!A$2:G$122,2,0) -> 27.3 | K102: =VLOOKUP(A102,xom!A$2:G$122,2,0) -> 90.53 | L102: =VLOOKUP(A102,vfinx!A$2:G$122,2,0) -> 151.71
A103: 2013-07-01 | B103: 99.35 | C103: =VLOOKUP(A103,x!A$2:G$122,2,0) -> 17.67 | D103: =VLOOKUP(A103,mt!A$2:G$122,2,0) -> 11.36 | E103: =VLOOKUP(A103,msft!A$2:G$122,2,0) -> 34.75 | F103: =VLOOKUP(A103,aapl!A$2:G$122,2,0) -> 402.69 | G103: =VLOOKUP(A103,k!A$2:G$122,2,0) -> 64.03 | H103: =VLOOKUP(A103,ge!A$2:G$122,2,0) -> 23.21 | I103: =VLOOKUP(A103,bac!A$2:G$122,2,0) -> 12.95 | J103: =VLOOKUP(A103,pfe!A$2:G$122,2,0) -> 27.97 | K103: =VLOOKUP(A103,xom!A$2:G$122,2,0) -> 90.39 | L103: =VLOOKUP(A103,vfinx!A$2:G$122,2,0) -> 148.87
A104: 2013-08-01 | B104: 98.62 | C104: =VLOOKUP(A104,x!A$2:G$122,2,0) -> 17.55 | D104: =VLOOKUP(A104,mt!A$2:G$122,2,0) -> 12.62 | E104: =VLOOKUP(A104,msft!A$2:G$122,2,0) -> 32.06 | F104: =VLOOKUP(A104,aapl!A$2:G$122,2,0) -> 455.75 | G104: =VLOOKUP(A104,k!A$2:G$122,2,0) -> 65.94 | H104: =VLOOKUP(A104,ge!A$2:G$122,2,0) -> 24.6 | I104: =VLOOKUP(A104,bac!A$2:G$122,2,0) -> 14.85 | J104: =VLOOKUP(A104,pfe!A$2:G$122,2,0) -> 29.43 | K104: =VLOOKUP(A104,xom!A$2:G$122,2,0) -> 92.69 | L104: =VLOOKUP(A104,vfinx!A$2:G$122,2,0) -> 157.53
A105: 2013-09-03 | B105: 95.1 | C105: =VLOOKUP(A105,x!A$2:G$122,2,0) -> 18.31 | D105: =VLOOKUP(A105,mt!A$2:G$122,2,0) -> 13.39 | E105: =VLOOKUP(A105,msft!A$2:G$122,2,0) -> 31.75 | F105: =VLOOKUP(A105,aapl!A$2:G$122,2,0) -> 493.1 | G105: =VLOOKUP(A105,k!A$2:G$122,2,0) -> 61.24 | H105: =VLOOKUP(A105,ge!A$2:G$122,2,0) -> 23.31 | I105: =VLOOKUP(A105,bac!A$2:G$122,2,0) -> 14.3 | J105: =VLOOKUP(A105,pfe!A$2:G$122,2,0) -> 28.38 | K105: =VLOOKUP(A105,xom!A$2:G$122,2,0) -> 87.7 | L105: =VLOOKUP(A105,vfinx!A$2:G$122,2,0) -> 151.68
A106: 2013-10-01 | B106: 96.18 | C106: =VLOOKUP(A106,x!A$2:G$122,2,0) -> 20.57 | D106: =VLOOKUP(A106,mt!A$2:G$122,2,0) -> 13.7 | E106: =VLOOKUP(A106,msft!A$2:G$122,2,0) -> 33.35 | F106: =VLOOKUP(A106,aapl!A$2:G$122,2,0) -> 478.45 | G106: =VLOOKUP(A106,k!A$2:G$122,2,0) -> 58.52 | H106: =VLOOKUP(A106,ge!A$2:G$122,2,0) -> 23.94 | I106: =VLOOKUP(A106,bac!A$2:G$122,2,0) -> 13.85 | J106: =VLOOKUP(A106,pfe!A$2:G$122,2,0) -> 28.58 | K106: =VLOOKUP(A106,xom!A$2:G$122,2,0) -> 85.99 | L106: =VLOOKUP(A106,vfinx!A$2:G$122,2,0) -> 156.27
A107: 2013-11-01 | B107: 96.52 | C107: =VLOOKUP(A107,x!A$2:G$122,2,0) -> 24.95 | D107: =VLOOKUP(A107,mt!A$2:G$122,2,0) -> 15.7 | E107: =VLOOKUP(A107,msft!A$2:G$122,2,0) -> 35.67 | F107: =VLOOKUP(A107,aapl!A$2:G$122,2,0) -> 524.02 | G107: =VLOOKUP(A107,k!A$2:G$122,2,0) -> 63.16 | H107: =VLOOKUP(A107,ge!A$2:G$122,2,0) -> 26.05 | I107: =VLOOKUP(A107,bac!A$2:G$122,2,0) -> 14 | J107: =VLOOKUP(A107,pfe!A$2:G$122,2,0) -> 30.7 | K107: =VLOOKUP(A107,xom!A$2:G$122,2,0) -> 89.74 | L107: =VLOOKUP(A107,vfinx!A$2:G$122,2,0) -> 162.59
A108: 2013-12-02 | B108: 97.29 | C108: =VLOOKUP(A108,x!A$2:G$122,2,0) -> 26.71 | D108: =VLOOKUP(A108,mt!A$2:G$122,2,0) -> 17.49 | E108: =VLOOKUP(A108,msft!A$2:G$122,2,0) -> 38.09 | F108: =VLOOKUP(A108,aapl!A$2:G$122,2,0) -> 558 | G108: =VLOOKUP(A108,k!A$2:G$122,2,0) -> 60.64 | H108: =VLOOKUP(A108,ge!A$2:G$122,2,0) -> 26.65 | I108: =VLOOKUP(A108,bac!A$2:G$122,2,0) -> 15.84 | J108: =VLOOKUP(A108,pfe!A$2:G$122,2,0) -> 31.61 | K108: =VLOOKUP(A108,xom!A$2:G$122,2,0) -> 93.27 | L108: =VLOOKUP(A108,vfinx!A$2:G$122,2,0) -> 166.59
A109: 2014-01-02 | B109: 96.81 | C109: =VLOOKUP(A109,x!A$2:G$122,2,0) -> 29.97 | D109: =VLOOKUP(A109,mt!A$2:G$122,2,0) -> 17.61 | E109: =VLOOKUP(A109,msft!A$2:G$122,2,0) -> 37.35 | F109: =VLOOKUP(A109,aapl!A$2:G$122,2,0) -> 555.68 | G109: =VLOOKUP(A109,k!A$2:G$122,2,0) -> 60.98 | H109: =VLOOKUP(A109,ge!A$2:G$122,2,0) -> 27.86 | I109: =VLOOKUP(A109,bac!A$2:G$122,2,0) -> 15.69 | J109: =VLOOKUP(A109,pfe!A$2:G$122,2,0) -> 30.47 | K109: =VLOOKUP(A109,xom!A$2:G$122,2,0) -> 100.6 | L109: =VLOOKUP(A109,vfinx!A$2:G$122,2,0) -> 168.88
A110: 2014-02-03 | B110: 94.54 | C110: =VLOOKUP(A110,x!A$2:G$122,2,0) -> 26.15 | D110: =VLOOKUP(A110,mt!A$2:G$122,2,0) -> 16.54 | E110: =VLOOKUP(A110,msft!A$2:G$122,2,0) -> 37.74 | F110: =VLOOKUP(A110,aapl!A$2:G$122,2,0) -> 502.61 | G110: =VLOOKUP(A110,k!A$2:G$122,2,0) -> 58.01 | H110: =VLOOKUP(A110,ge!A$2:G$122,2,0) -> 25.13 | I110: =VLOOKUP(A110,bac!A$2:G$122,2,0) -> 16.77 | J110: =VLOOKUP(A110,pfe!A$2:G$122,2,0) -> 31.03 | K110: =VLOOKUP(A110,xom!A$2:G$122,2,0) -> 91.92 | L110: =VLOOKUP(A110,vfinx!A$2:G$122,2,0) -> 160.69
A111: 2014-03-03 | B111: 94.24 | C111: =VLOOKUP(A111,x!A$2:G$122,2,0) -> 23.9 | D111: =VLOOKUP(A111,mt!A$2:G$122,2,0) -> 15.1 | E111: =VLOOKUP(A111,msft!A$2:G$122,2,0) -> 37.92 | F111: =VLOOKUP(A111,aapl!A$2:G$122,2,0) -> 523.42 | G111: =VLOOKUP(A111,k!A$2:G$122,2,0) -> 60.34 | H111: =VLOOKUP(A111,ge!A$2:G$122,2,0) -> 25.21 | I111: =VLOOKUP(A111,bac!A$2:G$122,2,0) -> 16.3 | J111: =VLOOKUP(A111,pfe!A$2:G$122,2,0) -> 31.52 | K111: =VLOOKUP(A111,xom!A$2:G$122,2,0) -> 95.76 | L111: =VLOOKUP(A111,vfinx!A$2:G$122,2,0) -> 170.69
A112: 2014-04-01 | B112: 98.1 | C112: =VLOOKUP(A112,x!A$2:G$122,2,0) -> 27.77 | D112: =VLOOKUP(A112,mt!A$2:G$122,2,0) -> 16.37 | E112: =VLOOKUP(A112,msft!A$2:G$122,2,0) -> 41.15 | F112: =VLOOKUP(A112,aapl!A$2:G$122,2,0) -> 537.76 | G112: =VLOOKUP(A112,k!A$2:G$122,2,0) -> 62.47 | H112: =VLOOKUP(A112,ge!A$2:G$122,2,0) -> 25.83 | I112: =VLOOKUP(A112,bac!A$2:G$122,2,0) -> 17.28 | J112: =VLOOKUP(A112,pfe!A$2:G$122,2,0) -> 31.93 | K112: =VLOOKUP(A112,xom!A$2:G$122,2,0) -> 97.65 | L112: =VLOOKUP(A112,vfinx!A$2:G$122,2,0) -> 173.86
A113: 2014-05-01 | B113: 100.68 | C113: =VLOOKUP(A113,x!A$2:G$122,2,0) -> 26.01 | D113: =VLOOKUP(A113,mt!A$2:G$122,2,0) -> 16.21 | E113: =VLOOKUP(A113,msft!A$2:G$122,2,0) -> 40.24 | F113: =VLOOKUP(A113,aapl!A$2:G$122,2,0) -> 592 | G113: =VLOOKUP(A113,k!A$2:G$122,2,0) -> 66.94 | H113: =VLOOKUP(A113,ge!A$2:G$122,2,0) -> 26.73 | I113: =VLOOKUP(A113,bac!A$2:G$122,2,0) -> 15.14 | J113: =VLOOKUP(A113,pfe!A$2:G$122,2,0) -> 31.08 | K113: =VLOOKUP(A113,xom!A$2:G$122,2,0) -> 101.96 | L113: =VLOOKUP(A113,vfinx!A$2:G$122,2,0) -> 173.87
A114: 2014-06-02 | B114: 101.39 | C114: =VLOOKUP(A114,x!A$2:G$122,2,0) -> 23.12 | D114: =VLOOKUP(A114,mt!A$2:G$122,2,0) -> 15.14 | E114: =VLOOKUP(A114,msft!A$2:G$122,2,0) -> 40.95 | F114: =VLOOKUP(A114,aapl!A$2:G$122,2,0) -> 633.96 | G114: =VLOOKUP(A114,k!A$2:G$122,2,0) -> 69 | H114: =VLOOKUP(A114,ge!A$2:G$122,2,0) -> 26.71 | I114: =VLOOKUP(A114,bac!A$2:G$122,2,0) -> 15.16 | J114: =VLOOKUP(A114,pfe!A$2:G$122,2,0) -> 29.59 | K114: =VLOOKUP(A114,xom!A$2:G$122,2,0) -> 100.53 | L114: =VLOOKUP(A114,vfinx!A$2:G$122,2,0) -> 178.09
A115: 2014-07-01 | B115: 100.43 | C115: =VLOOKUP(A115,x!A$2:G$122,2,0) -> 26.32 | D115: =VLOOKUP(A115,mt!A$2:G$122,2,0) -> 14.93 | E115: =VLOOKUP(A115,msft!A$2:G$122,2,0) -> 41.86 | F115: =VLOOKUP(A115,aapl!A$2:G$122,2,0) -> 93.52 | G115: =VLOOKUP(A115,k!A$2:G$122,2,0) -> 65.48 | H115: =VLOOKUP(A115,ge!A$2:G$122,2,0) -> 26.27 | I115: =VLOOKUP(A115,bac!A$2:G$122,2,0) -> 15.38 | J115: =VLOOKUP(A115,pfe!A$2:G$122,2,0) -> 29.61 | K115: =VLOOKUP(A115,xom!A$2:G$122,2,0) -> 101.15 | L115: =VLOOKUP(A115,vfinx!A$2:G$122,2,0) -> 182.07
A116: 2014-08-01 | B116: 94.3 | C116: =VLOOKUP(A116,x!A$2:G$122,2,0) -> 33.5 | D116: =VLOOKUP(A116,mt!A$2:G$122,2,0) -> 14.46 | E116: =VLOOKUP(A116,msft!A$2:G$122,2,0) -> 43.21 | F116: =VLOOKUP(A116,aapl!A$2:G$122,2,0) -> 94.9 | G116: =VLOOKUP(A116,k!A$2:G$122,2,0) -> 59.66 | H116: =VLOOKUP(A116,ge!A$2:G$122,2,0) -> 25.07 | I116: =VLOOKUP(A116,bac!A$2:G$122,2,0) -> 15.18 | J116: =VLOOKUP(A116,pfe!A$2:G$122,2,0) -> 28.7 | K116: =VLOOKUP(A116,xom!A$2:G$122,2,0) -> 98.62 | L116: =VLOOKUP(A116,vfinx!A$2:G$122,2,0) -> 177.81
A117: 2014-09-02 | B117: 93.24 | C117: =VLOOKUP(A117,x!A$2:G$122,2,0) -> 38.62 | D117: =VLOOKUP(A117,mt!A$2:G$122,2,0) -> 14.42 | E117: =VLOOKUP(A117,msft!A$2:G$122,2,0) -> 45.43 | F117: =VLOOKUP(A117,aapl!A$2:G$122,2,0) -> 103.06 | G117: =VLOOKUP(A117,k!A$2:G$122,2,0) -> 64.93 | H117: =VLOOKUP(A117,ge!A$2:G$122,2,0) -> 25.89 | I117: =VLOOKUP(A117,bac!A$2:G$122,2,0) -> 16.14 | J117: =VLOOKUP(A117,pfe!A$2:G$122,2,0) -> 29.21 | K117: =VLOOKUP(A117,xom!A$2:G$122,2,0) -> 99.43 | L117: =VLOOKUP(A117,vfinx!A$2:G$122,2,0) -> 185.33
A118: 2014-10-01 | B118: 94.37 | C118: =VLOOKUP(A118,x!A$2:G$122,2,0) -> 38.94 | D118: =VLOOKUP(A118,mt!A$2:G$122,2,0) -> 13.5 | E118: =VLOOKUP(A118,msft!A$2:G$122,2,0) -> 46.27 | F118: =VLOOKUP(A118,aapl!A$2:G$122,2,0) -> 100.59 | G118: =VLOOKUP(A118,k!A$2:G$122,2,0) -> 60.5 | H118: =VLOOKUP(A118,ge!A$2:G$122,2,0) -> 25.43 | I118: =VLOOKUP(A118,bac!A$2:G$122,2,0) -> 17.07 | J118: =VLOOKUP(A118,pfe!A$2:G$122,2,0) -> 29.37 | K118: =VLOOKUP(A118,xom!A$2:G$122,2,0) -> 94.11 | L118: =VLOOKUP(A118,vfinx!A$2:G$122,2,0) -> 179.59
A119: 2014-11-03 | B119: 93.78 | C119: =VLOOKUP(A119,x!A$2:G$122,2,0) -> 39.8 | D119: =VLOOKUP(A119,mt!A$2:G$122,2,0) -> 13.02 | E119: =VLOOKUP(A119,msft!A$2:G$122,2,0) -> 46.89 | F119: =VLOOKUP(A119,aapl!A$2:G$122,2,0) -> 108.22 | G119: =VLOOKUP(A119,k!A$2:G$122,2,0) -> 63.64 | H119: =VLOOKUP(A119,ge!A$2:G$122,2,0) -> 25.49 | I119: =VLOOKUP(A119,bac!A$2:G$122,2,0) -> 17.18 | J119: =VLOOKUP(A119,pfe!A$2:G$122,2,0) -> 29.9 | K119: =VLOOKUP(A119,xom!A$2:G$122,2,0) -> 96.56 | L119: =VLOOKUP(A119,vfinx!A$2:G$122,2,0) -> 186.38
A120: 2014-12-01 | B120: 96.15 | C120: =VLOOKUP(A120,x!A$2:G$122,2,0) -> 32.54 | D120: =VLOOKUP(A120,mt!A$2:G$122,2,0) -> 12.17 | E120: =VLOOKUP(A120,msft!A$2:G$122,2,0) -> 47.88 | F120: =VLOOKUP(A120,aapl!A$2:G$122,2,0) -> 118.81 | G120: =VLOOKUP(A120,k!A$2:G$122,2,0) -> 65.85 | H120: =VLOOKUP(A120,ge!A$2:G$122,2,0) -> 26.16 | I120: =VLOOKUP(A120,bac!A$2:G$122,2,0) -> 16.92 | J120: =VLOOKUP(A120,pfe!A$2:G$122,2,0) -> 30.88 | K120: =VLOOKUP(A120,xom!A$2:G$122,2,0) -> 90.36 | L120: =VLOOKUP(A120,vfinx!A$2:G$122,2,0) -> 190.1
A121: 2015-01-02 | B121: 94.13 | C121: =VLOOKUP(A121,x!A$2:G$122,2,0) -> 27.19 | D121: =VLOOKUP(A121,mt!A$2:G$122,2,0) -> 10.95 | E121: =VLOOKUP(A121,msft!A$2:G$122,2,0) -> 46.66 | F121: =VLOOKUP(A121,aapl!A$2:G$122,2,0) -> 111.39 | G121: =VLOOKUP(A121,k!A$2:G$122,2,0) -> 65.63 | H121: =VLOOKUP(A121,ge!A$2:G$122,2,0) -> 25.34 | I121: =VLOOKUP(A121,bac!A$2:G$122,2,0) -> 17.99 | J121: =VLOOKUP(A121,pfe!A$2:G$122,2,0) -> 31.27 | K121: =VLOOKUP(A121,xom!A$2:G$122,2,0) -> 92.25 | L121: =VLOOKUP(A121,vfinx!A$2:G$122,2,0) -> 189.85

Sheet High
A1: Date | B1: mcd | C1: x | D1: mt | E1: msft | F1: aapl | G1: k | H1: ge | I1: bac | J1: pfe | K1: xom | L1: vfinx
A2: 2005-02-01 | B2: 33.25 | C2: =VLOOKUP(A2,x!A$2:G$122,3,0) -> 63.9 | D2: =VLOOKUP(A2,mt!A$2:G$122,3,0) -> 43 | E2: =VLOOKUP(A2,msft!A$2:G$122,3,0) -> 26.5 | F2: =VLOOKUP(A2,aapl!A$2:G$122,3,0) -> 90.88 | G2: =VLOOKUP(A2,k!A$2:G$122,3,0) -> 45.33 | H2: =VLOOKUP(A2,ge!A$2:G$122,3,0) -> 36.61 | I2: =VLOOKUP(A2,bac!A$2:G$122,3,0) -> 47.09 | J2: =VLOOKUP(A2,pfe!A$2:G$122,3,0) -> 27.2 | K2: =VLOOKUP(A2,xom!A$2:G$122,3,0) -> 64.04 | L2: =VLOOKUP(A2,vfinx!A$2:G$122,3,0) -> 111.9
A3: 2005-03-01 | B3: 34.56 | C3: =VLOOKUP(A3,x!A$2:G$122,3,0) -> 62.89 | D3: =VLOOKUP(A3,mt!A$2:G$122,3,0) -> 43.86 | E3: =VLOOKUP(A3,msft!A$2:G$122,3,0) -> 25.79 | F3: =VLOOKUP(A3,aapl!A$2:G$122,3,0) -> 45.11 | G3: =VLOOKUP(A3,k!A$2:G$122,3,0) -> 44.77 | H3: =VLOOKUP(A3,ge!A$2:G$122,3,0) -> 36.48 | I3: =VLOOKUP(A3,bac!A$2:G$122,3,0) -> 47.2 | J3: =VLOOKUP(A3,pfe!A$2:G$122,3,0) -> 27.34 | K3: =VLOOKUP(A3,xom!A$2:G$122,3,0) -> 64.37 | L3: =VLOOKUP(A3,vfinx!A$2:G$122,3,0) -> 113.23
A4: 2005-04-01 | B4: 31.91 | C4: =VLOOKUP(A4,x!A$2:G$122,3,0) -> 52.18 | D4: =VLOOKUP(A4,mt!A$2:G$122,3,0) -> 34 | E4: =VLOOKUP(A4,msft!A$2:G$122,3,0) -> 25.45 | F4: =VLOOKUP(A4,aapl!A$2:G$122,3,0) -> 44.45 | G4: =VLOOKUP(A4,k!A$2:G$122,3,0) -> 44.95 | H4: =VLOOKUP(A4,ge!A$2:G$122,3,0) -> 36.6 | I4: =VLOOKUP(A4,bac!A$2:G$122,3,0) -> 45.8 | J4: =VLOOKUP(A4,pfe!A$2:G$122,3,0) -> 28.23 | K4: =VLOOKUP(A4,xom!A$2:G$122,3,0) -> 61.74 | L4: =VLOOKUP(A4,vfinx!A$2:G$122,3,0) -> 109.8
A5: 2005-05-02 | B5: 31.5 | C5: =VLOOKUP(A5,x!A$2:G$122,3,0) -> 45.33 | D5: =VLOOKUP(A5,mt!A$2:G$122,3,0) -> 27.09 | E5: =VLOOKUP(A5,msft!A$2:G$122,3,0) -> 26.09 | F5: =VLOOKUP(A5,aapl!A$2:G$122,3,0) -> 40.94 | G5: =VLOOKUP(A5,k!A$2:G$122,3,0) -> 45.98 | H5: =VLOOKUP(A5,ge!A$2:G$122,3,0) -> 37.34 | I5: =VLOOKUP(A5,bac!A$2:G$122,3,0) -> 46.8 | J5: =VLOOKUP(A5,pfe!A$2:G$122,3,0) -> 28.94 | K5: =VLOOKUP(A5,xom!A$2:G$122,3,0) -> 58.65 | L5: =VLOOKUP(A5,vfinx!A$2:G$122,3,0) -> 110.77
A6: 2005-06-01 | B6: 31.21 | C6: =VLOOKUP(A6,x!A$2:G$122,3,0) -> 42.39 | D6: =VLOOKUP(A6,mt!A$2:G$122,3,0) -> 26.39 | E6: =VLOOKUP(A6,msft!A$2:G$122,3,0) -> 26 | F6: =VLOOKUP(A6,aapl!A$2:G$122,3,0) -> 40.76 | G6: =VLOOKUP(A6,k!A$2:G$122,3,0) -> 46.89 | H6: =VLOOKUP(A6,ge!A$2:G$122,3,0) -> 37.13 | I6: =VLOOKUP(A6,bac!A$2:G$122,3,0) -> 47.44 | J6: =VLOOKUP(A6,pfe!A$2:G$122,3,0) -> 29.21 | K6: =VLOOKUP(A6,xom!A$2:G$122,3,0) -> 61.13 | L6: =VLOOKUP(A6,vfinx!A$2:G$122,3,0) -> 112.55
A7: 2005-07-01 | B7: 31.25 | C7: =VLOOKUP(A7,x!A$2:G$122,3,0) -> 44.52 | D7: =VLOOKUP(A7,mt!A$2:G$122,3,0) -> 29.75 | E7: =VLOOKUP(A7,msft!A$2:G$122,3,0) -> 26.48 | F7: =VLOOKUP(A7,aapl!A$2:G$122,3,0) -> 44.38 | G7: =VLOOKUP(A7,k!A$2:G$122,3,0) -> 45.94 | H7: =VLOOKUP(A7,ge!A$2:G$122,3,0) -> 35.78 | I7: =VLOOKUP(A7,bac!A$2:G$122,3,0) -> 46.05 | J7: =VLOOKUP(A7,pfe!A$2:G$122,3,0) -> 27.82 | K7: =VLOOKUP(A7,xom!A$2:G$122,3,0) -> 60.73 | L7: =VLOOKUP(A7,vfinx!A$2:G$122,3,0) -> 114.76
A8: 2005-08-01 | B8: 34.7 | C8: =VLOOKUP(A8,x!A$2:G$122,3,0) -> 45.7 | D8: =VLOOKUP(A8,mt!A$2:G$122,3,0) -> 30.2 | E8: =VLOOKUP(A8,msft!A$2:G$122,3,0) -> 27.94 | F8: =VLOOKUP(A8,aapl!A$2:G$122,3,0) -> 48.33 | G8: =VLOOKUP(A8,k!A$2:G$122,3,0) -> 46.37 | H8: =VLOOKUP(A8,ge!A$2:G$122,3,0) -> 34.62 | I8: =VLOOKUP(A8,bac!A$2:G$122,3,0) -> 44.15 | J8: =VLOOKUP(A8,pfe!A$2:G$122,3,0) -> 26.98 | K8: =VLOOKUP(A8,xom!A$2:G$122,3,0) -> 61.34 | L8: =VLOOKUP(A8,vfinx!A$2:G$122,3,0) -> 114.91
A9: 2005-09-01 | B9: 35.03 | C9: =VLOOKUP(A9,x!A$2:G$122,3,0) -> 45.95 | D9: =VLOOKUP(A9,mt!A$2:G$122,3,0) -> 30.78 | E9: =VLOOKUP(A9,msft!A$2:G$122,3,0) -> 27.39 | F9: =VLOOKUP(A9,aapl!A$2:G$122,3,0) -> 54.56 | G9: =VLOOKUP(A9,k!A$2:G$122,3,0) -> 46.99 | H9: =VLOOKUP(A9,ge!A$2:G$122,3,0) -> 34.58 | I9: =VLOOKUP(A9,bac!A$2:G$122,3,0) -> 43.69 | J9: =VLOOKUP(A9,pfe!A$2:G$122,3,0) -> 26.65 | K9: =VLOOKUP(A9,xom!A$2:G$122,3,0) -> 65.96 | L9: =VLOOKUP(A9,vfinx!A$2:G$122,3,0) -> 114.81
A10: 2005-10-03 | B10: 34.02 | C10: =VLOOKUP(A10,x!A$2:G$122,3,0) -> 42.52 | D10: =VLOOKUP(A10,mt!A$2:G$122,3,0) -> 29.54 | E10: =VLOOKUP(A10,msft!A$2:G$122,3,0) -> 25.8 | F10: =VLOOKUP(A10,aapl!A$2:G$122,3,0) -> 57.98 | G10: =VLOOKUP(A10,k!A$2:G$122,3,0) -> 46.7 | H10: =VLOOKUP(A10,ge!A$2:G$122,3,0) -> 34.5 | I10: =VLOOKUP(A10,bac!A$2:G$122,3,0) -> 44.09 | J10: =VLOOKUP(A10,pfe!A$2:G$122,3,0) -> 25.57 | K10: =VLOOKUP(A10,xom!A$2:G$122,3,0) -> 63.89 | L10: =VLOOKUP(A10,vfinx!A$2:G$122,3,0) -> 113
A11: 2005-11-01 | B11: 34.76 | C11: =VLOOKUP(A11,x!A$2:G$122,3,0) -> 48.1 | D11: =VLOOKUP(A11,mt!A$2:G$122,3,0) -> 28.12 | E11: =VLOOKUP(A11,msft!A$2:G$122,3,0) -> 28.25 | F11: =VLOOKUP(A11,aapl!A$2:G$122,3,0) -> 71.07 | G11: =VLOOKUP(A11,k!A$2:G$122,3,0) -> 45.3 | H11: =VLOOKUP(A11,ge!A$2:G$122,3,0) -> 36.34 | I11: =VLOOKUP(A11,bac!A$2:G$122,3,0) -> 47.15 | J11: =VLOOKUP(A11,pfe!A$2:G$122,3,0) -> 22.61 | K11: =VLOOKUP(A11,xom!A$2:G$122,3,0) -> 60.26 | L11: =VLOOKUP(A11,vfinx!A$2:G$122,3,0) -> 117.15
A12: 2005-12-01 | B12: 35.69 | C12: =VLOOKUP(A12,x!A$2:G$122,3,0) -> 51.63 | D12: =VLOOKUP(A12,mt!A$2:G$122,3,0) -> 28.73 | E12: =VLOOKUP(A12,msft!A$2:G$122,3,0) -> 28.1 | F12: =VLOOKUP(A12,aapl!A$2:G$122,3,0) -> 75.46 | G12: =VLOOKUP(A12,k!A$2:G$122,3,0) -> 44.88 | H12: =VLOOKUP(A12,ge!A$2:G$122,3,0) -> 36.26 | I12: =VLOOKUP(A12,bac!A$2:G$122,3,0) -> 47.25 | J12: =VLOOKUP(A12,pfe!A$2:G$122,3,0) -> 25.2 | K12: =VLOOKUP(A12,xom!A$2:G$122,3,0) -> 60.38 | L12: =VLOOKUP(A12,vfinx!A$2:G$122,3,0) -> 117.7
A13: 2006-01-03 | B13: 36.31 | C13: =VLOOKUP(A13,x!A$2:G$122,3,0) -> 62 | D13: =VLOOKUP(A13,mt!A$2:G$122,3,0) -> 36.55 | E13: =VLOOKUP(A13,msft!A$2:G$122,3,0) -> 28.38 | F13: =VLOOKUP(A13,aapl!A$2:G$122,3,0) -> 86.4 | G13: =VLOOKUP(A13,k!A$2:G$122,3,0) -> 44.84 | H13: =VLOOKUP(A13,ge!A$2:G$122,3,0) -> 35.63 | I13: =VLOOKUP(A13,bac!A$2:G$122,3,0) -> 47.24 | J13: =VLOOKUP(A13,pfe!A$2:G$122,3,0) -> 26.34 | K13: =VLOOKUP(A13,xom!A$2:G$122,3,0) -> 63.96 | L13: =VLOOKUP(A13,vfinx!A$2:G$122,3,0) -> 119.23
A14: 2006-02-01 | B14: 36.75 | C14: =VLOOKUP(A14,x!A$2:G$122,3,0) -> 62.5 | D14: =VLOOKUP(A14,mt!A$2:G$122,3,0) -> 36.4 | E14: =VLOOKUP(A14,msft!A$2:G$122,3,0) -> 28.07 | F14: =VLOOKUP(A14,aapl!A$2:G$122,3,0) -> 76.46 | G14: =VLOOKUP(A14,k!A$2:G$122,3,0) -> 45.24 | H14: =VLOOKUP(A14,ge!A$2:G$122,3,0) -> 33.75 | I14: =VLOOKUP(A14,bac!A$2:G$122,3,0) -> 46.05 | J14: =VLOOKUP(A14,pfe!A$2:G$122,3,0) -> 26.84 | K14: =VLOOKUP(A14,xom!A$2:G$122,3,0) -> 63.08 | L14: =VLOOKUP(A14,vfinx!A$2:G$122,3,0) -> 119.51
A15: 2006-03-01 | B15: 35.25 | C15: =VLOOKUP(A15,x!A$2:G$122,3,0) -> 64.47 | D15: =VLOOKUP(A15,mt!A$2:G$122,3,0) -> 39.75 | E15: =VLOOKUP(A15,msft!A$2:G$122,3,0) -> 28.22 | F15: =VLOOKUP(A15,aapl!A$2:G$122,3,0) -> 69.99 | G15: =VLOOKUP(A15,k!A$2:G$122,3,0) -> 45.78 | H15: =VLOOKUP(A15,ge!A$2:G$122,3,0) -> 35 | I15: =VLOOKUP(A15,bac!A$2:G$122,3,0) -> 47.14 | J15: =VLOOKUP(A15,pfe!A$2:G$122,3,0) -> 26.6 | K15: =VLOOKUP(A15,xom!A$2:G$122,3,0) -> 61.92 | L15: =VLOOKUP(A15,vfinx!A$2:G$122,3,0) -> 120.67
A16: 2006-04-03 | B16: 35.57 | C16: =VLOOKUP(A16,x!A$2:G$122,3,0) -> 69.88 | D16: =VLOOKUP(A16,mt!A$2:G$122,3,0) -> 40.14 | E16: =VLOOKUP(A16,msft!A$2:G$122,3,0) -> 27.94 | F16: =VLOOKUP(A16,aapl!A$2:G$122,3,0) -> 72.05 | G16: =VLOOKUP(A16,k!A$2:G$122,3,0) -> 46.64 | H16: =VLOOKUP(A16,ge!A$2:G$122,3,0) -> 34.99 | I16: =VLOOKUP(A16,bac!A$2:G$122,3,0) -> 49.98 | J16: =VLOOKUP(A16,pfe!A$2:G$122,3,0) -> 25.44 | K16: =VLOOKUP(A16,xom!A$2:G$122,3,0) -> 65 | L16: =VLOOKUP(A16,vfinx!A$2:G$122,3,0) -> 120.86
A17: 2006-05-01 | B17: 35.99 | C17: =VLOOKUP(A17,x!A$2:G$122,3,0) -> 77.77 | D17: =VLOOKUP(A17,mt!A$2:G$122,3,0) -> 42.81 | E17: =VLOOKUP(A17,msft!A$2:G$122,3,0) -> 25 | F17: =VLOOKUP(A17,aapl!A$2:G$122,3,0) -> 73.8 | G17: =VLOOKUP(A17,k!A$2:G$122,3,0) -> 47.47 | H17: =VLOOKUP(A17,ge!A$2:G$122,3,0) -> 35.24 | I17: =VLOOKUP(A17,bac!A$2:G$122,3,0) -> 50.5 | J17: =VLOOKUP(A17,pfe!A$2:G$122,3,0) -> 25.72 | K17: =VLOOKUP(A17,xom!A$2:G$122,3,0) -> 64.77 | L17: =VLOOKUP(A17,vfinx!A$2:G$122,3,0) -> 122.25
A18: 2006-06-01 | B18: 34.6 | C18: =VLOOKUP(A18,x!A$2:G$122,3,0) -> 70.64 | D18: =VLOOKUP(A18,mt!A$2:G$122,3,0) -> 34.74 | E18: =VLOOKUP(A18,msft!A$2:G$122,3,0) -> 23.65 | F18: =VLOOKUP(A18,aapl!A$2:G$122,3,0) -> 63.1 | G18: =VLOOKUP(A18,k!A$2:G$122,3,0) -> 48.5 | H18: =VLOOKUP(A18,ge!A$2:G$122,3,0) -> 34.92 | I18: =VLOOKUP(A18,bac!A$2:G$122,3,0) -> 49.48 | J18: =VLOOKUP(A18,pfe!A$2:G$122,3,0) -> 24.41 | K18: =VLOOKUP(A18,xom!A$2:G$122,3,0) -> 62.65 | L18: =VLOOKUP(A18,vfinx!A$2:G$122,3,0) -> 119.01
A19: 2006-07-03 | B19: 35.5 | C19: =VLOOKUP(A19,x!A$2:G$122,3,0) -> 70.66 | D19: =VLOOKUP(A19,mt!A$2:G$122,3,0) -> 34.21 | E19: =VLOOKUP(A19,msft!A$2:G$122,3,0) -> 24.6 | F19: =VLOOKUP(A19,aapl!A$2:G$122,3,0) -> 68.63 | G19: =VLOOKUP(A19,k!A$2:G$122,3,0) -> 49.39 | H19: =VLOOKUP(A19,ge!A$2:G$122,3,0) -> 33.62 | I19: =VLOOKUP(A19,bac!A$2:G$122,3,0) -> 51.9 | J19: =VLOOKUP(A19,pfe!A$2:G$122,3,0) -> 26.66 | K19: =VLOOKUP(A19,xom!A$2:G$122,3,0) -> 67.94 | L19: =VLOOKUP(A19,vfinx!A$2:G$122,3,0) -> 117.93
A20: 2006-08-01 | B20: 36.25 | C20: =VLOOKUP(A20,x!A$2:G$122,3,0) -> 63.3 | D20: =VLOOKUP(A20,mt!A$2:G$122,3,0) -> 34.86 | E20: =VLOOKUP(A20,msft!A$2:G$122,3,0) -> 26.25 | F20: =VLOOKUP(A20,aapl!A$2:G$122,3,0) -> 70 | G20: =VLOOKUP(A20,k!A$2:G$122,3,0) -> 50.87 | H20: =VLOOKUP(A20,ge!A$2:G$122,3,0) -> 34.44 | I20: =VLOOKUP(A20,bac!A$2:G$122,3,0) -> 52.75 | J20: =VLOOKUP(A20,pfe!A$2:G$122,3,0) -> 27.88 | K20: =VLOOKUP(A20,xom!A$2:G$122,3,0) -> 71.22 | L20: =VLOOKUP(A20,vfinx!A$2:G$122,3,0) -> 120.52
A21: 2006-09-01 | B21: 40.06 | C21: =VLOOKUP(A21,x!A$2:G$122,3,0) -> 62.53 | D21: =VLOOKUP(A21,mt!A$2:G$122,3,0) -> 35.09 | E21: =VLOOKUP(A21,msft!A$2:G$122,3,0) -> 27.52 | F21: =VLOOKUP(A21,aapl!A$2:G$122,3,0) -> 77.78 | G21: =VLOOKUP(A21,k!A$2:G$122,3,0) -> 50.66 | H21: =VLOOKUP(A21,ge!A$2:G$122,3,0) -> 35.65 | I21: =VLOOKUP(A21,bac!A$2:G$122,3,0) -> 54 | J21: =VLOOKUP(A21,pfe!A$2:G$122,3,0) -> 28.58 | K21: =VLOOKUP(A21,xom!A$2:G$122,3,0) -> 68.65 | L21: =VLOOKUP(A21,vfinx!A$2:G$122,3,0) -> 123.35
A22: 2006-10-02 | B22: 42.48 | C22: =VLOOKUP(A22,x!A$2:G$122,3,0) -> 70.38 | D22: =VLOOKUP(A22,mt!A$2:G$122,3,0) -> 43.34 | E22: =VLOOKUP(A22,msft!A$2:G$122,3,0) -> 28.85 | F22: =VLOOKUP(A22,aapl!A$2:G$122,3,0) -> 82.6 | G22: =VLOOKUP(A22,k!A$2:G$122,3,0) -> 50.7 | H22: =VLOOKUP(A22,ge!A$2:G$122,3,0) -> 36.48 | I22: =VLOOKUP(A22,bac!A$2:G$122,3,0) -> 54.87 | J22: =VLOOKUP(A22,pfe!A$2:G$122,3,0) -> 28.6 | K22: =VLOOKUP(A22,xom!A$2:G$122,3,0) -> 72.33 | L22: =VLOOKUP(A22,vfinx!A$2:G$122,3,0) -> 128.04
A23: 2006-11-01 | B23: 42.26 | C23: =VLOOKUP(A23,x!A$2:G$122,3,0) -> 76.16 | D23: =VLOOKUP(A23,mt!A$2:G$122,3,0) -> 43.67 | E23: =VLOOKUP(A23,msft!A$2:G$122,3,0) -> 30 | F23: =VLOOKUP(A23,aapl!A$2:G$122,3,0) -> 93.16 | G23: =VLOOKUP(A23,k!A$2:G$122,3,0) -> 50.6 | H23: =VLOOKUP(A23,ge!A$2:G$122,3,0) -> 36.28 | I23: =VLOOKUP(A23,bac!A$2:G$122,3,0) -> 55.08 | J23: =VLOOKUP(A23,pfe!A$2:G$122,3,0) -> 27.88 | K23: =VLOOKUP(A23,xom!A$2:G$122,3,0) -> 77.37 | L23: =VLOOKUP(A23,vfinx!A$2:G$122,3,0) -> 129.85
A24: 2006-12-01 | B24: 44.68 | C24: =VLOOKUP(A24,x!A$2:G$122,3,0) -> 79.01 | D24: =VLOOKUP(A24,mt!A$2:G$122,3,0) -> 43.6 | E24: =VLOOKUP(A24,msft!A$2:G$122,3,0) -> 30.26 | F24: =VLOOKUP(A24,aapl!A$2:G$122,3,0) -> 92.33 | G24: =VLOOKUP(A24,k!A$2:G$122,3,0) -> 50.95 | H24: =VLOOKUP(A24,ge!A$2:G$122,3,0) -> 38.49 | I24: =VLOOKUP(A24,bac!A$2:G$122,3,0) -> 54.05 | J24: =VLOOKUP(A24,pfe!A$2:G$122,3,0) -> 27.86 | K24: =VLOOKUP(A24,xom!A$2:G$122,3,0) -> 79 | L24: =VLOOKUP(A24,vfinx!A$2:G$122,3,0) -> 131.96
A25: 2007-01-03 | B25: 45.06 | C25: =VLOOKUP(A25,x!A$2:G$122,3,0) -> 84.18 | D25: =VLOOKUP(A25,mt!A$2:G$122,3,0) -> 47.57 | E25: =VLOOKUP(A25,msft!A$2:G$122,3,0) -> 31.48 | F25: =VLOOKUP(A25,aapl!A$2:G$122,3,0) -> 97.8 | G25: =VLOOKUP(A25,k!A$2:G$122,3,0) -> 51 | H25: =VLOOKUP(A25,ge!A$2:G$122,3,0) -> 38.28 | I25: =VLOOKUP(A25,bac!A$2:G$122,3,0) -> 54.18 | J25: =VLOOKUP(A25,pfe!A$2:G$122,3,0) -> 27.41 | K25: =VLOOKUP(A25,xom!A$2:G$122,3,0) -> 76.27 | L25: =VLOOKUP(A25,vfinx!A$2:G$122,3,0) -> 132.69
A26: 2007-02-01 | B26: 46.21 | C26: =VLOOKUP(A26,x!A$2:G$122,3,0) -> 94.95 | D26: =VLOOKUP(A26,mt!A$2:G$122,3,0) -> 54.05 | E26: =VLOOKUP(A26,msft!A$2:G$122,3,0) -> 30.94 | F26: =VLOOKUP(A26,aapl!A$2:G$122,3,0) -> 90.81 | G26: =VLOOKUP(A26,k!A$2:G$122,3,0) -> 50.42 | H26: =VLOOKUP(A26,ge!A$2:G$122,3,0) -> 36.5 | I26: =VLOOKUP(A26,bac!A$2:G$122,3,0) -> 54.21 | J26: =VLOOKUP(A26,pfe!A$2:G$122,3,0) -> 27 | K26: =VLOOKUP(A26,xom!A$2:G$122,3,0) -> 76.1 | L26: =VLOOKUP(A26,vfinx!A$2:G$122,3,0) -> 134.7
A27: 2007-03-01 | B27: 45.49 | C27: =VLOOKUP(A27,x!A$2:G$122,3,0) -> 101.6 | D27: =VLOOKUP(A27,mt!A$2:G$122,3,0) -> 54.35 | E27: =VLOOKUP(A27,msft!A$2:G$122,3,0) -> 28.55 | F27: =VLOOKUP(A27,aapl!A$2:G$122,3,0) -> 96.83 | G27: =VLOOKUP(A27,k!A$2:G$122,3,0) -> 52.02 | H27: =VLOOKUP(A27,ge!A$2:G$122,3,0) -> 36 | I27: =VLOOKUP(A27,bac!A$2:G$122,3,0) -> 52.15 | J27: =VLOOKUP(A27,pfe!A$2:G$122,3,0) -> 25.96 | K27: =VLOOKUP(A27,xom!A$2:G$122,3,0) -> 76.35 | L27: =VLOOKUP(A27,vfinx!A$2:G$122,3,0) -> 132.66
A28: 2007-04-02 | B28: 49.7 | C28: =VLOOKUP(A28,x!A$2:G$122,3,0) -> 108.2 | D28: =VLOOKUP(A28,mt!A$2:G$122,3,0) -> 55.49 | E28: =VLOOKUP(A28,msft!A$2:G$122,3,0) -> 30.74 | F28: =VLOOKUP(A28,aapl!A$2:G$122,3,0) -> 102.5 | G28: =VLOOKUP(A28,k!A$2:G$122,3,0) -> 54 | H28: =VLOOKUP(A28,ge!A$2:G$122,3,0) -> 37.24 | I28: =VLOOKUP(A28,bac!A$2:G$122,3,0) -> 52.2 | J28: =VLOOKUP(A28,pfe!A$2:G$122,3,0) -> 27.24 | K28: =VLOOKUP(A28,xom!A$2:G$122,3,0) -> 80.88 | L28: =VLOOKUP(A28,vfinx!A$2:G$122,3,0) -> 137.8
A29: 2007-05-01 | B29: 52.58 | C29: =VLOOKUP(A29,x!A$2:G$122,3,0) -> 113.84 | D29: =VLOOKUP(A29,mt!A$2:G$122,3,0) -> 60.12 | E29: =VLOOKUP(A29,msft!A$2:G$122,3,0) -> 31.16 | F29: =VLOOKUP(A29,aapl!A$2:G$122,3,0) -> 122.17 | G29: =VLOOKUP(A29,k!A$2:G$122,3,0) -> 54.39 | H29: =VLOOKUP(A29,ge!A$2:G$122,3,0) -> 37.81 | I29: =VLOOKUP(A29,bac!A$2:G$122,3,0) -> 51.9 | J29: =VLOOKUP(A29,pfe!A$2:G$122,3,0) -> 27.63 | K29: =VLOOKUP(A29,xom!A$2:G$122,3,0) -> 84.32 | L29: =VLOOKUP(A29,vfinx!A$2:G$122,3,0) -> 141.36
A30: 2007-06-01 | B30: 52.88 | C30: =VLOOKUP(A30,x!A$2:G$122,3,0) -> 127.26 | D30: =VLOOKUP(A30,mt!A$2:G$122,3,0) -> 66.9 | E30: =VLOOKUP(A30,msft!A$2:G$122,3,0) -> 30.9 | F30: =VLOOKUP(A30,aapl!A$2:G$122,3,0) -> 127.61 | G30: =VLOOKUP(A30,k!A$2:G$122,3,0) -> 54.42 | H30: =VLOOKUP(A30,ge!A$2:G$122,3,0) -> 39.77 | I30: =VLOOKUP(A30,bac!A$2:G$122,3,0) -> 50.99 | J30: =VLOOKUP(A30,pfe!A$2:G$122,3,0) -> 27.73 | K30: =VLOOKUP(A30,xom!A$2:G$122,3,0) -> 86.58 | L30: =VLOOKUP(A30,vfinx!A$2:G$122,3,0) -> 142.15
A31: 2007-07-02 | B31: 53.22 | C31: =VLOOKUP(A31,x!A$2:G$122,3,0) -> 116.37 | D31: =VLOOKUP(A31,mt!A$2:G$122,3,0) -> 67.89 | E31: =VLOOKUP(A31,msft!A$2:G$122,3,0) -> 31.84 | F31: =VLOOKUP(A31,aapl!A$2:G$122,3,0) -> 148.92 | G31: =VLOOKUP(A31,k!A$2:G$122,3,0) -> 52.85 | H31: =VLOOKUP(A31,ge!A$2:G$122,3,0) -> 40.98 | I31: =VLOOKUP(A31,bac!A$2:G$122,3,0) -> 50.2 | J31: =VLOOKUP(A31,pfe!A$2:G$122,3,0) -> 26.15 | K31: =VLOOKUP(A31,xom!A$2:G$122,3,0) -> 93.62 | L31: =VLOOKUP(A31,vfinx!A$2:G$122,3,0) -> 143.15
A32: 2007-08-01 | B32: 51.88 | C32: =VLOOKUP(A32,x!A$2:G$122,3,0) -> 98.64 | D32: =VLOOKUP(A32,mt!A$2:G$122,3,0) -> 66.77 | E32: =VLOOKUP(A32,msft!A$2:G$122,3,0) -> 30.1 | F32: =VLOOKUP(A32,aapl!A$2:G$122,3,0) -> 139.65 | G32: =VLOOKUP(A32,k!A$2:G$122,3,0) -> 55.98 | H32: =VLOOKUP(A32,ge!A$2:G$122,3,0) -> 40.46 | I32: =VLOOKUP(A32,bac!A$2:G$122,3,0) -> 52.78 | J32: =VLOOKUP(A32,pfe!A$2:G$122,3,0) -> 25 | K32: =VLOOKUP(A32,xom!A$2:G$122,3,0) -> 87.9 | L32: =VLOOKUP(A32,vfinx!A$2:G$122,3,0) -> 138.15
A33: 2007-09-04 | B33: 55.73 | C33: =VLOOKUP(A33,x!A$2:G$122,3,0) -> 108.47 | D33: =VLOOKUP(A33,mt!A$2:G$122,3,0) -> 79.24 | E33: =VLOOKUP(A33,msft!A$2:G$122,3,0) -> 29.85 | F33: =VLOOKUP(A33,aapl!A$2:G$122,3,0) -> 155 | G33: =VLOOKUP(A33,k!A$2:G$122,3,0) -> 56.89 | H33: =VLOOKUP(A33,ge!A$2:G$122,3,0) -> 42.07 | I33: =VLOOKUP(A33,bac!A$2:G$122,3,0) -> 51.93 | J33: =VLOOKUP(A33,pfe!A$2:G$122,3,0) -> 25.17 | K33: =VLOOKUP(A33,xom!A$2:G$122,3,0) -> 93.66 | L33: =VLOOKUP(A33,vfinx!A$2:G$122,3,0) -> 141.39
A34: 2007-10-01 | B34: 59.85 | C34: =VLOOKUP(A34,x!A$2:G$122,3,0) -> 114.68 | D34: =VLOOKUP(A34,mt!A$2:G$122,3,0) -> 83.88 | E34: =VLOOKUP(A34,msft!A$2:G$122,3,0) -> 37 | F34: =VLOOKUP(A34,aapl!A$2:G$122,3,0) -> 190.12 | G34: =VLOOKUP(A34,k!A$2:G$122,3,0) -> 56.31 | H34: =VLOOKUP(A34,ge!A$2:G$122,3,0) -> 42.15 | I34: =VLOOKUP(A34,bac!A$2:G$122,3,0) -> 52.96 | J34: =VLOOKUP(A34,pfe!A$2:G$122,3,0) -> 25.71 | K34: =VLOOKUP(A34,xom!A$2:G$122,3,0) -> 95.27 | L34: =VLOOKUP(A34,vfinx!A$2:G$122,3,0) -> 144.22
A35: 2007-11-01 | B35: 59.92 | C35: =VLOOKUP(A35,x!A$2:G$122,3,0) -> 107.12 | D35: =VLOOKUP(A35,mt!A$2:G$122,3,0) -> 79.52 | E35: =VLOOKUP(A35,msft!A$2:G$122,3,0) -> 37.5 | F35: =VLOOKUP(A35,aapl!A$2:G$122,3,0) -> 192.68 | G35: =VLOOKUP(A35,k!A$2:G$122,3,0) -> 54.45 | H35: =VLOOKUP(A35,ge!A$2:G$122,3,0) -> 40.98 | I35: =VLOOKUP(A35,bac!A$2:G$122,3,0) -> 47 | J35: =VLOOKUP(A35,pfe!A$2:G$122,3,0) -> 24.6 | K35: =VLOOKUP(A35,xom!A$2:G$122,3,0) -> 90.95 | L35: =VLOOKUP(A35,vfinx!A$2:G$122,3,0) -> 140.2
A36: 2007-12-03 | B36: 63.69 | C36: =VLOOKUP(A36,x!A$2:G$122,3,0) -> 121.12 | D36: =VLOOKUP(A36,mt!A$2:G$122,3,0) -> 78.02 | E36: =VLOOKUP(A36,msft!A$2:G$122,3,0) -> 36.72 | F36: =VLOOKUP(A36,aapl!A$2:G$122,3,0) -> 202.96 | G36: =VLOOKUP(A36,k!A$2:G$122,3,0) -> 55.19 | H36: =VLOOKUP(A36,ge!A$2:G$122,3,0) -> 38.2 | I36: =VLOOKUP(A36,bac!A$2:G$122,3,0) -> 47 | J36: =VLOOKUP(A36,pfe!A$2:G$122,3,0) -> 24.5 | K36: =VLOOKUP(A36,xom!A$2:G$122,3,0) -> 95.1 | L36: =VLOOKUP(A36,vfinx!A$2:G$122,3,0) -> 140.16
A37: 2008-01-02 | B37: 59.48 | C37: =VLOOKUP(A37,x!A$2:G$122,3,0) -> 121.93 | D37: =VLOOKUP(A37,mt!A$2:G$122,3,0) -> 78.48 | E37: =VLOOKUP(A37,msft!A$2:G$122,3,0) -> 35.96 | F37: =VLOOKUP(A37,aapl!A$2:G$122,3,0) -> 200.26 | G37: =VLOOKUP(A37,k!A$2:G$122,3,0) -> 53 | H37: =VLOOKUP(A37,ge!A$2:G$122,3,0) -> 37.45 | I37: =VLOOKUP(A37,bac!A$2:G$122,3,0) -> 44.5 | J37: =VLOOKUP(A37,pfe!A$2:G$122,3,0) -> 24.24 | K37: =VLOOKUP(A37,xom!A$2:G$122,3,0) -> 94.74 | L37: =VLOOKUP(A37,vfinx!A$2:G$122,3,0) -> 133.22
A38: 2008-02-01 | B38: 57.07 | C38: =VLOOKUP(A38,x!A$2:G$122,3,0) -> 116.39 | D38: =VLOOKUP(A38,mt!A$2:G$122,3,0) -> 80.21 | E38: =VLOOKUP(A38,msft!A$2:G$122,3,0) -> 33.25 | F38: =VLOOKUP(A38,aapl!A$2:G$122,3,0) -> 136.59 | G38: =VLOOKUP(A38,k!A$2:G$122,3,0) -> 52.72 | H38: =VLOOKUP(A38,ge!A$2:G$122,3,0) -> 36.3 | I38: =VLOOKUP(A38,bac!A$2:G$122,3,0) -> 45.08 | J38: =VLOOKUP(A38,pfe!A$2:G$122,3,0) -> 23.79 | K38: =VLOOKUP(A38,xom!A$2:G$122,3,0) -> 90.17 | L38: =VLOOKUP(A38,vfinx!A$2:G$122,3,0) -> 128.58
A39: 2008-03-03 | B39: 56.51 | C39: =VLOOKUP(A39,x!A$2:G$122,3,0) -> 128.3 | D39: =VLOOKUP(A39,mt!A$2:G$122,3,0) -> 82.26 | E39: =VLOOKUP(A39,msft!A$2:G$122,3,0) -> 29.59 | F39: =VLOOKUP(A39,aapl!A$2:G$122,3,0) -> 145.74 | G39: =VLOOKUP(A39,k!A$2:G$122,3,0) -> 52.73 | H39: =VLOOKUP(A39,ge!A$2:G$122,3,0) -> 37.74 | I39: =VLOOKUP(A39,bac!A$2:G$122,3,0) -> 43.46 | J39: =VLOOKUP(A39,pfe!A$2:G$122,3,0) -> 22.44 | K39: =VLOOKUP(A39,xom!A$2:G$122,3,0) -> 88.5 | L39: =VLOOKUP(A39,vfinx!A$2:G$122,3,0) -> 125.11
A40: 2008-04-01 | B40: 60.6 | C40: =VLOOKUP(A40,x!A$2:G$122,3,0) -> 158.23 | D40: =VLOOKUP(A40,mt!A$2:G$122,3,0) -> 92.27 | E40: =VLOOKUP(A40,msft!A$2:G$122,3,0) -> 32.1 | F40: =VLOOKUP(A40,aapl!A$2:G$122,3,0) -> 180 | G40: =VLOOKUP(A40,k!A$2:G$122,3,0) -> 54.15 | H40: =VLOOKUP(A40,ge!A$2:G$122,3,0) -> 38.52 | I40: =VLOOKUP(A40,bac!A$2:G$122,3,0) -> 41.5 | J40: =VLOOKUP(A40,pfe!A$2:G$122,3,0) -> 21.6 | K40: =VLOOKUP(A40,xom!A$2:G$122,3,0) -> 94.93 | L40: =VLOOKUP(A40,vfinx!A$2:G$122,3,0) -> 128.78
A41: 2008-05-01 | B41: 61.76 | C41: =VLOOKUP(A41,x!A$2:G$122,3,0) -> 185.55 | D41: =VLOOKUP(A41,mt!A$2:G$122,3,0) -> 103.14 | E41: =VLOOKUP(A41,msft!A$2:G$122,3,0) -> 30.53 | F41: =VLOOKUP(A41,aapl!A$2:G$122,3,0) -> 192.24 | G41: =VLOOKUP(A41,k!A$2:G$122,3,0) -> 52.87 | H41: =VLOOKUP(A41,ge!A$2:G$122,3,0) -> 33.62 | I41: =VLOOKUP(A41,bac!A$2:G$122,3,0) -> 40.65 | J41: =VLOOKUP(A41,pfe!A$2:G$122,3,0) -> 20.65 | K41: =VLOOKUP(A41,xom!A$2:G$122,3,0) -> 96.12 | L41: =VLOOKUP(A41,vfinx!A$2:G$122,3,0) -> 131.67
A42: 2008-06-02 | B42: 60.41 | C42: =VLOOKUP(A42,x!A$2:G$122,3,0) -> 196 | D42: =VLOOKUP(A42,mt!A$2:G$122,3,0) -> 104.77 | E42: =VLOOKUP(A42,msft!A$2:G$122,3,0) -> 29.57 | F42: =VLOOKUP(A42,aapl!A$2:G$122,3,0) -> 189.95 | G42: =VLOOKUP(A42,k!A$2:G$122,3,0) -> 52.23 | H42: =VLOOKUP(A42,ge!A$2:G$122,3,0) -> 31.14 | I42: =VLOOKUP(A42,bac!A$2:G$122,3,0) -> 33.94 | J42: =VLOOKUP(A42,pfe!A$2:G$122,3,0) -> 19.46 | K42: =VLOOKUP(A42,xom!A$2:G$122,3,0) -> 90.5 | L42: =VLOOKUP(A42,vfinx!A$2:G$122,3,0) -> 129.73
A43: 2008-07-01 | B43: 61.21 | C43: =VLOOKUP(A43,x!A$2:G$122,3,0) -> 182.79 | D43: =VLOOKUP(A43,mt!A$2:G$122,3,0) -> 95.34 | E43: =VLOOKUP(A43,msft!A$2:G$122,3,0) -> 27.91 | F43: =VLOOKUP(A43,aapl!A$2:G$122,3,0) -> 180.91 | G43: =VLOOKUP(A43,k!A$2:G$122,3,0) -> 54.25 | H43: =VLOOKUP(A43,ge!A$2:G$122,3,0) -> 29.89 | I43: =VLOOKUP(A43,bac!A$2:G$122,3,0) -> 34.5 | J43: =VLOOKUP(A43,pfe!A$2:G$122,3,0) -> 19.25 | K43: =VLOOKUP(A43,xom!A$2:G$122,3,0) -> 89.63 | L43: =VLOOKUP(A43,vfinx!A$2:G$122,3,0) -> 118.38
A44: 2008-08-01 | B44: 67 | C44: =VLOOKUP(A44,x!A$2:G$122,3,0) -> 161 | D44: =VLOOKUP(A44,mt!A$2:G$122,3,0) -> 86.93 | E44: =VLOOKUP(A44,msft!A$2:G$122,3,0) -> 28.5 | F44: =VLOOKUP(A44,aapl!A$2:G$122,3,0) -> 180.45 | G44: =VLOOKUP(A44,k!A$2:G$122,3,0) -> 55.84 | H44: =VLOOKUP(A44,ge!A$2:G$122,3,0) -> 30.39 | I44: =VLOOKUP(A44,bac!A$2:G$122,3,0) -> 34.2 | J44: =VLOOKUP(A44,pfe!A$2:G$122,3,0) -> 20.13 | K44: =VLOOKUP(A44,xom!A$2:G$122,3,0) -> 81.5 | L44: =VLOOKUP(A44,vfinx!A$2:G$122,3,0) -> 120.46
A45: 2008-09-02 | B45: 65.47 | C45: =VLOOKUP(A45,x!A$2:G$122,3,0) -> 128 | D45: =VLOOKUP(A45,mt!A$2:G$122,3,0) -> 73.52 | E45: =VLOOKUP(A45,msft!A$2:G$122,3,0) -> 27.76 | F45: =VLOOKUP(A45,aapl!A$2:G$122,3,0) -> 173.5 | G45: =VLOOKUP(A45,k!A$2:G$122,3,0) -> 58.51 | H45: =VLOOKUP(A45,ge!A$2:G$122,3,0) -> 29.28 | I45: =VLOOKUP(A45,bac!A$2:G$122,3,0) -> 39.5 | J45: =VLOOKUP(A45,pfe!A$2:G$122,3,0) -> 19.59 | K45: =VLOOKUP(A45,xom!A$2:G$122,3,0) -> 82 | L45: =VLOOKUP(A45,vfinx!A$2:G$122,3,0) -> 118.05
A46: 2008-10-01 | B46: 64.02 | C46: =VLOOKUP(A46,x!A$2:G$122,3,0) -> 77.92 | D46: =VLOOKUP(A46,mt!A$2:G$122,3,0) -> 49.15 | E46: =VLOOKUP(A46,msft!A$2:G$122,3,0) -> 27.47 | F46: =VLOOKUP(A46,aapl!A$2:G$122,3,0) -> 116.4 | G46: =VLOOKUP(A46,k!A$2:G$122,3,0) -> 57.66 | H46: =VLOOKUP(A46,ge!A$2:G$122,3,0) -> 25.75 | I46: =VLOOKUP(A46,bac!A$2:G$122,3,0) -> 38.5 | J46: =VLOOKUP(A46,pfe!A$2:G$122,3,0) -> 19.39 | K46: =VLOOKUP(A46,xom!A$2:G$122,3,0) -> 81.75 | L46: =VLOOKUP(A46,vfinx!A$2:G$122,3,0) -> 106.9
A47: 2008-11-03 | B47: 58.98 | C47: =VLOOKUP(A47,x!A$2:G$122,3,0) -> 42.58 | D47: =VLOOKUP(A47,mt!A$2:G$122,3,0) -> 33.13 | E47: =VLOOKUP(A47,msft!A$2:G$122,3,0) -> 23.66 | F47: =VLOOKUP(A47,aapl!A$2:G$122,3,0) -> 111.79 | G47: =VLOOKUP(A47,k!A$2:G$122,3,0) -> 53.39 | H47: =VLOOKUP(A47,ge!A$2:G$122,3,0) -> 21.04 | I47: =VLOOKUP(A47,bac!A$2:G$122,3,0) -> 24.62 | J47: =VLOOKUP(A47,pfe!A$2:G$122,3,0) -> 18.45 | K47: =VLOOKUP(A47,xom!A$2:G$122,3,0) -> 81.03 | L47: =VLOOKUP(A47,vfinx!A$2:G$122,3,0) -> 92.75
A48: 2008-12-01 | B48: 63.99 | C48: =VLOOKUP(A48,x!A$2:G$122,3,0) -> 44.13 | D48: =VLOOKUP(A48,mt!A$2:G$122,3,0) -> 26.97 | E48: =VLOOKUP(A48,msft!A$2:G$122,3,0) -> 21.25 | F48: =VLOOKUP(A48,aapl!A$2:G$122,3,0) -> 103.6 | G48: =VLOOKUP(A48,k!A$2:G$122,3,0) -> 44.08 | H48: =VLOOKUP(A48,ge!A$2:G$122,3,0) -> 19.3 | I48: =VLOOKUP(A48,bac!A$2:G$122,3,0) -> 18 | J48: =VLOOKUP(A48,pfe!A$2:G$122,3,0) -> 17.97 | K48: =VLOOKUP(A48,xom!A$2:G$122,3,0) -> 83.64 | L48: =VLOOKUP(A48,vfinx!A$2:G$122,3,0) -> 84.62
A49: 2009-01-02 | B49: 64.46 | C49: =VLOOKUP(A49,x!A$2:G$122,3,0) -> 41.47 | D49: =VLOOKUP(A49,mt!A$2:G$122,3,0) -> 30 | E49: =VLOOKUP(A49,msft!A$2:G$122,3,0) -> 21 | F49: =VLOOKUP(A49,aapl!A$2:G$122,3,0) -> 97.17 | G49: =VLOOKUP(A49,k!A$2:G$122,3,0) -> 45.94 | H49: =VLOOKUP(A49,ge!A$2:G$122,3,0) -> 17.24 | I49: =VLOOKUP(A49,bac!A$2:G$122,3,0) -> 14.81 | J49: =VLOOKUP(A49,pfe!A$2:G$122,3,0) -> 18.48 | K49: =VLOOKUP(A49,xom!A$2:G$122,3,0) -> 82.73 | L49: =VLOOKUP(A49,vfinx!A$2:G$122,3,0) -> 86.02
A50: 2009-02-02 | B50: 59.77 | C50: =VLOOKUP(A50,x!A$2:G$122,3,0) -> 36.7 | D50: =VLOOKUP(A50,mt!A$2:G$122,3,0) -> 29.28 | E50: =VLOOKUP(A50,msft!A$2:G$122,3,0) -> 19.93 | F50: =VLOOKUP(A50,aapl!A$2:G$122,3,0) -> 103 | G50: =VLOOKUP(A50,k!A$2:G$122,3,0) -> 45.1 | H50: =VLOOKUP(A50,ge!A$2:G$122,3,0) -> 12.9 | I50: =VLOOKUP(A50,bac!A$2:G$122,3,0) -> 7.05 | J50: =VLOOKUP(A50,pfe!A$2:G$122,3,0) -> 15.38 | K50: =VLOOKUP(A50,xom!A$2:G$122,3,0) -> 80.5 | L50: =VLOOKUP(A50,vfinx!A$2:G$122,3,0) -> 80.25
A51: 2009-03-02 | B51: 56.09 | C51: =VLOOKUP(A51,x!A$2:G$122,3,0) -> 25.74 | D51: =VLOOKUP(A51,mt!A$2:G$122,3,0) -> 22.39 | E51: =VLOOKUP(A51,msft!A$2:G$122,3,0) -> 18.88 | F51: =VLOOKUP(A51,aapl!A$2:G$122,3,0) -> 109.98 | G51: =VLOOKUP(A51,k!A$2:G$122,3,0) -> 38.77 | H51: =VLOOKUP(A51,ge!A$2:G$122,3,0) -> 11.35 | I51: =VLOOKUP(A51,bac!A$2:G$122,3,0) -> 8.57 | J51: =VLOOKUP(A51,pfe!A$2:G$122,3,0) -> 14.99 | K51: =VLOOKUP(A51,xom!A$2:G$122,3,0) -> 71.49 | L51: =VLOOKUP(A51,vfinx!A$2:G$122,3,0) -> 76.64
A52: 2009-04-01 | B52: 57.27 | C52: =VLOOKUP(A52,x!A$2:G$122,3,0) -> 30.38 | D52: =VLOOKUP(A52,mt!A$2:G$122,3,0) -> 29.5 | E52: =VLOOKUP(A52,msft!A$2:G$122,3,0) -> 21.2 | F52: =VLOOKUP(A52,aapl!A$2:G$122,3,0) -> 127.2 | G52: =VLOOKUP(A52,k!A$2:G$122,3,0) -> 43.91 | H52: =VLOOKUP(A52,ge!A$2:G$122,3,0) -> 12.81 | I52: =VLOOKUP(A52,bac!A$2:G$122,3,0) -> 11.58 | J52: =VLOOKUP(A52,pfe!A$2:G$122,3,0) -> 14.27 | K52: =VLOOKUP(A52,xom!A$2:G$122,3,0) -> 71.15 | L52: =VLOOKUP(A52,vfinx!A$2:G$122,3,0) -> 80.53
A53: 2009-05-01 | B53: 59.03 | C53: =VLOOKUP(A53,x!A$2:G$122,3,0) -> 34.08 | D53: =VLOOKUP(A53,mt!A$2:G$122,3,0) -> 33.74 | E53: =VLOOKUP(A53,msft!A$2:G$122,3,0) -> 20.94 | F53: =VLOOKUP(A53,aapl!A$2:G$122,3,0) -> 135.9 | G53: =VLOOKUP(A53,k!A$2:G$122,3,0) -> 44.91 | H53: =VLOOKUP(A53,ge!A$2:G$122,3,0) -> 14.55 | I53: =VLOOKUP(A53,bac!A$2:G$122,3,0) -> 15.07 | J53: =VLOOKUP(A53,pfe!A$2:G$122,3,0) -> 15.6 | K53: =VLOOKUP(A53,xom!A$2:G$122,3,0) -> 71.39 | L53: =VLOOKUP(A53,vfinx!A$2:G$122,3,0) -> 85.7
A54: 2009-06-01 | B54: 61.01 | C54: =VLOOKUP(A54,x!A$2:G$122,3,0) -> 43.15 | D54: =VLOOKUP(A54,mt!A$2:G$122,3,0) -> 37.26 | E54: =VLOOKUP(A54,msft!A$2:G$122,3,0) -> 24.34 | F54: =VLOOKUP(A54,aapl!A$2:G$122,3,0) -> 146.4 | G54: =VLOOKUP(A54,k!A$2:G$122,3,0) -> 46.91 | H54: =VLOOKUP(A54,ge!A$2:G$122,3,0) -> 13.99 | I54: =VLOOKUP(A54,bac!A$2:G$122,3,0) -> 13.93 | J54: =VLOOKUP(A54,pfe!A$2:G$122,3,0) -> 15.45 | K54: =VLOOKUP(A54,xom!A$2:G$122,3,0) -> 74.83 | L54: =VLOOKUP(A54,vfinx!A$2:G$122,3,0) -> 87.58
A55: 2009-07-01 | B55: 59.59 | C55: =VLOOKUP(A55,x!A$2:G$122,3,0) -> 41.73 | D55: =VLOOKUP(A55,mt!A$2:G$122,3,0) -> 38.05 | E55: =VLOOKUP(A55,msft!A$2:G$122,3,0) -> 25.72 | F55: =VLOOKUP(A55,aapl!A$2:G$122,3,0) -> 165 | G55: =VLOOKUP(A55,k!A$2:G$122,3,0) -> 49.22 | H55: =VLOOKUP(A55,ge!A$2:G$122,3,0) -> 13.45 | I55: =VLOOKUP(A55,bac!A$2:G$122,3,0) -> 14.79 | J55: =VLOOKUP(A55,pfe!A$2:G$122,3,0) -> 16.66 | K55: =VLOOKUP(A55,xom!A$2:G$122,3,0) -> 72.79 | L55: =VLOOKUP(A55,vfinx!A$2:G$122,3,0) -> 91.14
A56: 2009-08-03 | B56: 57.22 | C56: =VLOOKUP(A56,x!A$2:G$122,3,0) -> 47.6 | D56: =VLOOKUP(A56,mt!A$2:G$122,3,0) -> 39 | E56: =VLOOKUP(A56,msft!A$2:G$122,3,0) -> 25.49 | F56: =VLOOKUP(A56,aapl!A$2:G$122,3,0) -> 172.49 | G56: =VLOOKUP(A56,k!A$2:G$122,3,0) -> 47.8 | H56: =VLOOKUP(A56,ge!A$2:G$122,3,0) -> 14.88 | I56: =VLOOKUP(A56,bac!A$2:G$122,3,0) -> 18.25 | J56: =VLOOKUP(A56,pfe!A$2:G$122,3,0) -> 16.98 | K56: =VLOOKUP(A56,xom!A$2:G$122,3,0) -> 71.89 | L56: =VLOOKUP(A56,vfinx!A$2:G$122,3,0) -> 95.36
A57: 2009-09-01 | B57: 57.67 | C57: =VLOOKUP(A57,x!A$2:G$122,3,0) -> 51.65 | D57: =VLOOKUP(A57,mt!A$2:G$122,3,0) -> 42.32 | E57: =VLOOKUP(A57,msft!A$2:G$122,3,0) -> 26.25 | F57: =VLOOKUP(A57,aapl!A$2:G$122,3,0) -> 188.9 | G57: =VLOOKUP(A57,k!A$2:G$122,3,0) -> 49.9 | H57: =VLOOKUP(A57,ge!A$2:G$122,3,0) -> 17.52 | I57: =VLOOKUP(A57,bac!A$2:G$122,3,0) -> 18.08 | J57: =VLOOKUP(A57,pfe!A$2:G$122,3,0) -> 16.94 | K57: =VLOOKUP(A57,xom!A$2:G$122,3,0) -> 71.08 | L57: =VLOOKUP(A57,vfinx!A$2:G$122,3,0) -> 99.24
A58: 2009-10-01 | B58: 60.6 | C58: =VLOOKUP(A58,x!A$2:G$122,3,0) -> 45.87 | D58: =VLOOKUP(A58,mt!A$2:G$122,3,0) -> 41 | E58: =VLOOKUP(A58,msft!A$2:G$122,3,0) -> 29.35 | F58: =VLOOKUP(A58,aapl!A$2:G$122,3,0) -> 208.71 | G58: =VLOOKUP(A58,k!A$2:G$122,3,0) -> 52.58 | H58: =VLOOKUP(A58,ge!A$2:G$122,3,0) -> 16.87 | I58: =VLOOKUP(A58,bac!A$2:G$122,3,0) -> 19.1 | J58: =VLOOKUP(A58,pfe!A$2:G$122,3,0) -> 18.43 | K58: =VLOOKUP(A58,xom!A$2:G$122,3,0) -> 75 | L58: =VLOOKUP(A58,vfinx!A$2:G$122,3,0) -> 101.28
A59: 2009-11-02 | B59: 64.75 | C59: =VLOOKUP(A59,x!A$2:G$122,3,0) -> 44.96 | D59: =VLOOKUP(A59,mt!A$2:G$122,3,0) -> 39.89 | E59: =VLOOKUP(A59,msft!A$2:G$122,3,0) -> 30.14 | F59: =VLOOKUP(A59,aapl!A$2:G$122,3,0) -> 208 | G59: =VLOOKUP(A59,k!A$2:G$122,3,0) -> 54.05 | H59: =VLOOKUP(A59,ge!A$2:G$122,3,0) -> 16.25 | I59: =VLOOKUP(A59,bac!A$2:G$122,3,0) -> 16.62 | J59: =VLOOKUP(A59,pfe!A$2:G$122,3,0) -> 18.9 | K59: =VLOOKUP(A59,xom!A$2:G$122,3,0) -> 76.54 | L59: =VLOOKUP(A59,vfinx!A$2:G$122,3,0) -> 102.71
A60: 2009-12-01 | B60: 64.05 | C60: =VLOOKUP(A60,x!A$2:G$122,3,0) -> 58.19 | D60: =VLOOKUP(A60,mt!A$2:G$122,3,0) -> 47.04 | E60: =VLOOKUP(A60,msft!A$2:G$122,3,0) -> 31.5 | F60: =VLOOKUP(A60,aapl!A$2:G$122,3,0) -> 213.95 | G60: =VLOOKUP(A60,k!A$2:G$122,3,0) -> 54.1 | H60: =VLOOKUP(A60,ge!A$2:G$122,3,0) -> 16.49 | I60: =VLOOKUP(A60,bac!A$2:G$122,3,0) -> 16.74 | J60: =VLOOKUP(A60,pfe!A$2:G$122,3,0) -> 18.99 | K60: =VLOOKUP(A60,xom!A$2:G$122,3,0) -> 76.3 | L60: =VLOOKUP(A60,vfinx!A$2:G$122,3,0) -> 104.34
A61: 2010-01-04 | B61: 64.78 | C61: =VLOOKUP(A61,x!A$2:G$122,3,0) -> 66.45 | D61: =VLOOKUP(A61,mt!A$2:G$122,3,0) -> 49.41 | E61: =VLOOKUP(A61,msft!A$2:G$122,3,0) -> 31.24 | F61: =VLOOKUP(A61,aapl!A$2:G$122,3,0) -> 215.59 | G61: =VLOOKUP(A61,k!A$2:G$122,3,0) -> 55.45 | H61: =VLOOKUP(A61,ge!A$2:G$122,3,0) -> 16.92 | I61: =VLOOKUP(A61,bac!A$2:G$122,3,0) -> 17.19 | J61: =VLOOKUP(A61,pfe!A$2:G$122,3,0) -> 20.36 | K61: =VLOOKUP(A61,xom!A$2:G$122,3,0) -> 70.6 | L61: =VLOOKUP(A61,vfinx!A$2:G$122,3,0) -> 105.97
A62: 2010-02-01 | B62: 65.75 | C62: =VLOOKUP(A62,x!A$2:G$122,3,0) -> 54.13 | D62: =VLOOKUP(A62,mt!A$2:G$122,3,0) -> 41.58 | E62: =VLOOKUP(A62,msft!A$2:G$122,3,0) -> 29.03 | F62: =VLOOKUP(A62,aapl!A$2:G$122,3,0) -> 205.17 | G62: =VLOOKUP(A62,k!A$2:G$122,3,0) -> 55.41 | H62: =VLOOKUP(A62,ge!A$2:G$122,3,0) -> 17.03 | I62: =VLOOKUP(A62,bac!A$2:G$122,3,0) -> 16.84 | J62: =VLOOKUP(A62,pfe!A$2:G$122,3,0) -> 19.33 | K62: =VLOOKUP(A62,xom!A$2:G$122,3,0) -> 67.23 | L62: =VLOOKUP(A62,vfinx!A$2:G$122,3,0) -> 102.41
A63: 2010-03-01 | B63: 67.49 | C63: =VLOOKUP(A63,x!A$2:G$122,3,0) -> 65.52 | D63: =VLOOKUP(A63,mt!A$2:G$122,3,0) -> 44.96 | E63: =VLOOKUP(A63,msft!A$2:G$122,3,0) -> 30.57 | F63: =VLOOKUP(A63,aapl!A$2:G$122,3,0) -> 237.48 | G63: =VLOOKUP(A63,k!A$2:G$122,3,0) -> 54.8 | H63: =VLOOKUP(A63,ge!A$2:G$122,3,0) -> 18.94 | I63: =VLOOKUP(A63,bac!A$2:G$122,3,0) -> 18.35 | J63: =VLOOKUP(A63,pfe!A$2:G$122,3,0) -> 17.88 | K63: =VLOOKUP(A63,xom!A$2:G$122,3,0) -> 67.89 | L63: =VLOOKUP(A63,vfinx!A$2:G$122,3,0) -> 108.58
A64: 2010-04-01 | B64: 71.71 | C64: =VLOOKUP(A64,x!A$2:G$122,3,0) -> 70.95 | D64: =VLOOKUP(A64,mt!A$2:G$122,3,0) -> 47.25 | E64: =VLOOKUP(A64,msft!A$2:G$122,3,0) -> 31.58 | F64: =VLOOKUP(A64,aapl!A$2:G$122,3,0) -> 272.46 | G64: =VLOOKUP(A64,k!A$2:G$122,3,0) -> 55.45 | H64: =VLOOKUP(A64,ge!A$2:G$122,3,0) -> 19.7 | I64: =VLOOKUP(A64,bac!A$2:G$122,3,0) -> 19.86 | J64: =VLOOKUP(A64,pfe!A$2:G$122,3,0) -> 17.33 | K64: =VLOOKUP(A64,xom!A$2:G$122,3,0) -> 70 | L64: =VLOOKUP(A64,vfinx!A$2:G$122,3,0) -> 112.22
A65: 2010-05-03 | B65: 71.84 | C65: =VLOOKUP(A65,x!A$2:G$122,3,0) -> 57.96 | D65: =VLOOKUP(A65,mt!A$2:G$122,3,0) -> 39.93 | E65: =VLOOKUP(A65,msft!A$2:G$122,3,0) -> 31.06 | F65: =VLOOKUP(A65,aapl!A$2:G$122,3,0) -> 267.88 | G65: =VLOOKUP(A65,k!A$2:G$122,3,0) -> 56 | H65: =VLOOKUP(A65,ge!A$2:G$122,3,0) -> 19.34 | I65: =VLOOKUP(A65,bac!A$2:G$122,3,0) -> 18.15 | J65: =VLOOKUP(A65,pfe!A$2:G$122,3,0) -> 17.39 | K65: =VLOOKUP(A65,xom!A$2:G$122,3,0) -> 68.22 | L65: =VLOOKUP(A65,vfinx!A$2:G$122,3,0) -> 110.86
A66: 2010-06-01 | B66: 70.58 | C66: =VLOOKUP(A66,x!A$2:G$122,3,0) -> 46.65 | D66: =VLOOKUP(A66,mt!A$2:G$122,3,0) -> 32.4 | E66: =VLOOKUP(A66,msft!A$2:G$122,3,0) -> 26.93 | F66: =VLOOKUP(A66,aapl!A$2:G$122,3,0) -> 279.01 | G66: =VLOOKUP(A66,k!A$2:G$122,3,0) -> 55.21 | H66: =VLOOKUP(A66,ge!A$2:G$122,3,0) -> 16.51 | I66: =VLOOKUP(A66,bac!A$2:G$122,3,0) -> 16.1 | J66: =VLOOKUP(A66,pfe!A$2:G$122,3,0) -> 15.6 | K66: =VLOOKUP(A66,xom!A$2:G$122,3,0) -> 64.5 | L66: =VLOOKUP(A66,vfinx!A$2:G$122,3,0) -> 103.38
A67: 2010-07-01 | B67: 71.54 | C67: =VLOOKUP(A67,x!A$2:G$122,3,0) -> 49.7 | D67: =VLOOKUP(A67,mt!A$2:G$122,3,0) -> 33.07 | E67: =VLOOKUP(A67,msft!A$2:G$122,3,0) -> 26.41 | F67: =VLOOKUP(A67,aapl!A$2:G$122,3,0) -> 265.99 | G67: =VLOOKUP(A67,k!A$2:G$122,3,0) -> 52.58 | H67: =VLOOKUP(A67,ge!A$2:G$122,3,0) -> 16.57 | I67: =VLOOKUP(A67,bac!A$2:G$122,3,0) -> 15.72 | J67: =VLOOKUP(A67,pfe!A$2:G$122,3,0) -> 15.44 | K67: =VLOOKUP(A67,xom!A$2:G$122,3,0) -> 61.88 | L67: =VLOOKUP(A67,vfinx!A$2:G$122,3,0) -> 102.76
A68: 2010-08-02 | B68: 74.07 | C68: =VLOOKUP(A68,x!A$2:G$122,3,0) -> 51.39 | D68: =VLOOKUP(A68,mt!A$2:G$122,3,0) -> 33.87 | E68: =VLOOKUP(A68,msft!A$2:G$122,3,0) -> 26.38 | F68: =VLOOKUP(A68,aapl!A$2:G$122,3,0) -> 264.28 | G68: =VLOOKUP(A68,k!A$2:G$122,3,0) -> 51.84 | H68: =VLOOKUP(A68,ge!A$2:G$122,3,0) -> 16.54 | I68: =VLOOKUP(A68,bac!A$2:G$122,3,0) -> 14.47 | J68: =VLOOKUP(A68,pfe!A$2:G$122,3,0) -> 16.6 | K68: =VLOOKUP(A68,xom!A$2:G$122,3,0) -> 62.99 | L68: =VLOOKUP(A68,vfinx!A$2:G$122,3,0) -> 104.01
A69: 2010-09-01 | B69: 76.26 | C69: =VLOOKUP(A69,x!A$2:G$122,3,0) -> 49.14 | D69: =VLOOKUP(A69,mt!A$2:G$122,3,0) -> 34.05 | E69: =VLOOKUP(A69,msft!A$2:G$122,3,0) -> 25.53 | F69: =VLOOKUP(A69,aapl!A$2:G$122,3,0) -> 294.73 | G69: =VLOOKUP(A69,k!A$2:G$122,3,0) -> 51.52 | H69: =VLOOKUP(A69,ge!A$2:G$122,3,0) -> 16.7 | I69: =VLOOKUP(A69,bac!A$2:G$122,3,0) -> 14.06 | J69: =VLOOKUP(A69,pfe!A$2:G$122,3,0) -> 17.5 | K69: =VLOOKUP(A69,xom!A$2:G$122,3,0) -> 62.44 | L69: =VLOOKUP(A69,vfinx!A$2:G$122,3,0) -> 105.71
A70: 2010-10-01 | B70: 79.9 | C70: =VLOOKUP(A70,x!A$2:G$122,3,0) -> 46.65 | D70: =VLOOKUP(A70,mt!A$2:G$122,3,0) -> 35.62 | E70: =VLOOKUP(A70,msft!A$2:G$122,3,0) -> 27.2 | F70: =VLOOKUP(A70,aapl!A$2:G$122,3,0) -> 319 | G70: =VLOOKUP(A70,k!A$2:G$122,3,0) -> 51.1 | H70: =VLOOKUP(A70,ge!A$2:G$122,3,0) -> 17.49 | I70: =VLOOKUP(A70,bac!A$2:G$122,3,0) -> 13.66 | J70: =VLOOKUP(A70,pfe!A$2:G$122,3,0) -> 17.9 | K70: =VLOOKUP(A70,xom!A$2:G$122,3,0) -> 66.81 | L70: =VLOOKUP(A70,vfinx!A$2:G$122,3,0) -> 109.24
A71: 2010-11-01 | B71: 79.85 | C71: =VLOOKUP(A71,x!A$2:G$122,3,0) -> 49.15 | D71: =VLOOKUP(A71,mt!A$2:G$122,3,0) -> 36.84 | E71: =VLOOKUP(A71,msft!A$2:G$122,3,0) -> 28.87 | F71: =VLOOKUP(A71,aapl!A$2:G$122,3,0) -> 321.3 | G71: =VLOOKUP(A71,k!A$2:G$122,3,0) -> 50.8 | H71: =VLOOKUP(A71,ge!A$2:G$122,3,0) -> 16.86 | I71: =VLOOKUP(A71,bac!A$2:G$122,3,0) -> 12.74 | J71: =VLOOKUP(A71,pfe!A$2:G$122,3,0) -> 17.84 | K71: =VLOOKUP(A71,xom!A$2:G$122,3,0) -> 71.9 | L71: =VLOOKUP(A71,vfinx!A$2:G$122,3,0) -> 113.01
A72: 2010-12-01 | B72: 80.94 | C72: =VLOOKUP(A72,x!A$2:G$122,3,0) -> 59.5 | D72: =VLOOKUP(A72,mt!A$2:G$122,3,0) -> 38.8 | E72: =VLOOKUP(A72,msft!A$2:G$122,3,0) -> 28.4 | F72: =VLOOKUP(A72,aapl!A$2:G$122,3,0) -> 326.66 | G72: =VLOOKUP(A72,k!A$2:G$122,3,0) -> 51.62 | H72: =VLOOKUP(A72,ge!A$2:G$122,3,0) -> 18.49 | I72: =VLOOKUP(A72,bac!A$2:G$122,3,0) -> 13.49 | J72: =VLOOKUP(A72,pfe!A$2:G$122,3,0) -> 17.7 | K72: =VLOOKUP(A72,xom!A$2:G$122,3,0) -> 73.69 | L72: =VLOOKUP(A72,vfinx!A$2:G$122,3,0) -> 116.4
A73: 2011-01-03 | B73: 77.59 | C73: =VLOOKUP(A73,x!A$2:G$122,3,0) -> 61.18 | D73: =VLOOKUP(A73,mt!A$2:G$122,3,0) -> 38.88 | E73: =VLOOKUP(A73,msft!A$2:G$122,3,0) -> 29.46 | F73: =VLOOKUP(A73,aapl!A$2:G$122,3,0) -> 348.6 | G73: =VLOOKUP(A73,k!A$2:G$122,3,0) -> 52.2 | H73: =VLOOKUP(A73,ge!A$2:G$122,3,0) -> 20.74 | I73: =VLOOKUP(A73,bac!A$2:G$122,3,0) -> 15.31 | J73: =VLOOKUP(A73,pfe!A$2:G$122,3,0) -> 18.76 | K73: =VLOOKUP(A73,xom!A$2:G$122,3,0) -> 80.82 | L73: =VLOOKUP(A73,vfinx!A$2:G$122,3,0) -> 119.79
A74: 2011-02-01 | B74: 76.45 | C74: =VLOOKUP(A74,x!A$2:G$122,3,0) -> 64.03 | D74: =VLOOKUP(A74,mt!A$2:G$122,3,0) -> 38.5 | E74: =VLOOKUP(A74,msft!A$2:G$122,3,0) -> 28.34 | F74: =VLOOKUP(A74,aapl!A$2:G$122,3,0) -> 364.9 | G74: =VLOOKUP(A74,k!A$2:G$122,3,0) -> 54.79 | H74: =VLOOKUP(A74,ge!A$2:G$122,3,0) -> 21.65 | I74: =VLOOKUP(A74,bac!A$2:G$122,3,0) -> 14.95 | J74: =VLOOKUP(A74,pfe!A$2:G$122,3,0) -> 19.39 | K74: =VLOOKUP(A74,xom!A$2:G$122,3,0) -> 88.23 | L74: =VLOOKUP(A74,vfinx!A$2:G$122,3,0) -> 123.99
A75: 2011-03-01 | B75: 77.25 | C75: =VLOOKUP(A75,x!A$2:G$122,3,0) -> 57.85 | D75: =VLOOKUP(A75,mt!A$2:G$122,3,0) -> 37.47 | E75: =VLOOKUP(A75,msft!A$2:G$122,3,0) -> 26.78 | F75: =VLOOKUP(A75,aapl!A$2:G$122,3,0) -> 361.67 | G75: =VLOOKUP(A75,k!A$2:G$122,3,0) -> 55.41 | H75: =VLOOKUP(A75,ge!A$2:G$122,3,0) -> 21.17 | I75: =VLOOKUP(A75,bac!A$2:G$122,3,0) -> 14.7 | J75: =VLOOKUP(A75,pfe!A$2:G$122,3,0) -> 20.57 | K75: =VLOOKUP(A75,xom!A$2:G$122,3,0) -> 86.5 | L75: =VLOOKUP(A75,vfinx!A$2:G$122,3,0) -> 122.97
A76: 2011-04-01 | B76: 78.59 | C76: =VLOOKUP(A76,x!A$2:G$122,3,0) -> 55.75 | D76: =VLOOKUP(A76,mt!A$2:G$122,3,0) -> 37.69 | E76: =VLOOKUP(A76,msft!A$2:G$122,3,0) -> 26.87 | F76: =VLOOKUP(A76,aapl!A$2:G$122,3,0) -> 355.13 | G76: =VLOOKUP(A76,k!A$2:G$122,3,0) -> 57.42 | H76: =VLOOKUP(A76,ge!A$2:G$122,3,0) -> 20.85 | I76: =VLOOKUP(A76,bac!A$2:G$122,3,0) -> 13.88 | J76: =VLOOKUP(A76,pfe!A$2:G$122,3,0) -> 21.06 | K76: =VLOOKUP(A76,xom!A$2:G$122,3,0) -> 88 | L76: =VLOOKUP(A76,vfinx!A$2:G$122,3,0) -> 125.72
A77: 2011-05-02 | B77: 83.08 | C77: =VLOOKUP(A77,x!A$2:G$122,3,0) -> 47.97 | D77: =VLOOKUP(A77,mt!A$2:G$122,3,0) -> 37.21 | E77: =VLOOKUP(A77,msft!A$2:G$122,3,0) -> 26.25 | F77: =VLOOKUP(A77,aapl!A$2:G$122,3,0) -> 351.83 | G77: =VLOOKUP(A77,k!A$2:G$122,3,0) -> 57.7 | H77: =VLOOKUP(A77,ge!A$2:G$122,3,0) -> 20.71 | I77: =VLOOKUP(A77,bac!A$2:G$122,3,0) -> 12.71 | J77: =VLOOKUP(A77,pfe!A$2:G$122,3,0) -> 21.45 | K77: =VLOOKUP(A77,xom!A$2:G$122,3,0) -> 88.13 | L77: =VLOOKUP(A77,vfinx!A$2:G$122,3,0) -> 125.5
A78: 2011-06-01 | B78: 84.91 | C78: =VLOOKUP(A78,x!A$2:G$122,3,0) -> 46.68 | D78: =VLOOKUP(A78,mt!A$2:G$122,3,0) -> 34.93 | E78: =VLOOKUP(A78,msft!A$2:G$122,3,0) -> 26 | F78: =VLOOKUP(A78,aapl!A$2:G$122,3,0) -> 352.13 | G78: =VLOOKUP(A78,k!A$2:G$122,3,0) -> 56.82 | H78: =VLOOKUP(A78,ge!A$2:G$122,3,0) -> 19.6 | I78: =VLOOKUP(A78,bac!A$2:G$122,3,0) -> 11.74 | J78: =VLOOKUP(A78,pfe!A$2:G$122,3,0) -> 21.45 | K78: =VLOOKUP(A78,xom!A$2:G$122,3,0) -> 83.65 | L78: =VLOOKUP(A78,vfinx!A$2:G$122,3,0) -> 121.65
A79: 2011-07-01 | B79: 89.57 | C79: =VLOOKUP(A79,x!A$2:G$122,3,0) -> 47.33 | D79: =VLOOKUP(A79,mt!A$2:G$122,3,0) -> 35.31 | E79: =VLOOKUP(A79,msft!A$2:G$122,3,0) -> 28.15 | F79: =VLOOKUP(A79,aapl!A$2:G$122,3,0) -> 404.5 | G79: =VLOOKUP(A79,k!A$2:G$122,3,0) -> 56.39 | H79: =VLOOKUP(A79,ge!A$2:G$122,3,0) -> 19.53 | I79: =VLOOKUP(A79,bac!A$2:G$122,3,0) -> 11.14 | J79: =VLOOKUP(A79,pfe!A$2:G$122,3,0) -> 20.95 | K79: =VLOOKUP(A79,xom!A$2:G$122,3,0) -> 85.41 | L79: =VLOOKUP(A79,vfinx!A$2:G$122,3,0) -> 124.72
A80: 2011-08-01 | B80: 91.22 | C80: =VLOOKUP(A80,x!A$2:G$122,3,0) -> 41.04 | D80: =VLOOKUP(A80,mt!A$2:G$122,3,0) -> 31.61 | E80: =VLOOKUP(A80,msft!A$2:G$122,3,0) -> 27.69 | F80: =VLOOKUP(A80,aapl!A$2:G$122,3,0) -> 399.5 | G80: =VLOOKUP(A80,k!A$2:G$122,3,0) -> 56.16 | H80: =VLOOKUP(A80,ge!A$2:G$122,3,0) -> 18.42 | I80: =VLOOKUP(A80,bac!A$2:G$122,3,0) -> 10.05 | J80: =VLOOKUP(A80,pfe!A$2:G$122,3,0) -> 19.46 | K80: =VLOOKUP(A80,xom!A$2:G$122,3,0) -> 81.18 | L80: =VLOOKUP(A80,vfinx!A$2:G$122,3,0) -> 118.66
A81: 2011-09-01 | B81: 91.09 | C81: =VLOOKUP(A81,x!A$2:G$122,3,0) -> 30.19 | D81: =VLOOKUP(A81,mt!A$2:G$122,3,0) -> 21.95 | E81: =VLOOKUP(A81,msft!A$2:G$122,3,0) -> 27.5 | F81: =VLOOKUP(A81,aapl!A$2:G$122,3,0) -> 422.86 | G81: =VLOOKUP(A81,k!A$2:G$122,3,0) -> 54.94 | H81: =VLOOKUP(A81,ge!A$2:G$122,3,0) -> 16.45 | I81: =VLOOKUP(A81,bac!A$2:G$122,3,0) -> 8.18 | J81: =VLOOKUP(A81,pfe!A$2:G$122,3,0) -> 19.15 | K81: =VLOOKUP(A81,xom!A$2:G$122,3,0) -> 74.98 | L81: =VLOOKUP(A81,vfinx!A$2:G$122,3,0) -> 112.52
A82: 2011-10-03 | B82: 93.84 | C82: =VLOOKUP(A82,x!A$2:G$122,3,0) -> 28.09 | D82: =VLOOKUP(A82,mt!A$2:G$122,3,0) -> 22.88 | E82: =VLOOKUP(A82,msft!A$2:G$122,3,0) -> 27.5 | F82: =VLOOKUP(A82,aapl!A$2:G$122,3,0) -> 426.7 | G82: =VLOOKUP(A82,k!A$2:G$122,3,0) -> 55.3 | H82: =VLOOKUP(A82,ge!A$2:G$122,3,0) -> 17.5 | I82: =VLOOKUP(A82,bac!A$2:G$122,3,0) -> 7.43 | J82: =VLOOKUP(A82,pfe!A$2:G$122,3,0) -> 19.95 | K82: =VLOOKUP(A82,xom!A$2:G$122,3,0) -> 82.2 | L82: =VLOOKUP(A82,vfinx!A$2:G$122,3,0) -> 118.48
A83: 2011-11-01 | B83: 95.54 | C83: =VLOOKUP(A83,x!A$2:G$122,3,0) -> 28.49 | D83: =VLOOKUP(A83,mt!A$2:G$122,3,0) -> 20.95 | E83: =VLOOKUP(A83,msft!A$2:G$122,3,0) -> 27.2 | F83: =VLOOKUP(A83,aapl!A$2:G$122,3,0) -> 408 | G83: =VLOOKUP(A83,k!A$2:G$122,3,0) -> 54.25 | H83: =VLOOKUP(A83,ge!A$2:G$122,3,0) -> 16.69 | I83: =VLOOKUP(A83,bac!A$2:G$122,3,0) -> 6.98 | J83: =VLOOKUP(A83,pfe!A$2:G$122,3,0) -> 20.15 | K83: =VLOOKUP(A83,xom!A$2:G$122,3,0) -> 80.53 | L83: =VLOOKUP(A83,vfinx!A$2:G$122,3,0) -> 117.75
A84: 2011-12-01 | B84: 101 | C84: =VLOOKUP(A84,x!A$2:G$122,3,0) -> 29.23 | D84: =VLOOKUP(A84,mt!A$2:G$122,3,0) -> 20.03 | E84: =VLOOKUP(A84,msft!A$2:G$122,3,0) -> 26.19 | F84: =VLOOKUP(A84,aapl!A$2:G$122,3,0) -> 409.09 | G84: =VLOOKUP(A84,k!A$2:G$122,3,0) -> 50.92 | H84: =VLOOKUP(A84,ge!A$2:G$122,3,0) -> 18.28 | I84: =VLOOKUP(A84,bac!A$2:G$122,3,0) -> 5.95 | J84: =VLOOKUP(A84,pfe!A$2:G$122,3,0) -> 21.9 | K84: =VLOOKUP(A84,xom!A$2:G$122,3,0) -> 85.63 | L84: =VLOOKUP(A84,vfinx!A$2:G$122,3,0) -> 116.63
A85: 2012-01-03 | B85: 102.22 | C85: =VLOOKUP(A85,x!A$2:G$122,3,0) -> 31.23 | D85: =VLOOKUP(A85,mt!A$2:G$122,3,0) -> 22.28 | E85: =VLOOKUP(A85,msft!A$2:G$122,3,0) -> 29.95 | F85: =VLOOKUP(A85,aapl!A$2:G$122,3,0) -> 458.24 | G85: =VLOOKUP(A85,k!A$2:G$122,3,0) -> 51.85 | H85: =VLOOKUP(A85,ge!A$2:G$122,3,0) -> 19.27 | I85: =VLOOKUP(A85,bac!A$2:G$122,3,0) -> 7.5 | J85: =VLOOKUP(A85,pfe!A$2:G$122,3,0) -> 22.17 | K85: =VLOOKUP(A85,xom!A$2:G$122,3,0) -> 87.94 | L85: =VLOOKUP(A85,vfinx!A$2:G$122,3,0) -> 122.21
A86: 2012-02-01 | B86: 101.29 | C86: =VLOOKUP(A86,x!A$2:G$122,3,0) -> 32.52 | D86: =VLOOKUP(A86,mt!A$2:G$122,3,0) -> 23.62 | E86: =VLOOKUP(A86,msft!A$2:G$122,3,0) -> 32 | F86: =VLOOKUP(A86,aapl!A$2:G$122,3,0) -> 547.61 | G86: =VLOOKUP(A86,k!A$2:G$122,3,0) -> 53.45 | H86: =VLOOKUP(A86,ge!A$2:G$122,3,0) -> 19.5 | I86: =VLOOKUP(A86,bac!A$2:G$122,3,0) -> 8.35 | J86: =VLOOKUP(A86,pfe!A$2:G$122,3,0) -> 21.53 | K86: =VLOOKUP(A86,xom!A$2:G$122,3,0) -> 87.83 | L86: =VLOOKUP(A86,vfinx!A$2:G$122,3,0) -> 126.76
A87: 2012-03-01 | B87: 100.44 | C87: =VLOOKUP(A87,x!A$2:G$122,3,0) -> 32.05 | D87: =VLOOKUP(A87,mt!A$2:G$122,3,0) -> 21.61 | E87: =VLOOKUP(A87,msft!A$2:G$122,3,0) -> 32.95 | F87: =VLOOKUP(A87,aapl!A$2:G$122,3,0) -> 621.45 | G87: =VLOOKUP(A87,k!A$2:G$122,3,0) -> 53.86 | H87: =VLOOKUP(A87,ge!A$2:G$122,3,0) -> 21 | I87: =VLOOKUP(A87,bac!A$2:G$122,3,0) -> 10.1 | J87: =VLOOKUP(A87,pfe!A$2:G$122,3,0) -> 22.8 | K87: =VLOOKUP(A87,xom!A$2:G$122,3,0) -> 87.25 | L87: =VLOOKUP(A87,vfinx!A$2:G$122,3,0) -> 130.48
A88: 2012-04-02 | B88: 99.5 | C88: =VLOOKUP(A88,x!A$2:G$122,3,0) -> 30.66 | D88: =VLOOKUP(A88,mt!A$2:G$122,3,0) -> 19.34 | E88: =VLOOKUP(A88,msft!A$2:G$122,3,0) -> 32.89 | F88: =VLOOKUP(A88,aapl!A$2:G$122,3,0) -> 644 | G88: =VLOOKUP(A88,k!A$2:G$122,3,0) -> 54.2 | H88: =VLOOKUP(A88,ge!A$2:G$122,3,0) -> 20.11 | I88: =VLOOKUP(A88,bac!A$2:G$122,3,0) -> 9.78 | J88: =VLOOKUP(A88,pfe!A$2:G$122,3,0) -> 23.3 | K88: =VLOOKUP(A88,xom!A$2:G$122,3,0) -> 87.67 | L88: =VLOOKUP(A88,vfinx!A$2:G$122,3,0) -> 130.76
A89: 2012-05-01 | B89: 98.01 | C89: =VLOOKUP(A89,x!A$2:G$122,3,0) -> 29.25 | D89: =VLOOKUP(A89,mt!A$2:G$122,3,0) -> 17.68 | E89: =VLOOKUP(A89,msft!A$2:G$122,3,0) -> 32.34 | F89: =VLOOKUP(A89,aapl!A$2:G$122,3,0) -> 596.76 | G89: =VLOOKUP(A89,k!A$2:G$122,3,0) -> 51.16 | H89: =VLOOKUP(A89,ge!A$2:G$122,3,0) -> 19.95 | I89: =VLOOKUP(A89,bac!A$2:G$122,3,0) -> 8.4 | J89: =VLOOKUP(A89,pfe!A$2:G$122,3,0) -> 22.99 | K89: =VLOOKUP(A89,xom!A$2:G$122,3,0) -> 87.52 | L89: =VLOOKUP(A89,vfinx!A$2:G$122,3,0) -> 129.68
A90: 2012-06-01 | B90: 90.76 | C90: =VLOOKUP(A90,x!A$2:G$122,3,0) -> 21.56 | D90: =VLOOKUP(A90,mt!A$2:G$122,3,0) -> 15.9 | E90: =VLOOKUP(A90,msft!A$2:G$122,3,0) -> 31.14 | F90: =VLOOKUP(A90,aapl!A$2:G$122,3,0) -> 590 | G90: =VLOOKUP(A90,k!A$2:G$122,3,0) -> 49.76 | H90: =VLOOKUP(A90,ge!A$2:G$122,3,0) -> 20.84 | I90: =VLOOKUP(A90,bac!A$2:G$122,3,0) -> 8.22 | J90: =VLOOKUP(A90,pfe!A$2:G$122,3,0) -> 23 | K90: =VLOOKUP(A90,xom!A$2:G$122,3,0) -> 85.7 | L90: =VLOOKUP(A90,vfinx!A$2:G$122,3,0) -> 125.7
A91: 2012-07-02 | B91: 93.32 | C91: =VLOOKUP(A91,x!A$2:G$122,3,0) -> 22.12 | D91: =VLOOKUP(A91,mt!A$2:G$122,3,0) -> 16.28 | E91: =VLOOKUP(A91,msft!A$2:G$122,3,0) -> 31.05 | F91: =VLOOKUP(A91,aapl!A$2:G$122,3,0) -> 619.87 | G91: =VLOOKUP(A91,k!A$2:G$122,3,0) -> 49.89 | H91: =VLOOKUP(A91,ge!A$2:G$122,3,0) -> 21 | I91: =VLOOKUP(A91,bac!A$2:G$122,3,0) -> 8.21 | J91: =VLOOKUP(A91,pfe!A$2:G$122,3,0) -> 24.49 | K91: =VLOOKUP(A91,xom!A$2:G$122,3,0) -> 87.85 | L91: =VLOOKUP(A91,vfinx!A$2:G$122,3,0) -> 127.88
A92: 2012-08-01 | B92: 90.43 | C92: =VLOOKUP(A92,x!A$2:G$122,3,0) -> 23.84 | D92: =VLOOKUP(A92,mt!A$2:G$122,3,0) -> 16.3 | E92: =VLOOKUP(A92,msft!A$2:G$122,3,0) -> 30.96 | F92: =VLOOKUP(A92,aapl!A$2:G$122,3,0) -> 680.87 | G92: =VLOOKUP(A92,k!A$2:G$122,3,0) -> 51.91 | H92: =VLOOKUP(A92,ge!A$2:G$122,3,0) -> 21.19 | I92: =VLOOKUP(A92,bac!A$2:G$122,3,0) -> 8.4 | J92: =VLOOKUP(A92,pfe!A$2:G$122,3,0) -> 24.37 | K92: =VLOOKUP(A92,xom!A$2:G$122,3,0) -> 88.91 | L92: =VLOOKUP(A92,vfinx!A$2:G$122,3,0) -> 131.11
A93: 2012-09-04 | B93: 94 | C93: =VLOOKUP(A93,x!A$2:G$122,3,0) -> 23.31 | D93: =VLOOKUP(A93,mt!A$2:G$122,3,0) -> 17.66 | E93: =VLOOKUP(A93,msft!A$2:G$122,3,0) -> 31.61 | F93: =VLOOKUP(A93,aapl!A$2:G$122,3,0) -> 705.07 | G93: =VLOOKUP(A93,k!A$2:G$122,3,0) -> 52.15 | H93: =VLOOKUP(A93,ge!A$2:G$122,3,0) -> 22.96 | I93: =VLOOKUP(A93,bac!A$2:G$122,3,0) -> 9.79 | J93: =VLOOKUP(A93,pfe!A$2:G$122,3,0) -> 25.15 | K93: =VLOOKUP(A93,xom!A$2:G$122,3,0) -> 92.57 | L93: =VLOOKUP(A93,vfinx!A$2:G$122,3,0) -> 135.72
A94: 2012-10-01 | B94: 94.16 | C94: =VLOOKUP(A94,x!A$2:G$122,3,0) -> 23.33 | D94: =VLOOKUP(A94,mt!A$2:G$122,3,0) -> 16.6 | E94: =VLOOKUP(A94,msft!A$2:G$122,3,0) -> 30.25 | F94: =VLOOKUP(A94,aapl!A$2:G$122,3,0) -> 676.75 | G94: =VLOOKUP(A94,k!A$2:G$122,3,0) -> 53.06 | H94: =VLOOKUP(A94,ge!A$2:G$122,3,0) -> 23.18 | I94: =VLOOKUP(A94,bac!A$2:G$122,3,0) -> 9.65 | J94: =VLOOKUP(A94,pfe!A$2:G$122,3,0) -> 26.09 | K94: =VLOOKUP(A94,xom!A$2:G$122,3,0) -> 93.67 | L94: =VLOOKUP(A94,vfinx!A$2:G$122,3,0) -> 134.83
A95: 2012-11-01 | B95: 88.13 | C95: =VLOOKUP(A95,x!A$2:G$122,3,0) -> 22.47 | D95: =VLOOKUP(A95,mt!A$2:G$122,3,0) -> 15.85 | E95: =VLOOKUP(A95,msft!A$2:G$122,3,0) -> 30.2 | F95: =VLOOKUP(A95,aapl!A$2:G$122,3,0) -> 603 | G95: =VLOOKUP(A95,k!A$2:G$122,3,0) -> 55.88 | H95: =VLOOKUP(A95,ge!A$2:G$122,3,0) -> 21.78 | I95: =VLOOKUP(A95,bac!A$2:G$122,3,0) -> 9.97 | J95: =VLOOKUP(A95,pfe!A$2:G$122,3,0) -> 25.08 | K95: =VLOOKUP(A95,xom!A$2:G$122,3,0) -> 92.05 | L95: =VLOOKUP(A95,vfinx!A$2:G$122,3,0) -> 131.88
A96: 2012-12-03 | B96: 90.85 | C96: =VLOOKUP(A96,x!A$2:G$122,3,0) -> 24.78 | D96: =VLOOKUP(A96,mt!A$2:G$122,3,0) -> 17.57 | E96: =VLOOKUP(A96,msft!A$2:G$122,3,0) -> 27.73 | F96: =VLOOKUP(A96,aapl!A$2:G$122,3,0) -> 594.59 | G96: =VLOOKUP(A96,k!A$2:G$122,3,0) -> 57.21 | H96: =VLOOKUP(A96,ge!A$2:G$122,3,0) -> 21.95 | I96: =VLOOKUP(A96,bac!A$2:G$122,3,0) -> 11.69 | J96: =VLOOKUP(A96,pfe!A$2:G$122,3,0) -> 25.79 | K96: =VLOOKUP(A96,xom!A$2:G$122,3,0) -> 90.37 | L96: =VLOOKUP(A96,vfinx!A$2:G$122,3,0) -> 134.1
A97: 2013-01-02 | B97: 95.29 | C97: =VLOOKUP(A97,x!A$2:G$122,3,0) -> 26.29 | D97: =VLOOKUP(A97,mt!A$2:G$122,3,0) -> 17.99 | E97: =VLOOKUP(A97,msft!A$2:G$122,3,0) -> 28.23 | F97: =VLOOKUP(A97,aapl!A$2:G$122,3,0) -> 555 | G97: =VLOOKUP(A97,k!A$2:G$122,3,0) -> 58.9 | H97: =VLOOKUP(A97,ge!A$2:G$122,3,0) -> 22.58 | I97: =VLOOKUP(A97,bac!A$2:G$122,3,0) -> 12.2 | J97: =VLOOKUP(A97,pfe!A$2:G$122,3,0) -> 27.84 | K97: =VLOOKUP(A97,xom!A$2:G$122,3,0) -> 91.93 | L97: =VLOOKUP(A97,vfinx!A$2:G$122,3,0) -> 139.02
A98: 2013-02-01 | B98: 96.78 | C98: =VLOOKUP(A98,x!A$2:G$122,3,0) -> 24 | D98: =VLOOKUP(A98,mt!A$2:G$122,3,0) -> 17.56 | E98: =VLOOKUP(A98,msft!A$2:G$122,3,0) -> 28.2 | F98: =VLOOKUP(A98,aapl!A$2:G$122,3,0) -> 484.94 | G98: =VLOOKUP(A98,k!A$2:G$122,3,0) -> 60.79 | H98: =VLOOKUP(A98,ge!A$2:G$122,3,0) -> 23.75 | I98: =VLOOKUP(A98,bac!A$2:G$122,3,0) -> 12.42 | J98: =VLOOKUP(A98,pfe!A$2:G$122,3,0) -> 27.8 | K98: =VLOOKUP(A98,xom!A$2:G$122,3,0) -> 90.5 | L98: =VLOOKUP(A98,vfinx!A$2:G$122,3,0) -> 141.41
A99: 2013-03-01 | B99: 99.78 | C99: =VLOOKUP(A99,x!A$2:G$122,3,0) -> 21.36 | D99: =VLOOKUP(A99,mt!A$2:G$122,3,0) -> 15.2 | E99: =VLOOKUP(A99,msft!A$2:G$122,3,0) -> 28.66 | F99: =VLOOKUP(A99,aapl!A$2:G$122,3,0) -> 469.95 | G99: =VLOOKUP(A99,k!A$2:G$122,3,0) -> 64.75 | H99: =VLOOKUP(A99,ge!A$2:G$122,3,0) -> 23.9 | I99: =VLOOKUP(A99,bac!A$2:G$122,3,0) -> 12.94 | J99: =VLOOKUP(A99,pfe!A$2:G$122,3,0) -> 28.9 | K99: =VLOOKUP(A99,xom!A$2:G$122,3,0) -> 90.98 | L99: =VLOOKUP(A99,vfinx!A$2:G$122,3,0) -> 144.65
A100: 2013-04-01 | B100: 103.7 | C100: =VLOOKUP(A100,x!A$2:G$122,3,0) -> 19.56 | D100: =VLOOKUP(A100,mt!A$2:G$122,3,0) -> 13.04 | E100: =VLOOKUP(A100,msft!A$2:G$122,3,0) -> 33.11 | F100: =VLOOKUP(A100,aapl!A$2:G$122,3,0) -> 445.25 | G100: =VLOOKUP(A100,k!A$2:G$122,3,0) -> 66.84 | H100: =VLOOKUP(A100,ge!A$2:G$122,3,0) -> 23.72 | I100: =VLOOKUP(A100,bac!A$2:G$122,3,0) -> 12.54 | J100: =VLOOKUP(A100,pfe!A$2:G$122,3,0) -> 31.15 | K100: =VLOOKUP(A100,xom!A$2:G$122,3,0) -> 90.99 | L100: =VLOOKUP(A100,vfinx!A$2:G$122,3,0) -> 147.37
A101: 2013-05-01 | B101: 103.34 | C101: =VLOOKUP(A101,x!A$2:G$122,3,0) -> 19.7 | D101: =VLOOKUP(A101,mt!A$2:G$122,3,0) -> 13.49 | E101: =VLOOKUP(A101,msft!A$2:G$122,3,0) -> 35.28 | F101: =VLOOKUP(A101,aapl!A$2:G$122,3,0) -> 465.75 | G101: =VLOOKUP(A101,k!A$2:G$122,3,0) -> 66.48 | H101: =VLOOKUP(A101,ge!A$2:G$122,3,0) -> 24.13 | I101: =VLOOKUP(A101,bac!A$2:G$122,3,0) -> 13.99 | J101: =VLOOKUP(A101,pfe!A$2:G$122,3,0) -> 30.04 | K101: =VLOOKUP(A101,xom!A$2:G$122,3,0) -> 93.5 | L101: =VLOOKUP(A101,vfinx!A$2:G$122,3,0) -> 154.26
A102: 2013-06-03 | B102: 100.18 | C102: =VLOOKUP(A102,x!A$2:G$122,3,0) -> 18.46 | D102: =VLOOKUP(A102,mt!A$2:G$122,3,0) -> 12.98 | E102: =VLOOKUP(A102,msft!A$2:G$122,3,0) -> 35.78 | F102: =VLOOKUP(A102,aapl!A$2:G$122,3,0) -> 454.43 | G102: =VLOOKUP(A102,k!A$2:G$122,3,0) -> 65.12 | H102: =VLOOKUP(A102,ge!A$2:G$122,3,0) -> 24.45 | I102: =VLOOKUP(A102,bac!A$2:G$122,3,0) -> 13.73 | J102: =VLOOKUP(A102,pfe!A$2:G$122,3,0) -> 29.81 | K102: =VLOOKUP(A102,xom!A$2:G$122,3,0) -> 92.27 | L102: =VLOOKUP(A102,vfinx!A$2:G$122,3,0) -> 152.89
A103: 2013-07-01 | B103: 101.81 | C103: =VLOOKUP(A103,x!A$2:G$122,3,0) -> 19.4 | D103: =VLOOKUP(A103,mt!A$2:G$122,3,0) -> 13.3 | E103: =VLOOKUP(A103,msft!A$2:G$122,3,0) -> 36.43 | F103: =VLOOKUP(A103,aapl!A$2:G$122,3,0) -> 457.34 | G103: =VLOOKUP(A103,k!A$2:G$122,3,0) -> 67.98 | H103: =VLOOKUP(A103,ge!A$2:G$122,3,0) -> 24.95 | I103: =VLOOKUP(A103,bac!A$2:G$122,3,0) -> 15.03 | J103: =VLOOKUP(A103,pfe!A$2:G$122,3,0) -> 30.43 | K103: =VLOOKUP(A103,xom!A$2:G$122,3,0) -> 95.49 | L103: =VLOOKUP(A103,vfinx!A$2:G$122,3,0) -> 156.43
A104: 2013-08-01 | B104: 99.44 | C104: =VLOOKUP(A104,x!A$2:G$122,3,0) -> 19.5 | D104: =VLOOKUP(A104,mt!A$2:G$122,3,0) -> 14.2 | E104: =VLOOKUP(A104,msft!A$2:G$122,3,0) -> 35.2 | F104: =VLOOKUP(A104,aapl!A$2:G$122,3,0) -> 513.74 | G104: =VLOOKUP(A104,k!A$2:G$122,3,0) -> 66.24 | H104: =VLOOKUP(A104,ge!A$2:G$122,3,0) -> 24.87 | I104: =VLOOKUP(A104,bac!A$2:G$122,3,0) -> 14.97 | J104: =VLOOKUP(A104,pfe!A$2:G$122,3,0) -> 29.45 | K104: =VLOOKUP(A104,xom!A$2:G$122,3,0) -> 93.1 | L104: =VLOOKUP(A104,vfinx!A$2:G$122,3,0) -> 157.79
A105: 2013-09-03 | B105: 98.99 | C105: =VLOOKUP(A105,x!A$2:G$122,3,0) -> 21.68 | D105: =VLOOKUP(A105,mt!A$2:G$122,3,0) -> 14.87 | E105: =VLOOKUP(A105,msft!A$2:G$122,3,0) -> 33.75 | F105: =VLOOKUP(A105,aapl!A$2:G$122,3,0) -> 507.92 | G105: =VLOOKUP(A105,k!A$2:G$122,3,0) -> 61.43 | H105: =VLOOKUP(A105,ge!A$2:G$122,3,0) -> 24.91 | I105: =VLOOKUP(A105,bac!A$2:G$122,3,0) -> 14.83 | J105: =VLOOKUP(A105,pfe!A$2:G$122,3,0) -> 29.27 | K105: =VLOOKUP(A105,xom!A$2:G$122,3,0) -> 89.87 | L105: =VLOOKUP(A105,vfinx!A$2:G$122,3,0) -> 159.74
A106: 2013-10-01 | B106: 96.7 | C106: =VLOOKUP(A106,x!A$2:G$122,3,0) -> 25.71 | D106: =VLOOKUP(A106,mt!A$2:G$122,3,0) -> 16.5 | E106: =VLOOKUP(A106,msft!A$2:G$122,3,0) -> 36.29 | F106: =VLOOKUP(A106,aapl!A$2:G$122,3,0) -> 539.25 | G106: =VLOOKUP(A106,k!A$2:G$122,3,0) -> 64.4 | H106: =VLOOKUP(A106,ge!A$2:G$122,3,0) -> 26.48 | I106: =VLOOKUP(A106,bac!A$2:G$122,3,0) -> 14.72 | J106: =VLOOKUP(A106,pfe!A$2:G$122,3,0) -> 31.35 | K106: =VLOOKUP(A106,xom!A$2:G$122,3,0) -> 90.96 | L106: =VLOOKUP(A106,vfinx!A$2:G$122,3,0) -> 163.52
A107: 2013-11-01 | B107: 99.27 | C107: =VLOOKUP(A107,x!A$2:G$122,3,0) -> 28.41 | D107: =VLOOKUP(A107,mt!A$2:G$122,3,0) -> 17.41 | E107: =VLOOKUP(A107,msft!A$2:G$122,3,0) -> 38.29 | F107: =VLOOKUP(A107,aapl!A$2:G$122,3,0) -> 558.33 | G107: =VLOOKUP(A107,k!A$2:G$122,3,0) -> 64.92 | H107: =VLOOKUP(A107,ge!A$2:G$122,3,0) -> 27.5 | I107: =VLOOKUP(A107,bac!A$2:G$122,3,0) -> 15.98 | J107: =VLOOKUP(A107,pfe!A$2:G$122,3,0) -> 32.5 | K107: =VLOOKUP(A107,xom!A$2:G$122,3,0) -> 96 | L107: =VLOOKUP(A107,vfinx!A$2:G$122,3,0) -> 167.17
A108: 2013-12-02 | B108: 97.29 | C108: =VLOOKUP(A108,x!A$2:G$122,3,0) -> 30.47 | D108: =VLOOKUP(A108,mt!A$2:G$122,3,0) -> 17.92 | E108: =VLOOKUP(A108,msft!A$2:G$122,3,0) -> 38.98 | F108: =VLOOKUP(A108,aapl!A$2:G$122,3,0) -> 575.14 | G108: =VLOOKUP(A108,k!A$2:G$122,3,0) -> 62.31 | H108: =VLOOKUP(A108,ge!A$2:G$122,3,0) -> 28.09 | I108: =VLOOKUP(A108,bac!A$2:G$122,3,0) -> 15.97 | J108: =VLOOKUP(A108,pfe!A$2:G$122,3,0) -> 31.93 | K108: =VLOOKUP(A108,xom!A$2:G$122,3,0) -> 101.74 | L108: =VLOOKUP(A108,vfinx!A$2:G$122,3,0) -> 170.36
A109: 2014-01-02 | B109: 97.08 | C109: =VLOOKUP(A109,x!A$2:G$122,3,0) -> 31.15 | D109: =VLOOKUP(A109,mt!A$2:G$122,3,0) -> 17.84 | E109: =VLOOKUP(A109,msft!A$2:G$122,3,0) -> 37.89 | F109: =VLOOKUP(A109,aapl!A$2:G$122,3,0) -> 560.2 | G109: =VLOOKUP(A109,k!A$2:G$122,3,0) -> 61.36 | H109: =VLOOKUP(A109,ge!A$2:G$122,3,0) -> 27.94 | I109: =VLOOKUP(A109,bac!A$2:G$122,3,0) -> 17.42 | J109: =VLOOKUP(A109,pfe!A$2:G$122,3,0) -> 31.42 | K109: =VLOOKUP(A109,xom!A$2:G$122,3,0) -> 101.22 | L109: =VLOOKUP(A109,vfinx!A$2:G$122,3,0) -> 170.46
A110: 2014-02-03 | B110: 97 | C110: =VLOOKUP(A110,x!A$2:G$122,3,0) -> 27.31 | D110: =VLOOKUP(A110,mt!A$2:G$122,3,0) -> 17.47 | E110: =VLOOKUP(A110,msft!A$2:G$122,3,0) -> 38.46 | F110: =VLOOKUP(A110,aapl!A$2:G$122,3,0) -> 551.19 | G110: =VLOOKUP(A110,k!A$2:G$122,3,0) -> 61.26 | H110: =VLOOKUP(A110,ge!A$2:G$122,3,0) -> 26.04 | I110: =VLOOKUP(A110,bac!A$2:G$122,3,0) -> 16.92 | J110: =VLOOKUP(A110,pfe!A$2:G$122,3,0) -> 32.41 | K110: =VLOOKUP(A110,xom!A$2:G$122,3,0) -> 97.25 | L110: =VLOOKUP(A110,vfinx!A$2:G$122,3,0) -> 171.95
A111: 2014-03-03 | B111: 99.07 | C111: =VLOOKUP(A111,x!A$2:G$122,3,0) -> 28.14 | D111: =VLOOKUP(A111,mt!A$2:G$122,3,0) -> 16.28 | E111: =VLOOKUP(A111,msft!A$2:G$122,3,0) -> 41.5 | F111: =VLOOKUP(A111,aapl!A$2:G$122,3,0) -> 549 | G111: =VLOOKUP(A111,k!A$2:G$122,3,0) -> 62.75 | H111: =VLOOKUP(A111,ge!A$2:G$122,3,0) -> 26.35 | I111: =VLOOKUP(A111,bac!A$2:G$122,3,0) -> 18.03 | J111: =VLOOKUP(A111,pfe!A$2:G$122,3,0) -> 32.96 | K111: =VLOOKUP(A111,xom!A$2:G$122,3,0) -> 98.85 | L111: =VLOOKUP(A111,vfinx!A$2:G$122,3,0) -> 173.75
A112: 2014-04-01 | B112: 101.78 | C112: =VLOOKUP(A112,x!A$2:G$122,3,0) -> 28.8 | D112: =VLOOKUP(A112,mt!A$2:G$122,3,0) -> 16.8 | E112: =VLOOKUP(A112,msft!A$2:G$122,3,0) -> 41.66 | F112: =VLOOKUP(A112,aapl!A$2:G$122,3,0) -> 599.43 | G112: =VLOOKUP(A112,k!A$2:G$122,3,0) -> 67.49 | H112: =VLOOKUP(A112,ge!A$2:G$122,3,0) -> 26.9 | I112: =VLOOKUP(A112,bac!A$2:G$122,3,0) -> 17.4 | J112: =VLOOKUP(A112,pfe!A$2:G$122,3,0) -> 32.69 | K112: =VLOOKUP(A112,xom!A$2:G$122,3,0) -> 102.57 | L112: =VLOOKUP(A112,vfinx!A$2:G$122,3,0) -> 174.38
A113: 2014-05-01 | B113: 103.78 | C113: =VLOOKUP(A113,x!A$2:G$122,3,0) -> 26.52 | D113: =VLOOKUP(A113,mt!A$2:G$122,3,0) -> 16.6 | E113: =VLOOKUP(A113,msft!A$2:G$122,3,0) -> 40.97 | F113: =VLOOKUP(A113,aapl!A$2:G$122,3,0) -> 644.17 | G113: =VLOOKUP(A113,k!A$2:G$122,3,0) -> 69 | H113: =VLOOKUP(A113,ge!A$2:G$122,3,0) -> 26.96 | I113: =VLOOKUP(A113,bac!A$2:G$122,3,0) -> 15.31 | J113: =VLOOKUP(A113,pfe!A$2:G$122,3,0) -> 31.58 | K113: =VLOOKUP(A113,xom!A$2:G$122,3,0) -> 103.45 | L113: =VLOOKUP(A113,vfinx!A$2:G$122,3,0) -> 177.94
A114: 2014-06-02 | B114: 102.62 | C114: =VLOOKUP(A114,x!A$2:G$122,3,0) -> 26.35 | D114: =VLOOKUP(A114,mt!A$2:G$122,3,0) -> 15.51 | E114: =VLOOKUP(A114,msft!A$2:G$122,3,0) -> 42.29 | F114: =VLOOKUP(A114,aapl!A$2:G$122,3,0) -> 651.26 | G114: =VLOOKUP(A114,k!A$2:G$122,3,0) -> 69.5 | H114: =VLOOKUP(A114,ge!A$2:G$122,3,0) -> 27.53 | I114: =VLOOKUP(A114,bac!A$2:G$122,3,0) -> 15.94 | J114: =VLOOKUP(A114,pfe!A$2:G$122,3,0) -> 29.92 | K114: =VLOOKUP(A114,xom!A$2:G$122,3,0) -> 104.61 | L114: =VLOOKUP(A114,vfinx!A$2:G$122,3,0) -> 181.46
A115: 2014-07-01 | B115: 101.36 | C115: =VLOOKUP(A115,x!A$2:G$122,3,0) -> 33.85 | D115: =VLOOKUP(A115,mt!A$2:G$122,3,0) -> 15.69 | E115: =VLOOKUP(A115,msft!A$2:G$122,3,0) -> 45.71 | F115: =VLOOKUP(A115,aapl!A$2:G$122,3,0) -> 99.44 | G115: =VLOOKUP(A115,k!A$2:G$122,3,0) -> 66.73 | H115: =VLOOKUP(A115,ge!A$2:G$122,3,0) -> 27.15 | I115: =VLOOKUP(A115,bac!A$2:G$122,3,0) -> 16.23 | J115: =VLOOKUP(A115,pfe!A$2:G$122,3,0) -> 31.31 | K115: =VLOOKUP(A115,xom!A$2:G$122,3,0) -> 104.76 | L115: =VLOOKUP(A115,vfinx!A$2:G$122,3,0) -> 183.56
A116: 2014-08-01 | B116: 95.37 | C116: =VLOOKUP(A116,x!A$2:G$122,3,0) -> 39.58 | D116: =VLOOKUP(A116,mt!A$2:G$122,3,0) -> 14.8 | E116: =VLOOKUP(A116,msft!A$2:G$122,3,0) -> 45.47 | F116: =VLOOKUP(A116,aapl!A$2:G$122,3,0) -> 102.9 | G116: =VLOOKUP(A116,k!A$2:G$122,3,0) -> 65.38 | H116: =VLOOKUP(A116,ge!A$2:G$122,3,0) -> 26.45 | I116: =VLOOKUP(A116,bac!A$2:G$122,3,0) -> 16.46 | J116: =VLOOKUP(A116,pfe!A$2:G$122,3,0) -> 29.67 | K116: =VLOOKUP(A116,xom!A$2:G$122,3,0) -> 100.43 | L116: =VLOOKUP(A116,vfinx!A$2:G$122,3,0) -> 185.43
A117: 2014-09-02 | B117: 97.3 | C117: =VLOOKUP(A117,x!A$2:G$122,3,0) -> 46.55 | D117: =VLOOKUP(A117,mt!A$2:G$122,3,0) -> 15.19 | E117: =VLOOKUP(A117,msft!A$2:G$122,3,0) -> 47.57 | F117: =VLOOKUP(A117,aapl!A$2:G$122,3,0) -> 103.74 | G117: =VLOOKUP(A117,k!A$2:G$122,3,0) -> 65.38 | H117: =VLOOKUP(A117,ge!A$2:G$122,3,0) -> 26.4 | I117: =VLOOKUP(A117,bac!A$2:G$122,3,0) -> 17.2 | J117: =VLOOKUP(A117,pfe!A$2:G$122,3,0) -> 30.84 | K117: =VLOOKUP(A117,xom!A$2:G$122,3,0) -> 99.59 | L117: =VLOOKUP(A117,vfinx!A$2:G$122,3,0) -> 186.35
A118: 2014-10-01 | B118: 95.29 | C118: =VLOOKUP(A118,x!A$2:G$122,3,0) -> 42.25 | D118: =VLOOKUP(A118,mt!A$2:G$122,3,0) -> 13.53 | E118: =VLOOKUP(A118,msft!A$2:G$122,3,0) -> 46.97 | F118: =VLOOKUP(A118,aapl!A$2:G$122,3,0) -> 108.04 | G118: =VLOOKUP(A118,k!A$2:G$122,3,0) -> 64.82 | H118: =VLOOKUP(A118,ge!A$2:G$122,3,0) -> 25.93 | I118: =VLOOKUP(A118,bac!A$2:G$122,3,0) -> 17.41 | J118: =VLOOKUP(A118,pfe!A$2:G$122,3,0) -> 30.2 | K118: =VLOOKUP(A118,xom!A$2:G$122,3,0) -> 96.89 | L118: =VLOOKUP(A118,vfinx!A$2:G$122,3,0) -> 186.4
A119: 2014-11-03 | B119: 97.5 | C119: =VLOOKUP(A119,x!A$2:G$122,3,0) -> 39.83 | D119: =VLOOKUP(A119,mt!A$2:G$122,3,0) -> 13.09 | E119: =VLOOKUP(A119,msft!A$2:G$122,3,0) -> 50.05 | F119: =VLOOKUP(A119,aapl!A$2:G$122,3,0) -> 119.75 | G119: =VLOOKUP(A119,k!A$2:G$122,3,0) -> 66.64 | H119: =VLOOKUP(A119,ge!A$2:G$122,3,0) -> 27.1 | I119: =VLOOKUP(A119,bac!A$2:G$122,3,0) -> 17.46 | J119: =VLOOKUP(A119,pfe!A$2:G$122,3,0) -> 31.64 | K119: =VLOOKUP(A119,xom!A$2:G$122,3,0) -> 97.2 | L119: =VLOOKUP(A119,vfinx!A$2:G$122,3,0) -> 191.88
A120: 2014-12-01 | B120: 97.5 | C120: =VLOOKUP(A120,x!A$2:G$122,3,0) -> 32.9 | D120: =VLOOKUP(A120,mt!A$2:G$122,3,0) -> 12.35 | E120: =VLOOKUP(A120,msft!A$2:G$122,3,0) -> 49.06 | F120: =VLOOKUP(A120,aapl!A$2:G$122,3,0) -> 119.25 | G120: =VLOOKUP(A120,k!A$2:G$122,3,0) -> 67.44 | H120: =VLOOKUP(A120,ge!A$2:G$122,3,0) -> 26.47 | I120: =VLOOKUP(A120,bac!A$2:G$122,3,0) -> 18.21 | J120: =VLOOKUP(A120,pfe!A$2:G$122,3,0) -> 33.12 | K120: =VLOOKUP(A120,xom!A$2:G$122,3,0) -> 95.33 | L120: =VLOOKUP(A120,vfinx!A$2:G$122,3,0) -> 192.79
A121: 2015-01-02 | B121: 95 | C121: =VLOOKUP(A121,x!A$2:G$122,3,0) -> 27.49 | D121: =VLOOKUP(A121,mt!A$2:G$122,3,0) -> 11.03 | E121: =VLOOKUP(A121,msft!A$2:G$122,3,0) -> 47.91 | F121: =VLOOKUP(A121,aapl!A$2:G$122,3,0) -> 120 | G121: =VLOOKUP(A121,k!A$2:G$122,3,0) -> 69.89 | H121: =VLOOKUP(A121,ge!A$2:G$122,3,0) -> 25.46 | I121: =VLOOKUP(A121,bac!A$2:G$122,3,0) -> 18.03 | J121: =VLOOKUP(A121,pfe!A$2:G$122,3,0) -> 33.5 | K121: =VLOOKUP(A121,xom!A$2:G$122,3,0) -> 93.05 | L121: =VLOOKUP(A121,vfinx!A$2:G$122,3,0) -> 190.43

Sheet Low
A1: Date | B1: mcd | C1: x | D1: mt | E1: msft | F1: aapl | G1: k | H1: ge | I1: bac | J1: pfe | K1: xom | L1: vfinx
A2: 2005-02-01 | B2: 31.4 | C2: =VLOOKUP(A2,x!A$2:G$122,4,0) -> 51.05 | D2: =VLOOKUP(A2,mt!A$2:G$122,4,0) -> 36.06 | E2: =VLOOKUP(A2,msft!A$2:G$122,4,0) -> 25.13 | F2: =VLOOKUP(A2,aapl!A$2:G$122,4,0) -> 43.96 | G2: =VLOOKUP(A2,k!A$2:G$122,4,0) -> 43.16 | H2: =VLOOKUP(A2,ge!A$2:G$122,4,0) -> 35.05 | I2: =VLOOKUP(A2,bac!A$2:G$122,4,0) -> 45.16 | J2: =VLOOKUP(A2,pfe!A$2:G$122,4,0) -> 23.8 | K2: =VLOOKUP(A2,xom!A$2:G$122,4,0) -> 51.93 | L2: =VLOOKUP(A2,vfinx!A$2:G$122,4,0) -> 109.33
A3: 2005-03-01 | B3: 30.96 | C3: =VLOOKUP(A3,x!A$2:G$122,4,0) -> 49.04 | D3: =VLOOKUP(A3,mt!A$2:G$122,4,0) -> 29.7 | E3: =VLOOKUP(A3,msft!A$2:G$122,4,0) -> 23.82 | F3: =VLOOKUP(A3,aapl!A$2:G$122,4,0) -> 38.83 | G3: =VLOOKUP(A3,k!A$2:G$122,4,0) -> 42.41 | H3: =VLOOKUP(A3,ge!A$2:G$122,4,0) -> 35.06 | I3: =VLOOKUP(A3,bac!A$2:G$122,4,0) -> 43.4 | J3: =VLOOKUP(A3,pfe!A$2:G$122,4,0) -> 25.4 | K3: =VLOOKUP(A3,xom!A$2:G$122,4,0) -> 57.38 | L3: =VLOOKUP(A3,vfinx!A$2:G$122,4,0) -> 107.37
A4: 2005-04-01 | B4: 29.11 | C4: =VLOOKUP(A4,x!A$2:G$122,4,0) -> 41.01 | D4: =VLOOKUP(A4,mt!A$2:G$122,4,0) -> 22.79 | E4: =VLOOKUP(A4,msft!A$2:G$122,4,0) -> 23.94 | F4: =VLOOKUP(A4,aapl!A$2:G$122,4,0) -> 34 | G4: =VLOOKUP(A4,k!A$2:G$122,4,0) -> 42.35 | H4: =VLOOKUP(A4,ge!A$2:G$122,4,0) -> 35.02 | I4: =VLOOKUP(A4,bac!A$2:G$122,4,0) -> 43.47 | J4: =VLOOKUP(A4,pfe!A$2:G$122,4,0) -> 25.76 | K4: =VLOOKUP(A4,xom!A$2:G$122,4,0) -> 55.4 | L4: =VLOOKUP(A4,vfinx!A$2:G$122,4,0) -> 104.87
A5: 2005-05-02 | B5: 29.12 | C5: =VLOOKUP(A5,x!A$2:G$122,4,0) -> 37.1 | D5: =VLOOKUP(A5,mt!A$2:G$122,4,0) -> 22.92 | E5: =VLOOKUP(A5,msft!A$2:G$122,4,0) -> 24.64 | F5: =VLOOKUP(A5,aapl!A$2:G$122,4,0) -> 33.11 | G5: =VLOOKUP(A5,k!A$2:G$122,4,0) -> 44.43 | H5: =VLOOKUP(A5,ge!A$2:G$122,4,0) -> 35.56 | I5: =VLOOKUP(A5,bac!A$2:G$122,4,0) -> 44.73 | J5: =VLOOKUP(A5,pfe!A$2:G$122,4,0) -> 27.2 | K5: =VLOOKUP(A5,xom!A$2:G$122,4,0) -> 52.78 | L5: =VLOOKUP(A5,vfinx!A$2:G$122,4,0) -> 106.56
A6: 2005-06-01 | B6: 27.74 | C6: =VLOOKUP(A6,x!A$2:G$122,4,0) -> 34.05 | D6: =VLOOKUP(A6,mt!A$2:G$122,4,0) -> 22.11 | E6: =VLOOKUP(A6,msft!A$2:G$122,4,0) -> 24.82 | F6: =VLOOKUP(A6,aapl!A$2:G$122,4,0) -> 35.52 | G6: =VLOOKUP(A6,k!A$2:G$122,4,0) -> 44.2 | H6: =VLOOKUP(A6,ge!A$2:G$122,4,0) -> 34.15 | I6: =VLOOKUP(A6,bac!A$2:G$122,4,0) -> 45.56 | J6: =VLOOKUP(A6,pfe!A$2:G$122,4,0) -> 27.31 | K6: =VLOOKUP(A6,xom!A$2:G$122,4,0) -> 56.33 | L6: =VLOOKUP(A6,vfinx!A$2:G$122,4,0) -> 109.72
A7: 2005-07-01 | B7: 27.36 | C7: =VLOOKUP(A7,x!A$2:G$122,4,0) -> 34.09 | D7: =VLOOKUP(A7,mt!A$2:G$122,4,0) -> 23.55 | E7: =VLOOKUP(A7,msft!A$2:G$122,4,0) -> 24.5 | F7: =VLOOKUP(A7,aapl!A$2:G$122,4,0) -> 36.29 | G7: =VLOOKUP(A7,k!A$2:G$122,4,0) -> 43.5 | H7: =VLOOKUP(A7,ge!A$2:G$122,4,0) -> 33.93 | I7: =VLOOKUP(A7,bac!A$2:G$122,4,0) -> 43.6 | J7: =VLOOKUP(A7,pfe!A$2:G$122,4,0) -> 26.2 | K7: =VLOOKUP(A7,xom!A$2:G$122,4,0) -> 57.6 | L7: =VLOOKUP(A7,vfinx!A$2:G$122,4,0) -> 110.11
A8: 2005-08-01 | B8: 30.25 | C8: =VLOOKUP(A8,x!A$2:G$122,4,0) -> 39.4 | D8: =VLOOKUP(A8,mt!A$2:G$122,4,0) -> 27.19 | E8: =VLOOKUP(A8,msft!A$2:G$122,4,0) -> 25.76 | F8: =VLOOKUP(A8,aapl!A$2:G$122,4,0) -> 42.02 | G8: =VLOOKUP(A8,k!A$2:G$122,4,0) -> 44.49 | H8: =VLOOKUP(A8,ge!A$2:G$122,4,0) -> 32.85 | I8: =VLOOKUP(A8,bac!A$2:G$122,4,0) -> 42.45 | J8: =VLOOKUP(A8,pfe!A$2:G$122,4,0) -> 24.76 | K8: =VLOOKUP(A8,xom!A$2:G$122,4,0) -> 57.76 | L8: =VLOOKUP(A8,vfinx!A$2:G$122,4,0) -> 111.36
A9: 2005-09-01 | B9: 31.31 | C9: =VLOOKUP(A9,x!A$2:G$122,4,0) -> 41.74 | D9: =VLOOKUP(A9,mt!A$2:G$122,4,0) -> 28.13 | E9: =VLOOKUP(A9,msft!A$2:G$122,4,0) -> 25.12 | F9: =VLOOKUP(A9,aapl!A$2:G$122,4,0) -> 46.09 | G9: =VLOOKUP(A9,k!A$2:G$122,4,0) -> 43.42 | H9: =VLOOKUP(A9,ge!A$2:G$122,4,0) -> 33 | I9: =VLOOKUP(A9,bac!A$2:G$122,4,0) -> 41.13 | J9: =VLOOKUP(A9,pfe!A$2:G$122,4,0) -> 24.67 | K9: =VLOOKUP(A9,xom!A$2:G$122,4,0) -> 60.1 | L9: =VLOOKUP(A9,vfinx!A$2:G$122,4,0) -> 111.93
A10: 2005-10-03 | B10: 31.48 | C10: =VLOOKUP(A10,x!A$2:G$122,4,0) -> 33.59 | D10: =VLOOKUP(A10,mt!A$2:G$122,4,0) -> 22.95 | E10: =VLOOKUP(A10,msft!A$2:G$122,4,0) -> 24.25 | F10: =VLOOKUP(A10,aapl!A$2:G$122,4,0) -> 47.87 | G10: =VLOOKUP(A10,k!A$2:G$122,4,0) -> 43.5 | H10: =VLOOKUP(A10,ge!A$2:G$122,4,0) -> 32.67 | I10: =VLOOKUP(A10,bac!A$2:G$122,4,0) -> 41.38 | J10: =VLOOKUP(A10,pfe!A$2:G$122,4,0) -> 20.71 | K10: =VLOOKUP(A10,xom!A$2:G$122,4,0) -> 54.5 | L10: =VLOOKUP(A10,vfinx!A$2:G$122,4,0) -> 108.48
A11: 2005-11-01 | B11: 31.61 | C11: =VLOOKUP(A11,x!A$2:G$122,4,0) -> 36.55 | D11: =VLOOKUP(A11,mt!A$2:G$122,4,0) -> 24 | E11: =VLOOKUP(A11,msft!A$2:G$122,4,0) -> 25.61 | F11: =VLOOKUP(A11,aapl!A$2:G$122,4,0) -> 56.87 | G11: =VLOOKUP(A11,k!A$2:G$122,4,0) -> 43.76 | H11: =VLOOKUP(A11,ge!A$2:G$122,4,0) -> 33.51 | I11: =VLOOKUP(A11,bac!A$2:G$122,4,0) -> 43.27 | J11: =VLOOKUP(A11,pfe!A$2:G$122,4,0) -> 21.17 | K11: =VLOOKUP(A11,xom!A$2:G$122,4,0) -> 55.84 | L11: =VLOOKUP(A11,vfinx!A$2:G$122,4,0) -> 110.9
A12: 2005-12-01 | B12: 33.58 | C12: =VLOOKUP(A12,x!A$2:G$122,4,0) -> 44.67 | D12: =VLOOKUP(A12,mt!A$2:G$122,4,0) -> 25.46 | E12: =VLOOKUP(A12,msft!A$2:G$122,4,0) -> 26.1 | F12: =VLOOKUP(A12,aapl!A$2:G$122,4,0) -> 68.81 | G12: =VLOOKUP(A12,k!A$2:G$122,4,0) -> 43.22 | H12: =VLOOKUP(A12,ge!A$2:G$122,4,0) -> 34.95 | I12: =VLOOKUP(A12,bac!A$2:G$122,4,0) -> 45.42 | J12: =VLOOKUP(A12,pfe!A$2:G$122,4,0) -> 20.27 | K12: =VLOOKUP(A12,xom!A$2:G$122,4,0) -> 55.6 | L12: =VLOOKUP(A12,vfinx!A$2:G$122,4,0) -> 114.92
A13: 2006-01-03 | B13: 33.2 | C13: =VLOOKUP(A13,x!A$2:G$122,4,0) -> 48.05 | D13: =VLOOKUP(A13,mt!A$2:G$122,4,0) -> 26.38 | E13: =VLOOKUP(A13,msft!A$2:G$122,4,0) -> 26.1 | F13: =VLOOKUP(A13,aapl!A$2:G$122,4,0) -> 70.87 | G13: =VLOOKUP(A13,k!A$2:G$122,4,0) -> 42.64 | H13: =VLOOKUP(A13,ge!A$2:G$122,4,0) -> 32.63 | I13: =VLOOKUP(A13,bac!A$2:G$122,4,0) -> 43.49 | J13: =VLOOKUP(A13,pfe!A$2:G$122,4,0) -> 23.6 | K13: =VLOOKUP(A13,xom!A$2:G$122,4,0) -> 56.42 | L13: =VLOOKUP(A13,vfinx!A$2:G$122,4,0) -> 116.23
A14: 2006-02-01 | B14: 34.89 | C14: =VLOOKUP(A14,x!A$2:G$122,4,0) -> 53.58 | D14: =VLOOKUP(A14,mt!A$2:G$122,4,0) -> 31.75 | E14: =VLOOKUP(A14,msft!A$2:G$122,4,0) -> 26.34 | F14: =VLOOKUP(A14,aapl!A$2:G$122,4,0) -> 62.9 | G14: =VLOOKUP(A14,k!A$2:G$122,4,0) -> 42.41 | H14: =VLOOKUP(A14,ge!A$2:G$122,4,0) -> 32.21 | I14: =VLOOKUP(A14,bac!A$2:G$122,4,0) -> 42.92 | J14: =VLOOKUP(A14,pfe!A$2:G$122,4,0) -> 24.95 | K14: =VLOOKUP(A14,xom!A$2:G$122,4,0) -> 58.6 | L14: =VLOOKUP(A14,vfinx!A$2:G$122,4,0) -> 115.68
A15: 2006-03-01 | B15: 34.11 | C15: =VLOOKUP(A15,x!A$2:G$122,4,0) -> 53.25 | D15: =VLOOKUP(A15,mt!A$2:G$122,4,0) -> 32.4 | E15: =VLOOKUP(A15,msft!A$2:G$122,4,0) -> 26.62 | F15: =VLOOKUP(A15,aapl!A$2:G$122,4,0) -> 57.67 | G15: =VLOOKUP(A15,k!A$2:G$122,4,0) -> 43.79 | H15: =VLOOKUP(A15,ge!A$2:G$122,4,0) -> 32.58 | I15: =VLOOKUP(A15,bac!A$2:G$122,4,0) -> 44.9 | J15: =VLOOKUP(A15,pfe!A$2:G$122,4,0) -> 24.83 | K15: =VLOOKUP(A15,xom!A$2:G$122,4,0) -> 58.44 | L15: =VLOOKUP(A15,vfinx!A$2:G$122,4,0) -> 117.56
A16: 2006-04-03 | B16: 33.71 | C16: =VLOOKUP(A16,x!A$2:G$122,4,0) -> 61.2 | D16: =VLOOKUP(A16,mt!A$2:G$122,4,0) -> 36 | E16: =VLOOKUP(A16,msft!A$2:G$122,4,0) -> 24 | F16: =VLOOKUP(A16,aapl!A$2:G$122,4,0) -> 61.05 | G16: =VLOOKUP(A16,k!A$2:G$122,4,0) -> 43.06 | H16: =VLOOKUP(A16,ge!A$2:G$122,4,0) -> 33.07 | I16: =VLOOKUP(A16,bac!A$2:G$122,4,0) -> 45.26 | J16: =VLOOKUP(A16,pfe!A$2:G$122,4,0) -> 24.18 | K16: =VLOOKUP(A16,xom!A$2:G$122,4,0) -> 60.43 | L16: =VLOOKUP(A16,vfinx!A$2:G$122,4,0) -> 118.44
A17: 2006-05-01 | B17: 32.62 | C17: =VLOOKUP(A17,x!A$2:G$122,4,0) -> 58.68 | D17: =VLOOKUP(A17,mt!A$2:G$122,4,0) -> 28.95 | E17: =VLOOKUP(A17,msft!A$2:G$122,4,0) -> 22.45 | F17: =VLOOKUP(A17,aapl!A$2:G$122,4,0) -> 58.69 | G17: =VLOOKUP(A17,k!A$2:G$122,4,0) -> 45.72 | H17: =VLOOKUP(A17,ge!A$2:G$122,4,0) -> 33.7 | I17: =VLOOKUP(A17,bac!A$2:G$122,4,0) -> 47.9 | J17: =VLOOKUP(A17,pfe!A$2:G$122,4,0) -> 23.52 | K17: =VLOOKUP(A17,xom!A$2:G$122,4,0) -> 59.15 | L17: =VLOOKUP(A17,vfinx!A$2:G$122,4,0) -> 116
A18: 2006-06-01 | B18: 31.73 | C18: =VLOOKUP(A18,x!A$2:G$122,4,0) -> 56.15 | D18: =VLOOKUP(A18,mt!A$2:G$122,4,0) -> 28.65 | E18: =VLOOKUP(A18,msft!A$2:G$122,4,0) -> 21.46 | F18: =VLOOKUP(A18,aapl!A$2:G$122,4,0) -> 55.41 | G18: =VLOOKUP(A18,k!A$2:G$122,4,0) -> 46.25 | H18: =VLOOKUP(A18,ge!A$2:G$122,4,0) -> 32.78 | I18: =VLOOKUP(A18,bac!A$2:G$122,4,0) -> 45.86 | J18: =VLOOKUP(A18,pfe!A$2:G$122,4,0) -> 22.51 | K18: =VLOOKUP(A18,xom!A$2:G$122,4,0) -> 56.64 | L18: =VLOOKUP(A18,vfinx!A$2:G$122,4,0) -> 113.12
A19: 2006-07-03 | B19: 32.75 | C19: =VLOOKUP(A19,x!A$2:G$122,4,0) -> 56.2 | D19: =VLOOKUP(A19,mt!A$2:G$122,4,0) -> 27.79 | E19: =VLOOKUP(A19,msft!A$2:G$122,4,0) -> 22.23 | F19: =VLOOKUP(A19,aapl!A$2:G$122,4,0) -> 50.16 | G19: =VLOOKUP(A19,k!A$2:G$122,4,0) -> 47.31 | H19: =VLOOKUP(A19,ge!A$2:G$122,4,0) -> 32.06 | I19: =VLOOKUP(A19,bac!A$2:G$122,4,0) -> 47.59 | J19: =VLOOKUP(A19,pfe!A$2:G$122,4,0) -> 22.16 | K19: =VLOOKUP(A19,xom!A$2:G$122,4,0) -> 61.63 | L19: =VLOOKUP(A19,vfinx!A$2:G$122,4,0) -> 113.77
A20: 2006-08-01 | B20: 34.22 | C20: =VLOOKUP(A20,x!A$2:G$122,4,0) -> 56.12 | D20: =VLOOKUP(A20,mt!A$2:G$122,4,0) -> 30.55 | E20: =VLOOKUP(A20,msft!A$2:G$122,4,0) -> 23.85 | F20: =VLOOKUP(A20,aapl!A$2:G$122,4,0) -> 62.58 | G20: =VLOOKUP(A20,k!A$2:G$122,4,0) -> 47.59 | H20: =VLOOKUP(A20,ge!A$2:G$122,4,0) -> 32.2 | I20: =VLOOKUP(A20,bac!A$2:G$122,4,0) -> 50.7 | J20: =VLOOKUP(A20,pfe!A$2:G$122,4,0) -> 25.32 | K20: =VLOOKUP(A20,xom!A$2:G$122,4,0) -> 67.01 | L20: =VLOOKUP(A20,vfinx!A$2:G$122,4,0) -> 116.81
A21: 2006-09-01 | B21: 36.01 | C21: =VLOOKUP(A21,x!A$2:G$122,4,0) -> 53.63 | D21: =VLOOKUP(A21,mt!A$2:G$122,4,0) -> 31.7 | E21: =VLOOKUP(A21,msft!A$2:G$122,4,0) -> 25.39 | F21: =VLOOKUP(A21,aapl!A$2:G$122,4,0) -> 67.82 | G21: =VLOOKUP(A21,k!A$2:G$122,4,0) -> 49.2 | H21: =VLOOKUP(A21,ge!A$2:G$122,4,0) -> 33.76 | I21: =VLOOKUP(A21,bac!A$2:G$122,4,0) -> 50.8 | J21: =VLOOKUP(A21,pfe!A$2:G$122,4,0) -> 27.32 | K21: =VLOOKUP(A21,xom!A$2:G$122,4,0) -> 63.87 | L21: =VLOOKUP(A21,vfinx!A$2:G$122,4,0) -> 119.6
A22: 2006-10-02 | B22: 38.95 | C22: =VLOOKUP(A22,x!A$2:G$122,4,0) -> 54.18 | D22: =VLOOKUP(A22,mt!A$2:G$122,4,0) -> 33.9 | E22: =VLOOKUP(A22,msft!A$2:G$122,4,0) -> 27.15 | F22: =VLOOKUP(A22,aapl!A$2:G$122,4,0) -> 72.6 | G22: =VLOOKUP(A22,k!A$2:G$122,4,0) -> 47.71 | H22: =VLOOKUP(A22,ge!A$2:G$122,4,0) -> 34.92 | I22: =VLOOKUP(A22,bac!A$2:G$122,4,0) -> 52.75 | J22: =VLOOKUP(A22,pfe!A$2:G$122,4,0) -> 26.38 | K22: =VLOOKUP(A22,xom!A$2:G$122,4,0) -> 64.84 | L22: =VLOOKUP(A22,vfinx!A$2:G$122,4,0) -> 122.62
A23: 2006-11-01 | B23: 40.79 | C23: =VLOOKUP(A23,x!A$2:G$122,4,0) -> 64.35 | D23: =VLOOKUP(A23,mt!A$2:G$122,4,0) -> 40.03 | E23: =VLOOKUP(A23,msft!A$2:G$122,4,0) -> 28.58 | F23: =VLOOKUP(A23,aapl!A$2:G$122,4,0) -> 77.79 | G23: =VLOOKUP(A23,k!A$2:G$122,4,0) -> 49.13 | H23: =VLOOKUP(A23,ge!A$2:G$122,4,0) -> 34.62 | I23: =VLOOKUP(A23,bac!A$2:G$122,4,0) -> 53.22 | J23: =VLOOKUP(A23,pfe!A$2:G$122,4,0) -> 25 | K23: =VLOOKUP(A23,xom!A$2:G$122,4,0) -> 70.27 | L23: =VLOOKUP(A23,vfinx!A$2:G$122,4,0) -> 125.84
A24: 2006-12-01 | B24: 41.7 | C24: =VLOOKUP(A24,x!A$2:G$122,4,0) -> 71.22 | D24: =VLOOKUP(A24,mt!A$2:G$122,4,0) -> 40.12 | E24: =VLOOKUP(A24,msft!A$2:G$122,4,0) -> 28.8 | F24: =VLOOKUP(A24,aapl!A$2:G$122,4,0) -> 76.77 | G24: =VLOOKUP(A24,k!A$2:G$122,4,0) -> 49.33 | H24: =VLOOKUP(A24,ge!A$2:G$122,4,0) -> 34.96 | I24: =VLOOKUP(A24,bac!A$2:G$122,4,0) -> 51.32 | J24: =VLOOKUP(A24,pfe!A$2:G$122,4,0) -> 23.5 | K24: =VLOOKUP(A24,xom!A$2:G$122,4,0) -> 74.82 | L24: =VLOOKUP(A24,vfinx!A$2:G$122,4,0) -> 129.08
A25: 2007-01-03 | B25: 42.54 | C25: =VLOOKUP(A25,x!A$2:G$122,4,0) -> 68.83 | D25: =VLOOKUP(A25,mt!A$2:G$122,4,0) -> 39.59 | E25: =VLOOKUP(A25,msft!A$2:G$122,4,0) -> 29.4 | F25: =VLOOKUP(A25,aapl!A$2:G$122,4,0) -> 81.9 | G25: =VLOOKUP(A25,k!A$2:G$122,4,0) -> 48.95 | H25: =VLOOKUP(A25,ge!A$2:G$122,4,0) -> 35.76 | I25: =VLOOKUP(A25,bac!A$2:G$122,4,0) -> 51.35 | J25: =VLOOKUP(A25,pfe!A$2:G$122,4,0) -> 25.78 | K25: =VLOOKUP(A25,xom!A$2:G$122,4,0) -> 70.64 | L25: =VLOOKUP(A25,vfinx!A$2:G$122,4,0) -> 129.82
A26: 2007-02-01 | B26: 43.38 | C26: =VLOOKUP(A26,x!A$2:G$122,4,0) -> 82.55 | D26: =VLOOKUP(A26,mt!A$2:G$122,4,0) -> 46.45 | E26: =VLOOKUP(A26,msft!A$2:G$122,4,0) -> 27.79 | F26: =VLOOKUP(A26,aapl!A$2:G$122,4,0) -> 82.86 | G26: =VLOOKUP(A26,k!A$2:G$122,4,0) -> 48.68 | H26: =VLOOKUP(A26,ge!A$2:G$122,4,0) -> 34.5 | I26: =VLOOKUP(A26,bac!A$2:G$122,4,0) -> 49 | J26: =VLOOKUP(A26,pfe!A$2:G$122,4,0) -> 24.94 | K26: =VLOOKUP(A26,xom!A$2:G$122,4,0) -> 71.18 | L26: =VLOOKUP(A26,vfinx!A$2:G$122,4,0) -> 129.19
A27: 2007-03-01 | B27: 42.31 | C27: =VLOOKUP(A27,x!A$2:G$122,4,0) -> 83.97 | D27: =VLOOKUP(A27,mt!A$2:G$122,4,0) -> 48.89 | E27: =VLOOKUP(A27,msft!A$2:G$122,4,0) -> 26.6 | F27: =VLOOKUP(A27,aapl!A$2:G$122,4,0) -> 83.75 | G27: =VLOOKUP(A27,k!A$2:G$122,4,0) -> 48.91 | H27: =VLOOKUP(A27,ge!A$2:G$122,4,0) -> 33.9 | I27: =VLOOKUP(A27,bac!A$2:G$122,4,0) -> 48.36 | J27: =VLOOKUP(A27,pfe!A$2:G$122,4,0) -> 24.55 | K27: =VLOOKUP(A27,xom!A$2:G$122,4,0) -> 69.02 | L27: =VLOOKUP(A27,vfinx!A$2:G$122,4,0) -> 126.92
A28: 2007-04-02 | B28: 44.26 | C28: =VLOOKUP(A28,x!A$2:G$122,4,0) -> 99.07 | D28: =VLOOKUP(A28,mt!A$2:G$122,4,0) -> 52.42 | E28: =VLOOKUP(A28,msft!A$2:G$122,4,0) -> 27.56 | F28: =VLOOKUP(A28,aapl!A$2:G$122,4,0) -> 89.6 | G28: =VLOOKUP(A28,k!A$2:G$122,4,0) -> 51.18 | H28: =VLOOKUP(A28,ge!A$2:G$122,4,0) -> 34.55 | I28: =VLOOKUP(A28,bac!A$2:G$122,4,0) -> 50.06 | J28: =VLOOKUP(A28,pfe!A$2:G$122,4,0) -> 25.23 | K28: =VLOOKUP(A28,xom!A$2:G$122,4,0) -> 75.28 | L28: =VLOOKUP(A28,vfinx!A$2:G$122,4,0) -> 131.17
A29: 2007-05-01 | B29: 48.21 | C29: =VLOOKUP(A29,x!A$2:G$122,4,0) -> 99.27 | D29: =VLOOKUP(A29,mt!A$2:G$122,4,0) -> 52.41 | E29: =VLOOKUP(A29,msft!A$2:G$122,4,0) -> 29.9 | F29: =VLOOKUP(A29,aapl!A$2:G$122,4,0) -> 98.55 | G29: =VLOOKUP(A29,k!A$2:G$122,4,0) -> 52.39 | H29: =VLOOKUP(A29,ge!A$2:G$122,4,0) -> 36.45 | I29: =VLOOKUP(A29,bac!A$2:G$122,4,0) -> 50.47 | J29: =VLOOKUP(A29,pfe!A$2:G$122,4,0) -> 26.28 | K29: =VLOOKUP(A29,xom!A$2:G$122,4,0) -> 79.05 | L29: =VLOOKUP(A29,vfinx!A$2:G$122,4,0) -> 136.97
A30: 2007-06-01 | B30: 50.02 | C30: =VLOOKUP(A30,x!A$2:G$122,4,0) -> 105.08 | D30: =VLOOKUP(A30,mt!A$2:G$122,4,0) -> 60.13 | E30: =VLOOKUP(A30,msft!A$2:G$122,4,0) -> 29.04 | F30: =VLOOKUP(A30,aapl!A$2:G$122,4,0) -> 115.4 | G30: =VLOOKUP(A30,k!A$2:G$122,4,0) -> 51.05 | H30: =VLOOKUP(A30,ge!A$2:G$122,4,0) -> 36.65 | I30: =VLOOKUP(A30,bac!A$2:G$122,4,0) -> 48.55 | J30: =VLOOKUP(A30,pfe!A$2:G$122,4,0) -> 25.31 | K30: =VLOOKUP(A30,xom!A$2:G$122,4,0) -> 80.85 | L30: =VLOOKUP(A30,vfinx!A$2:G$122,4,0) -> 137.43
A31: 2007-07-02 | B31: 47.86 | C31: =VLOOKUP(A31,x!A$2:G$122,4,0) -> 96.99 | D31: =VLOOKUP(A31,mt!A$2:G$122,4,0) -> 59.77 | E31: =VLOOKUP(A31,msft!A$2:G$122,4,0) -> 28.95 | F31: =VLOOKUP(A31,aapl!A$2:G$122,4,0) -> 119.3 | G31: =VLOOKUP(A31,k!A$2:G$122,4,0) -> 51.04 | H31: =VLOOKUP(A31,ge!A$2:G$122,4,0) -> 37.73 | I31: =VLOOKUP(A31,bac!A$2:G$122,4,0) -> 46.9 | J31: =VLOOKUP(A31,pfe!A$2:G$122,4,0) -> 23.5 | K31: =VLOOKUP(A31,xom!A$2:G$122,4,0) -> 84.12 | L31: =VLOOKUP(A31,vfinx!A$2:G$122,4,0) -> 134.15
A32: 2007-08-01 | B32: 46.64 | C32: =VLOOKUP(A32,x!A$2:G$122,4,0) -> 74.41 | D32: =VLOOKUP(A32,mt!A$2:G$122,4,0) -> 51.18 | E32: =VLOOKUP(A32,msft!A$2:G$122,4,0) -> 27.51 | F32: =VLOOKUP(A32,aapl!A$2:G$122,4,0) -> 111.62 | G32: =VLOOKUP(A32,k!A$2:G$122,4,0) -> 51.02 | H32: =VLOOKUP(A32,ge!A$2:G$122,4,0) -> 36.2 | I32: =VLOOKUP(A32,bac!A$2:G$122,4,0) -> 46.52 | J32: =VLOOKUP(A32,pfe!A$2:G$122,4,0) -> 23.13 | K32: =VLOOKUP(A32,xom!A$2:G$122,4,0) -> 78.76 | L32: =VLOOKUP(A32,vfinx!A$2:G$122,4,0) -> 129.87
A33: 2007-09-04 | B33: 48.81 | C33: =VLOOKUP(A33,x!A$2:G$122,4,0) -> 88.96 | D33: =VLOOKUP(A33,mt!A$2:G$122,4,0) -> 62.06 | E33: =VLOOKUP(A33,msft!A$2:G$122,4,0) -> 28.27 | F33: =VLOOKUP(A33,aapl!A$2:G$122,4,0) -> 130 | G33: =VLOOKUP(A33,k!A$2:G$122,4,0) -> 54.02 | H33: =VLOOKUP(A33,ge!A$2:G$122,4,0) -> 38.45 | I33: =VLOOKUP(A33,bac!A$2:G$122,4,0) -> 48.6 | J33: =VLOOKUP(A33,pfe!A$2:G$122,4,0) -> 23.85 | K33: =VLOOKUP(A33,xom!A$2:G$122,4,0) -> 83.88 | L33: =VLOOKUP(A33,vfinx!A$2:G$122,4,0) -> 134.19
A34: 2007-10-01 | B34: 54.67 | C34: =VLOOKUP(A34,x!A$2:G$122,4,0) -> 102.09 | D34: =VLOOKUP(A34,mt!A$2:G$122,4,0) -> 74.33 | E34: =VLOOKUP(A34,msft!A$2:G$122,4,0) -> 29.29 | F34: =VLOOKUP(A34,aapl!A$2:G$122,4,0) -> 152.93 | G34: =VLOOKUP(A34,k!A$2:G$122,4,0) -> 51.6 | H34: =VLOOKUP(A34,ge!A$2:G$122,4,0) -> 39.4 | I34: =VLOOKUP(A34,bac!A$2:G$122,4,0) -> 46.45 | J34: =VLOOKUP(A34,pfe!A$2:G$122,4,0) -> 23.36 | K34: =VLOOKUP(A34,xom!A$2:G$122,4,0) -> 89.67 | L34: =VLOOKUP(A34,vfinx!A$2:G$122,4,0) -> 138.31
A35: 2007-11-01 | B35: 56.24 | C35: =VLOOKUP(A35,x!A$2:G$122,4,0) -> 85.05 | D35: =VLOOKUP(A35,mt!A$2:G$122,4,0) -> 67.68 | E35: =VLOOKUP(A35,msft!A$2:G$122,4,0) -> 32.68 | F35: =VLOOKUP(A35,aapl!A$2:G$122,4,0) -> 150.63 | G35: =VLOOKUP(A35,k!A$2:G$122,4,0) -> 51.49 | H35: =VLOOKUP(A35,ge!A$2:G$122,4,0) -> 36.52 | I35: =VLOOKUP(A35,bac!A$2:G$122,4,0) -> 41.73 | J35: =VLOOKUP(A35,pfe!A$2:G$122,4,0) -> 22.24 | K35: =VLOOKUP(A35,xom!A$2:G$122,4,0) -> 83.37 | L35: =VLOOKUP(A35,vfinx!A$2:G$122,4,0) -> 129.97
A36: 2007-12-03 | B36: 58.1 | C36: =VLOOKUP(A36,x!A$2:G$122,4,0) -> 93.24 | D36: =VLOOKUP(A36,mt!A$2:G$122,4,0) -> 68.12 | E36: =VLOOKUP(A36,msft!A$2:G$122,4,0) -> 32.63 | F36: =VLOOKUP(A36,aapl!A$2:G$122,4,0) -> 176.99 | G36: =VLOOKUP(A36,k!A$2:G$122,4,0) -> 52.35 | H36: =VLOOKUP(A36,ge!A$2:G$122,4,0) -> 36.07 | I36: =VLOOKUP(A36,bac!A$2:G$122,4,0) -> 40.61 | J36: =VLOOKUP(A36,pfe!A$2:G$122,4,0) -> 22.69 | K36: =VLOOKUP(A36,xom!A$2:G$122,4,0) -> 87.71 | L36: =VLOOKUP(A36,vfinx!A$2:G$122,4,0) -> 133.72
A37: 2008-01-02 | B37: 49.36 | C37: =VLOOKUP(A37,x!A$2:G$122,4,0) -> 91.11 | D37: =VLOOKUP(A37,mt!A$2:G$122,4,0) -> 55.53 | E37: =VLOOKUP(A37,msft!A$2:G$122,4,0) -> 31.04 | F37: =VLOOKUP(A37,aapl!A$2:G$122,4,0) -> 126.14 | G37: =VLOOKUP(A37,k!A$2:G$122,4,0) -> 46.25 | H37: =VLOOKUP(A37,ge!A$2:G$122,4,0) -> 32.92 | I37: =VLOOKUP(A37,bac!A$2:G$122,4,0) -> 33.12 | J37: =VLOOKUP(A37,pfe!A$2:G$122,4,0) -> 21.56 | K37: =VLOOKUP(A37,xom!A$2:G$122,4,0) -> 77.55 | L37: =VLOOKUP(A37,vfinx!A$2:G$122,4,0) -> 120.71
A38: 2008-02-01 | B38: 52.85 | C38: =VLOOKUP(A38,x!A$2:G$122,4,0) -> 92.47 | D38: =VLOOKUP(A38,mt!A$2:G$122,4,0) -> 64.77 | E38: =VLOOKUP(A38,msft!A$2:G$122,4,0) -> 27.02 | F38: =VLOOKUP(A38,aapl!A$2:G$122,4,0) -> 115.44 | G38: =VLOOKUP(A38,k!A$2:G$122,4,0) -> 47.95 | H38: =VLOOKUP(A38,ge!A$2:G$122,4,0) -> 33.09 | I38: =VLOOKUP(A38,bac!A$2:G$122,4,0) -> 39.54 | J38: =VLOOKUP(A38,pfe!A$2:G$122,4,0) -> 22.03 | K38: =VLOOKUP(A38,xom!A$2:G$122,4,0) -> 80.36 | L38: =VLOOKUP(A38,vfinx!A$2:G$122,4,0) -> 122.28
A39: 2008-03-03 | B39: 52 | C39: =VLOOKUP(A39,x!A$2:G$122,4,0) -> 103.22 | D39: =VLOOKUP(A39,mt!A$2:G$122,4,0) -> 71.83 | E39: =VLOOKUP(A39,msft!A$2:G$122,4,0) -> 26.87 | F39: =VLOOKUP(A39,aapl!A$2:G$122,4,0) -> 118 | G39: =VLOOKUP(A39,k!A$2:G$122,4,0) -> 48.9 | H39: =VLOOKUP(A39,ge!A$2:G$122,4,0) -> 31.65 | I39: =VLOOKUP(A39,bac!A$2:G$122,4,0) -> 34.25 | J39: =VLOOKUP(A39,pfe!A$2:G$122,4,0) -> 20.19 | K39: =VLOOKUP(A39,xom!A$2:G$122,4,0) -> 81.97 | L39: =VLOOKUP(A39,vfinx!A$2:G$122,4,0) -> 117.69
A40: 2008-04-01 | B40: 55.14 | C40: =VLOOKUP(A40,x!A$2:G$122,4,0) -> 122 | D40: =VLOOKUP(A40,mt!A$2:G$122,4,0) -> 80.14 | E40: =VLOOKUP(A40,msft!A$2:G$122,4,0) -> 27.93 | F40: =VLOOKUP(A40,aapl!A$2:G$122,4,0) -> 143.61 | G40: =VLOOKUP(A40,k!A$2:G$122,4,0) -> 50.94 | H40: =VLOOKUP(A40,ge!A$2:G$122,4,0) -> 31.55 | I40: =VLOOKUP(A40,bac!A$2:G$122,4,0) -> 35.27 | J40: =VLOOKUP(A40,pfe!A$2:G$122,4,0) -> 19.79 | K40: =VLOOKUP(A40,xom!A$2:G$122,4,0) -> 84.26 | L40: =VLOOKUP(A40,vfinx!A$2:G$122,4,0) -> 122.35
A41: 2008-05-01 | B41: 57.31 | C41: =VLOOKUP(A41,x!A$2:G$122,4,0) -> 147.5 | D41: =VLOOKUP(A41,mt!A$2:G$122,4,0) -> 86.2 | E41: =VLOOKUP(A41,msft!A$2:G$122,4,0) -> 27.95 | F41: =VLOOKUP(A41,aapl!A$2:G$122,4,0) -> 172 | G41: =VLOOKUP(A41,k!A$2:G$122,4,0) -> 50.16 | H41: =VLOOKUP(A41,ge!A$2:G$122,4,0) -> 30.21 | I41: =VLOOKUP(A41,bac!A$2:G$122,4,0) -> 33.25 | J41: =VLOOKUP(A41,pfe!A$2:G$122,4,0) -> 19.16 | K41: =VLOOKUP(A41,xom!A$2:G$122,4,0) -> 87.6 | L41: =VLOOKUP(A41,vfinx!A$2:G$122,4,0) -> 127.02
A42: 2008-06-02 | B42: 55.17 | C42: =VLOOKUP(A42,x!A$2:G$122,4,0) -> 163.9 | D42: =VLOOKUP(A42,mt!A$2:G$122,4,0) -> 92.44 | E42: =VLOOKUP(A42,msft!A$2:G$122,4,0) -> 27.11 | F42: =VLOOKUP(A42,aapl!A$2:G$122,4,0) -> 164.15 | G42: =VLOOKUP(A42,k!A$2:G$122,4,0) -> 47.81 | H42: =VLOOKUP(A42,ge!A$2:G$122,4,0) -> 26.15 | I42: =VLOOKUP(A42,bac!A$2:G$122,4,0) -> 22.44 | J42: =VLOOKUP(A42,pfe!A$2:G$122,4,0) -> 17.12 | K42: =VLOOKUP(A42,xom!A$2:G$122,4,0) -> 84.77 | L42: =VLOOKUP(A42,vfinx!A$2:G$122,4,0) -> 117.68
A43: 2008-07-01 | B43: 55.7 | C43: =VLOOKUP(A43,x!A$2:G$122,4,0) -> 133.69 | D43: =VLOOKUP(A43,mt!A$2:G$122,4,0) -> 74.97 | E43: =VLOOKUP(A43,msft!A$2:G$122,4,0) -> 24.87 | F43: =VLOOKUP(A43,aapl!A$2:G$122,4,0) -> 146.53 | G43: =VLOOKUP(A43,k!A$2:G$122,4,0) -> 47.62 | H43: =VLOOKUP(A43,ge!A$2:G$122,4,0) -> 25.6 | I43: =VLOOKUP(A43,bac!A$2:G$122,4,0) -> 18.44 | J43: =VLOOKUP(A43,pfe!A$2:G$122,4,0) -> 17.26 | K43: =VLOOKUP(A43,xom!A$2:G$122,4,0) -> 79.1 | L43: =VLOOKUP(A43,vfinx!A$2:G$122,4,0) -> 111.94
A44: 2008-08-01 | B44: 59.44 | C44: =VLOOKUP(A44,x!A$2:G$122,4,0) -> 126.2 | D44: =VLOOKUP(A44,mt!A$2:G$122,4,0) -> 73.21 | E44: =VLOOKUP(A44,msft!A$2:G$122,4,0) -> 25.07 | F44: =VLOOKUP(A44,aapl!A$2:G$122,4,0) -> 152.91 | G44: =VLOOKUP(A44,k!A$2:G$122,4,0) -> 51.95 | H44: =VLOOKUP(A44,ge!A$2:G$122,4,0) -> 27.76 | I44: =VLOOKUP(A44,bac!A$2:G$122,4,0) -> 27.72 | J44: =VLOOKUP(A44,pfe!A$2:G$122,4,0) -> 18.53 | K44: =VLOOKUP(A44,xom!A$2:G$122,4,0) -> 76.14 | L44: =VLOOKUP(A44,vfinx!A$2:G$122,4,0) -> 115.16
A45: 2008-09-02 | B45: 59.56 | C45: =VLOOKUP(A45,x!A$2:G$122,4,0) -> 68.62 | D45: =VLOOKUP(A45,mt!A$2:G$122,4,0) -> 45.1 | E45: =VLOOKUP(A45,msft!A$2:G$122,4,0) -> 23.5 | F45: =VLOOKUP(A45,aapl!A$2:G$122,4,0) -> 100.59 | G45: =VLOOKUP(A45,k!A$2:G$122,4,0) -> 54 | H45: =VLOOKUP(A45,ge!A$2:G$122,4,0) -> 22.16 | I45: =VLOOKUP(A45,bac!A$2:G$122,4,0) -> 25 | J45: =VLOOKUP(A45,pfe!A$2:G$122,4,0) -> 17.16 | K45: =VLOOKUP(A45,xom!A$2:G$122,4,0) -> 71.51 | L45: =VLOOKUP(A45,vfinx!A$2:G$122,4,0) -> 101.85
A46: 2008-10-01 | B46: 45.79 | C46: =VLOOKUP(A46,x!A$2:G$122,4,0) -> 28.43 | D46: =VLOOKUP(A46,mt!A$2:G$122,4,0) -> 19.14 | E46: =VLOOKUP(A46,msft!A$2:G$122,4,0) -> 20.65 | F46: =VLOOKUP(A46,aapl!A$2:G$122,4,0) -> 85 | G46: =VLOOKUP(A46,k!A$2:G$122,4,0) -> 45.25 | H46: =VLOOKUP(A46,ge!A$2:G$122,4,0) -> 17.27 | I46: =VLOOKUP(A46,bac!A$2:G$122,4,0) -> 18.99 | J46: =VLOOKUP(A46,pfe!A$2:G$122,4,0) -> 14.31 | K46: =VLOOKUP(A46,xom!A$2:G$122,4,0) -> 56.51 | L46: =VLOOKUP(A46,vfinx!A$2:G$122,4,0) -> 78.25
A47: 2008-11-03 | B47: 51.15 | C47: =VLOOKUP(A47,x!A$2:G$122,4,0) -> 20.71 | D47: =VLOOKUP(A47,mt!A$2:G$122,4,0) -> 15.44 | E47: =VLOOKUP(A47,msft!A$2:G$122,4,0) -> 17.5 | F47: =VLOOKUP(A47,aapl!A$2:G$122,4,0) -> 79.14 | G47: =VLOOKUP(A47,k!A$2:G$122,4,0) -> 40.51 | H47: =VLOOKUP(A47,ge!A$2:G$122,4,0) -> 12.58 | I47: =VLOOKUP(A47,bac!A$2:G$122,4,0) -> 10.01 | J47: =VLOOKUP(A47,pfe!A$2:G$122,4,0) -> 14.26 | K47: =VLOOKUP(A47,xom!A$2:G$122,4,0) -> 67.54 | L47: =VLOOKUP(A47,vfinx!A$2:G$122,4,0) -> 69.57
A48: 2008-12-01 | B48: 55.44 | C48: =VLOOKUP(A48,x!A$2:G$122,4,0) -> 25.39 | D48: =VLOOKUP(A48,mt!A$2:G$122,4,0) -> 19.45 | E48: =VLOOKUP(A48,msft!A$2:G$122,4,0) -> 18.47 | F48: =VLOOKUP(A48,aapl!A$2:G$122,4,0) -> 84.55 | G48: =VLOOKUP(A48,k!A$2:G$122,4,0) -> 40.32 | H48: =VLOOKUP(A48,ge!A$2:G$122,4,0) -> 15.35 | I48: =VLOOKUP(A48,bac!A$2:G$122,4,0) -> 12.66 | J48: =VLOOKUP(A48,pfe!A$2:G$122,4,0) -> 15.2 | K48: =VLOOKUP(A48,xom!A$2:G$122,4,0) -> 72.68 | L48: =VLOOKUP(A48,vfinx!A$2:G$122,4,0) -> 75.54
A49: 2009-01-02 | B49: 56.41 | C49: =VLOOKUP(A49,x!A$2:G$122,4,0) -> 28.36 | D49: =VLOOKUP(A49,mt!A$2:G$122,4,0) -> 20.3 | E49: =VLOOKUP(A49,msft!A$2:G$122,4,0) -> 16.75 | F49: =VLOOKUP(A49,aapl!A$2:G$122,4,0) -> 78.2 | G49: =VLOOKUP(A49,k!A$2:G$122,4,0) -> 41.96 | H49: =VLOOKUP(A49,ge!A$2:G$122,4,0) -> 11.87 | I49: =VLOOKUP(A49,bac!A$2:G$122,4,0) -> 5.05 | J49: =VLOOKUP(A49,pfe!A$2:G$122,4,0) -> 14.5 | K49: =VLOOKUP(A49,xom!A$2:G$122,4,0) -> 74.01 | L49: =VLOOKUP(A49,vfinx!A$2:G$122,4,0) -> 74.17
A50: 2009-02-02 | B50: 51.5 | C50: =VLOOKUP(A50,x!A$2:G$122,4,0) -> 19.03 | D50: =VLOOKUP(A50,mt!A$2:G$122,4,0) -> 18.55 | E50: =VLOOKUP(A50,msft!A$2:G$122,4,0) -> 16.1 | F50: =VLOOKUP(A50,aapl!A$2:G$122,4,0) -> 86.51 | G50: =VLOOKUP(A50,k!A$2:G$122,4,0) -> 38 | H50: =VLOOKUP(A50,ge!A$2:G$122,4,0) -> 8.4 | I50: =VLOOKUP(A50,bac!A$2:G$122,4,0) -> 2.53 | J50: =VLOOKUP(A50,pfe!A$2:G$122,4,0) -> 12.28 | K50: =VLOOKUP(A50,xom!A$2:G$122,4,0) -> 67.9 | L50: =VLOOKUP(A50,vfinx!A$2:G$122,4,0) -> 67.99
A51: 2009-03-02 | B51: 50.44 | C51: =VLOOKUP(A51,x!A$2:G$122,4,0) -> 16.66 | D51: =VLOOKUP(A51,mt!A$2:G$122,4,0) -> 16.28 | E51: =VLOOKUP(A51,msft!A$2:G$122,4,0) -> 14.87 | F51: =VLOOKUP(A51,aapl!A$2:G$122,4,0) -> 82.33 | G51: =VLOOKUP(A51,k!A$2:G$122,4,0) -> 35.64 | H51: =VLOOKUP(A51,ge!A$2:G$122,4,0) -> 5.87 | I51: =VLOOKUP(A51,bac!A$2:G$122,4,0) -> 3 | J51: =VLOOKUP(A51,pfe!A$2:G$122,4,0) -> 11.62 | K51: =VLOOKUP(A51,xom!A$2:G$122,4,0) -> 61.86 | L51: =VLOOKUP(A51,vfinx!A$2:G$122,4,0) -> 62.65
A52: 2009-04-01 | B52: 53.03 | C52: =VLOOKUP(A52,x!A$2:G$122,4,0) -> 20.17 | D52: =VLOOKUP(A52,mt!A$2:G$122,4,0) -> 19.83 | E52: =VLOOKUP(A52,msft!A$2:G$122,4,0) -> 18.18 | F52: =VLOOKUP(A52,aapl!A$2:G$122,4,0) -> 103.89 | G52: =VLOOKUP(A52,k!A$2:G$122,4,0) -> 36.29 | H52: =VLOOKUP(A52,ge!A$2:G$122,4,0) -> 9.8 | I52: =VLOOKUP(A52,bac!A$2:G$122,4,0) -> 6.44 | J52: =VLOOKUP(A52,pfe!A$2:G$122,4,0) -> 12.75 | K52: =VLOOKUP(A52,xom!A$2:G$122,4,0) -> 64.5 | L52: =VLOOKUP(A52,vfinx!A$2:G$122,4,0) -> 74.67
A53: 2009-05-01 | B53: 51.76 | C53: =VLOOKUP(A53,x!A$2:G$122,4,0) -> 25.96 | D53: =VLOOKUP(A53,mt!A$2:G$122,4,0) -> 23.36 | E53: =VLOOKUP(A53,msft!A$2:G$122,4,0) -> 19.01 | F53: =VLOOKUP(A53,aapl!A$2:G$122,4,0) -> 119.38 | G53: =VLOOKUP(A53,k!A$2:G$122,4,0) -> 42.18 | H53: =VLOOKUP(A53,ge!A$2:G$122,4,0) -> 12.22 | I53: =VLOOKUP(A53,bac!A$2:G$122,4,0) -> 8.55 | J53: =VLOOKUP(A53,pfe!A$2:G$122,4,0) -> 13.25 | K53: =VLOOKUP(A53,xom!A$2:G$122,4,0) -> 65.6 | L53: =VLOOKUP(A53,vfinx!A$2:G$122,4,0) -> 80.9
A54: 2009-06-01 | B54: 56.04 | C54: =VLOOKUP(A54,x!A$2:G$122,4,0) -> 33.12 | D54: =VLOOKUP(A54,mt!A$2:G$122,4,0) -> 30.45 | E54: =VLOOKUP(A54,msft!A$2:G$122,4,0) -> 20.86 | F54: =VLOOKUP(A54,aapl!A$2:G$122,4,0) -> 132.88 | G54: =VLOOKUP(A54,k!A$2:G$122,4,0) -> 43.17 | H54: =VLOOKUP(A54,ge!A$2:G$122,4,0) -> 11.25 | I54: =VLOOKUP(A54,bac!A$2:G$122,4,0) -> 11.1 | J54: =VLOOKUP(A54,pfe!A$2:G$122,4,0) -> 13.94 | K54: =VLOOKUP(A54,xom!A$2:G$122,4,0) -> 68.08 | L54: =VLOOKUP(A54,vfinx!A$2:G$122,4,0) -> 82.46
A55: 2009-07-01 | B55: 54.92 | C55: =VLOOKUP(A55,x!A$2:G$122,4,0) -> 29.35 | D55: =VLOOKUP(A55,mt!A$2:G$122,4,0) -> 28.2 | E55: =VLOOKUP(A55,msft!A$2:G$122,4,0) -> 22 | F55: =VLOOKUP(A55,aapl!A$2:G$122,4,0) -> 134.42 | G55: =VLOOKUP(A55,k!A$2:G$122,4,0) -> 46.47 | H55: =VLOOKUP(A55,ge!A$2:G$122,4,0) -> 10.5 | I55: =VLOOKUP(A55,bac!A$2:G$122,4,0) -> 11.27 | J55: =VLOOKUP(A55,pfe!A$2:G$122,4,0) -> 14.11 | K55: =VLOOKUP(A55,xom!A$2:G$122,4,0) -> 64.46 | L55: =VLOOKUP(A55,vfinx!A$2:G$122,4,0) -> 81.08
A56: 2009-08-03 | B56: 54.43 | C56: =VLOOKUP(A56,x!A$2:G$122,4,0) -> 40.88 | D56: =VLOOKUP(A56,mt!A$2:G$122,4,0) -> 33.22 | E56: =VLOOKUP(A56,msft!A$2:G$122,4,0) -> 23.03 | F56: =VLOOKUP(A56,aapl!A$2:G$122,4,0) -> 159.42 | G56: =VLOOKUP(A56,k!A$2:G$122,4,0) -> 45.58 | H56: =VLOOKUP(A56,ge!A$2:G$122,4,0) -> 13.16 | I56: =VLOOKUP(A56,bac!A$2:G$122,4,0) -> 14.82 | J56: =VLOOKUP(A56,pfe!A$2:G$122,4,0) -> 15.54 | K56: =VLOOKUP(A56,xom!A$2:G$122,4,0) -> 66.09 | L56: =VLOOKUP(A56,vfinx!A$2:G$122,4,0) -> 90.55
A57: 2009-09-01 | B57: 53.88 | C57: =VLOOKUP(A57,x!A$2:G$122,4,0) -> 41.1 | D57: =VLOOKUP(A57,mt!A$2:G$122,4,0) -> 33.83 | E57: =VLOOKUP(A57,msft!A$2:G$122,4,0) -> 23.76 | F57: =VLOOKUP(A57,aapl!A$2:G$122,4,0) -> 164.11 | G57: =VLOOKUP(A57,k!A$2:G$122,4,0) -> 46.42 | H57: =VLOOKUP(A57,ge!A$2:G$122,4,0) -> 13.03 | I57: =VLOOKUP(A57,bac!A$2:G$122,4,0) -> 16.02 | J57: =VLOOKUP(A57,pfe!A$2:G$122,4,0) -> 15.95 | K57: =VLOOKUP(A57,xom!A$2:G$122,4,0) -> 67.83 | L57: =VLOOKUP(A57,vfinx!A$2:G$122,4,0) -> 92.05
A58: 2009-10-01 | B58: 56.03 | C58: =VLOOKUP(A58,x!A$2:G$122,4,0) -> 33.97 | D58: =VLOOKUP(A58,mt!A$2:G$122,4,0) -> 33.32 | E58: =VLOOKUP(A58,msft!A$2:G$122,4,0) -> 24.43 | F58: =VLOOKUP(A58,aapl!A$2:G$122,4,0) -> 180.7 | G58: =VLOOKUP(A58,k!A$2:G$122,4,0) -> 48.15 | H58: =VLOOKUP(A58,ge!A$2:G$122,4,0) -> 14.15 | I58: =VLOOKUP(A58,bac!A$2:G$122,4,0) -> 14.5 | J58: =VLOOKUP(A58,pfe!A$2:G$122,4,0) -> 16.07 | K58: =VLOOKUP(A58,xom!A$2:G$122,4,0) -> 66.11 | L58: =VLOOKUP(A58,vfinx!A$2:G$122,4,0) -> 94.52
A59: 2009-11-02 | B59: 58.6 | C59: =VLOOKUP(A59,x!A$2:G$122,4,0) -> 33.25 | D59: =VLOOKUP(A59,mt!A$2:G$122,4,0) -> 32.77 | E59: =VLOOKUP(A59,msft!A$2:G$122,4,0) -> 27.41 | F59: =VLOOKUP(A59,aapl!A$2:G$122,4,0) -> 185.57 | G59: =VLOOKUP(A59,k!A$2:G$122,4,0) -> 50.82 | H59: =VLOOKUP(A59,ge!A$2:G$122,4,0) -> 14.15 | I59: =VLOOKUP(A59,bac!A$2:G$122,4,0) -> 14.12 | J59: =VLOOKUP(A59,pfe!A$2:G$122,4,0) -> 16.72 | K59: =VLOOKUP(A59,xom!A$2:G$122,4,0) -> 71.04 | L59: =VLOOKUP(A59,vfinx!A$2:G$122,4,0) -> 96.25
A60: 2009-12-01 | B60: 60.04 | C60: =VLOOKUP(A60,x!A$2:G$122,4,0) -> 43.31 | D60: =VLOOKUP(A60,mt!A$2:G$122,4,0) -> 38.99 | E60: =VLOOKUP(A60,msft!A$2:G$122,4,0) -> 29.25 | F60: =VLOOKUP(A60,aapl!A$2:G$122,4,0) -> 188.68 | G60: =VLOOKUP(A60,k!A$2:G$122,4,0) -> 51.55 | H60: =VLOOKUP(A60,ge!A$2:G$122,4,0) -> 15.13 | I60: =VLOOKUP(A60,bac!A$2:G$122,4,0) -> 14.83 | J60: =VLOOKUP(A60,pfe!A$2:G$122,4,0) -> 17.63 | K60: =VLOOKUP(A60,xom!A$2:G$122,4,0) -> 67.64 | L60: =VLOOKUP(A60,vfinx!A$2:G$122,4,0) -> 101.05
A61: 2010-01-04 | B61: 61.06 | C61: =VLOOKUP(A61,x!A$2:G$122,4,0) -> 43.75 | D61: =VLOOKUP(A61,mt!A$2:G$122,4,0) -> 38.3 | E61: =VLOOKUP(A61,msft!A$2:G$122,4,0) -> 27.66 | F61: =VLOOKUP(A61,aapl!A$2:G$122,4,0) -> 190.25 | G61: =VLOOKUP(A61,k!A$2:G$122,4,0) -> 52.55 | H61: =VLOOKUP(A61,ge!A$2:G$122,4,0) -> 15.15 | I61: =VLOOKUP(A61,bac!A$2:G$122,4,0) -> 14.68 | J61: =VLOOKUP(A61,pfe!A$2:G$122,4,0) -> 18.24 | K61: =VLOOKUP(A61,xom!A$2:G$122,4,0) -> 64.02 | L61: =VLOOKUP(A61,vfinx!A$2:G$122,4,0) -> 98.97
A62: 2010-02-01 | B62: 62.54 | C62: =VLOOKUP(A62,x!A$2:G$122,4,0) -> 42.32 | D62: =VLOOKUP(A62,mt!A$2:G$122,4,0) -> 35.89 | E62: =VLOOKUP(A62,msft!A$2:G$122,4,0) -> 27.57 | F62: =VLOOKUP(A62,aapl!A$2:G$122,4,0) -> 190.85 | G62: =VLOOKUP(A62,k!A$2:G$122,4,0) -> 51.7 | H62: =VLOOKUP(A62,ge!A$2:G$122,4,0) -> 15.25 | I62: =VLOOKUP(A62,bac!A$2:G$122,4,0) -> 14.25 | J62: =VLOOKUP(A62,pfe!A$2:G$122,4,0) -> 17.43 | K62: =VLOOKUP(A62,xom!A$2:G$122,4,0) -> 63.56 | L62: =VLOOKUP(A62,vfinx!A$2:G$122,4,0) -> 97.45
A63: 2010-03-01 | B63: 63.25 | C63: =VLOOKUP(A63,x!A$2:G$122,4,0) -> 52.9 | D63: =VLOOKUP(A63,mt!A$2:G$122,4,0) -> 37.84 | E63: =VLOOKUP(A63,msft!A$2:G$122,4,0) -> 28.24 | F63: =VLOOKUP(A63,aapl!A$2:G$122,4,0) -> 205.45 | G63: =VLOOKUP(A63,k!A$2:G$122,4,0) -> 52.05 | H63: =VLOOKUP(A63,ge!A$2:G$122,4,0) -> 15.83 | I63: =VLOOKUP(A63,bac!A$2:G$122,4,0) -> 16.03 | J63: =VLOOKUP(A63,pfe!A$2:G$122,4,0) -> 16.8 | K63: =VLOOKUP(A63,xom!A$2:G$122,4,0) -> 65.08 | L63: =VLOOKUP(A63,vfinx!A$2:G$122,4,0) -> 103.06
A64: 2010-04-01 | B64: 67.06 | C64: =VLOOKUP(A64,x!A$2:G$122,4,0) -> 54.3 | D64: =VLOOKUP(A64,mt!A$2:G$122,4,0) -> 38.68 | E64: =VLOOKUP(A64,msft!A$2:G$122,4,0) -> 28.62 | F64: =VLOOKUP(A64,aapl!A$2:G$122,4,0) -> 232.75 | G64: =VLOOKUP(A64,k!A$2:G$122,4,0) -> 52.03 | H64: =VLOOKUP(A64,ge!A$2:G$122,4,0) -> 18.18 | I64: =VLOOKUP(A64,bac!A$2:G$122,4,0) -> 17.41 | J64: =VLOOKUP(A64,pfe!A$2:G$122,4,0) -> 16.33 | K64: =VLOOKUP(A64,xom!A$2:G$122,4,0) -> 66.85 | L64: =VLOOKUP(A64,vfinx!A$2:G$122,4,0) -> 108.54
A65: 2010-05-03 | B65: 65.55 | C65: =VLOOKUP(A65,x!A$2:G$122,4,0) -> 43.61 | D65: =VLOOKUP(A65,mt!A$2:G$122,4,0) -> 27.46 | E65: =VLOOKUP(A65,msft!A$2:G$122,4,0) -> 24.56 | F65: =VLOOKUP(A65,aapl!A$2:G$122,4,0) -> 199.25 | G65: =VLOOKUP(A65,k!A$2:G$122,4,0) -> 52.4 | H65: =VLOOKUP(A65,ge!A$2:G$122,4,0) -> 15.15 | I65: =VLOOKUP(A65,bac!A$2:G$122,4,0) -> 14.8 | J65: =VLOOKUP(A65,pfe!A$2:G$122,4,0) -> 14.75 | K65: =VLOOKUP(A65,xom!A$2:G$122,4,0) -> 58.46 | L65: =VLOOKUP(A65,vfinx!A$2:G$122,4,0) -> 98.65
A66: 2010-06-01 | B66: 65.8 | C66: =VLOOKUP(A66,x!A$2:G$122,4,0) -> 38.39 | D66: =VLOOKUP(A66,mt!A$2:G$122,4,0) -> 26.28 | E66: =VLOOKUP(A66,msft!A$2:G$122,4,0) -> 22.95 | F66: =VLOOKUP(A66,aapl!A$2:G$122,4,0) -> 242.2 | G66: =VLOOKUP(A66,k!A$2:G$122,4,0) -> 50.21 | H66: =VLOOKUP(A66,ge!A$2:G$122,4,0) -> 14.27 | I66: =VLOOKUP(A66,bac!A$2:G$122,4,0) -> 14.3 | J66: =VLOOKUP(A66,pfe!A$2:G$122,4,0) -> 14.17 | K66: =VLOOKUP(A66,xom!A$2:G$122,4,0) -> 56.92 | L66: =VLOOKUP(A66,vfinx!A$2:G$122,4,0) -> 94.91
A67: 2010-07-01 | B67: 65.31 | C67: =VLOOKUP(A67,x!A$2:G$122,4,0) -> 36.93 | D67: =VLOOKUP(A67,mt!A$2:G$122,4,0) -> 26.66 | E67: =VLOOKUP(A67,msft!A$2:G$122,4,0) -> 22.73 | F67: =VLOOKUP(A67,aapl!A$2:G$122,4,0) -> 239.6 | G67: =VLOOKUP(A67,k!A$2:G$122,4,0) -> 47.28 | H67: =VLOOKUP(A67,ge!A$2:G$122,4,0) -> 13.75 | I67: =VLOOKUP(A67,bac!A$2:G$122,4,0) -> 13.3 | J67: =VLOOKUP(A67,pfe!A$2:G$122,4,0) -> 14 | K67: =VLOOKUP(A67,xom!A$2:G$122,4,0) -> 55.94 | L67: =VLOOKUP(A67,vfinx!A$2:G$122,4,0) -> 94.17
A68: 2010-08-02 | B68: 69.84 | C68: =VLOOKUP(A68,x!A$2:G$122,4,0) -> 41.5 | D68: =VLOOKUP(A68,mt!A$2:G$122,4,0) -> 27.65 | E68: =VLOOKUP(A68,msft!A$2:G$122,4,0) -> 23.32 | F68: =VLOOKUP(A68,aapl!A$2:G$122,4,0) -> 235.56 | G68: =VLOOKUP(A68,k!A$2:G$122,4,0) -> 48.97 | H68: =VLOOKUP(A68,ge!A$2:G$122,4,0) -> 14.25 | I68: =VLOOKUP(A68,bac!A$2:G$122,4,0) -> 12.18 | J68: =VLOOKUP(A68,pfe!A$2:G$122,4,0) -> 15.1 | K68: =VLOOKUP(A68,xom!A$2:G$122,4,0) -> 58.05 | L68: =VLOOKUP(A68,vfinx!A$2:G$122,4,0) -> 96.71
A69: 2010-09-01 | B69: 73.66 | C69: =VLOOKUP(A69,x!A$2:G$122,4,0) -> 41.8 | D69: =VLOOKUP(A69,mt!A$2:G$122,4,0) -> 29.91 | E69: =VLOOKUP(A69,msft!A$2:G$122,4,0) -> 23.54 | F69: =VLOOKUP(A69,aapl!A$2:G$122,4,0) -> 246.28 | G69: =VLOOKUP(A69,k!A$2:G$122,4,0) -> 49.49 | H69: =VLOOKUP(A69,ge!A$2:G$122,4,0) -> 14.6 | I69: =VLOOKUP(A69,bac!A$2:G$122,4,0) -> 12.6 | J69: =VLOOKUP(A69,pfe!A$2:G$122,4,0) -> 16.07 | K69: =VLOOKUP(A69,xom!A$2:G$122,4,0) -> 59.72 | L69: =VLOOKUP(A69,vfinx!A$2:G$122,4,0) -> 99.82
A70: 2010-10-01 | B70: 74.4 | C70: =VLOOKUP(A70,x!A$2:G$122,4,0) -> 39.78 | D70: =VLOOKUP(A70,mt!A$2:G$122,4,0) -> 31.92 | E70: =VLOOKUP(A70,msft!A$2:G$122,4,0) -> 23.78 | F70: =VLOOKUP(A70,aapl!A$2:G$122,4,0) -> 277.77 | G70: =VLOOKUP(A70,k!A$2:G$122,4,0) -> 48.72 | H70: =VLOOKUP(A70,ge!A$2:G$122,4,0) -> 15.88 | I70: =VLOOKUP(A70,bac!A$2:G$122,4,0) -> 11.03 | J70: =VLOOKUP(A70,pfe!A$2:G$122,4,0) -> 16.86 | K70: =VLOOKUP(A70,xom!A$2:G$122,4,0) -> 61.8 | L70: =VLOOKUP(A70,vfinx!A$2:G$122,4,0) -> 104.68
A71: 2010-11-01 | B71: 77.12 | C71: =VLOOKUP(A71,x!A$2:G$122,4,0) -> 42.86 | D71: =VLOOKUP(A71,mt!A$2:G$122,4,0) -> 30.96 | E71: =VLOOKUP(A71,msft!A$2:G$122,4,0) -> 24.93 | F71: =VLOOKUP(A71,aapl!A$2:G$122,4,0) -> 297.76 | G71: =VLOOKUP(A71,k!A$2:G$122,4,0) -> 48.51 | H71: =VLOOKUP(A71,ge!A$2:G$122,4,0) -> 15.63 | I71: =VLOOKUP(A71,bac!A$2:G$122,4,0) -> 10.91 | J71: =VLOOKUP(A71,pfe!A$2:G$122,4,0) -> 16.25 | K71: =VLOOKUP(A71,xom!A$2:G$122,4,0) -> 66.63 | L71: =VLOOKUP(A71,vfinx!A$2:G$122,4,0) -> 108.74
A72: 2010-12-01 | B72: 75.94 | C72: =VLOOKUP(A72,x!A$2:G$122,4,0) -> 49.35 | D72: =VLOOKUP(A72,mt!A$2:G$122,4,0) -> 32.79 | E72: =VLOOKUP(A72,msft!A$2:G$122,4,0) -> 25.56 | F72: =VLOOKUP(A72,aapl!A$2:G$122,4,0) -> 314.89 | G72: =VLOOKUP(A72,k!A$2:G$122,4,0) -> 48.85 | H72: =VLOOKUP(A72,ge!A$2:G$122,4,0) -> 16.03 | I72: =VLOOKUP(A72,bac!A$2:G$122,4,0) -> 10.97 | J72: =VLOOKUP(A72,pfe!A$2:G$122,4,0) -> 16.42 | K72: =VLOOKUP(A72,xom!A$2:G$122,4,0) -> 70.38 | L72: =VLOOKUP(A72,vfinx!A$2:G$122,4,0) -> 111.41
A73: 2011-01-03 | B73: 72.14 | C73: =VLOOKUP(A73,x!A$2:G$122,4,0) -> 51.33 | D73: =VLOOKUP(A73,mt!A$2:G$122,4,0) -> 34.17 | E73: =VLOOKUP(A73,msft!A$2:G$122,4,0) -> 27.42 | F73: =VLOOKUP(A73,aapl!A$2:G$122,4,0) -> 324.84 | G73: =VLOOKUP(A73,k!A$2:G$122,4,0) -> 50.03 | H73: =VLOOKUP(A73,ge!A$2:G$122,4,0) -> 18.12 | I73: =VLOOKUP(A73,bac!A$2:G$122,4,0) -> 13.4 | J73: =VLOOKUP(A73,pfe!A$2:G$122,4,0) -> 17.62 | K73: =VLOOKUP(A73,xom!A$2:G$122,4,0) -> 73.64 | L73: =VLOOKUP(A73,vfinx!A$2:G$122,4,0) -> 116.98
A74: 2011-02-01 | B74: 73.08 | C74: =VLOOKUP(A74,x!A$2:G$122,4,0) -> 54.67 | D74: =VLOOKUP(A74,mt!A$2:G$122,4,0) -> 35 | E74: =VLOOKUP(A74,msft!A$2:G$122,4,0) -> 26.43 | F74: =VLOOKUP(A74,aapl!A$2:G$122,4,0) -> 337.72 | G74: =VLOOKUP(A74,k!A$2:G$122,4,0) -> 49.99 | H74: =VLOOKUP(A74,ge!A$2:G$122,4,0) -> 20.08 | I74: =VLOOKUP(A74,bac!A$2:G$122,4,0) -> 13.79 | J74: =VLOOKUP(A74,pfe!A$2:G$122,4,0) -> 18.46 | K74: =VLOOKUP(A74,xom!A$2:G$122,4,0) -> 81.04 | L74: =VLOOKUP(A74,vfinx!A$2:G$122,4,0) -> 120.22
A75: 2011-03-01 | B75: 72.89 | C75: =VLOOKUP(A75,x!A$2:G$122,4,0) -> 52.11 | D75: =VLOOKUP(A75,mt!A$2:G$122,4,0) -> 32.42 | E75: =VLOOKUP(A75,msft!A$2:G$122,4,0) -> 24.68 | F75: =VLOOKUP(A75,aapl!A$2:G$122,4,0) -> 326.26 | G75: =VLOOKUP(A75,k!A$2:G$122,4,0) -> 52.72 | H75: =VLOOKUP(A75,ge!A$2:G$122,4,0) -> 18.6 | I75: =VLOOKUP(A75,bac!A$2:G$122,4,0) -> 13.16 | J75: =VLOOKUP(A75,pfe!A$2:G$122,4,0) -> 18.97 | K75: =VLOOKUP(A75,xom!A$2:G$122,4,0) -> 78.8 | L75: =VLOOKUP(A75,vfinx!A$2:G$122,4,0) -> 116.21
A76: 2011-04-01 | B76: 75.66 | C76: =VLOOKUP(A76,x!A$2:G$122,4,0) -> 46.89 | D76: =VLOOKUP(A76,mt!A$2:G$122,4,0) -> 33.53 | E76: =VLOOKUP(A76,msft!A$2:G$122,4,0) -> 24.72 | F76: =VLOOKUP(A76,aapl!A$2:G$122,4,0) -> 320.16 | G76: =VLOOKUP(A76,k!A$2:G$122,4,0) -> 53.8 | H76: =VLOOKUP(A76,ge!A$2:G$122,4,0) -> 19.51 | I76: =VLOOKUP(A76,bac!A$2:G$122,4,0) -> 12.15 | J76: =VLOOKUP(A76,pfe!A$2:G$122,4,0) -> 19.1 | K76: =VLOOKUP(A76,xom!A$2:G$122,4,0) -> 82.38 | L76: =VLOOKUP(A76,vfinx!A$2:G$122,4,0) -> 120.3
A77: 2011-05-02 | B77: 78.2 | C77: =VLOOKUP(A77,x!A$2:G$122,4,0) -> 43.86 | D77: =VLOOKUP(A77,mt!A$2:G$122,4,0) -> 31.6 | E77: =VLOOKUP(A77,msft!A$2:G$122,4,0) -> 24.03 | F77: =VLOOKUP(A77,aapl!A$2:G$122,4,0) -> 329.42 | G77: =VLOOKUP(A77,k!A$2:G$122,4,0) -> 55.86 | H77: =VLOOKUP(A77,ge!A$2:G$122,4,0) -> 18.97 | I77: =VLOOKUP(A77,bac!A$2:G$122,4,0) -> 11.29 | J77: =VLOOKUP(A77,pfe!A$2:G$122,4,0) -> 20.07 | K77: =VLOOKUP(A77,xom!A$2:G$122,4,0) -> 79.42 | L77: =VLOOKUP(A77,vfinx!A$2:G$122,4,0) -> 121.55
A78: 2011-06-01 | B78: 80 | C78: =VLOOKUP(A78,x!A$2:G$122,4,0) -> 40.95 | D78: =VLOOKUP(A78,mt!A$2:G$122,4,0) -> 31.12 | E78: =VLOOKUP(A78,msft!A$2:G$122,4,0) -> 23.65 | F78: =VLOOKUP(A78,aapl!A$2:G$122,4,0) -> 310.5 | G78: =VLOOKUP(A78,k!A$2:G$122,4,0) -> 53.45 | H78: =VLOOKUP(A78,ge!A$2:G$122,4,0) -> 17.97 | I78: =VLOOKUP(A78,bac!A$2:G$122,4,0) -> 10.4 | J78: =VLOOKUP(A78,pfe!A$2:G$122,4,0) -> 20.03 | K78: =VLOOKUP(A78,xom!A$2:G$122,4,0) -> 76.72 | L78: =VLOOKUP(A78,vfinx!A$2:G$122,4,0) -> 116.8
A79: 2011-07-01 | B79: 84.15 | C79: =VLOOKUP(A79,x!A$2:G$122,4,0) -> 39.05 | D79: =VLOOKUP(A79,mt!A$2:G$122,4,0) -> 30.82 | E79: =VLOOKUP(A79,msft!A$2:G$122,4,0) -> 25.84 | F79: =VLOOKUP(A79,aapl!A$2:G$122,4,0) -> 334.2 | G79: =VLOOKUP(A79,k!A$2:G$122,4,0) -> 54.35 | H79: =VLOOKUP(A79,ge!A$2:G$122,4,0) -> 17.78 | I79: =VLOOKUP(A79,bac!A$2:G$122,4,0) -> 9.4 | J79: =VLOOKUP(A79,pfe!A$2:G$122,4,0) -> 19.05 | K79: =VLOOKUP(A79,xom!A$2:G$122,4,0) -> 79.76 | L79: =VLOOKUP(A79,vfinx!A$2:G$122,4,0) -> 119.16
A80: 2011-08-01 | B80: 82.01 | C80: =VLOOKUP(A80,x!A$2:G$122,4,0) -> 25.44 | D80: =VLOOKUP(A80,mt!A$2:G$122,4,0) -> 19.07 | E80: =VLOOKUP(A80,msft!A$2:G$122,4,0) -> 23.79 | F80: =VLOOKUP(A80,aapl!A$2:G$122,4,0) -> 353.02 | G80: =VLOOKUP(A80,k!A$2:G$122,4,0) -> 50.38 | H80: =VLOOKUP(A80,ge!A$2:G$122,4,0) -> 14.82 | I80: =VLOOKUP(A80,bac!A$2:G$122,4,0) -> 6.01 | J80: =VLOOKUP(A80,pfe!A$2:G$122,4,0) -> 16.63 | K80: =VLOOKUP(A80,xom!A$2:G$122,4,0) -> 67.03 | L80: =VLOOKUP(A80,vfinx!A$2:G$122,4,0) -> 103.28
A81: 2011-09-01 | B81: 83.65 | C81: =VLOOKUP(A81,x!A$2:G$122,4,0) -> 21.73 | D81: =VLOOKUP(A81,mt!A$2:G$122,4,0) -> 14.77 | E81: =VLOOKUP(A81,msft!A$2:G$122,4,0) -> 24.6 | F81: =VLOOKUP(A81,aapl!A$2:G$122,4,0) -> 366.48 | G81: =VLOOKUP(A81,k!A$2:G$122,4,0) -> 51.63 | H81: =VLOOKUP(A81,ge!A$2:G$122,4,0) -> 14.72 | I81: =VLOOKUP(A81,bac!A$2:G$122,4,0) -> 6 | J81: =VLOOKUP(A81,pfe!A$2:G$122,4,0) -> 17.3 | K81: =VLOOKUP(A81,xom!A$2:G$122,4,0) -> 67.93 | L81: =VLOOKUP(A81,vfinx!A$2:G$122,4,0) -> 103.97
A82: 2011-10-03 | B82: 83.74 | C82: =VLOOKUP(A82,x!A$2:G$122,4,0) -> 18.85 | D82: =VLOOKUP(A82,mt!A$2:G$122,4,0) -> 15 | E82: =VLOOKUP(A82,msft!A$2:G$122,4,0) -> 24.26 | F82: =VLOOKUP(A82,aapl!A$2:G$122,4,0) -> 354.24 | G82: =VLOOKUP(A82,k!A$2:G$122,4,0) -> 51.94 | H82: =VLOOKUP(A82,ge!A$2:G$122,4,0) -> 14.02 | I82: =VLOOKUP(A82,bac!A$2:G$122,4,0) -> 5.13 | J82: =VLOOKUP(A82,pfe!A$2:G$122,4,0) -> 17.05 | K82: =VLOOKUP(A82,xom!A$2:G$122,4,0) -> 69.21 | L82: =VLOOKUP(A82,vfinx!A$2:G$122,4,0) -> 101.22
A83: 2011-11-01 | B83: 91.22 | C83: =VLOOKUP(A83,x!A$2:G$122,4,0) -> 22.22 | D83: =VLOOKUP(A83,mt!A$2:G$122,4,0) -> 15.16 | E83: =VLOOKUP(A83,msft!A$2:G$122,4,0) -> 24.3 | F83: =VLOOKUP(A83,aapl!A$2:G$122,4,0) -> 363.32 | G83: =VLOOKUP(A83,k!A$2:G$122,4,0) -> 48.1 | H83: =VLOOKUP(A83,ge!A$2:G$122,4,0) -> 14.68 | I83: =VLOOKUP(A83,bac!A$2:G$122,4,0) -> 5.03 | J83: =VLOOKUP(A83,pfe!A$2:G$122,4,0) -> 18.15 | K83: =VLOOKUP(A83,xom!A$2:G$122,4,0) -> 73.9 | L83: =VLOOKUP(A83,vfinx!A$2:G$122,4,0) -> 107.06
A84: 2011-12-01 | B84: 94.82 | C84: =VLOOKUP(A84,x!A$2:G$122,4,0) -> 23.67 | D84: =VLOOKUP(A84,mt!A$2:G$122,4,0) -> 16.47 | E84: =VLOOKUP(A84,msft!A$2:G$122,4,0) -> 25.16 | F84: =VLOOKUP(A84,aapl!A$2:G$122,4,0) -> 377.68 | G84: =VLOOKUP(A84,k!A$2:G$122,4,0) -> 48.47 | H84: =VLOOKUP(A84,ge!A$2:G$122,4,0) -> 15.73 | I84: =VLOOKUP(A84,bac!A$2:G$122,4,0) -> 4.92 | J84: =VLOOKUP(A84,pfe!A$2:G$122,4,0) -> 19.73 | K84: =VLOOKUP(A84,xom!A$2:G$122,4,0) -> 78.66 | L84: =VLOOKUP(A84,vfinx!A$2:G$122,4,0) -> 111.53
A85: 2012-01-03 | B85: 97.7 | C85: =VLOOKUP(A85,x!A$2:G$122,4,0) -> 26.64 | D85: =VLOOKUP(A85,mt!A$2:G$122,4,0) -> 18.49 | E85: =VLOOKUP(A85,msft!A$2:G$122,4,0) -> 26.39 | F85: =VLOOKUP(A85,aapl!A$2:G$122,4,0) -> 409 | G85: =VLOOKUP(A85,k!A$2:G$122,4,0) -> 49.07 | H85: =VLOOKUP(A85,ge!A$2:G$122,4,0) -> 18.23 | I85: =VLOOKUP(A85,bac!A$2:G$122,4,0) -> 5.62 | J85: =VLOOKUP(A85,pfe!A$2:G$122,4,0) -> 21.22 | K85: =VLOOKUP(A85,xom!A$2:G$122,4,0) -> 83.46 | L85: =VLOOKUP(A85,vfinx!A$2:G$122,4,0) -> 117.59
A86: 2012-02-01 | B86: 98.26 | C86: =VLOOKUP(A86,x!A$2:G$122,4,0) -> 26.9 | D86: =VLOOKUP(A86,mt!A$2:G$122,4,0) -> 20.51 | E86: =VLOOKUP(A86,msft!A$2:G$122,4,0) -> 29.71 | F86: =VLOOKUP(A86,aapl!A$2:G$122,4,0) -> 453.98 | G86: =VLOOKUP(A86,k!A$2:G$122,4,0) -> 49.27 | H86: =VLOOKUP(A86,ge!A$2:G$122,4,0) -> 18.7 | I86: =VLOOKUP(A86,bac!A$2:G$122,4,0) -> 7.21 | J86: =VLOOKUP(A86,pfe!A$2:G$122,4,0) -> 20.75 | K86: =VLOOKUP(A86,xom!A$2:G$122,4,0) -> 83.19 | L86: =VLOOKUP(A86,vfinx!A$2:G$122,4,0) -> 122.07
A87: 2012-03-01 | B87: 95.13 | C87: =VLOOKUP(A87,x!A$2:G$122,4,0) -> 24.78 | D87: =VLOOKUP(A87,mt!A$2:G$122,4,0) -> 18.58 | E87: =VLOOKUP(A87,msft!A$2:G$122,4,0) -> 31.49 | F87: =VLOOKUP(A87,aapl!A$2:G$122,4,0) -> 516.22 | G87: =VLOOKUP(A87,k!A$2:G$122,4,0) -> 51.64 | H87: =VLOOKUP(A87,ge!A$2:G$122,4,0) -> 18.32 | I87: =VLOOKUP(A87,bac!A$2:G$122,4,0) -> 7.66 | J87: =VLOOKUP(A87,pfe!A$2:G$122,4,0) -> 21.05 | K87: =VLOOKUP(A87,xom!A$2:G$122,4,0) -> 84.05 | L87: =VLOOKUP(A87,vfinx!A$2:G$122,4,0) -> 124.14
A88: 2012-04-02 | B88: 94.13 | C88: =VLOOKUP(A88,x!A$2:G$122,4,0) -> 26.39 | D88: =VLOOKUP(A88,mt!A$2:G$122,4,0) -> 16 | E88: =VLOOKUP(A88,msft!A$2:G$122,4,0) -> 30.23 | F88: =VLOOKUP(A88,aapl!A$2:G$122,4,0) -> 555 | G88: =VLOOKUP(A88,k!A$2:G$122,4,0) -> 50.05 | H88: =VLOOKUP(A88,ge!A$2:G$122,4,0) -> 18.7 | I88: =VLOOKUP(A88,bac!A$2:G$122,4,0) -> 7.95 | J88: =VLOOKUP(A88,pfe!A$2:G$122,4,0) -> 21.77 | K88: =VLOOKUP(A88,xom!A$2:G$122,4,0) -> 81.88 | L88: =VLOOKUP(A88,vfinx!A$2:G$122,4,0) -> 125.27
A89: 2012-05-01 | B89: 89.26 | C89: =VLOOKUP(A89,x!A$2:G$122,4,0) -> 19.95 | D89: =VLOOKUP(A89,mt!A$2:G$122,4,0) -> 13.62 | E89: =VLOOKUP(A89,msft!A$2:G$122,4,0) -> 28.64 | F89: =VLOOKUP(A89,aapl!A$2:G$122,4,0) -> 522.18 | G89: =VLOOKUP(A89,k!A$2:G$122,4,0) -> 48.78 | H89: =VLOOKUP(A89,ge!A$2:G$122,4,0) -> 18.32 | I89: =VLOOKUP(A89,bac!A$2:G$122,4,0) -> 6.72 | J89: =VLOOKUP(A89,pfe!A$2:G$122,4,0) -> 21.85 | K89: =VLOOKUP(A89,xom!A$2:G$122,4,0) -> 78.41 | L89: =VLOOKUP(A89,vfinx!A$2:G$122,4,0) -> 119.7
A90: 2012-06-01 | B90: 85.92 | C90: =VLOOKUP(A90,x!A$2:G$122,4,0) -> 17.67 | D90: =VLOOKUP(A90,mt!A$2:G$122,4,0) -> 13.28 | E90: =VLOOKUP(A90,msft!A$2:G$122,4,0) -> 28.32 | F90: =VLOOKUP(A90,aapl!A$2:G$122,4,0) -> 548.5 | G90: =VLOOKUP(A90,k!A$2:G$122,4,0) -> 47.88 | H90: =VLOOKUP(A90,ge!A$2:G$122,4,0) -> 18.02 | I90: =VLOOKUP(A90,bac!A$2:G$122,4,0) -> 6.85 | J90: =VLOOKUP(A90,pfe!A$2:G$122,4,0) -> 21.4 | K90: =VLOOKUP(A90,xom!A$2:G$122,4,0) -> 77.13 | L90: =VLOOKUP(A90,vfinx!A$2:G$122,4,0) -> 118.21
A91: 2012-07-02 | B91: 87.62 | C91: =VLOOKUP(A91,x!A$2:G$122,4,0) -> 17.8 | D91: =VLOOKUP(A91,mt!A$2:G$122,4,0) -> 13.91 | E91: =VLOOKUP(A91,msft!A$2:G$122,4,0) -> 28.54 | F91: =VLOOKUP(A91,aapl!A$2:G$122,4,0) -> 570 | G91: =VLOOKUP(A91,k!A$2:G$122,4,0) -> 46.33 | H91: =VLOOKUP(A91,ge!A$2:G$122,4,0) -> 19.36 | I91: =VLOOKUP(A91,bac!A$2:G$122,4,0) -> 6.9 | J91: =VLOOKUP(A91,pfe!A$2:G$122,4,0) -> 22 | K91: =VLOOKUP(A91,xom!A$2:G$122,4,0) -> 82.83 | L91: =VLOOKUP(A91,vfinx!A$2:G$122,4,0) -> 123.11
A92: 2012-08-01 | B92: 86.15 | C92: =VLOOKUP(A92,x!A$2:G$122,4,0) -> 19.06 | D92: =VLOOKUP(A92,mt!A$2:G$122,4,0) -> 14 | E92: =VLOOKUP(A92,msft!A$2:G$122,4,0) -> 28.97 | F92: =VLOOKUP(A92,aapl!A$2:G$122,4,0) -> 600.25 | G92: =VLOOKUP(A92,k!A$2:G$122,4,0) -> 47.51 | H92: =VLOOKUP(A92,ge!A$2:G$122,4,0) -> 20.2 | I92: =VLOOKUP(A92,bac!A$2:G$122,4,0) -> 7.1 | J92: =VLOOKUP(A92,pfe!A$2:G$122,4,0) -> 23.59 | K92: =VLOOKUP(A92,xom!A$2:G$122,4,0) -> 85.5 | L92: =VLOOKUP(A92,vfinx!A$2:G$122,4,0) -> 125.98
A93: 2012-09-04 | B93: 88.71 | C93: =VLOOKUP(A93,x!A$2:G$122,4,0) -> 18.29 | D93: =VLOOKUP(A93,mt!A$2:G$122,4,0) -> 14.22 | E93: =VLOOKUP(A93,msft!A$2:G$122,4,0) -> 29.74 | F93: =VLOOKUP(A93,aapl!A$2:G$122,4,0) -> 656 | G93: =VLOOKUP(A93,k!A$2:G$122,4,0) -> 49.92 | H93: =VLOOKUP(A93,ge!A$2:G$122,4,0) -> 20.48 | I93: =VLOOKUP(A93,bac!A$2:G$122,4,0) -> 7.93 | J93: =VLOOKUP(A93,pfe!A$2:G$122,4,0) -> 23.63 | K93: =VLOOKUP(A93,xom!A$2:G$122,4,0) -> 86.52 | L93: =VLOOKUP(A93,vfinx!A$2:G$122,4,0) -> 129.87
A94: 2012-10-01 | B94: 86.37 | C94: =VLOOKUP(A94,x!A$2:G$122,4,0) -> 18.74 | D94: =VLOOKUP(A94,mt!A$2:G$122,4,0) -> 14.32 | E94: =VLOOKUP(A94,msft!A$2:G$122,4,0) -> 27.76 | F94: =VLOOKUP(A94,aapl!A$2:G$122,4,0) -> 587.7 | G94: =VLOOKUP(A94,k!A$2:G$122,4,0) -> 51.27 | H94: =VLOOKUP(A94,ge!A$2:G$122,4,0) -> 20.97 | I94: =VLOOKUP(A94,bac!A$2:G$122,4,0) -> 8.85 | J94: =VLOOKUP(A94,pfe!A$2:G$122,4,0) -> 24.8 | K94: =VLOOKUP(A94,xom!A$2:G$122,4,0) -> 89.68 | L94: =VLOOKUP(A94,vfinx!A$2:G$122,4,0) -> 130.03
